Workbook

Sheet JSONBuvette (hidden)
A1: =+Buvette!X3 -> {"title":"Boissons Chaudes","logo":"Boisson1.png"},
A2: =+Buvette!X4 -> {"prod":"The","price":"1,00","logo":""},
A3: =+Buvette!X5 -> {"prod":"Cafe","price":"1,00","logo":""},
A4: =+Buvette!X6 -> {"prod":"_","price":"0,00","logo":""}
A5: =+Buvette!X7 -> 
A6: =+Buvette!X8 -> ---
A7: =+Buvette!X9 -> 
A8: =+Buvette!X10 -> {"title":"Rafraichissements","logo":"biere.png"},
A9: =+Buvette!X11 -> {"prod":"Mini Maid","price":"1,50","logo":""},
A10: =+Buvette!X12 -> {"prod":"COCA COLA","price":"1,50","logo":""},
A11: =+Buvette!X13 -> {"prod":"HEINEKEN","price":"1,50","logo":""},
A12: =+Buvette!X14 -> {"prod":"Evian","price":"3,00","logo":""},
A13: =+Buvette!X15 -> {"prod":"Badoit","price":"0,50","logo":""},
A14: =+Buvette!X16 -> {"prod":"Coca Cola","price":"0,50","logo":""},
A15: =+Buvette!X17 -> {"prod":"_","price":"0,00","logo":""},
A16: =+Buvette!X18 -> {"prod":"Verre de Vin","price":"1,50","logo":""},
A17: =+Buvette!X19 -> {"prod":"_","price":"0,00","logo":""},
A18: =+Buvette!X20 -> {"prod":"_","price":"0,00","logo":""},
A19: =+Buvette!X21 -> {"prod":"_","price":"_","logo":""}
A20: =+Buvette!X22 -> 
A21: =+Buvette!X23 -> ---
A22: =+Buvette!X24 -> 
A23: =+Buvette!X25 -> {"title":"Desserts","logo":"glaces.jpg"},
A24: =+Buvette!X26 -> {"prod":"Patisseries","price":"1,50","logo":""},
A25: =+Buvette!X27 -> {"prod":"Flans","price":"_","logo":""},
A26: =+Buvette!X28 -> {"prod":"Mister Freeze","price":"_","logo":""},
A27: =+Buvette!X29 -> {"prod":"-","price":"_","logo":""}
A28: =+Buvette!X30 -> 
A29: =+Buvette!X31 -> ---
A30: =+Buvette!X32 -> 
A31: =+Buvette!X33 -> {"title":"Encas","logo":"sandwitchs.png"},
A32: =+Buvette!X34 -> {"prod":"2 saucisses Frites","price":"3,50","logo":""},
A33: =+Buvette!X35 -> {"prod":"Cornet de Frites","price":"2,00","logo":""},
A34: =+Buvette!X36 -> {"prod":"Sandwitch Mergez","price":"3,00","logo":""},
A35: =+Buvette!X37 -> {"prod":"Sandwitch Saucisse","price":"2,00","logo":""}
A36: =+Buvette!X38 -> 
A37: =+Buvette!X39 -> 

Sheet Buvette (hidden)
A1: BUVETTE | X1: Script JSON | Z1: Parametres
A2: Enregistré | Z2: "title": | AA2: Row0 | AB2: Boisson1.png
B3: Boissons Chaudes | F3: Rafraichissements | J3: Desserts | N3: Encas | T3: Boisson1.png | U3: =IF(T3="","",T3) -> Boisson1.png | X3: =CHAR(123)&TEXT($Z$2,"0,00")&CHAR(34)&TEXT($B3,"0,00")&CHAR(34)&CHAR(44)&TEXT($Z$5,"0,00")&CHAR(34)&TEXT(U3,"x")&CHAR(34)&CHAR(125)&CHAR(44) -> {"title":"Boissons Chaudes","logo":"Boisson1.png"}, | Z3: "prod": | AA3: Row1 | AB3: biere.png
C4: The | D4: 1 | G4: Mini Maid | H4: 1.5 | K4: Patisseries | L4: 1.5 | O4: 2 saucisses Frites | P4: 3.5 | U4: =IF(T4="","",T4) ->  | V4: =+IF(C5="","",",") -> , | X4: =CHAR(123)&TEXT($Z$3,"0,00")&CHAR(34)&TEXT($C4,"0,00")&CHAR(34)&CHAR(44)&TEXT($Z$4,"0,00")&CHAR(34)&TEXT(D4,"0,00")&CHAR(34)&CHAR(44)&TEXT($Z$5,"0,00")&CHAR(34)&TEXT(U4,"x")&CHAR(34)&CHAR(125)&TEXT(V4,"0,00") -> {"prod":"The","price":"1,00","logo":""}, | Z4: "price": | AB4: sandwitchs.png
C5: Cafe | D5: 1 | G5: COCA COLA | H5: 1.5 | K5: Flans | L5: _ | O5: Cornet de Frites | P5: 2 | U5: =IF(T5="","",T5) ->  | V5: =+IF(C6="","",",") -> , | X5: =CHAR(123)&TEXT($Z$3,"0,00")&CHAR(34)&TEXT($C5,"0,00")&CHAR(34)&CHAR(44)&TEXT($Z$4,"0,00")&CHAR(34)&TEXT(D5,"0,00")&CHAR(34)&CHAR(44)&TEXT($Z$5,"0,00")&CHAR(34)&TEXT(U5,"x")&CHAR(34)&CHAR(125)&TEXT(V5,"0,00") -> {"prod":"Cafe","price":"1,00","logo":""}, | Z5: "logo": | AB5: glaces.jpg
C6: _ | G6: HEINEKEN | H6: 1.5 | K6: Mister Freeze | L6: _ | O6: Sandwitch Mergez | P6: 3 | U6: =IF(T6="","",T6) ->  | V6: =+IF(C7="","",",") ->  | X6: =CHAR(123)&TEXT($Z$3,"0,00")&CHAR(34)&TEXT($C6,"0,00")&CHAR(34)&CHAR(44)&TEXT($Z$4,"0,00")&CHAR(34)&TEXT(D6,"0,00")&CHAR(34)&CHAR(44)&TEXT($Z$5,"0,00")&CHAR(34)&TEXT(U6,"x")&CHAR(34)&CHAR(125)&TEXT(V6,"0,00") -> {"prod":"_","price":"0,00","logo":""} | AB6: cookies.png
G7: Evian | H7: 3 | K7: - | L7: _ | O7: Sandwitch Saucisse | P7: 2 | X7: =IF(C7="","") -> 
B8: --- | G8: Badoit | H8: 0.5 | X8: ---
G9: Coca Cola | H9: 0.5 | J9: =+F16 -> --- | X9: =IF(C9="","") -> 
G10: _ | T10: biere.png | U10: =IF(T10="","",T10) -> biere.png | X10: =CHAR(123)&TEXT($Z$2,"0,00")&CHAR(34)&TEXT($F3,"0,00")&CHAR(34)&CHAR(44)&TEXT($Z$5,"0,00")&CHAR(34)&TEXT(U10,"x")&CHAR(34)&CHAR(125)&CHAR(44) -> {"title":"Rafraichissements","logo":"biere.png"},
G11: Verre de Vin | H11: 1.5 | U11: =IF(T11="","",T11) ->  | V11: =+IF(G5="","",",") -> , | X11: =CHAR(123)&TEXT($Z$3,"0,00")&CHAR(34)&TEXT($G4,"0,00")&CHAR(34)&CHAR(44)&TEXT($Z$4,"0,00")&CHAR(34)&TEXT(H4,"0,00")&CHAR(34)&CHAR(44)&TEXT($Z$5,"0,00")&CHAR(34)&TEXT(U11,"x")&CHAR(34)&CHAR(125)&TEXT(V11,"0,00") -> {"prod":"Mini Maid","price":"1,50","logo":""},
G12: _ | U12: =IF(T12="","",T12) ->  | V12: , | X12: =CHAR(123)&TEXT($Z$3,"0,00")&CHAR(34)&TEXT($G5,"0,00")&CHAR(34)&CHAR(44)&TEXT($Z$4,"0,00")&CHAR(34)&TEXT(H5,"0,00")&CHAR(34)&CHAR(44)&TEXT($Z$5,"0,00")&CHAR(34)&TEXT(U12,"x")&CHAR(34)&CHAR(125)&TEXT(V12,"0,00") -> {"prod":"COCA COLA","price":"1,50","logo":""},
G13: _ | V13: , | X13: {"prod":"HEINEKEN","price":"1,50","logo":""},
G14: _ | H14: _ | V14: , | X14: {"prod":"Evian","price":"3,00","logo":""},
V15: , | X15: {"prod":"Badoit","price":"0,50","logo":""},
F16: =+B8 -> --- | V16: , | X16: {"prod":"Coca Cola","price":"0,50","logo":""},
V17: , | X17: {"prod":"_","price":"0,00","logo":""},
V18: , | X18: {"prod":"Verre de Vin","price":"1,50","logo":""},
V19: , | X19: {"prod":"_","price":"0,00","logo":""},
V20: , | X20: {"prod":"_","price":"0,00","logo":""},
X21: =CHAR(123)&TEXT($Z$3,"0,00")&CHAR(34)&TEXT($G14,"0,00")&CHAR(34)&CHAR(44)&TEXT($Z$4,"0,00")&CHAR(34)&TEXT(H14,"0,00")&CHAR(34)&CHAR(44)&TEXT($Z$5,"0,00")&CHAR(34)&TEXT(U21,"x")&CHAR(34)&CHAR(125)&TEXT(V21,"0,00") -> {"prod":"_","price":"_","logo":""}
X22: =IF(G15="","") -> 
X23: =+F16 -> ---
X24: =IF(C24="","") -> 
T25: glaces.jpg | U25: =IF(T25="","",T25) -> glaces.jpg | X25: =CHAR(123)&TEXT($Z$2,"0,00")&CHAR(34)&TEXT($J3,"0,00")&CHAR(34)&CHAR(44)&TEXT($Z$5,"0,00")&CHAR(34)&TEXT(U25,"x")&CHAR(34)&CHAR(125)&CHAR(44) -> {"title":"Desserts","logo":"glaces.jpg"},
U26: =IF(T26="","",T26) ->  | V26: =+IF(K5="","",",") -> , | X26: =CHAR(123)&TEXT($Z$3,"0,00")&CHAR(34)&TEXT($K4,"0,00")&CHAR(34)&CHAR(44)&TEXT($Z$4,"0,00")&CHAR(34)&TEXT(L4,"0,00")&CHAR(34)&CHAR(44)&TEXT($Z$5,"0,00")&CHAR(34)&TEXT(U26,"x")&CHAR(34)&CHAR(125)&TEXT(V26,"0,00") -> {"prod":"Patisseries","price":"1,50","logo":""},
U27: =IF(T27="","",T27) ->  | V27: =+IF(K6="","",",") -> , | X27: =CHAR(123)&TEXT($Z$3,"0,00")&CHAR(34)&TEXT($K5,"0,00")&CHAR(34)&CHAR(44)&TEXT($Z$4,"0,00")&CHAR(34)&TEXT(L5,"0,00")&CHAR(34)&CHAR(44)&TEXT($Z$5,"0,00")&CHAR(34)&TEXT(U27,"x")&CHAR(34)&CHAR(125)&TEXT(V27,"0,00") -> {"prod":"Flans","price":"_","logo":""},
U28: =IF(T28="","",T28) ->  | V28: =+IF(K7="","",",") -> , | X28: =CHAR(123)&TEXT($Z$3,"0,00")&CHAR(34)&TEXT($K6,"0,00")&CHAR(34)&CHAR(44)&TEXT($Z$4,"0,00")&CHAR(34)&TEXT(L6,"0,00")&CHAR(34)&CHAR(44)&TEXT($Z$5,"0,00")&CHAR(34)&TEXT(U28,"x")&CHAR(34)&CHAR(125)&TEXT(V28,"0,00") -> {"prod":"Mister Freeze","price":"_","logo":""},
U29: =IF(T29="","",T29) ->  | V29: =+IF(K8="","",",") ->  | X29: =CHAR(123)&TEXT($Z$3,"0,00")&CHAR(34)&TEXT($K7,"0,00")&CHAR(34)&CHAR(44)&TEXT($Z$4,"0,00")&CHAR(34)&TEXT(L7,"0,00")&CHAR(34)&CHAR(44)&TEXT($Z$5,"0,00")&CHAR(34)&TEXT(U29,"x")&CHAR(34)&CHAR(125)&TEXT(V29,"0,00") -> {"prod":"-","price":"_","logo":""}
X30: =IF(K8="","") -> 
X31: =+J9 -> ---
X32: =IF(C32="","") -> 
T33: sandwitchs.png | U33: =IF(T33="","",T33) -> sandwitchs.png | X33: =CHAR(123)&TEXT($Z$2,"0,00")&CHAR(34)&TEXT($N3,"0,00")&CHAR(34)&CHAR(44)&TEXT($Z$5,"0,00")&CHAR(34)&TEXT(U33,"x")&CHAR(34)&CHAR(125)&CHAR(44) -> {"title":"Encas","logo":"sandwitchs.png"},
U34: =IF(T34="","",T34) ->  | V34: =+IF(O5="","",",") -> , | X34: =CHAR(123)&TEXT($Z$3,"0,00")&CHAR(34)&TEXT($O4,"0,00")&CHAR(34)&CHAR(44)&TEXT($Z$4,"0,00")&CHAR(34)&TEXT(P4,"0,00")&CHAR(34)&CHAR(44)&TEXT($Z$5,"0,00")&CHAR(34)&TEXT(U34,"x")&CHAR(34)&CHAR(125)&TEXT(V34,"0,00") -> {"prod":"2 saucisses Frites","price":"3,50","logo":""},
U35: =IF(T35="","",T35) ->  | V35: =+IF(O6="","",",") -> , | X35: =CHAR(123)&TEXT($Z$3,"0,00")&CHAR(34)&TEXT($O5,"0,00")&CHAR(34)&CHAR(44)&TEXT($Z$4,"0,00")&CHAR(34)&TEXT(P5,"0,00")&CHAR(34)&CHAR(44)&TEXT($Z$5,"0,00")&CHAR(34)&TEXT(U35,"x")&CHAR(34)&CHAR(125)&TEXT(V35,"0,00") -> {"prod":"Cornet de Frites","price":"2,00","logo":""},
U36: =IF(T36="","",T36) ->  | V36: =+IF(O7="","",",") -> , | X36: =CHAR(123)&TEXT($Z$3,"0,00")&CHAR(34)&TEXT($O6,"0,00")&CHAR(34)&CHAR(44)&TEXT($Z$4,"0,00")&CHAR(34)&TEXT(P6,"0,00")&CHAR(34)&CHAR(44)&TEXT($Z$5,"0,00")&CHAR(34)&TEXT(U36,"x")&CHAR(34)&CHAR(125)&TEXT(V36,"0,00") -> {"prod":"Sandwitch Mergez","price":"3,00","logo":""},
U37: =IF(T37="","",T37) ->  | V37: =+IF(C38="","",",") ->  | X37: =CHAR(123)&TEXT($Z$3,"0,00")&CHAR(34)&TEXT($O7,"0,00")&CHAR(34)&CHAR(44)&TEXT($Z$4,"0,00")&CHAR(34)&TEXT(P7,"0,00")&CHAR(34)&CHAR(44)&TEXT($Z$5,"0,00")&CHAR(34)&TEXT(U37,"x")&CHAR(34)&CHAR(125)&TEXT(V37,"0,00") -> {"prod":"Sandwitch Saucisse","price":"2,00","logo":""}
X38: =IF(C38="","") -> 
X39: =IF(C39="","") -> 

Sheet Param (hidden)
E1: 0 | F1: 1 | G1: 2
B2: process : | C2: ACVP_ | E2: =+$C$2&E1 -> ACVP_0 | F2: =+$C$2&F1 -> ACVP_1 | G2: =+$C$2&G1 -> ACVP_2
B3: Path: | C3: D:\00 ACVP\IPMS\TV_Program\
B4: File_Transfer > | C4: B:\ACVP\IPMS\JSON\
B5: CSV Files: | C5: ACVP_G8 | E5: =+C5&"_0_" -> ACVP_G8_0_ | F5: =+C5&"_1_" -> ACVP_G8_1_ | G5: =+C5&"_2_" -> ACVP_G8_2_ | H5: Arbitrage | J5: =+NOW() -> 2024-06-03T16:50:54.740 | M5: =+MID(CELL("nomfichier"), FIND("[", CELL("nomfichier"))+1,FIND("]", CELL("nomfichier"))- FIND("[", CELL("nomfichier"))-1) -> ACVP_G8_2024.xlsm
B6: File: | E6: =+E5&J7 -> ACVP_G8_0_20240603 | F6: =+F5&J7 -> ACVP_G8_1_20240603 | G6: =+G5&J7 -> ACVP_G8_2_20240603 | H6: =+H5&H7 -> Arbitrage.xlsm | J6: =+YEAR(J5) -> 2024 | K6: =+MONTH(J5) -> 6 | L6: =+DAY(J5) -> 3
B7: ext: | E7: .json | F7: .json | G7: .json | H7: .xlsm | J7: =+J6&K7&L7 -> 20240603 | K7: =+IF(K6>9,K6,0&K6) -> 06 | L7: =+IF(L6>9,L6,0&L6) -> 03
B9: File_Transfer > | C9: D:\00 ACVP\IPMS\JSON\
C10: =+$C$9&$F$6 -> D:\00 ACVP\IPMS\JSON\ACVP_G8_1_20240603
C11: =+$C$9&$G$6 -> D:\00 ACVP\IPMS\JSON\ACVP_G8_2_20240603
B14: File_Save > | C14: =+C3&H5&H7 -> D:\00 ACVP\IPMS\TV_Program\Arbitrage.xlsm

Sheet Note explicative fichier
A1: Explications et actions à faire sur le Fichier Arbitrage G8
A2: Onglet: | B2: Actions | C2: QUAND | D2: Qui | E2: date G8
A3: Note explicative fichier | B3: mise à jour de la date du G8 | C3: AVANT LE JOUR du GRAND HUIT | D3: resp arbitrage | E3: 2024-06-02
A4: Eq Chrono | B4: Inscrire les coordonnées des arbitres et les règles de la course | C4: DES QUE L'EQUIPE EST CONSTITUEE | D4: resp arbitrage | E4: Anne Clarisse
A5: SurvG8 | B5: Les équipes arbitres et les équipes participantes sont mise à jour automatiquement à imprimer pour les arbitres et équipiers sécurité sur l'eau ? Reporter dans les colonnes de E à G les éventuelles pénalités remontées par les équipes de l'arbitrage ou de la sécurité sur l'eau.
A6: Poissy Entrée | B6: Fiche à imprimer et à donner aux arbitres postés à l'entrée du slalom. La photo de cette fiche est à envoyer ensuite à la personne qui complète le tableau Excel des résultats. | C6: AVANT LE DEPART | D6: resp arbitrage
A7: Poissy Sortie | B7: Fiche à imprimer et à donner aux arbitres postés à la sortie du slalom. La photo de cette fiche est à envoyer ensuite à la personne qui complète le tableau Excel des résultats. | C7: AVANT LE DEPART | D7: resp arbitrage
A8: Ponton ¼ | B8: Fiche à imprimer et à donner aux arbitres postés sur le ponton devant le bief. La photo de cette fiche est à envoyer ensuite à la personne qui complète le tableau Excel des résultats. | C8: AVANT LE DEPART | D8: resp arbitrage
A9: Ponton DA | B9: Fiche à imprimer et à donner aux arbitres postés sur le ponton de départ et d'arrivée. La photo de cette fiche est à envoyer ensuite à la personne qui complète le tableau Excel des résultats. | C9: AVANT LE DEPART | D9: resp arbitrage
A10: Equipes | B10: NE PAS MODIFIER LA FEUILLE A imprimer et à transmettre à Véronique qui appelle et présente les équipes au départ | C10: AVANT LE DEPART | D10: resp arbitrage
A11: Détail Equipes | B11: Reporter les informations transmises par le.a responsable des inscriptions + mettre en colonne A le N° de tirage au sort attribué à chaque équipage | C11: CLOTURE DES INSCRIPTIONS & AVANT LE DEPART | D11: resp arbitrage
A12: Temps-Ponton | B12: METTRE A JOUR L'INTERVALLE DE TEMPS ENTRE LES DEPARTS DES YOLETTES Compléter des temps transmis par les équipes du Ponton ¼ et du Ponton DA | C12: AVANT PENDANT | D12: resp arbitrage
A13: Temps-Poissy | B13: Compléter des temps transmis par les équipes du Slalom | C13: PENDANT | D13: resp arbitrage
A14: Pénalités | B14: renseigner les pénalités potentielles remontées par les équipes d'arbitrage, celles de sécurité sur l'eau (Colonnes T à Z) Les pénalités enregistrées dans Temps Poissy sont reportées automatiquement | C14: APRES LA COURSE | D14: resp arbitrage
A15: Heures Pass | B15: synthèse des heures de passage Rien à faire; se complète suivant les données renseignées dans les Temps…
A16: Temps Pass | B16: calcule les temps de passage à Poissy, 1/4, 1/2 et total Rien à faire, se met à jour automatiquement
A17: Temps corr | B17: Rien à faire - se met à jour automatiquement selon les données saisies dans temps ponton, temps poissy et pénalités
A18: Ecart avec record | B18: ecarts avec le record du G8 à imprimer ?
A19: CL Mi Parcours | B19: Mis à jour Automatique par la commande Ctrl+Majuscule+M à imprimer | C19: APRES LA COURSE
A20: CL Categories | B20: Mis à jour Automatique par la commande Ctrl+Majuscule+C à imprimer | C20: APRES LA COURSE
A21: CL Général | B21: Mis à jour Automatique par la commande Ctrl+Majuscule+G à imprimer | C21: APRES LA COURSE
A22: CL Slalom | B22: Mis à jour Automatique par la commande Ctrl+Majuscule+S à imprimer | C22: APRES LA COURSE
A23: Temps Départ | B23: Mis à jour Automatique par la commande Ctrl+Majuscule+D à imprimer | C23: APRES LA COURSE
A24: Récompenses | B24: NE RENSEIGNER QUE LE N° DE L'EQUIPAGE POUR LE PRIX DE LA PERSEVERENCE | C24: APRES LA COURSE | D24: le.a Président.e
B25: Renseigner selon les officiels presents ceux qui remettent les coupes
B26: A imprimer pour la remise des prix pour le.a Président.e
A28: Avant d'imprimer, faire une vérification de cohérence des résultats.
A29: Imprimer les pages en plusieurs exemplaires (1 à donner à Véronique/Frédéric puis après l'annonce des résultats en afficher sur les portes + qq part à l'extérieur)
A30: faire des pdf de ces résultats pour les mettre en ligne sur le site de l'ACVP (http://www.aviron-acvp.fr/)

Sheet Eq Chrono
B1: CHRONOMETRAGE GRAND 8 | H1: ='Note explicative fichier'!E3 -> 2024-06-02
E3: Liaison Ponton
B5: Ponton Départ, ½, Arrivée | F5: Ponton ¼, ¾ | K5: Slalom Pont de Poissy
B11: Rappel des Pénalités
B12: Refus de se laisser dépasser en zone non étroite | G12: 3 min | K12: Nb par Catégorie
B13: Dépassement ou arrêt en zône dangereuse et étroite | K13: =+Equipes!O2 -> M
B14: Changement de barreur hors zone | G14: 2 min | K14: =+Equipes!O3 -> F
B15: Slalom incorrect, non respect du parcours imposé | K15: =+Equipes!O4 -> H
B16: Refus de priorité au bateau avalant, au bief Villennes / Migneaux | K16: =+Equipes!M5 -> Total
B17: Changement de barreur non réalisé à mi-course, face au ponton | G17: 5 min
B18: Slalom « raccourci », sans remontée du courant vers Paris
B19: Non respect du balisage sur le grand bras
B22: SECURITE SUR L EAU | H22: 2024-06-02
B24: Entrée du Port | E24: Vieux Pont de Poissy | H24: Bief Grand Bras
B28: Bout de l'Ile de Villennes et navette le long de l ile de villennes | E28: Navette Ile de Migneaux / Pont de Poissy | H28: Pont de Villennes

Sheet SurvG8
B1: FEUILLE DE PENALITE
B2: Surveillance du Grand 8 | D2: ='Note explicative fichier'!E3 -> 2024-06-02 | E2: - Nom de l'Arbitre: - Numéro du bateau de sécurité :
B3: RDC Base PC | C3: ='Eq Chrono'!B3 -> 1904-01-01 | D3: ='Eq Chrono'!C3 -> 0 | E3: Rappel des Pénalités
B4: Liaison Pontons / PC | C4: ='Eq Chrono'!F3 -> 1904-01-01 | E4: Refus de se laisser dépasser en zone non étroite | H4: 3 min
B5: Ponton Départ -1/2 - Arrivée | C5: ='Eq Chrono'!B6 -> 0 | D5: ='Eq Chrono'!C6 -> 0 | E5: Dépassement ou arrêt en zône dangereuse et étroite
C6: ='Eq Chrono'!B7 -> 0 | D6: ='Eq Chrono'!C7 -> 0 | E6: Changement de barreur hors zone | H6: 2 min
B7: Ponton changt barreur | C7: ='Eq Chrono'!B8 -> 0 | D7: ='Eq Chrono'!C8 -> 0 | E7: Slalom incorrect, non respect du parcours imposé
B8: Ponton 1/4 3/4 | C8: ='Eq Chrono'!K8 -> 0 | D8: ='Eq Chrono'!G6 -> 0 | E8: Refus de priorité au bateau avalant, au bief Villennes / Migneaux
C9: ='Eq Chrono'!F7 -> 0 | D9: ='Eq Chrono'!G7 -> 0 | E9: Changement de barreur non réalisé à mi-course, face au ponton | H9: 5 min
B10: Pont de Poissy | C10: ='Eq Chrono'!K6 -> 0 | D10: ='Eq Chrono'!L6 -> 0 | E10: Slalom « raccourci », sans remontée du courant vers Paris
C11: ='Eq Chrono'!K7 -> 0 | D11: ='Eq Chrono'!L7 -> 0 | E11: Couper les courbes sur la Seine
C12: 0 | D12: 0
C13: ='Eq Chrono'!K9 -> 0 | D13: ='Eq Chrono'!L9 -> 0
B14: Yolette N° | C14: CLUB | D14: EQUIPAGE | E14: PENALITES POUR : | F14: Autre Yolette concernée | G14: Heure Minute | H14: Durée de la pénalité
B15: ='TEMPS-ponton'!A5 -> 1 | C15: ='TEMPS-ponton'!B5 -> ANDRESY CA CONFLUENT 1 | D15: ='TEMPS-ponton'!D5 -> Stephanie LAPORTE-Marine NACERI-Marc LACCASSAGNE-Stephane ZETTWOOG-Fouzia VOIRIN
B16: ='TEMPS-ponton'!A6 -> 2 | C16: ='TEMPS-ponton'!B6 -> CAUDEBEC EN CAUX ACVS 1 | D16: ='TEMPS-ponton'!D6 -> Martine NARBAIS-JAUREGUY-Caroline KERVRANN-Stephane DELAMARE-Nicolas BARRAY-Francois NARBAIS-JAUREGUY
B17: ='TEMPS-ponton'!A7 -> 3 | C17: ='TEMPS-ponton'!B7 -> ANDRESY CA CONFLUENT 2 | D17: ='TEMPS-ponton'!D7 -> Anna ALCALOIDEPOIXBLANC-Geoffrey GHIZZONI-Nathalie BOURGEOIS-Franck CHRISTIANNOT-NicOLAS delaunoy
B18: ='TEMPS-ponton'!A8 -> 4 | C18: ='TEMPS-ponton'!B8 -> ANDRESY CA CONFLUENT 1 | D18: ='TEMPS-ponton'!D8 -> Emmanuel SALIN-Ousseni PARKOUDA-Jean-Baptiste PROVENZANO-Jerome CLAVE-Julian GALLELA
B19: ='TEMPS-ponton'!A9 -> 5 | C19: ='TEMPS-ponton'!B9 -> PORT-MARLY RC 1 | D19: ='TEMPS-ponton'!D9 -> Claudie BODIN-Fanny LAMOUR-Etienne DUPUIS-Jeancharles FAUCHEUX-Gildas KETTANJIAN
B20: ='TEMPS-ponton'!A10 -> 6 | C20: ='TEMPS-ponton'!B10 -> BOULOGNE 92 2 | D20: ='TEMPS-ponton'!D10 -> CéLia ROUSSELLE-Marie Pierre MARSALLON GAMBY-Françis ROBIN-Nicolas LECOEUR-Theodora XENOGIANI
B21: ='TEMPS-ponton'!A11 -> 7 | C21: ='TEMPS-ponton'!B11 -> VILLENNES - POISSY AC 3 | D21: ='TEMPS-ponton'!D11 -> Virginie ALEXANDRE-Jihad LEMARQRI-Cyrille BRUZON-BASCOU-Sebastien CARPENTIER-Marie Estelle D'ARBAUMONT
B22: ='TEMPS-ponton'!A12 -> 8 | C22: ='TEMPS-ponton'!B12 -> JOINVILLE AMJ 1 | D22: ='TEMPS-ponton'!D12 -> Laurent BAUDOIN-Raphaelle BOUVIER FLORY-Sophie BUSTOS-Kastriot JAKA-Thomas AUGER
B23: ='TEMPS-ponton'!A13 -> 9 | C23: ='TEMPS-ponton'!B13 -> NOGENT SUR MARNE CN 1 | D23: ='TEMPS-ponton'!D13 -> Chrystelle SUPIOT-Caroline PIEDNOIRE-Olivier MUCIGNAT-Andre SIMONNET-Fabienne LORTIE
B24: ='TEMPS-ponton'!A14 -> 10 | C24: ='TEMPS-ponton'!B14 -> NOGENT SUR MARNE CN 2 | D24: ='TEMPS-ponton'!D14 -> Christophe RUCKEBUSCH-Nicolas BURCKHART-Alice GHEERBRANT-Aurelie DONVAL-Gerard LECA
B25: ='TEMPS-ponton'!A15 -> 11 | C25: ='TEMPS-ponton'!B15 -> BOULOGNE 92 1 | D25: ='TEMPS-ponton'!D15 -> Viviane BALLOY-Timothé BAZIRIES-Alexandre LE FUR-Sigrid PABST-Michel VEDRINE
B26: ='TEMPS-ponton'!A16 -> 12 | C26: ='TEMPS-ponton'!B16 -> EVRY SCA 2 | D26: ='TEMPS-ponton'!D16 -> Laurent YEBOAH-Isabelle MOISSET FLEURISSON-Frederic DUCAUQUY-Sandrine GARCIA-Christelle MARTIN
B27: ='TEMPS-ponton'!A17 -> 13 | C27: ='TEMPS-ponton'!B17 -> PORT-MARLY RC 2 | D27: ='TEMPS-ponton'!D17 -> Elsa CROZATIER-Cyrielle BERTHIER-Hervé Valette-Eric MOINARD-Anais FEUGA
B28: ='TEMPS-ponton'!A18 -> 14 | C28: ='TEMPS-ponton'!B18 -> MAISONS MESNIL CERAMM 1 | D28: ='TEMPS-ponton'!D18 -> Nicolas SCHMITT-Gloria VENDRELL-Christine MARIE LAVAUD-Amaury DE LA LAURENCIE-Amina ELABBADI
B29: ='TEMPS-ponton'!A19 -> 15 | C29: ='TEMPS-ponton'!B19 -> SOISY SUR SEINE CN 1 | D29: ='TEMPS-ponton'!D19 -> Bertrand PIOGER-Bruno PERIQUOI-Servane BERTRAND-Alain BERNARD-Robert TRAUET
B30: ='TEMPS-ponton'!A20 -> 16 | C30: ='TEMPS-ponton'!B20 -> PORT-MARLY RC 1 | D30: ='TEMPS-ponton'!D20 -> Jean-Claude LAFOREST-David CHARTIER-Christophe MARCAIS-Vincent BONTOUX-Alain ROUSSEAU
B31: ='TEMPS-ponton'!A21 -> 17 | C31: ='TEMPS-ponton'!B21 -> ANDRESY CA CONFLUENT 1 | D31: ='TEMPS-ponton'!D21 -> Daphne PARIZOT-Agnes BURGHGRAEVE SELLEN-Sylvie FRANSSEN-Severine LEGAILLARD-Martine LE ROUX
B32: ='TEMPS-ponton'!A22 -> 18 | C32: ='TEMPS-ponton'!B22 -> MAISONS MESNIL CERAMM 2 | D32: ='TEMPS-ponton'!D22 -> Claude LEMENAGER-Didier GIRARDEAU-Laurent LIBOTTE-Alain GIRARD-Cecile JEAMMES
B33: ='TEMPS-ponton'!A23 -> 19 | C33: ='TEMPS-ponton'!B23 -> VILLENNES - POISSY AC 1 | D33: ='TEMPS-ponton'!D23 -> Olivier POLGE-Odile POLGE-Laurent BONHOMMET-Antoine VOLPI-Philippe STROHM
B34: ='TEMPS-ponton'!A24 -> 20 | C34: ='TEMPS-ponton'!B24 -> ROUEN CNAR 1 | D34: ='TEMPS-ponton'!D24 -> Nathalie MOUSSET-Francois LAIR-Betty GESLAIN-Thierry DUCHESNE-Stephane MOUSSET
B35: ='TEMPS-ponton'!A25 -> 21 | C35: ='TEMPS-ponton'!B25 -> PORT-MARLY RC 2 | D35: ='TEMPS-ponton'!D25 -> Guillaume CHARRON-Philippe VERHE-Stephan REYNIER-Dominique LEROUX-Luciano AUTUNNALE
B36: ='TEMPS-ponton'!A26 -> 22 | C36: ='TEMPS-ponton'!B26 -> COUDRAY MONTCEAUX A 1 | D36: ='TEMPS-ponton'!D26 -> Joseph RAYNAUD-Frederic MORAT-Benjamin HOUILLON-Pascal BEAUSSART-Anne HOUAL
B37: ='TEMPS-ponton'!A27 -> 23 | C37: ='TEMPS-ponton'!B27 -> SN OISE 1 | D37: ='TEMPS-ponton'!D27 -> Agnes AUDEBERT-Nicolas RAUCH-Jerome ROUGE-Nathalie BAUDIER-Isabelle JOUBERT
B38: ='TEMPS-ponton'!A28 -> 24 | C38: ='TEMPS-ponton'!B28 -> MEULAN LES MUREAUX AMMH 1 | D38: ='TEMPS-ponton'!D28 -> Xavier MARSAIS-Eric PRENEY-Yannick DAGMEY-David COINE-Arthur VAN SLOOTEN
B39: ='TEMPS-ponton'!A29 -> 25 | C39: ='TEMPS-ponton'!B29 -> VILLENNES - POISSY AC 2 | D39: ='TEMPS-ponton'!D29 -> Franck CARIOU-Michael LE BANNER-Valerie DECAESTECKER-Karine GUILBON-Christophe ELINE
B40: ='TEMPS-ponton'!A30 -> 26 | C40: ='TEMPS-ponton'!B30 -> EVRY SCA 1 | D40: ='TEMPS-ponton'!D30 -> Anne CARDUNER-Olivia PEZZOLI-Bruno CASIMIR-Lionel BOISSONNAT-Kristell MAUCHET
B41: ='TEMPS-ponton'!A31 -> 27 | C41: ='TEMPS-ponton'!B31 -> MEULAN LES MUREAUX AMMH 1 | D41: ='TEMPS-ponton'!D31 -> Gwenaelle MARSAIS-Sophie SEFFAR-Catherine MARTINIER-Christelle GOANVIC-Marie LAMORE
B42: ='TEMPS-ponton'!A32 -> 28 | C42: ='TEMPS-ponton'!B32 -> VILLENNES - POISSY AC 1 | D42: ='TEMPS-ponton'!D32 -> Frederic LE ROUX-Corinne HUARD-ROLLAND-Elodie DEREMIENCE-Marie-Claude LAUNAY-Olivier COSNEAU
B43: ='TEMPS-ponton'!A33 -> 29 | C43: ='TEMPS-ponton'!B33 -> FONTAINEBLEAU APF 1 | D43: ='TEMPS-ponton'!D33 -> Kathleen SANCHEZ-Laurent FOUQUE-Christian MESSALES-Denis FLORY-David WEBER
B44: ='TEMPS-ponton'!A34 -> 30 | C44: ='TEMPS-ponton'!B34 -> JOINVILLE AMJ 1 | D44: ='TEMPS-ponton'!D34 -> Vincent FABIEN-Arnaud PUPPO-Jonathan ROOKE-Xavier SUCHET-Nicolas JAMAULT
B45: ='TEMPS-ponton'!A35 -> 31 | C45: ='TEMPS-ponton'!B35 -> NOGENT SUR MARNE CN 3 | D45: ='TEMPS-ponton'!D35 -> Alexandra COHEN SALMON-Isabelle MILON-BANNEROT-Jerome TROMBOFSKY-Olivier PASCAL-Elisabeth LAUNAY
B46: ='TEMPS-ponton'!A36 -> 32 | C46: ='TEMPS-ponton'!B36 -> BOULOGNE 92 1 | D46: ='TEMPS-ponton'!D36 -> Isabelle MAIRE-Théo BEL BERBEL- LURBE-Thã‰Odore SEDAROS-Omar OUAZZANI-Alexandra MENEZES
B47: ='TEMPS-ponton'!A37 -> 33 | C47: ='TEMPS-ponton'!B37 -> XX | D47: ='TEMPS-ponton'!D37 -> XX-XX-XX-XX-XX
B48: ='TEMPS-ponton'!A38 -> 34 | C48: ='TEMPS-ponton'!B38 -> XX | D48: ='TEMPS-ponton'!D38 -> XX-XX-XX-XX-XX
B49: ='TEMPS-ponton'!A39 -> 35 | C49: ='TEMPS-ponton'!B39 -> XX | D49: ='TEMPS-ponton'!D39 -> XX-XX-XX-XX-XX
B50: ='TEMPS-ponton'!A40 -> 36 | C50: ='TEMPS-ponton'!B40 -> XX | D50: ='TEMPS-ponton'!D40 -> XX-XX-XX-XX-XX
B51: ='TEMPS-ponton'!A41 -> 37 | C51: ='TEMPS-ponton'!B41 -> XX | D51: ='TEMPS-ponton'!D41 -> XX-XX-XX-XX-XX
B52: ='TEMPS-ponton'!A42 -> 38 | C52: ='TEMPS-ponton'!B42 -> XX | D52: ='TEMPS-ponton'!D42 -> XX-XX-XX-XX-XX
B53: ='TEMPS-ponton'!A43 -> 39 | C53: ='TEMPS-ponton'!B43 -> XX | D53: ='TEMPS-ponton'!D43 -> XX-XX-XX-XX-XX
B54: ='TEMPS-ponton'!A44 -> 40 | C54: ='TEMPS-ponton'!B44 -> XX | D54: ='TEMPS-ponton'!D44 -> XX-XX-XX-XX-XX

Sheet Poissy Entrée
A1: A C V P GRAND HUIT | C1: Chrono ENTREE gymkhana | I1: ='Note explicative fichier'!E3 -> 2024-06-02
A2: N° de téléphone auquel envoyer la photo des résultats : | I2: ='Eq Chrono'!C3 -> 0
A3: N° | B3: Club | D3: 1° tour | G3: 2° tour | I3: Incidents - pénalités
A4: Yolette | C4: h | D4: mn | E4: s | F4: h | G4: mn | H4: s
A5: 1
A6: 2
A7: 3
A8: 4
A9: 5
A10: 6
A11: 7
A12: 8
A13: 9
A14: 10
A15: 11
A16: 12
A17: 13
A18: 14
A19: 15
A20: 16
A21: 17
A22: 18
A23: 19
A24: 20
A25: 21
A26: 22
A27: 23
A28: 24
A29: 25
A30: 26
A31: 27
A32: 28
A33: 29
A34: 30
A35: 31
A36: 32
A37: 33
A38: 34
A39: 35
A40: 36
A41: 37
A42: 38
A43: 39
A44: 40

Sheet Poissy Sortie
A1: A C V P GRAND HUIT | C1: Chrono SORTIE gymkhana | I1: ='Note explicative fichier'!E3 -> 2024-06-02
A2: N° de téléphone auquel envoyer la photo des résultats : | I2: ='Eq Chrono'!C3 -> 0
A3: N° | B3: Club | D3: 1° tour | G3: 2° tour | I3: Incidents - pénalités
A4: Yolette | C4: h | D4: mn | E4: s | F4: h | G4: mn | H4: s
A5: 1
A6: 2
A7: 3
A8: 4
A9: 5
A10: 6
A11: 7
A12: 8
A13: 9
A14: 10
A15: 11
A16: 12
A17: 13
A18: 14
A19: 15
A20: 16
A21: 17
A22: 18
A23: 19
A24: 20
A25: 21
A26: 22
A27: 23
A28: 24
A29: 25
A30: 26
A31: 27
A32: 28
A33: 29
A34: 30
A35: 31
A36: 32
A37: 33
A38: 34
A39: 35
A40: 36
A41: 37
A42: 38
A43: 39
A44: 40

Sheet Ponton 1-4
A1: A C V P GRAND HUIT | C1: Chrono 1/4 et 3/4 parcours | I1: ='Note explicative fichier'!E3 -> 2024-06-02
A2: N° de téléphone auquel envoyer la photo des résultats : | I2: ='Eq Chrono'!C3 -> 0
A3: N° | B3: Club | D3: 1/4 | G3: 3/4 | I3: Incidents - pénalités
A4: Yolette | C4: h | D4: mn | E4: s | F4: h | G4: mn | H4: s
A5: 1
A6: 2
A7: 3
A8: 4
A9: 5
A10: 6
A11: 7
A12: 8
A13: 9
A14: 10
A15: 11
A16: 12
A17: 13
A18: 14
A19: 15
A20: 16
A21: 17
A22: 18
A23: 19
A24: 20
A25: 21
A26: 22
A27: 23
A28: 24
A29: 25
A30: 26
A31: 27
A32: 28
A33: 29
A34: 30
A35: 31
A36: 32
A37: 33
A38: 34
A39: 35
A40: 36
A41: 37
A42: 38
A43: 39
A44: 40

Sheet Ponton D-A
A1: A C V P GRAND HUIT | G1: Chrono Départ, 1/2, Arrivée | L1: ='Note explicative fichier'!E3 -> 2024-06-02
A2: N° de téléphone auquel envoyer la photo des résultats : | L2: ='Eq Chrono'!C3 -> 0
A3: N° | B3: Club | D3: Départ | G3: 1/2 | J3: Arrivée | L3: Incidents - pénalités
A4: 1
A5: 2
A6: 3
A7: 4
A8: 5
A9: 6
A10: 7
A11: 8
A12: 9
A13: 10
A14: 11
A15: 12
A16: 13
A17: 14
A18: 15
A19: 16
A20: 17
A21: 18
A22: 19
A23: 20
A24: 21
A25: 22
A26: 23
A27: 24
A28: 25
A29: 26
A30: 27
A31: 28
A32: 29
A33: 30
A34: 31
A35: 32
A36: 33
A37: 34
A38: 35
A39: 36
A40: 37
A41: 38
A42: 39

Sheet Equipes
A1: No. | B1: Cat. | C1: CLUB | D1: VILLE | E1: Equipage | K1: =+COUNTA(C2:C40) -> 39 | O1: Params
A2: 1 | B2: =IFERROR(VLOOKUP(Equipes!$A2,'Detail Equipes'!$A:$V,21,FALSE),"X") -> M | C2: =IFERROR(VLOOKUP(Equipes!$A2,'Detail Equipes'!$A:$V,3,FALSE),"XX") -> ANDRESY CA CONFLUENT 1 | D2: =IFERROR(VLOOKUP(Equipes!$A2,'Detail Equipes'!$A:$V,4,FALSE),"XX") -> Cac1 | E2: =IFERROR(VLOOKUP(Equipes!$A2,'Detail Equipes'!$A:$V,6,FALSE),"XX") -> Stephanie LAPORTE | F2: =IFERROR(VLOOKUP(Equipes!$A2,'Detail Equipes'!$A:$V,9,FALSE),"XX") -> Marine NACERI | G2: =IFERROR(VLOOKUP(Equipes!$A2,'Detail Equipes'!$A:$V,12,FALSE),"XX") -> Marc LACCASSAGNE | H2: =IFERROR(VLOOKUP(Equipes!$A2,'Detail Equipes'!$A:$V,15,FALSE),"XX") -> Stephane ZETTWOOG | I2: =IFERROR(VLOOKUP(Equipes!$A2,'Detail Equipes'!$A:$V,18,FALSE),"XX") -> Fouzia VOIRIN | J2: =IFERROR(VLOOKUP(Equipes!$A2,'Detail Equipes'!$A:$V,22,FALSE),0) -> 49.43146538 | N2: =+COUNTIF($B$2:$B$40,O2) -> 18 | O2: M
A3: 2 | B3: =IFERROR(VLOOKUP(Equipes!$A3,'Detail Equipes'!$A:$V,21,FALSE),"X") -> M | C3: =IFERROR(VLOOKUP(Equipes!$A3,'Detail Equipes'!$A:$V,3,FALSE),"XX") -> CAUDEBEC EN CAUX ACVS 1 | D3: =IFERROR(VLOOKUP(Equipes!$A3,'Detail Equipes'!$A:$V,4,FALSE),"XX") -> Caudebec | E3: =IFERROR(VLOOKUP(Equipes!$A3,'Detail Equipes'!$A:$V,6,FALSE),"XX") -> Martine NARBAIS-JAUREGUY | F3: =IFERROR(VLOOKUP(Equipes!$A3,'Detail Equipes'!$A:$V,9,FALSE),"XX") -> Caroline KERVRANN | G3: =IFERROR(VLOOKUP(Equipes!$A3,'Detail Equipes'!$A:$V,12,FALSE),"XX") -> Stephane DELAMARE | H3: =IFERROR(VLOOKUP(Equipes!$A3,'Detail Equipes'!$A:$V,15,FALSE),"XX") -> Nicolas BARRAY | I3: =IFERROR(VLOOKUP(Equipes!$A3,'Detail Equipes'!$A:$V,18,FALSE),"XX") -> Francois NARBAIS-JAUREGUY | J3: =IFERROR(VLOOKUP(Equipes!$A3,'Detail Equipes'!$A:$V,22,FALSE),0) -> 55.14653387 | L3: - | N3: =+COUNTIF($B$2:$B$40,O3) -> 2 | O3: F
A4: 3 | B4: =IFERROR(VLOOKUP(Equipes!$A4,'Detail Equipes'!$A:$V,21,FALSE),"X") -> M | C4: =IFERROR(VLOOKUP(Equipes!$A4,'Detail Equipes'!$A:$V,3,FALSE),"XX") -> ANDRESY CA CONFLUENT 2 | D4: =IFERROR(VLOOKUP(Equipes!$A4,'Detail Equipes'!$A:$V,4,FALSE),"XX") -> CAC 2 | E4: =IFERROR(VLOOKUP(Equipes!$A4,'Detail Equipes'!$A:$V,6,FALSE),"XX") -> Anna ALCALOIDEPOIXBLANC | F4: =IFERROR(VLOOKUP(Equipes!$A4,'Detail Equipes'!$A:$V,9,FALSE),"XX") -> Geoffrey GHIZZONI | G4: =IFERROR(VLOOKUP(Equipes!$A4,'Detail Equipes'!$A:$V,12,FALSE),"XX") -> Nathalie BOURGEOIS | H4: =IFERROR(VLOOKUP(Equipes!$A4,'Detail Equipes'!$A:$V,15,FALSE),"XX") -> Franck CHRISTIANNOT | I4: =IFERROR(VLOOKUP(Equipes!$A4,'Detail Equipes'!$A:$V,18,FALSE),"XX") -> NicOLAS delaunoy | J4: =IFERROR(VLOOKUP(Equipes!$A4,'Detail Equipes'!$A:$V,22,FALSE),0) -> 55.44845168 | N4: =+COUNTIF($B$2:$B$40,O4) -> 12 | O4: H
A5: 4 | B5: =IFERROR(VLOOKUP(Equipes!$A5,'Detail Equipes'!$A:$V,21,FALSE),"X") -> H | C5: =IFERROR(VLOOKUP(Equipes!$A5,'Detail Equipes'!$A:$V,3,FALSE),"XX") -> ANDRESY CA CONFLUENT 1 | D5: =IFERROR(VLOOKUP(Equipes!$A5,'Detail Equipes'!$A:$V,4,FALSE),"XX") -> CAC3 | E5: =IFERROR(VLOOKUP(Equipes!$A5,'Detail Equipes'!$A:$V,6,FALSE),"XX") -> Emmanuel SALIN | F5: =IFERROR(VLOOKUP(Equipes!$A5,'Detail Equipes'!$A:$V,9,FALSE),"XX") -> Ousseni PARKOUDA | G5: =IFERROR(VLOOKUP(Equipes!$A5,'Detail Equipes'!$A:$V,12,FALSE),"XX") -> Jean-Baptiste PROVENZANO | H5: =IFERROR(VLOOKUP(Equipes!$A5,'Detail Equipes'!$A:$V,15,FALSE),"XX") -> Jerome CLAVE | I5: =IFERROR(VLOOKUP(Equipes!$A5,'Detail Equipes'!$A:$V,18,FALSE),"XX") -> Julian GALLELA | J5: =IFERROR(VLOOKUP(Equipes!$A5,'Detail Equipes'!$A:$V,22,FALSE),0) -> 45.69393113 | M5: Total | N5: =+SUM(N2:N4) -> 32
A6: 5 | B6: =IFERROR(VLOOKUP(Equipes!$A6,'Detail Equipes'!$A:$V,21,FALSE),"X") -> M | C6: =IFERROR(VLOOKUP(Equipes!$A6,'Detail Equipes'!$A:$V,3,FALSE),"XX") -> PORT-MARLY RC 1 | D6: =IFERROR(VLOOKUP(Equipes!$A6,'Detail Equipes'!$A:$V,4,FALSE),"XX") -> RCPM | E6: =IFERROR(VLOOKUP(Equipes!$A6,'Detail Equipes'!$A:$V,6,FALSE),"XX") -> Claudie BODIN | F6: =IFERROR(VLOOKUP(Equipes!$A6,'Detail Equipes'!$A:$V,9,FALSE),"XX") -> Fanny LAMOUR | G6: =IFERROR(VLOOKUP(Equipes!$A6,'Detail Equipes'!$A:$V,12,FALSE),"XX") -> Etienne DUPUIS | H6: =IFERROR(VLOOKUP(Equipes!$A6,'Detail Equipes'!$A:$V,15,FALSE),"XX") -> Jeancharles FAUCHEUX | I6: =IFERROR(VLOOKUP(Equipes!$A6,'Detail Equipes'!$A:$V,18,FALSE),"XX") -> Gildas KETTANJIAN | J6: =IFERROR(VLOOKUP(Equipes!$A6,'Detail Equipes'!$A:$V,22,FALSE),0) -> 50.4342051
A7: 6 | B7: =IFERROR(VLOOKUP(Equipes!$A7,'Detail Equipes'!$A:$V,21,FALSE),"X") -> M | C7: =IFERROR(VLOOKUP(Equipes!$A7,'Detail Equipes'!$A:$V,3,FALSE),"XX") -> BOULOGNE 92 2 | D7: =IFERROR(VLOOKUP(Equipes!$A7,'Detail Equipes'!$A:$V,4,FALSE),"XX") -> ACBB | E7: =IFERROR(VLOOKUP(Equipes!$A7,'Detail Equipes'!$A:$V,6,FALSE),"XX") -> CéLia ROUSSELLE | F7: =IFERROR(VLOOKUP(Equipes!$A7,'Detail Equipes'!$A:$V,9,FALSE),"XX") -> Marie Pierre MARSALLON GAMBY | G7: =IFERROR(VLOOKUP(Equipes!$A7,'Detail Equipes'!$A:$V,12,FALSE),"XX") -> Françis ROBIN | H7: =IFERROR(VLOOKUP(Equipes!$A7,'Detail Equipes'!$A:$V,15,FALSE),"XX") -> Nicolas LECOEUR | I7: =IFERROR(VLOOKUP(Equipes!$A7,'Detail Equipes'!$A:$V,18,FALSE),"XX") -> Theodora XENOGIANI | J7: =IFERROR(VLOOKUP(Equipes!$A7,'Detail Equipes'!$A:$V,22,FALSE),0) -> 45.9092736
A8: 7 | B8: =IFERROR(VLOOKUP(Equipes!$A8,'Detail Equipes'!$A:$V,21,FALSE),"X") -> M | C8: =IFERROR(VLOOKUP(Equipes!$A8,'Detail Equipes'!$A:$V,3,FALSE),"XX") -> VILLENNES - POISSY AC 3 | D8: =IFERROR(VLOOKUP(Equipes!$A8,'Detail Equipes'!$A:$V,4,FALSE),"XX") -> ACVP | E8: =IFERROR(VLOOKUP(Equipes!$A8,'Detail Equipes'!$A:$V,6,FALSE),"XX") -> Virginie ALEXANDRE | F8: =IFERROR(VLOOKUP(Equipes!$A8,'Detail Equipes'!$A:$V,9,FALSE),"XX") -> Jihad LEMARQRI | G8: =IFERROR(VLOOKUP(Equipes!$A8,'Detail Equipes'!$A:$V,12,FALSE),"XX") -> Cyrille BRUZON-BASCOU | H8: =IFERROR(VLOOKUP(Equipes!$A8,'Detail Equipes'!$A:$V,15,FALSE),"XX") -> Sebastien CARPENTIER | I8: =IFERROR(VLOOKUP(Equipes!$A8,'Detail Equipes'!$A:$V,18,FALSE),"XX") -> Marie Estelle D'ARBAUMONT | J8: =IFERROR(VLOOKUP(Equipes!$A8,'Detail Equipes'!$A:$V,22,FALSE),0) -> 48.76680784
A9: 8 | B9: =IFERROR(VLOOKUP(Equipes!$A9,'Detail Equipes'!$A:$V,21,FALSE),"X") -> M | C9: =IFERROR(VLOOKUP(Equipes!$A9,'Detail Equipes'!$A:$V,3,FALSE),"XX") -> JOINVILLE AMJ 1 | D9: =IFERROR(VLOOKUP(Equipes!$A9,'Detail Equipes'!$A:$V,4,FALSE),"XX") -> Joinville | E9: =IFERROR(VLOOKUP(Equipes!$A9,'Detail Equipes'!$A:$V,6,FALSE),"XX") -> Laurent BAUDOIN | F9: =IFERROR(VLOOKUP(Equipes!$A9,'Detail Equipes'!$A:$V,9,FALSE),"XX") -> Raphaelle BOUVIER FLORY | G9: =IFERROR(VLOOKUP(Equipes!$A9,'Detail Equipes'!$A:$V,12,FALSE),"XX") -> Sophie BUSTOS | H9: =IFERROR(VLOOKUP(Equipes!$A9,'Detail Equipes'!$A:$V,15,FALSE),"XX") -> Kastriot JAKA | I9: =IFERROR(VLOOKUP(Equipes!$A9,'Detail Equipes'!$A:$V,18,FALSE),"XX") -> Thomas AUGER | J9: =IFERROR(VLOOKUP(Equipes!$A9,'Detail Equipes'!$A:$V,22,FALSE),0) -> 46.08132839
A10: 9 | B10: =IFERROR(VLOOKUP(Equipes!$A10,'Detail Equipes'!$A:$V,21,FALSE),"X") -> M | C10: =IFERROR(VLOOKUP(Equipes!$A10,'Detail Equipes'!$A:$V,3,FALSE),"XX") -> NOGENT SUR MARNE CN 1 | D10: =IFERROR(VLOOKUP(Equipes!$A10,'Detail Equipes'!$A:$V,4,FALSE),"XX") -> CN 1 | E10: =IFERROR(VLOOKUP(Equipes!$A10,'Detail Equipes'!$A:$V,6,FALSE),"XX") -> Chrystelle SUPIOT | F10: =IFERROR(VLOOKUP(Equipes!$A10,'Detail Equipes'!$A:$V,9,FALSE),"XX") -> Caroline PIEDNOIRE | G10: =IFERROR(VLOOKUP(Equipes!$A10,'Detail Equipes'!$A:$V,12,FALSE),"XX") -> Olivier MUCIGNAT | H10: =IFERROR(VLOOKUP(Equipes!$A10,'Detail Equipes'!$A:$V,15,FALSE),"XX") -> Andre SIMONNET | I10: =IFERROR(VLOOKUP(Equipes!$A10,'Detail Equipes'!$A:$V,18,FALSE),"XX") -> Fabienne LORTIE | J10: =IFERROR(VLOOKUP(Equipes!$A10,'Detail Equipes'!$A:$V,22,FALSE),0) -> 53.26215031
A11: 10 | B11: =IFERROR(VLOOKUP(Equipes!$A11,'Detail Equipes'!$A:$V,21,FALSE),"X") -> M | C11: =IFERROR(VLOOKUP(Equipes!$A11,'Detail Equipes'!$A:$V,3,FALSE),"XX") -> NOGENT SUR MARNE CN 2 | D11: =IFERROR(VLOOKUP(Equipes!$A11,'Detail Equipes'!$A:$V,4,FALSE),"XX") -> CN2 | E11: =IFERROR(VLOOKUP(Equipes!$A11,'Detail Equipes'!$A:$V,6,FALSE),"XX") -> Christophe RUCKEBUSCH | F11: =IFERROR(VLOOKUP(Equipes!$A11,'Detail Equipes'!$A:$V,9,FALSE),"XX") -> Nicolas BURCKHART | G11: =IFERROR(VLOOKUP(Equipes!$A11,'Detail Equipes'!$A:$V,12,FALSE),"XX") -> Alice GHEERBRANT | H11: =IFERROR(VLOOKUP(Equipes!$A11,'Detail Equipes'!$A:$V,15,FALSE),"XX") -> Aurelie DONVAL | I11: =IFERROR(VLOOKUP(Equipes!$A11,'Detail Equipes'!$A:$V,18,FALSE),"XX") -> Gerard LECA | J11: =IFERROR(VLOOKUP(Equipes!$A11,'Detail Equipes'!$A:$V,22,FALSE),0) -> 52.51584894
A12: 11 | B12: =IFERROR(VLOOKUP(Equipes!$A12,'Detail Equipes'!$A:$V,21,FALSE),"X") -> H | C12: =IFERROR(VLOOKUP(Equipes!$A12,'Detail Equipes'!$A:$V,3,FALSE),"XX") -> BOULOGNE 92 1 | D12: =IFERROR(VLOOKUP(Equipes!$A12,'Detail Equipes'!$A:$V,4,FALSE),"XX") -> ACBB | E12: =IFERROR(VLOOKUP(Equipes!$A12,'Detail Equipes'!$A:$V,6,FALSE),"XX") -> Viviane BALLOY | F12: =IFERROR(VLOOKUP(Equipes!$A12,'Detail Equipes'!$A:$V,9,FALSE),"XX") -> Timothé BAZIRIES | G12: =IFERROR(VLOOKUP(Equipes!$A12,'Detail Equipes'!$A:$V,12,FALSE),"XX") -> Alexandre LE FUR | H12: =IFERROR(VLOOKUP(Equipes!$A12,'Detail Equipes'!$A:$V,15,FALSE),"XX") -> Sigrid PABST | I12: =IFERROR(VLOOKUP(Equipes!$A12,'Detail Equipes'!$A:$V,18,FALSE),"XX") -> Michel VEDRINE | J12: =IFERROR(VLOOKUP(Equipes!$A12,'Detail Equipes'!$A:$V,22,FALSE),0) -> 50.55201332
A13: 12 | B13: =IFERROR(VLOOKUP(Equipes!$A13,'Detail Equipes'!$A:$V,21,FALSE),"X") -> M | C13: =IFERROR(VLOOKUP(Equipes!$A13,'Detail Equipes'!$A:$V,3,FALSE),"XX") -> EVRY SCA 2 | D13: =IFERROR(VLOOKUP(Equipes!$A13,'Detail Equipes'!$A:$V,4,FALSE),"XX") -> SCA2 | E13: =IFERROR(VLOOKUP(Equipes!$A13,'Detail Equipes'!$A:$V,6,FALSE),"XX") -> Laurent YEBOAH | F13: =IFERROR(VLOOKUP(Equipes!$A13,'Detail Equipes'!$A:$V,9,FALSE),"XX") -> Isabelle MOISSET FLEURISSON | G13: =IFERROR(VLOOKUP(Equipes!$A13,'Detail Equipes'!$A:$V,12,FALSE),"XX") -> Frederic DUCAUQUY | H13: =IFERROR(VLOOKUP(Equipes!$A13,'Detail Equipes'!$A:$V,15,FALSE),"XX") -> Sandrine GARCIA | I13: =IFERROR(VLOOKUP(Equipes!$A13,'Detail Equipes'!$A:$V,18,FALSE),"XX") -> Christelle MARTIN | J13: =IFERROR(VLOOKUP(Equipes!$A13,'Detail Equipes'!$A:$V,22,FALSE),0) -> 47.96297223
A14: 13 | B14: =IFERROR(VLOOKUP(Equipes!$A14,'Detail Equipes'!$A:$V,21,FALSE),"X") -> M | C14: =IFERROR(VLOOKUP(Equipes!$A14,'Detail Equipes'!$A:$V,3,FALSE),"XX") -> PORT-MARLY RC 2 | D14: =IFERROR(VLOOKUP(Equipes!$A14,'Detail Equipes'!$A:$V,4,FALSE),"XX") -> RCPM2 | E14: =IFERROR(VLOOKUP(Equipes!$A14,'Detail Equipes'!$A:$V,6,FALSE),"XX") -> Elsa CROZATIER | F14: =IFERROR(VLOOKUP(Equipes!$A14,'Detail Equipes'!$A:$V,9,FALSE),"XX") -> Cyrielle BERTHIER | G14: =IFERROR(VLOOKUP(Equipes!$A14,'Detail Equipes'!$A:$V,12,FALSE),"XX") -> Hervé Valette | H14: =IFERROR(VLOOKUP(Equipes!$A14,'Detail Equipes'!$A:$V,15,FALSE),"XX") -> Eric MOINARD | I14: =IFERROR(VLOOKUP(Equipes!$A14,'Detail Equipes'!$A:$V,18,FALSE),"XX") -> Anais FEUGA | J14: =IFERROR(VLOOKUP(Equipes!$A14,'Detail Equipes'!$A:$V,22,FALSE),0) -> 46.70982154
A15: 14 | B15: =IFERROR(VLOOKUP(Equipes!$A15,'Detail Equipes'!$A:$V,21,FALSE),"X") -> M | C15: =IFERROR(VLOOKUP(Equipes!$A15,'Detail Equipes'!$A:$V,3,FALSE),"XX") -> MAISONS MESNIL CERAMM 1 | D15: =IFERROR(VLOOKUP(Equipes!$A15,'Detail Equipes'!$A:$V,4,FALSE),"XX") -> CERAMM1 | E15: =IFERROR(VLOOKUP(Equipes!$A15,'Detail Equipes'!$A:$V,6,FALSE),"XX") -> Nicolas SCHMITT | F15: =IFERROR(VLOOKUP(Equipes!$A15,'Detail Equipes'!$A:$V,9,FALSE),"XX") -> Gloria VENDRELL | G15: =IFERROR(VLOOKUP(Equipes!$A15,'Detail Equipes'!$A:$V,12,FALSE),"XX") -> Christine MARIE LAVAUD | H15: =IFERROR(VLOOKUP(Equipes!$A15,'Detail Equipes'!$A:$V,15,FALSE),"XX") -> Amaury DE LA LAURENCIE | I15: =IFERROR(VLOOKUP(Equipes!$A15,'Detail Equipes'!$A:$V,18,FALSE),"XX") -> Amina ELABBADI | J15: =IFERROR(VLOOKUP(Equipes!$A15,'Detail Equipes'!$A:$V,22,FALSE),0) -> 50.25447908
A16: 15 | B16: =IFERROR(VLOOKUP(Equipes!$A16,'Detail Equipes'!$A:$V,21,FALSE),"X") -> H | C16: =IFERROR(VLOOKUP(Equipes!$A16,'Detail Equipes'!$A:$V,3,FALSE),"XX") -> SOISY SUR SEINE CN 1 | D16: =IFERROR(VLOOKUP(Equipes!$A16,'Detail Equipes'!$A:$V,4,FALSE),"XX") -> CN1 | E16: =IFERROR(VLOOKUP(Equipes!$A16,'Detail Equipes'!$A:$V,6,FALSE),"XX") -> Bertrand PIOGER | F16: =IFERROR(VLOOKUP(Equipes!$A16,'Detail Equipes'!$A:$V,9,FALSE),"XX") -> Bruno PERIQUOI | G16: =IFERROR(VLOOKUP(Equipes!$A16,'Detail Equipes'!$A:$V,12,FALSE),"XX") -> Servane BERTRAND | H16: =IFERROR(VLOOKUP(Equipes!$A16,'Detail Equipes'!$A:$V,15,FALSE),"XX") -> Alain BERNARD | I16: =IFERROR(VLOOKUP(Equipes!$A16,'Detail Equipes'!$A:$V,18,FALSE),"XX") -> Robert TRAUET | J16: =IFERROR(VLOOKUP(Equipes!$A16,'Detail Equipes'!$A:$V,22,FALSE),0) -> 54.24516401
A17: 16 | B17: =IFERROR(VLOOKUP(Equipes!$A17,'Detail Equipes'!$A:$V,21,FALSE),"X") -> H | C17: =IFERROR(VLOOKUP(Equipes!$A17,'Detail Equipes'!$A:$V,3,FALSE),"XX") -> PORT-MARLY RC 1 | D17: =IFERROR(VLOOKUP(Equipes!$A17,'Detail Equipes'!$A:$V,4,FALSE),"XX") -> RCPM1 | E17: =IFERROR(VLOOKUP(Equipes!$A17,'Detail Equipes'!$A:$V,6,FALSE),"XX") -> Jean-Claude LAFOREST | F17: =IFERROR(VLOOKUP(Equipes!$A17,'Detail Equipes'!$A:$V,9,FALSE),"XX") -> David CHARTIER | G17: =IFERROR(VLOOKUP(Equipes!$A17,'Detail Equipes'!$A:$V,12,FALSE),"XX") -> Christophe MARCAIS | H17: =IFERROR(VLOOKUP(Equipes!$A17,'Detail Equipes'!$A:$V,15,FALSE),"XX") -> Vincent BONTOUX | I17: =IFERROR(VLOOKUP(Equipes!$A17,'Detail Equipes'!$A:$V,18,FALSE),"XX") -> Alain ROUSSEAU | J17: =IFERROR(VLOOKUP(Equipes!$A17,'Detail Equipes'!$A:$V,22,FALSE),0) -> 54.61393113
A18: 17 | B18: =IFERROR(VLOOKUP(Equipes!$A18,'Detail Equipes'!$A:$V,21,FALSE),"X") -> F | C18: =IFERROR(VLOOKUP(Equipes!$A18,'Detail Equipes'!$A:$V,3,FALSE),"XX") -> ANDRESY CA CONFLUENT 1 | D18: =IFERROR(VLOOKUP(Equipes!$A18,'Detail Equipes'!$A:$V,4,FALSE),"XX") -> CAC1 | E18: =IFERROR(VLOOKUP(Equipes!$A18,'Detail Equipes'!$A:$V,6,FALSE),"XX") -> Daphne PARIZOT | F18: =IFERROR(VLOOKUP(Equipes!$A18,'Detail Equipes'!$A:$V,9,FALSE),"XX") -> Agnes BURGHGRAEVE SELLEN | G18: =IFERROR(VLOOKUP(Equipes!$A18,'Detail Equipes'!$A:$V,12,FALSE),"XX") -> Sylvie FRANSSEN | H18: =IFERROR(VLOOKUP(Equipes!$A18,'Detail Equipes'!$A:$V,15,FALSE),"XX") -> Severine LEGAILLARD | I18: =IFERROR(VLOOKUP(Equipes!$A18,'Detail Equipes'!$A:$V,18,FALSE),"XX") -> Martine LE ROUX | J18: =IFERROR(VLOOKUP(Equipes!$A18,'Detail Equipes'!$A:$V,22,FALSE),0) -> 55.0862599
A19: 18 | B19: =IFERROR(VLOOKUP(Equipes!$A19,'Detail Equipes'!$A:$V,21,FALSE),"X") -> H | C19: =IFERROR(VLOOKUP(Equipes!$A19,'Detail Equipes'!$A:$V,3,FALSE),"XX") -> MAISONS MESNIL CERAMM 2 | D19: =IFERROR(VLOOKUP(Equipes!$A19,'Detail Equipes'!$A:$V,4,FALSE),"XX") -> CERAMM2 | E19: =IFERROR(VLOOKUP(Equipes!$A19,'Detail Equipes'!$A:$V,6,FALSE),"XX") -> Claude LEMENAGER | F19: =IFERROR(VLOOKUP(Equipes!$A19,'Detail Equipes'!$A:$V,9,FALSE),"XX") -> Didier GIRARDEAU | G19: =IFERROR(VLOOKUP(Equipes!$A19,'Detail Equipes'!$A:$V,12,FALSE),"XX") -> Laurent LIBOTTE | H19: =IFERROR(VLOOKUP(Equipes!$A19,'Detail Equipes'!$A:$V,15,FALSE),"XX") -> Alain GIRARD | I19: =IFERROR(VLOOKUP(Equipes!$A19,'Detail Equipes'!$A:$V,18,FALSE),"XX") -> Cecile JEAMMES | J19: =IFERROR(VLOOKUP(Equipes!$A19,'Detail Equipes'!$A:$V,22,FALSE),0) -> 58.07310921
A20: 19 | B20: =IFERROR(VLOOKUP(Equipes!$A20,'Detail Equipes'!$A:$V,21,FALSE),"X") -> H | C20: =IFERROR(VLOOKUP(Equipes!$A20,'Detail Equipes'!$A:$V,3,FALSE),"XX") -> VILLENNES - POISSY AC 1 | D20: =IFERROR(VLOOKUP(Equipes!$A20,'Detail Equipes'!$A:$V,4,FALSE),"XX") -> ACVP1 | E20: =IFERROR(VLOOKUP(Equipes!$A20,'Detail Equipes'!$A:$V,6,FALSE),"XX") -> Olivier POLGE | F20: =IFERROR(VLOOKUP(Equipes!$A20,'Detail Equipes'!$A:$V,9,FALSE),"XX") -> Odile POLGE | G20: =IFERROR(VLOOKUP(Equipes!$A20,'Detail Equipes'!$A:$V,12,FALSE),"XX") -> Laurent BONHOMMET | H20: =IFERROR(VLOOKUP(Equipes!$A20,'Detail Equipes'!$A:$V,15,FALSE),"XX") -> Antoine VOLPI | I20: =IFERROR(VLOOKUP(Equipes!$A20,'Detail Equipes'!$A:$V,18,FALSE),"XX") -> Philippe STROHM | J20: =IFERROR(VLOOKUP(Equipes!$A20,'Detail Equipes'!$A:$V,22,FALSE),0) -> 55.20406812
A21: 20 | B21: =IFERROR(VLOOKUP(Equipes!$A21,'Detail Equipes'!$A:$V,21,FALSE),"X") -> M | C21: =IFERROR(VLOOKUP(Equipes!$A21,'Detail Equipes'!$A:$V,3,FALSE),"XX") -> ROUEN CNAR 1 | D21: =IFERROR(VLOOKUP(Equipes!$A21,'Detail Equipes'!$A:$V,4,FALSE),"XX") -> CNAR1 | E21: =IFERROR(VLOOKUP(Equipes!$A21,'Detail Equipes'!$A:$V,6,FALSE),"XX") -> Nathalie MOUSSET | F21: =IFERROR(VLOOKUP(Equipes!$A21,'Detail Equipes'!$A:$V,9,FALSE),"XX") -> Francois LAIR | G21: =IFERROR(VLOOKUP(Equipes!$A21,'Detail Equipes'!$A:$V,12,FALSE),"XX") -> Betty GESLAIN | H21: =IFERROR(VLOOKUP(Equipes!$A21,'Detail Equipes'!$A:$V,15,FALSE),"XX") -> Thierry DUCHESNE | I21: =IFERROR(VLOOKUP(Equipes!$A21,'Detail Equipes'!$A:$V,18,FALSE),"XX") -> Stephane MOUSSET | J21: =IFERROR(VLOOKUP(Equipes!$A21,'Detail Equipes'!$A:$V,22,FALSE),0) -> 55.38598592
A22: 21 | B22: =IFERROR(VLOOKUP(Equipes!$A22,'Detail Equipes'!$A:$V,21,FALSE),"X") -> H | C22: =IFERROR(VLOOKUP(Equipes!$A22,'Detail Equipes'!$A:$V,3,FALSE),"XX") -> PORT-MARLY RC 2 | D22: =IFERROR(VLOOKUP(Equipes!$A22,'Detail Equipes'!$A:$V,4,FALSE),"XX") -> RCPM2 | E22: =IFERROR(VLOOKUP(Equipes!$A22,'Detail Equipes'!$A:$V,6,FALSE),"XX") -> Guillaume CHARRON | F22: =IFERROR(VLOOKUP(Equipes!$A22,'Detail Equipes'!$A:$V,9,FALSE),"XX") -> Philippe VERHE | G22: =IFERROR(VLOOKUP(Equipes!$A22,'Detail Equipes'!$A:$V,12,FALSE),"XX") -> Stephan REYNIER | H22: =IFERROR(VLOOKUP(Equipes!$A22,'Detail Equipes'!$A:$V,15,FALSE),"XX") -> Dominique LEROUX | I22: =IFERROR(VLOOKUP(Equipes!$A22,'Detail Equipes'!$A:$V,18,FALSE),"XX") -> Luciano AUTUNNALE | J22: =IFERROR(VLOOKUP(Equipes!$A22,'Detail Equipes'!$A:$V,22,FALSE),0) -> 50.87475305
A23: 22 | B23: =IFERROR(VLOOKUP(Equipes!$A23,'Detail Equipes'!$A:$V,21,FALSE),"X") -> H | C23: =IFERROR(VLOOKUP(Equipes!$A23,'Detail Equipes'!$A:$V,3,FALSE),"XX") -> COUDRAY MONTCEAUX A 1 | D23: =IFERROR(VLOOKUP(Equipes!$A23,'Detail Equipes'!$A:$V,4,FALSE),"XX") -> coudray1 | E23: =IFERROR(VLOOKUP(Equipes!$A23,'Detail Equipes'!$A:$V,6,FALSE),"XX") -> Joseph RAYNAUD | F23: =IFERROR(VLOOKUP(Equipes!$A23,'Detail Equipes'!$A:$V,9,FALSE),"XX") -> Frederic MORAT | G23: =IFERROR(VLOOKUP(Equipes!$A23,'Detail Equipes'!$A:$V,12,FALSE),"XX") -> Benjamin HOUILLON | H23: =IFERROR(VLOOKUP(Equipes!$A23,'Detail Equipes'!$A:$V,15,FALSE),"XX") -> Pascal BEAUSSART | I23: =IFERROR(VLOOKUP(Equipes!$A23,'Detail Equipes'!$A:$V,18,FALSE),"XX") -> Anne HOUAL | J23: =IFERROR(VLOOKUP(Equipes!$A23,'Detail Equipes'!$A:$V,22,FALSE),0) -> 51.87146538
A24: 23 | B24: =IFERROR(VLOOKUP(Equipes!$A24,'Detail Equipes'!$A:$V,21,FALSE),"X") -> M | C24: =IFERROR(VLOOKUP(Equipes!$A24,'Detail Equipes'!$A:$V,3,FALSE),"XX") -> SN OISE 1 | D24: =IFERROR(VLOOKUP(Equipes!$A24,'Detail Equipes'!$A:$V,4,FALSE),"XX") -> SN Oise 1 | E24: =IFERROR(VLOOKUP(Equipes!$A24,'Detail Equipes'!$A:$V,6,FALSE),"XX") -> Agnes AUDEBERT | F24: =IFERROR(VLOOKUP(Equipes!$A24,'Detail Equipes'!$A:$V,9,FALSE),"XX") -> Nicolas RAUCH | G24: =IFERROR(VLOOKUP(Equipes!$A24,'Detail Equipes'!$A:$V,12,FALSE),"XX") -> Jerome ROUGE | H24: =IFERROR(VLOOKUP(Equipes!$A24,'Detail Equipes'!$A:$V,15,FALSE),"XX") -> Nathalie BAUDIER | I24: =IFERROR(VLOOKUP(Equipes!$A24,'Detail Equipes'!$A:$V,18,FALSE),"XX") -> Isabelle JOUBERT | J24: =IFERROR(VLOOKUP(Equipes!$A24,'Detail Equipes'!$A:$V,22,FALSE),0) -> 49.53173935
A25: 24 | B25: =IFERROR(VLOOKUP(Equipes!$A25,'Detail Equipes'!$A:$V,21,FALSE),"X") -> H | C25: =IFERROR(VLOOKUP(Equipes!$A25,'Detail Equipes'!$A:$V,3,FALSE),"XX") -> MEULAN LES MUREAUX AMMH 1 | D25: =IFERROR(VLOOKUP(Equipes!$A25,'Detail Equipes'!$A:$V,4,FALSE),"XX") -> AMMH1 | E25: =IFERROR(VLOOKUP(Equipes!$A25,'Detail Equipes'!$A:$V,6,FALSE),"XX") -> Xavier MARSAIS | F25: =IFERROR(VLOOKUP(Equipes!$A25,'Detail Equipes'!$A:$V,9,FALSE),"XX") -> Eric PRENEY | G25: =IFERROR(VLOOKUP(Equipes!$A25,'Detail Equipes'!$A:$V,12,FALSE),"XX") -> Yannick DAGMEY | H25: =IFERROR(VLOOKUP(Equipes!$A25,'Detail Equipes'!$A:$V,15,FALSE),"XX") -> David COINE | I25: =IFERROR(VLOOKUP(Equipes!$A25,'Detail Equipes'!$A:$V,18,FALSE),"XX") -> Arthur VAN SLOOTEN | J25: =IFERROR(VLOOKUP(Equipes!$A25,'Detail Equipes'!$A:$V,22,FALSE),0) -> 53.3032462
A26: 25 | B26: =IFERROR(VLOOKUP(Equipes!$A26,'Detail Equipes'!$A:$V,21,FALSE),"X") -> M | C26: =IFERROR(VLOOKUP(Equipes!$A26,'Detail Equipes'!$A:$V,3,FALSE),"XX") -> VILLENNES - POISSY AC 2 | D26: =IFERROR(VLOOKUP(Equipes!$A26,'Detail Equipes'!$A:$V,4,FALSE),"XX") -> ACVP2 | E26: =IFERROR(VLOOKUP(Equipes!$A26,'Detail Equipes'!$A:$V,6,FALSE),"XX") -> Franck CARIOU | F26: =IFERROR(VLOOKUP(Equipes!$A26,'Detail Equipes'!$A:$V,9,FALSE),"XX") -> Michael LE BANNER | G26: =IFERROR(VLOOKUP(Equipes!$A26,'Detail Equipes'!$A:$V,12,FALSE),"XX") -> Valerie DECAESTECKER | H26: =IFERROR(VLOOKUP(Equipes!$A26,'Detail Equipes'!$A:$V,15,FALSE),"XX") -> Karine GUILBON | I26: =IFERROR(VLOOKUP(Equipes!$A26,'Detail Equipes'!$A:$V,18,FALSE),"XX") -> Christophe ELINE | J26: =IFERROR(VLOOKUP(Equipes!$A26,'Detail Equipes'!$A:$V,22,FALSE),0) -> 53.83968456
A27: 26 | B27: =IFERROR(VLOOKUP(Equipes!$A27,'Detail Equipes'!$A:$V,21,FALSE),"X") -> M | C27: =IFERROR(VLOOKUP(Equipes!$A27,'Detail Equipes'!$A:$V,3,FALSE),"XX") -> EVRY SCA 1 | D27: =IFERROR(VLOOKUP(Equipes!$A27,'Detail Equipes'!$A:$V,4,FALSE),"XX") -> SCA 1 | E27: =IFERROR(VLOOKUP(Equipes!$A27,'Detail Equipes'!$A:$V,6,FALSE),"XX") -> Anne CARDUNER | F27: =IFERROR(VLOOKUP(Equipes!$A27,'Detail Equipes'!$A:$V,9,FALSE),"XX") -> Olivia PEZZOLI | G27: =IFERROR(VLOOKUP(Equipes!$A27,'Detail Equipes'!$A:$V,12,FALSE),"XX") -> Bruno CASIMIR | H27: =IFERROR(VLOOKUP(Equipes!$A27,'Detail Equipes'!$A:$V,15,FALSE),"XX") -> Lionel BOISSONNAT | I27: =IFERROR(VLOOKUP(Equipes!$A27,'Detail Equipes'!$A:$V,18,FALSE),"XX") -> Kristell MAUCHET | J27: =IFERROR(VLOOKUP(Equipes!$A27,'Detail Equipes'!$A:$V,22,FALSE),0) -> 56.02982154
A28: 27 | B28: =IFERROR(VLOOKUP(Equipes!$A28,'Detail Equipes'!$A:$V,21,FALSE),"X") -> F | C28: =IFERROR(VLOOKUP(Equipes!$A28,'Detail Equipes'!$A:$V,3,FALSE),"XX") -> MEULAN LES MUREAUX AMMH 1 | D28: =IFERROR(VLOOKUP(Equipes!$A28,'Detail Equipes'!$A:$V,4,FALSE),"XX") -> AMMH1 | E28: =IFERROR(VLOOKUP(Equipes!$A28,'Detail Equipes'!$A:$V,6,FALSE),"XX") -> Gwenaelle MARSAIS | F28: =IFERROR(VLOOKUP(Equipes!$A28,'Detail Equipes'!$A:$V,9,FALSE),"XX") -> Sophie SEFFAR | G28: =IFERROR(VLOOKUP(Equipes!$A28,'Detail Equipes'!$A:$V,12,FALSE),"XX") -> Catherine MARTINIER | H28: =IFERROR(VLOOKUP(Equipes!$A28,'Detail Equipes'!$A:$V,15,FALSE),"XX") -> Christelle GOANVIC | I28: =IFERROR(VLOOKUP(Equipes!$A28,'Detail Equipes'!$A:$V,18,FALSE),"XX") -> Marie LAMORE | J28: =IFERROR(VLOOKUP(Equipes!$A28,'Detail Equipes'!$A:$V,22,FALSE),0) -> 46.89995853
A29: 28 | B29: =IFERROR(VLOOKUP(Equipes!$A29,'Detail Equipes'!$A:$V,21,FALSE),"X") -> M | C29: =IFERROR(VLOOKUP(Equipes!$A29,'Detail Equipes'!$A:$V,3,FALSE),"XX") -> VILLENNES - POISSY AC 1 | D29: =IFERROR(VLOOKUP(Equipes!$A29,'Detail Equipes'!$A:$V,4,FALSE),"XX") -> ACVP1 | E29: =IFERROR(VLOOKUP(Equipes!$A29,'Detail Equipes'!$A:$V,6,FALSE),"XX") -> Frederic LE ROUX | F29: =IFERROR(VLOOKUP(Equipes!$A29,'Detail Equipes'!$A:$V,9,FALSE),"XX") -> Corinne HUARD-ROLLAND | G29: =IFERROR(VLOOKUP(Equipes!$A29,'Detail Equipes'!$A:$V,12,FALSE),"XX") -> Elodie DEREMIENCE | H29: =IFERROR(VLOOKUP(Equipes!$A29,'Detail Equipes'!$A:$V,15,FALSE),"XX") -> Marie-Claude LAUNAY | I29: =IFERROR(VLOOKUP(Equipes!$A29,'Detail Equipes'!$A:$V,18,FALSE),"XX") -> Olivier COSNEAU | J29: =IFERROR(VLOOKUP(Equipes!$A29,'Detail Equipes'!$A:$V,22,FALSE),0) -> 52.8632462
A30: 29 | B30: =IFERROR(VLOOKUP(Equipes!$A30,'Detail Equipes'!$A:$V,21,FALSE),"X") -> H | C30: =IFERROR(VLOOKUP(Equipes!$A30,'Detail Equipes'!$A:$V,3,FALSE),"XX") -> FONTAINEBLEAU APF 1 | D30: =IFERROR(VLOOKUP(Equipes!$A30,'Detail Equipes'!$A:$V,4,FALSE),"XX") -> APF1 | E30: =IFERROR(VLOOKUP(Equipes!$A30,'Detail Equipes'!$A:$V,6,FALSE),"XX") -> Kathleen SANCHEZ | F30: =IFERROR(VLOOKUP(Equipes!$A30,'Detail Equipes'!$A:$V,9,FALSE),"XX") -> Laurent FOUQUE | G30: =IFERROR(VLOOKUP(Equipes!$A30,'Detail Equipes'!$A:$V,12,FALSE),"XX") -> Christian MESSALES | H30: =IFERROR(VLOOKUP(Equipes!$A30,'Detail Equipes'!$A:$V,15,FALSE),"XX") -> Denis FLORY | I30: =IFERROR(VLOOKUP(Equipes!$A30,'Detail Equipes'!$A:$V,18,FALSE),"XX") -> David WEBER | J30: =IFERROR(VLOOKUP(Equipes!$A30,'Detail Equipes'!$A:$V,22,FALSE),0) -> 57.4632462
A31: 30 | B31: =IFERROR(VLOOKUP(Equipes!$A31,'Detail Equipes'!$A:$V,21,FALSE),"X") -> H | C31: =IFERROR(VLOOKUP(Equipes!$A31,'Detail Equipes'!$A:$V,3,FALSE),"XX") -> JOINVILLE AMJ 1 | D31: =IFERROR(VLOOKUP(Equipes!$A31,'Detail Equipes'!$A:$V,4,FALSE),"XX") -> AMJ1 | E31: =IFERROR(VLOOKUP(Equipes!$A31,'Detail Equipes'!$A:$V,6,FALSE),"XX") -> Vincent FABIEN | F31: =IFERROR(VLOOKUP(Equipes!$A31,'Detail Equipes'!$A:$V,9,FALSE),"XX") -> Arnaud PUPPO | G31: =IFERROR(VLOOKUP(Equipes!$A31,'Detail Equipes'!$A:$V,12,FALSE),"XX") -> Jonathan ROOKE | H31: =IFERROR(VLOOKUP(Equipes!$A31,'Detail Equipes'!$A:$V,15,FALSE),"XX") -> Xavier SUCHET | I31: =IFERROR(VLOOKUP(Equipes!$A31,'Detail Equipes'!$A:$V,18,FALSE),"XX") -> Nicolas JAMAULT | J31: =IFERROR(VLOOKUP(Equipes!$A31,'Detail Equipes'!$A:$V,22,FALSE),0) -> 51.33228729
A32: 31 | B32: =IFERROR(VLOOKUP(Equipes!$A32,'Detail Equipes'!$A:$V,21,FALSE),"X") -> M | C32: =IFERROR(VLOOKUP(Equipes!$A32,'Detail Equipes'!$A:$V,3,FALSE),"XX") -> NOGENT SUR MARNE CN 3 | D32: =IFERROR(VLOOKUP(Equipes!$A32,'Detail Equipes'!$A:$V,4,FALSE),"XX") -> CN3 | E32: =IFERROR(VLOOKUP(Equipes!$A32,'Detail Equipes'!$A:$V,6,FALSE),"XX") -> Alexandra COHEN SALMON | F32: =IFERROR(VLOOKUP(Equipes!$A32,'Detail Equipes'!$A:$V,9,FALSE),"XX") -> Isabelle MILON-BANNEROT | G32: =IFERROR(VLOOKUP(Equipes!$A32,'Detail Equipes'!$A:$V,12,FALSE),"XX") -> Jerome TROMBOFSKY | H32: =IFERROR(VLOOKUP(Equipes!$A32,'Detail Equipes'!$A:$V,15,FALSE),"XX") -> Olivier PASCAL | I32: =IFERROR(VLOOKUP(Equipes!$A32,'Detail Equipes'!$A:$V,18,FALSE),"XX") -> Elisabeth LAUNAY | J32: =IFERROR(VLOOKUP(Equipes!$A32,'Detail Equipes'!$A:$V,22,FALSE),0) -> 52.88187634
A33: 32 | B33: =IFERROR(VLOOKUP(Equipes!$A33,'Detail Equipes'!$A:$V,21,FALSE),"X") -> H | C33: =IFERROR(VLOOKUP(Equipes!$A33,'Detail Equipes'!$A:$V,3,FALSE),"XX") -> BOULOGNE 92 1 | D33: =IFERROR(VLOOKUP(Equipes!$A33,'Detail Equipes'!$A:$V,4,FALSE),"XX") -> ACBB1 | E33: =IFERROR(VLOOKUP(Equipes!$A33,'Detail Equipes'!$A:$V,6,FALSE),"XX") -> Isabelle MAIRE | F33: =IFERROR(VLOOKUP(Equipes!$A33,'Detail Equipes'!$A:$V,9,FALSE),"XX") -> Théo BEL BERBEL- LURBE | G33: =IFERROR(VLOOKUP(Equipes!$A33,'Detail Equipes'!$A:$V,12,FALSE),"XX") -> Thã‰Odore SEDAROS | H33: =IFERROR(VLOOKUP(Equipes!$A33,'Detail Equipes'!$A:$V,15,FALSE),"XX") -> Omar OUAZZANI | I33: =IFERROR(VLOOKUP(Equipes!$A33,'Detail Equipes'!$A:$V,18,FALSE),"XX") -> Alexandra MENEZES | J33: =IFERROR(VLOOKUP(Equipes!$A33,'Detail Equipes'!$A:$V,22,FALSE),0) -> 42.8111914
A34: 33 | B34: =IFERROR(VLOOKUP(Equipes!$A34,'Detail Equipes'!$A:$V,21,FALSE),"X") -> X | C34: =IFERROR(VLOOKUP(Equipes!$A34,'Detail Equipes'!$A:$V,3,FALSE),"XX") -> XX | D34: =IFERROR(VLOOKUP(Equipes!$A34,'Detail Equipes'!$A:$V,4,FALSE),"XX") -> XX | E34: =IFERROR(VLOOKUP(Equipes!$A34,'Detail Equipes'!$A:$V,6,FALSE),"XX") -> XX | F34: =IFERROR(VLOOKUP(Equipes!$A34,'Detail Equipes'!$A:$V,9,FALSE),"XX") -> XX | G34: =IFERROR(VLOOKUP(Equipes!$A34,'Detail Equipes'!$A:$V,12,FALSE),"XX") -> XX | H34: =IFERROR(VLOOKUP(Equipes!$A34,'Detail Equipes'!$A:$V,15,FALSE),"XX") -> XX | I34: =IFERROR(VLOOKUP(Equipes!$A34,'Detail Equipes'!$A:$V,18,FALSE),"XX") -> XX | J34: =IFERROR(VLOOKUP(Equipes!$A34,'Detail Equipes'!$A:$V,22,FALSE),0) -> 0
A35: 34 | B35: =IFERROR(VLOOKUP(Equipes!$A35,'Detail Equipes'!$A:$V,21,FALSE),"X") -> X | C35: =IFERROR(VLOOKUP(Equipes!$A35,'Detail Equipes'!$A:$V,3,FALSE),"XX") -> XX | D35: =IFERROR(VLOOKUP(Equipes!$A35,'Detail Equipes'!$A:$V,4,FALSE),"XX") -> XX | E35: =IFERROR(VLOOKUP(Equipes!$A35,'Detail Equipes'!$A:$V,6,FALSE),"XX") -> XX | F35: =IFERROR(VLOOKUP(Equipes!$A35,'Detail Equipes'!$A:$V,9,FALSE),"XX") -> XX | G35: =IFERROR(VLOOKUP(Equipes!$A35,'Detail Equipes'!$A:$V,12,FALSE),"XX") -> XX | H35: =IFERROR(VLOOKUP(Equipes!$A35,'Detail Equipes'!$A:$V,15,FALSE),"XX") -> XX | I35: =IFERROR(VLOOKUP(Equipes!$A35,'Detail Equipes'!$A:$V,18,FALSE),"XX") -> XX | J35: =IFERROR(VLOOKUP(Equipes!$A35,'Detail Equipes'!$A:$V,22,FALSE),0) -> 0
A36: 35 | B36: =IFERROR(VLOOKUP(Equipes!$A36,'Detail Equipes'!$A:$V,21,FALSE),"X") -> X | C36: =IFERROR(VLOOKUP(Equipes!$A36,'Detail Equipes'!$A:$V,3,FALSE),"XX") -> XX | D36: =IFERROR(VLOOKUP(Equipes!$A36,'Detail Equipes'!$A:$V,4,FALSE),"XX") -> XX | E36: =IFERROR(VLOOKUP(Equipes!$A36,'Detail Equipes'!$A:$V,6,FALSE),"XX") -> XX | F36: =IFERROR(VLOOKUP(Equipes!$A36,'Detail Equipes'!$A:$V,9,FALSE),"XX") -> XX | G36: =IFERROR(VLOOKUP(Equipes!$A36,'Detail Equipes'!$A:$V,12,FALSE),"XX") -> XX | H36: =IFERROR(VLOOKUP(Equipes!$A36,'Detail Equipes'!$A:$V,15,FALSE),"XX") -> XX | I36: =IFERROR(VLOOKUP(Equipes!$A36,'Detail Equipes'!$A:$V,18,FALSE),"XX") -> XX | J36: =IFERROR(VLOOKUP(Equipes!$A36,'Detail Equipes'!$A:$V,22,FALSE),0) -> 0
A37: 36 | B37: =IFERROR(VLOOKUP(Equipes!$A37,'Detail Equipes'!$A:$V,21,FALSE),"X") -> X | C37: =IFERROR(VLOOKUP(Equipes!$A37,'Detail Equipes'!$A:$V,3,FALSE),"XX") -> XX | D37: =IFERROR(VLOOKUP(Equipes!$A37,'Detail Equipes'!$A:$V,4,FALSE),"XX") -> XX | E37: =IFERROR(VLOOKUP(Equipes!$A37,'Detail Equipes'!$A:$V,6,FALSE),"XX") -> XX | F37: =IFERROR(VLOOKUP(Equipes!$A37,'Detail Equipes'!$A:$V,9,FALSE),"XX") -> XX | G37: =IFERROR(VLOOKUP(Equipes!$A37,'Detail Equipes'!$A:$V,12,FALSE),"XX") -> XX | H37: =IFERROR(VLOOKUP(Equipes!$A37,'Detail Equipes'!$A:$V,15,FALSE),"XX") -> XX | I37: =IFERROR(VLOOKUP(Equipes!$A37,'Detail Equipes'!$A:$V,18,FALSE),"XX") -> XX | J37: =IFERROR(VLOOKUP(Equipes!$A37,'Detail Equipes'!$A:$V,22,FALSE),0) -> 0
A38: 37 | B38: =IFERROR(VLOOKUP(Equipes!$A38,'Detail Equipes'!$A:$V,21,FALSE),"X") -> X | C38: =IFERROR(VLOOKUP(Equipes!$A38,'Detail Equipes'!$A:$V,3,FALSE),"XX") -> XX | D38: =IFERROR(VLOOKUP(Equipes!$A38,'Detail Equipes'!$A:$V,4,FALSE),"XX") -> XX | E38: =IFERROR(VLOOKUP(Equipes!$A38,'Detail Equipes'!$A:$V,6,FALSE),"XX") -> XX | F38: =IFERROR(VLOOKUP(Equipes!$A38,'Detail Equipes'!$A:$V,9,FALSE),"XX") -> XX | G38: =IFERROR(VLOOKUP(Equipes!$A38,'Detail Equipes'!$A:$V,12,FALSE),"XX") -> XX | H38: =IFERROR(VLOOKUP(Equipes!$A38,'Detail Equipes'!$A:$V,15,FALSE),"XX") -> XX | I38: =IFERROR(VLOOKUP(Equipes!$A38,'Detail Equipes'!$A:$V,18,FALSE),"XX") -> XX | J38: =IFERROR(VLOOKUP(Equipes!$A38,'Detail Equipes'!$A:$V,22,FALSE),0) -> 0
A39: 38 | B39: =IFERROR(VLOOKUP(Equipes!$A39,'Detail Equipes'!$A:$V,21,FALSE),"X") -> X | C39: =IFERROR(VLOOKUP(Equipes!$A39,'Detail Equipes'!$A:$V,3,FALSE),"XX") -> XX | D39: =IFERROR(VLOOKUP(Equipes!$A39,'Detail Equipes'!$A:$V,4,FALSE),"XX") -> XX | E39: =IFERROR(VLOOKUP(Equipes!$A39,'Detail Equipes'!$A:$V,6,FALSE),"XX") -> XX | F39: =IFERROR(VLOOKUP(Equipes!$A39,'Detail Equipes'!$A:$V,9,FALSE),"XX") -> XX | G39: =IFERROR(VLOOKUP(Equipes!$A39,'Detail Equipes'!$A:$V,12,FALSE),"XX") -> XX | H39: =IFERROR(VLOOKUP(Equipes!$A39,'Detail Equipes'!$A:$V,15,FALSE),"XX") -> XX | I39: =IFERROR(VLOOKUP(Equipes!$A39,'Detail Equipes'!$A:$V,18,FALSE),"XX") -> XX | J39: =IFERROR(VLOOKUP(Equipes!$A39,'Detail Equipes'!$A:$V,22,FALSE),0) -> 0
A40: 39 | B40: =IFERROR(VLOOKUP(Equipes!$A40,'Detail Equipes'!$A:$V,21,FALSE),"X") -> X | C40: =IFERROR(VLOOKUP(Equipes!$A40,'Detail Equipes'!$A:$V,3,FALSE),"XX") -> XX | D40: =IFERROR(VLOOKUP(Equipes!$A40,'Detail Equipes'!$A:$V,4,FALSE),"XX") -> XX | E40: =IFERROR(VLOOKUP(Equipes!$A40,'Detail Equipes'!$A:$V,6,FALSE),"XX") -> XX | F40: =IFERROR(VLOOKUP(Equipes!$A40,'Detail Equipes'!$A:$V,9,FALSE),"XX") -> XX | G40: =IFERROR(VLOOKUP(Equipes!$A40,'Detail Equipes'!$A:$V,12,FALSE),"XX") -> XX | H40: =IFERROR(VLOOKUP(Equipes!$A40,'Detail Equipes'!$A:$V,15,FALSE),"XX") -> XX | I40: =IFERROR(VLOOKUP(Equipes!$A40,'Detail Equipes'!$A:$V,18,FALSE),"XX") -> XX | J40: =IFERROR(VLOOKUP(Equipes!$A40,'Detail Equipes'!$A:$V,22,FALSE),0) -> 0
A41: 40 | B41: =IFERROR(VLOOKUP(Equipes!$A41,'Detail Equipes'!$A:$V,21,FALSE),"X") -> X | C41: =IFERROR(VLOOKUP(Equipes!$A41,'Detail Equipes'!$A:$V,3,FALSE),"XX") -> XX | D41: =IFERROR(VLOOKUP(Equipes!$A41,'Detail Equipes'!$A:$V,4,FALSE),"XX") -> XX | E41: =IFERROR(VLOOKUP(Equipes!$A41,'Detail Equipes'!$A:$V,6,FALSE),"XX") -> XX | F41: =IFERROR(VLOOKUP(Equipes!$A41,'Detail Equipes'!$A:$V,9,FALSE),"XX") -> XX | G41: =IFERROR(VLOOKUP(Equipes!$A41,'Detail Equipes'!$A:$V,12,FALSE),"XX") -> XX | H41: =IFERROR(VLOOKUP(Equipes!$A41,'Detail Equipes'!$A:$V,15,FALSE),"XX") -> XX | I41: =IFERROR(VLOOKUP(Equipes!$A41,'Detail Equipes'!$A:$V,18,FALSE),"XX") -> XX | J41: =IFERROR(VLOOKUP(Equipes!$A41,'Detail Equipes'!$A:$V,22,FALSE),0) -> 0

Sheet Detail Equipes
A1: N° bateau (tirage) | B1: équipage N° | C1: Club | D1: Ville | E1: nom du délégué | F1: RAMEUR | G1: DNA | H1: AGE | I1: RAMEUR | J1: DNA | K1: AGE | L1: RAMEUR | M1: DNA | N1: AGE | O1: RAMEUR BARREUR | P1: DNA | Q1: AGE | R1: RAMEUR BARREUR | S1: DNA | T1: AGE | U1: Type | V1: Age moyen | W1: 2022-06-12
A2: 1 | B2: 2 | C2: ANDRESY CA CONFLUENT 1 | D2: Cac1 | E2: Nathalie BOURGEOIS | F2: Stephanie LAPORTE | I2: Marine NACERI | L2: Marc LACCASSAGNE | O2: Stephane ZETTWOOG | R2: Fouzia VOIRIN | U2: M | V2: 49.43146538
A3: 2 | B3: 8 | C3: CAUDEBEC EN CAUX ACVS 1 | D3: Caudebec | E3: Nicolas BARRAY | F3: Martine NARBAIS-JAUREGUY | I3: Caroline KERVRANN | L3: Stephane DELAMARE | O3: Nicolas BARRAY | R3: Francois NARBAIS-JAUREGUY | U3: M | V3: 55.14653387 | Y3: =+COUNTIF($U$2:$U$43,Z3) -> 19 | Z3: M
A4: 3 | B4: 4 | C4: ANDRESY CA CONFLUENT 2 | D4: CAC 2 | E4: Nathalie BOURGEOIS | F4: Anna ALCALOIDEPOIXBLANC | I4: Geoffrey GHIZZONI | L4: Nathalie BOURGEOIS | O4: Franck CHRISTIANNOT | R4: NicOLAS delaunoy | U4: M | V4: 55.44845168 | Y4: =+COUNTIF($U$2:$U$43,Z4) -> 2 | Z4: F
A5: 4 | B5: 3 | C5: ANDRESY CA CONFLUENT 1 | D5: CAC3 | E5: Nathalie BOURGEOIS | F5: Emmanuel SALIN | I5: Ousseni PARKOUDA | L5: Jean-Baptiste PROVENZANO | O5: Jerome CLAVE | R5: Julian GALLELA | U5: H | V5: 45.69393113 | Y5: 12 | Z5: H
A6: 5 | B6: 24 | C6: PORT-MARLY RC 1 | D6: RCPM | E6: Vincent BONTOUX | F6: Claudie BODIN | I6: Fanny LAMOUR | L6: Etienne DUPUIS | O6: Jeancharles FAUCHEUX | R6: Gildas KETTANJIAN | U6: M | V6: 50.4342051 | X6: Total | Y6: =+SUM(Y3:Y5) -> 33
A7: 6 | B7: 7 | C7: BOULOGNE 92 2 | D7: ACBB | E7: Christian GAIGNARD | F7: CéLia ROUSSELLE | I7: Marie Pierre MARSALLON GAMBY | L7: Françis ROBIN | O7: Nicolas LECOEUR | R7: Theodora XENOGIANI | U7: M | V7: 45.9092736
A8: 7 | B8: 33 | C8: VILLENNES - POISSY AC 3 | D8: ACVP | E8: Frederic LE ROUX | F8: Virginie ALEXANDRE | I8: Jihad LEMARQRI | L8: Cyrille BRUZON-BASCOU | O8: Sebastien CARPENTIER | R8: Marie Estelle D'ARBAUMONT | U8: M | V8: 48.76680784
A9: 8 | B9: 13 | C9: JOINVILLE AMJ 1 | D9: Joinville | E9: Servane HEUDIARD | F9: Laurent BAUDOIN | I9: Raphaelle BOUVIER FLORY | L9: Sophie BUSTOS | O9: Kastriot JAKA | R9: Thomas AUGER | U9: M | V9: 46.08132839
A10: 9 | B10: 19 | C10: NOGENT SUR MARNE CN 1 | D10: CN 1 | E10: Caroline PIEDNOIRE | F10: Chrystelle SUPIOT | I10: Caroline PIEDNOIRE | L10: Olivier MUCIGNAT | O10: Andre SIMONNET | R10: Fabienne LORTIE | U10: M | V10: 53.26215031
A11: 10 | B11: 20 | C11: NOGENT SUR MARNE CN 2 | D11: CN2 | E11: Caroline PIEDNOIRE | F11: Christophe RUCKEBUSCH | I11: Nicolas BURCKHART | L11: Alice GHEERBRANT | O11: Aurelie DONVAL | R11: Gerard LECA | U11: M | V11: 52.51584894
A12: 11 | B12: 5 | C12: BOULOGNE 92 1 | D12: ACBB | E12: Christian GAIGNARD | F12: Viviane BALLOY | I12: Timothé BAZIRIES | L12: Alexandre LE FUR | O12: Sigrid PABST | R12: Michel VEDRINE | U12: H | V12: 50.55201332
A13: 12 | B13: 11 | C13: EVRY SCA 2 | D13: SCA2 | E13: Frederic DUCAUQUY | F13: Laurent YEBOAH | I13: Isabelle MOISSET FLEURISSON | L13: Frederic DUCAUQUY | O13: Sandrine GARCIA | R13: Christelle MARTIN | U13: M | V13: 47.96297223
A14: 13 | B14: 26 | C14: PORT-MARLY RC 2 | D14: RCPM2 | E14: Vincent BONTOUX | F14: Elsa CROZATIER | I14: Cyrielle BERTHIER | L14: Hervé Valette | O14: Eric MOINARD | R14: Anais FEUGA | U14: M | V14: 46.70982154
A15: 14 | B15: 15 | C15: MAISONS MESNIL CERAMM 1 | D15: CERAMM1 | E15: Alain GIRARD | F15: Nicolas SCHMITT | I15: Gloria VENDRELL | L15: Christine MARIE LAVAUD | O15: Amaury DE LA LAURENCIE | R15: Amina ELABBADI | U15: M | V15: 50.25447908
A16: 15 | B16: 29 | C16: SOISY SUR SEINE CN 1 | D16: CN1 | E16: Bertrand PIOGER | F16: Bertrand PIOGER | I16: Bruno PERIQUOI | L16: Servane BERTRAND | O16: Alain BERNARD | R16: Robert TRAUET | U16: H | V16: 54.24516401
A17: 16 | B17: 23 | C17: PORT-MARLY RC 1 | D17: RCPM1 | E17: Vincent BONTOUX | F17: Jean-Claude LAFOREST | I17: David CHARTIER | L17: Christophe MARCAIS | O17: Vincent BONTOUX | R17: Alain ROUSSEAU | U17: H | V17: 54.61393113
A18: 17 | B18: 1 | C18: ANDRESY CA CONFLUENT 1 | D18: CAC1 | E18: Nathalie BOURGEOIS | F18: Daphne PARIZOT | I18: Agnes BURGHGRAEVE SELLEN | L18: Sylvie FRANSSEN | O18: Severine LEGAILLARD | R18: Martine LE ROUX | U18: F | V18: 55.0862599
A19: 18 | B19: 16 | C19: MAISONS MESNIL CERAMM 2 | D19: CERAMM2 | E19: Alain GIRARD | F19: Claude LEMENAGER | I19: Didier GIRARDEAU | L19: Laurent LIBOTTE | O19: Alain GIRARD | R19: Cecile JEAMMES | U19: H | V19: 58.07310921
A20: 19 | B20: 31 | C20: VILLENNES - POISSY AC 1 | D20: ACVP1 | E20: Frederic LE ROUX | F20: Olivier POLGE | I20: Odile POLGE | L20: Laurent BONHOMMET | O20: Antoine VOLPI | R20: Philippe STROHM | U20: H | V20: 55.20406812
A21: 20 | B21: 27 | C21: ROUEN CNAR 1 | D21: CNAR1 | E21: Francois LAIR | F21: Nathalie MOUSSET | I21: Francois LAIR | L21: Betty GESLAIN | O21: Thierry DUCHESNE | R21: Stephane MOUSSET | U21: M | V21: 55.38598592
A22: 21 | B22: 25 | C22: PORT-MARLY RC 2 | D22: RCPM2 | E22: Vincent BONTOUX | F22: Guillaume CHARRON | I22: Philippe VERHE | L22: Stephan REYNIER | O22: Dominique LEROUX | R22: Luciano AUTUNNALE | U22: H | V22: 50.87475305
A23: 22 | B23: 9 | C23: COUDRAY MONTCEAUX A 1 | D23: coudray1 | E23: Pascal BEAUSSART | F23: Joseph RAYNAUD | I23: Frederic MORAT | L23: Benjamin HOUILLON | O23: Pascal BEAUSSART | R23: Anne HOUAL | U23: H | V23: 51.87146538
A24: 23 | B24: 28 | C24: SN OISE 1 | D24: SN Oise 1 | E24: Nathalie BAUDIER | F24: Agnes AUDEBERT | I24: Nicolas RAUCH | L24: Jerome ROUGE | O24: Nathalie BAUDIER | R24: Isabelle JOUBERT | U24: M | V24: 49.53173935
A25: 24 | B25: 17 | C25: MEULAN LES MUREAUX AMMH 1 | D25: AMMH1 | E25: Franck DUCHAT | F25: Xavier MARSAIS | I25: Eric PRENEY | L25: Yannick DAGMEY | O25: David COINE | R25: Arthur VAN SLOOTEN | U25: H | V25: 53.3032462
A26: 25 | B26: 32 | C26: VILLENNES - POISSY AC 2 | D26: ACVP2 | E26: Frederic LE ROUX | F26: Franck CARIOU | I26: Michael LE BANNER | L26: Valerie DECAESTECKER | O26: Karine GUILBON | R26: Christophe ELINE | U26: M | V26: 53.83968456
A27: 26 | B27: 10 | C27: EVRY SCA 1 | D27: SCA 1 | E27: Frederic DUCAUQUY | F27: Anne CARDUNER | I27: Olivia PEZZOLI | L27: Bruno CASIMIR | O27: Lionel BOISSONNAT | R27: Kristell MAUCHET | U27: M | V27: 56.02982154
A28: 27 | B28: 18 | C28: MEULAN LES MUREAUX AMMH 1 | D28: AMMH1 | E28: Franck DUCHAT | F28: Gwenaelle MARSAIS | I28: Sophie SEFFAR | L28: Catherine MARTINIER | O28: Christelle GOANVIC | R28: Marie LAMORE | U28: F | V28: 46.89995853
A29: 28 | B29: 30 | C29: VILLENNES - POISSY AC 1 | D29: ACVP1 | E29: Frederic LE ROUX | F29: Frederic LE ROUX | I29: Corinne HUARD-ROLLAND | L29: Elodie DEREMIENCE | O29: Marie-Claude LAUNAY | R29: Olivier COSNEAU | U29: M | V29: 52.8632462
A30: 29 | B30: 12 | C30: FONTAINEBLEAU APF 1 | D30: APF1 | E30: Gerard CLEMESSY | F30: Kathleen SANCHEZ | I30: Laurent FOUQUE | L30: Christian MESSALES | O30: Denis FLORY | R30: David WEBER | U30: H | V30: 57.4632462
A31: 30 | B31: 14 | C31: JOINVILLE AMJ 1 | D31: AMJ1 | E31: Servane HEUDIARD | F31: Vincent FABIEN | I31: Arnaud PUPPO | L31: Jonathan ROOKE | O31: Xavier SUCHET | R31: Nicolas JAMAULT | U31: H | V31: 51.33228729
A32: 31 | B32: 21 | C32: NOGENT SUR MARNE CN 3 | D32: CN3 | E32: Caroline PIEDNOIRE | F32: Alexandra COHEN SALMON | I32: Isabelle MILON-BANNEROT | L32: Jerome TROMBOFSKY | O32: Olivier PASCAL | R32: Elisabeth LAUNAY | U32: M | V32: 52.88187634
A33: 32 | B33: 6 | C33: BOULOGNE 92 1 | D33: ACBB1 | E33: Christian GAIGNARD | F33: Isabelle MAIRE | I33: Théo BEL BERBEL- LURBE | L33: Thã‰Odore SEDAROS | O33: Omar OUAZZANI | R33: Alexandra MENEZES | U33: H | V33: 42.8111914
B34: 33 | C34: =[2]FFA_Inscriptions!$E39 -> VILLENNES - POISSY AC 3 | D34: ACVP3 | E34: =PROPER([2]FFA_Inscriptions!$EI39)&" "&[2]FFA_Inscriptions!$EH39 -> Frederic LE ROUX | F34: =PROPER([2]FFA_Inscriptions!$G39) & " " & [2]FFA_Inscriptions!$F39 -> Virginie ALEXANDRE | I34: =PROPER([2]FFA_Inscriptions!$S39)&" " &[2]FFA_Inscriptions!$R39 -> Jihad LEMARQRI | L34: =PROPER([2]FFA_Inscriptions!$AE39)&" " &[2]FFA_Inscriptions!$AD39 -> Cyrille BRUZON-BASCOU | O34: =PROPER([2]FFA_Inscriptions!$AQ39)&" "&[2]FFA_Inscriptions!$AP39 -> Sebastien CARPENTIER | R34: =PROPER([2]FFA_Inscriptions!$CY39)&" "&[2]FFA_Inscriptions!$CX39 -> Marie Estelle D'ARBAUMONT | U34: M | V34: =AVERAGE(H34,K34,N34,Q34,T34) -> 
B35: 34
B36: 35
B37: 36
B38: 37
B39: 38
B40: 39
B41: 40

Sheet TEMPS-ponton
A1: GRAND 8 | D1: ='Note explicative fichier'!E3 -> 2024-06-02 | G1: Intervalle de départ des yolettes | J1: 00:02:30
G2: Nombre de Yolettes | J2: =+Equipes!N5 -> 32
A3: Yolette N° | B3: Club | C3: Ville | D3: Equipe | E3: Classe | F3: Moy. Age | G3: Départ | H3: 1 / 4 G-8 | I3: 1 / 2 G-8 | J3: 3 / 4 G-8 | K3: Arrivée | L3: Temps de course | M3: Delta Record
A4: Record | B4: POLYTECHNIQUE ( Référence 2012 ) | C4: Palaiseau | D4: FERRERO Michel - Alexandre Rosinski - BOYAUD Mathieu - GODDE Olivier - THECKES Benoit | E4: M | G4: 08:46:30 | H4: 09:10:05 | I4: 09:27:11 | J4: 09:51:04 | K4: 10:08:18 | L4: =+K4-G4 -> 01:21:48 | M4: 00:00:00
A5: =Equipes!A2 -> 1 | B5: =Equipes!C2 -> ANDRESY CA CONFLUENT 1 | C5: =Equipes!D2 -> Cac1 | D5: =CONCATENATE(Equipes!E2,Equipes!$L$3,Equipes!F2,Equipes!$L$3,Equipes!G2,Equipes!$L$3,Equipes!H2,Equipes!$L$3,Equipes!I2) -> Stephanie LAPORTE-Marine NACERI-Marc LACCASSAGNE-Stephane ZETTWOOG-Fouzia VOIRIN | E5: =VLOOKUP(A5,Equipes!A:J,2,FALSE) -> M | F5: =ROUND(VLOOKUP(A5,Equipes!$A$2:$J$41,10,0),0) -> 49 | G5: 09:15:43 | H5: 09:49:03 | I5: 10:13:40 | J5: 10:43:29 | K5: 11:07:36 | L5: =IF(+K5-G5>0,+K5-G5,"99:99:99") -> 01:51:53 | M5: =+L5-$L$4 -> 00:30:05
A6: =Equipes!A3 -> 2 | B6: =Equipes!C3 -> CAUDEBEC EN CAUX ACVS 1 | C6: =Equipes!D3 -> Caudebec | D6: =CONCATENATE(Equipes!E3,Equipes!$L$3,Equipes!F3,Equipes!$L$3,Equipes!G3,Equipes!$L$3,Equipes!H3,Equipes!$L$3,Equipes!I3) -> Martine NARBAIS-JAUREGUY-Caroline KERVRANN-Stephane DELAMARE-Nicolas BARRAY-Francois NARBAIS-JAUREGUY | E6: =VLOOKUP(A6,Equipes!A:J,2,FALSE) -> M | F6: =ROUND(VLOOKUP(A6,Equipes!$A$2:$J$41,10,0),0) -> 55 | G6: 09:18:40 | H6: 09:48:48 | I6: 10:11:02 | J6: 10:40:10 | K6: 11:02:27 | L6: 01:43:47 | M6: 00:21:59
A7: =Equipes!A4 -> 3 | B7: =Equipes!C4 -> ANDRESY CA CONFLUENT 2 | C7: =Equipes!D4 -> CAC 2 | D7: =CONCATENATE(Equipes!E4,Equipes!$L$3,Equipes!F4,Equipes!$L$3,Equipes!G4,Equipes!$L$3,Equipes!H4,Equipes!$L$3,Equipes!I4) -> Anna ALCALOIDEPOIXBLANC-Geoffrey GHIZZONI-Nathalie BOURGEOIS-Franck CHRISTIANNOT-NicOLAS delaunoy | E7: M | F7: =ROUND(VLOOKUP(A7,Equipes!$A$2:$J$41,10,0),0) -> 55 | G7: 09:20:40 | H7: 09:54:28 | I7: 10:21:29 | J7: 10:52:53 | K7: 11:18:29 | L7: 01:57:49 | M7: 00:36:01
A8: =Equipes!A5 -> 4 | B8: =Equipes!C5 -> ANDRESY CA CONFLUENT 1 | C8: =Equipes!D5 -> CAC3 | D8: =CONCATENATE(Equipes!E5,Equipes!$L$3,Equipes!F5,Equipes!$L$3,Equipes!G5,Equipes!$L$3,Equipes!H5,Equipes!$L$3,Equipes!I5) -> Emmanuel SALIN-Ousseni PARKOUDA-Jean-Baptiste PROVENZANO-Jerome CLAVE-Julian GALLELA | E8: =VLOOKUP(A8,Equipes!A:J,2,FALSE) -> H | F8: =ROUND(VLOOKUP(A8,Equipes!$A$2:$J$41,10,0),0) -> 46 | G8: 09:22:41 | H8: 09:52:26 | I8: 10:16:29 | J8: 10:45:27 | K8: 11:10:08 | L8: 01:47:27 | M8: 00:25:39
A9: =Equipes!A6 -> 5 | B9: =Equipes!C6 -> PORT-MARLY RC 1 | C9: =Equipes!D6 -> RCPM | D9: =CONCATENATE(Equipes!E6,Equipes!$L$3,Equipes!F6,Equipes!$L$3,Equipes!G6,Equipes!$L$3,Equipes!H6,Equipes!$L$3,Equipes!I6) -> Claudie BODIN-Fanny LAMOUR-Etienne DUPUIS-Jeancharles FAUCHEUX-Gildas KETTANJIAN | E9: =VLOOKUP(A9,Equipes!A:J,2,FALSE) -> M | F9: =ROUND(VLOOKUP(A9,Equipes!$A$2:$J$41,10,0),0) -> 50 | G9: 09:24:40 | H9: 09:55:08 | I9: 10:19:14 | J9: 10:49:38 | K9: 11:13:52 | L9: 01:49:12 | M9: 00:27:24
A10: =Equipes!A7 -> 6 | B10: =Equipes!C7 -> BOULOGNE 92 2 | C10: =Equipes!D7 -> ACBB | D10: =CONCATENATE(Equipes!E7,Equipes!$L$3,Equipes!F7,Equipes!$L$3,Equipes!G7,Equipes!$L$3,Equipes!H7,Equipes!$L$3,Equipes!I7) -> CéLia ROUSSELLE-Marie Pierre MARSALLON GAMBY-Françis ROBIN-Nicolas LECOEUR-Theodora XENOGIANI | E10: =VLOOKUP(A10,Equipes!A:J,2,FALSE) -> M | F10: =ROUND(VLOOKUP(A10,Equipes!$A$2:$J$41,10,0),0) -> 46 | G10: 09:26:31 | H10: 09:55:00 | I10: 10:17:12 | J10: 10:44:58 | K10: 11:06:14 | L10: 01:39:43 | M10: 00:17:55
A11: =Equipes!A8 -> 7 | B11: =Equipes!C8 -> VILLENNES - POISSY AC 3 | C11: =Equipes!D8 -> ACVP | D11: =CONCATENATE(Equipes!E8,Equipes!$L$3,Equipes!F8,Equipes!$L$3,Equipes!G8,Equipes!$L$3,Equipes!H8,Equipes!$L$3,Equipes!I8) -> Virginie ALEXANDRE-Jihad LEMARQRI-Cyrille BRUZON-BASCOU-Sebastien CARPENTIER-Marie Estelle D'ARBAUMONT | E11: =VLOOKUP(A11,Equipes!A:J,2,FALSE) -> M | F11: =ROUND(VLOOKUP(A11,Equipes!$A$2:$J$41,10,0),0) -> 49 | G11: 09:28:10 | H11: 09:56:55 | I11: 10:19:37 | J11: 10:47:30 | K11: 11:09:39 | L11: 01:41:29 | M11: 00:19:41
A12: =Equipes!A9 -> 8 | B12: =Equipes!C9 -> JOINVILLE AMJ 1 | C12: =Equipes!D9 -> Joinville | D12: =CONCATENATE(Equipes!E9,Equipes!$L$3,Equipes!F9,Equipes!$L$3,Equipes!G9,Equipes!$L$3,Equipes!H9,Equipes!$L$3,Equipes!I9) -> Laurent BAUDOIN-Raphaelle BOUVIER FLORY-Sophie BUSTOS-Kastriot JAKA-Thomas AUGER | E12: =VLOOKUP(A12,Equipes!A:J,2,FALSE) -> M | F12: =ROUND(VLOOKUP(A12,Equipes!$A$2:$J$41,10,0),0) -> 46 | G12: 09:30:20 | H12: 09:57:55 | I12: 10:18:25 | J12: 10:44:03 | K12: 11:03:52 | L12: 01:33:32 | M12: 00:11:44
A13: =Equipes!A10 -> 9 | B13: =Equipes!C10 -> NOGENT SUR MARNE CN 1 | C13: =Equipes!D10 -> CN 1 | D13: =CONCATENATE(Equipes!E10,Equipes!$L$3,Equipes!F10,Equipes!$L$3,Equipes!G10,Equipes!$L$3,Equipes!H10,Equipes!$L$3,Equipes!I10) -> Chrystelle SUPIOT-Caroline PIEDNOIRE-Olivier MUCIGNAT-Andre SIMONNET-Fabienne LORTIE | E13: =VLOOKUP(A13,Equipes!A:J,2,FALSE) -> M | F13: =ROUND(VLOOKUP(A13,Equipes!$A$2:$J$41,10,0),0) -> 53 | G13: 09:32:19 | H13: 10:01:07 | I13: 10:22:41 | J13: 10:51:58 | K13: 11:15:55 | L13: 01:43:36 | M13: 00:21:48
A14: =Equipes!A11 -> 10 | B14: =Equipes!C11 -> NOGENT SUR MARNE CN 2 | C14: =Equipes!D11 -> CN2 | D14: =CONCATENATE(Equipes!E11,Equipes!$L$3,Equipes!F11,Equipes!$L$3,Equipes!G11,Equipes!$L$3,Equipes!H11,Equipes!$L$3,Equipes!I11) -> Christophe RUCKEBUSCH-Nicolas BURCKHART-Alice GHEERBRANT-Aurelie DONVAL-Gerard LECA | E14: =VLOOKUP(A14,Equipes!A:J,2,FALSE) -> M | F14: =ROUND(VLOOKUP(A14,Equipes!$A$2:$J$41,10,0),0) -> 53 | G14: 09:34:19 | H14: 10:01:33 | I14: 10:22:04 | J14: 10:49:45 | K14: 11:11:13 | L14: 01:36:54 | M14: 00:15:06
A15: =Equipes!A12 -> 11 | B15: =Equipes!C12 -> BOULOGNE 92 1 | C15: =Equipes!D12 -> ACBB | D15: =CONCATENATE(Equipes!E12,Equipes!$L$3,Equipes!F12,Equipes!$L$3,Equipes!G12,Equipes!$L$3,Equipes!H12,Equipes!$L$3,Equipes!I12) -> Viviane BALLOY-Timothé BAZIRIES-Alexandre LE FUR-Sigrid PABST-Michel VEDRINE | E15: =VLOOKUP(A15,Equipes!A:J,2,FALSE) -> H | F15: =ROUND(VLOOKUP(A15,Equipes!$A$2:$J$41,10,0),0) -> 51 | G15: 09:36:20 | H15: 10:06:27 | I15: 10:31:00 | J15: 10:02:15 | K15: 11:27:15 | L15: 01:50:55 | M15: 00:29:07
A16: =Equipes!A13 -> 12 | B16: =Equipes!C13 -> EVRY SCA 2 | C16: =Equipes!D13 -> SCA2 | D16: =CONCATENATE(Equipes!E13,Equipes!$L$3,Equipes!F13,Equipes!$L$3,Equipes!G13,Equipes!$L$3,Equipes!H13,Equipes!$L$3,Equipes!I13) -> Laurent YEBOAH-Isabelle MOISSET FLEURISSON-Frederic DUCAUQUY-Sandrine GARCIA-Christelle MARTIN | E16: =VLOOKUP(A16,Equipes!A:J,2,FALSE) -> M | F16: =ROUND(VLOOKUP(A16,Equipes!$A$2:$J$41,10,0),0) -> 48 | G16: 09:38:19 | H16: 10:04:33 | I16: 10:24:42 | J16: 10:50:34 | K16: 11:10:12 | L16: 01:31:53 | M16: 00:10:05
A17: =Equipes!A14 -> 13 | B17: =Equipes!C14 -> PORT-MARLY RC 2 | C17: =Equipes!D14 -> RCPM2 | D17: =CONCATENATE(Equipes!E14,Equipes!$L$3,Equipes!F14,Equipes!$L$3,Equipes!G14,Equipes!$L$3,Equipes!H14,Equipes!$L$3,Equipes!I14) -> Elsa CROZATIER-Cyrielle BERTHIER-Hervé Valette-Eric MOINARD-Anais FEUGA | E17: =VLOOKUP(A17,Equipes!A:J,2,FALSE) -> M | F17: =ROUND(VLOOKUP(A17,Equipes!$A$2:$J$41,10,0),0) -> 47 | G17: 09:40:21 | H17: 10:05:55 | I17: 10:26:06 | J17: 10:51:36 | K17: 11:12:20 | L17: 01:31:59 | M17: 00:10:11
A18: =Equipes!A15 -> 14 | B18: =Equipes!C15 -> MAISONS MESNIL CERAMM 1 | C18: =Equipes!D15 -> CERAMM1 | D18: =CONCATENATE(Equipes!E15,Equipes!$L$3,Equipes!F15,Equipes!$L$3,Equipes!G15,Equipes!$L$3,Equipes!H15,Equipes!$L$3,Equipes!I15) -> Nicolas SCHMITT-Gloria VENDRELL-Christine MARIE LAVAUD-Amaury DE LA LAURENCIE-Amina ELABBADI | E18: =VLOOKUP(A18,Equipes!A:J,2,FALSE) -> M | F18: =ROUND(VLOOKUP(A18,Equipes!$A$2:$J$41,10,0),0) -> 50 | G18: 09:42:29 | H18: 10:10:57 | I18: 10:32:21 | J18: 11:01:44 | K18: 11:24:44 | L18: 01:42:15 | M18: 00:20:27
A19: =Equipes!A16 -> 15 | B19: =Equipes!C16 -> SOISY SUR SEINE CN 1 | C19: =Equipes!D16 -> CN1 | D19: =CONCATENATE(Equipes!E16,Equipes!$L$3,Equipes!F16,Equipes!$L$3,Equipes!G16,Equipes!$L$3,Equipes!H16,Equipes!$L$3,Equipes!I16) -> Bertrand PIOGER-Bruno PERIQUOI-Servane BERTRAND-Alain BERNARD-Robert TRAUET | E19: =VLOOKUP(A19,Equipes!A:J,2,FALSE) -> H | F19: =ROUND(VLOOKUP(A19,Equipes!$A$2:$J$41,10,0),0) -> 54 | G19: 09:44:28 | H19: 10:11:53 | I19: 10:31:35 | J19: 10:57:19 | K19: 11:18:36 | L19: 01:34:08 | M19: 00:12:20
A20: =Equipes!A17 -> 16 | B20: =Equipes!C17 -> PORT-MARLY RC 1 | C20: =Equipes!D17 -> RCPM1 | D20: =CONCATENATE(Equipes!E17,Equipes!$L$3,Equipes!F17,Equipes!$L$3,Equipes!G17,Equipes!$L$3,Equipes!H17,Equipes!$L$3,Equipes!I17) -> Jean-Claude LAFOREST-David CHARTIER-Christophe MARCAIS-Vincent BONTOUX-Alain ROUSSEAU | E20: =VLOOKUP(A20,Equipes!A:J,2,FALSE) -> H | F20: =ROUND(VLOOKUP(A20,Equipes!$A$2:$J$41,10,0),0) -> 55 | G20: 09:46:29 | H20: 10:11:35 | I20: 10:30:25 | J20: 10:53:33 | K20: 11:11:54 | L20: 01:25:25 | M20: 00:03:37
A21: =Equipes!A18 -> 17 | B21: =Equipes!C18 -> ANDRESY CA CONFLUENT 1 | C21: =Equipes!D18 -> CAC1 | D21: =CONCATENATE(Equipes!E18,Equipes!$L$3,Equipes!F18,Equipes!$L$3,Equipes!G18,Equipes!$L$3,Equipes!H18,Equipes!$L$3,Equipes!I18) -> Daphne PARIZOT-Agnes BURGHGRAEVE SELLEN-Sylvie FRANSSEN-Severine LEGAILLARD-Martine LE ROUX | E21: =VLOOKUP(A21,Equipes!A:J,2,FALSE) -> F | F21: =ROUND(VLOOKUP(A21,Equipes!$A$2:$J$41,10,0),0) -> 55 | G21: 09:48:01 | H21: 10:21:59 | I21: 10:47:41 | J21: 11:22:02 | K21: 11:49:11 | L21: 02:01:10 | M21: 00:39:22
A22: =Equipes!A19 -> 18 | B22: =Equipes!C19 -> MAISONS MESNIL CERAMM 2 | C22: =Equipes!D19 -> CERAMM2 | D22: =CONCATENATE(Equipes!E19,Equipes!$L$3,Equipes!F19,Equipes!$L$3,Equipes!G19,Equipes!$L$3,Equipes!H19,Equipes!$L$3,Equipes!I19) -> Claude LEMENAGER-Didier GIRARDEAU-Laurent LIBOTTE-Alain GIRARD-Cecile JEAMMES | E22: =VLOOKUP(A22,Equipes!A:J,2,FALSE) -> H | F22: =ROUND(VLOOKUP(A22,Equipes!$A$2:$J$41,10,0),0) -> 58 | G22: 09:50:59 | H22: 10:19:49 | I22: 10:42:08 | J22: 11:10:30 | K22: 11:32:37 | L22: 01:41:38 | M22: 00:19:50
A23: =Equipes!A20 -> 19 | B23: =Equipes!C20 -> VILLENNES - POISSY AC 1 | C23: =Equipes!D20 -> ACVP1 | D23: =CONCATENATE(Equipes!E20,Equipes!$L$3,Equipes!F20,Equipes!$L$3,Equipes!G20,Equipes!$L$3,Equipes!H20,Equipes!$L$3,Equipes!I20) -> Olivier POLGE-Odile POLGE-Laurent BONHOMMET-Antoine VOLPI-Philippe STROHM | E23: =VLOOKUP(A23,Equipes!A:J,2,FALSE) -> H | F23: =ROUND(VLOOKUP(A23,Equipes!$A$2:$J$41,10,0),0) -> 55 | G23: 09:53:00 | H23: 10:22:56 | I23: 10:45:02 | J23: 11:12:47 | K23: 11:33:56 | L23: =IF(+K23-G23>0,+K23-G23,"99:99:99") -> 01:40:56 | M23: 00:19:08
A24: =Equipes!A21 -> 20 | B24: =Equipes!C21 -> ROUEN CNAR 1 | C24: =Equipes!D21 -> CNAR1 | D24: =CONCATENATE(Equipes!E21,Equipes!$L$3,Equipes!F21,Equipes!$L$3,Equipes!G21,Equipes!$L$3,Equipes!H21,Equipes!$L$3,Equipes!I21) -> Nathalie MOUSSET-Francois LAIR-Betty GESLAIN-Thierry DUCHESNE-Stephane MOUSSET | E24: =VLOOKUP(A24,Equipes!A:J,2,FALSE) -> M | F24: =ROUND(VLOOKUP(A24,Equipes!$A$2:$J$41,10,0),0) -> 55 | G24: 09:55:00 | H24: 10:23:53 | I24: 10:45:41 | J24: 11:12:10 | K24: 11:32:13 | L24: =IF(+K24-G24>0,+K24-G24,"99:99:99") -> 01:37:13 | M24: 00:15:25
A25: =Equipes!A22 -> 21 | B25: =Equipes!C22 -> PORT-MARLY RC 2 | C25: =Equipes!D22 -> RCPM2 | D25: =CONCATENATE(Equipes!E22,Equipes!$L$3,Equipes!F22,Equipes!$L$3,Equipes!G22,Equipes!$L$3,Equipes!H22,Equipes!$L$3,Equipes!I22) -> Guillaume CHARRON-Philippe VERHE-Stephan REYNIER-Dominique LEROUX-Luciano AUTUNNALE | E25: =VLOOKUP(A25,Equipes!A:J,2,FALSE) -> H | F25: =ROUND(VLOOKUP(A25,Equipes!$A$2:$J$41,10,0),0) -> 51 | G25: 09:57:00 | H25: 10:22:28 | I25: 10:43:04 | J25: 11:08:43 | K25: 11:28:40 | L25: 01:31:40 | M25: 00:09:52
A26: =Equipes!A23 -> 22 | B26: =Equipes!C23 -> COUDRAY MONTCEAUX A 1 | C26: =Equipes!D23 -> coudray1 | D26: =CONCATENATE(Equipes!E23,Equipes!$L$3,Equipes!F23,Equipes!$L$3,Equipes!G23,Equipes!$L$3,Equipes!H23,Equipes!$L$3,Equipes!I23) -> Joseph RAYNAUD-Frederic MORAT-Benjamin HOUILLON-Pascal BEAUSSART-Anne HOUAL | E26: =VLOOKUP(A26,Equipes!A:J,2,FALSE) -> H | F26: =ROUND(VLOOKUP(A26,Equipes!$A$2:$J$41,10,0),0) -> 52 | G26: 09:59:00 | H26: 10:28:10 | I26: 10:50:40 | J26: 11:18:43 | K26: 11:40:46 | L26: 01:41:46 | M26: 00:19:58
A27: =Equipes!A24 -> 23 | B27: =Equipes!C24 -> SN OISE 1 | C27: =Equipes!D24 -> SN Oise 1 | D27: =CONCATENATE(Equipes!E24,Equipes!$L$3,Equipes!F24,Equipes!$L$3,Equipes!G24,Equipes!$L$3,Equipes!H24,Equipes!$L$3,Equipes!I24) -> Agnes AUDEBERT-Nicolas RAUCH-Jerome ROUGE-Nathalie BAUDIER-Isabelle JOUBERT | E27: =VLOOKUP(A27,Equipes!A:J,2,FALSE) -> M | F27: =ROUND(VLOOKUP(A27,Equipes!$A$2:$J$41,10,0),0) -> 50 | G27: 10:00:00 | H27: 10:31:24 | I27: 10:56:32 | J27: 11:28:06 | K27: 11:53:02 | L27: 01:53:02 | M27: 00:31:14
A28: =Equipes!A25 -> 24 | B28: =Equipes!C25 -> MEULAN LES MUREAUX AMMH 1 | C28: =Equipes!D25 -> AMMH1 | D28: =CONCATENATE(Equipes!E25,Equipes!$L$3,Equipes!F25,Equipes!$L$3,Equipes!G25,Equipes!$L$3,Equipes!H25,Equipes!$L$3,Equipes!I25) -> Xavier MARSAIS-Eric PRENEY-Yannick DAGMEY-David COINE-Arthur VAN SLOOTEN | E28: =VLOOKUP(A28,Equipes!A:J,2,FALSE) -> H | F28: =ROUND(VLOOKUP(A28,Equipes!$A$2:$J$41,10,0),0) -> 53 | G28: 10:02:59 | H28: 10:29:42 | I28: 10:50:58 | J28: 11:18:58 | K28: 11:39:03 | L28: 01:36:04 | M28: 00:14:16
A29: =Equipes!A26 -> 25 | B29: =Equipes!C26 -> VILLENNES - POISSY AC 2 | C29: =Equipes!D26 -> ACVP2 | D29: =CONCATENATE(Equipes!E26,Equipes!$L$3,Equipes!F26,Equipes!$L$3,Equipes!G26,Equipes!$L$3,Equipes!H26,Equipes!$L$3,Equipes!I26) -> Franck CARIOU-Michael LE BANNER-Valerie DECAESTECKER-Karine GUILBON-Christophe ELINE | E29: =VLOOKUP(A29,Equipes!A:J,2,FALSE) -> M | F29: =ROUND(VLOOKUP(A29,Equipes!$A$2:$J$41,10,0),0) -> 54 | G29: 10:05:01 | H29: 10:31:39 | I29: 10:52:48 | J29: 11:21:14 | K29: 11:43:28 | L29: 01:38:27 | M29: 00:16:39
A30: =Equipes!A27 -> 26 | B30: =Equipes!C27 -> EVRY SCA 1 | C30: =Equipes!D27 -> SCA 1 | D30: =CONCATENATE(Equipes!E27,Equipes!$L$3,Equipes!F27,Equipes!$L$3,Equipes!G27,Equipes!$L$3,Equipes!H27,Equipes!$L$3,Equipes!I27) -> Anne CARDUNER-Olivia PEZZOLI-Bruno CASIMIR-Lionel BOISSONNAT-Kristell MAUCHET | E30: =VLOOKUP(A30,Equipes!A:J,2,FALSE) -> M | F30: =ROUND(VLOOKUP(A30,Equipes!$A$2:$J$41,10,0),0) -> 56 | G30: 10:07:01 | H30: 10:36:39 | I30: 10:59:33 | J30: 11:29:29 | K30: 11:53:31 | L30: 01:46:30 | M30: 00:24:42
A31: =Equipes!A28 -> 27 | B31: =Equipes!C28 -> MEULAN LES MUREAUX AMMH 1 | C31: =Equipes!D28 -> AMMH1 | D31: =CONCATENATE(Equipes!E28,Equipes!$L$3,Equipes!F28,Equipes!$L$3,Equipes!G28,Equipes!$L$3,Equipes!H28,Equipes!$L$3,Equipes!I28) -> Gwenaelle MARSAIS-Sophie SEFFAR-Catherine MARTINIER-Christelle GOANVIC-Marie LAMORE | E31: =VLOOKUP(A31,Equipes!A:J,2,FALSE) -> F | F31: =ROUND(VLOOKUP(A31,Equipes!$A$2:$J$41,10,0),0) -> 47 | G31: 10:09:01 | H31: 10:42:15 | I31: 11:09:37 | J31: 11:42:48 | K31: 12:08:48 | L31: 01:59:47 | M31: 00:37:59
A32: =Equipes!A29 -> 28 | B32: =Equipes!C29 -> VILLENNES - POISSY AC 1 | C32: =Equipes!D29 -> ACVP1 | D32: =CONCATENATE(Equipes!E29,Equipes!$L$3,Equipes!F29,Equipes!$L$3,Equipes!G29,Equipes!$L$3,Equipes!H29,Equipes!$L$3,Equipes!I29) -> Frederic LE ROUX-Corinne HUARD-ROLLAND-Elodie DEREMIENCE-Marie-Claude LAUNAY-Olivier COSNEAU | E32: =VLOOKUP(A32,Equipes!A:J,2,FALSE) -> M | F32: =ROUND(VLOOKUP(A32,Equipes!$A$2:$J$41,10,0),0) -> 53 | G32: 10:11:10 | H32: 10:37:24 | I32: 10:57:26 | J32: 11:23:13 | K32: 11:42:17 | L32: 01:31:07 | M32: 00:09:19
A33: =Equipes!A30 -> 29 | B33: =Equipes!C30 -> FONTAINEBLEAU APF 1 | C33: =Equipes!D30 -> APF1 | D33: =CONCATENATE(Equipes!E30,Equipes!$L$3,Equipes!F30,Equipes!$L$3,Equipes!G30,Equipes!$L$3,Equipes!H30,Equipes!$L$3,Equipes!I30) -> Kathleen SANCHEZ-Laurent FOUQUE-Christian MESSALES-Denis FLORY-David WEBER | E33: =VLOOKUP(A33,Equipes!A:J,2,FALSE) -> H | F33: =ROUND(VLOOKUP(A33,Equipes!$A$2:$J$41,10,0),0) -> 57 | G33: 10:13:00 | H33: 10:43:14 | I33: 11:07:12 | J33: 11:36:29 | K33: 12:01:05 | L33: 01:48:05 | M33: 00:26:17
A34: =Equipes!A31 -> 30 | B34: =Equipes!C31 -> JOINVILLE AMJ 1 | C34: =Equipes!D31 -> AMJ1 | D34: =CONCATENATE(Equipes!E31,Equipes!$L$3,Equipes!F31,Equipes!$L$3,Equipes!G31,Equipes!$L$3,Equipes!H31,Equipes!$L$3,Equipes!I31) -> Vincent FABIEN-Arnaud PUPPO-Jonathan ROOKE-Xavier SUCHET-Nicolas JAMAULT | E34: =VLOOKUP(A34,Equipes!A:J,2,FALSE) -> H | F34: =ROUND(VLOOKUP(A34,Equipes!$A$2:$J$41,10,0),0) -> 51 | G34: 10:15:00 | H34: 10:42:26 | I34: 11:03:39 | J34: 11:30:15 | K34: 11:51:06 | L34: 01:36:06 | M34: 00:14:18
A35: =Equipes!A32 -> 31 | B35: =Equipes!C32 -> NOGENT SUR MARNE CN 3 | C35: =Equipes!D32 -> CN3 | D35: =CONCATENATE(Equipes!E32,Equipes!$L$3,Equipes!F32,Equipes!$L$3,Equipes!G32,Equipes!$L$3,Equipes!H32,Equipes!$L$3,Equipes!I32) -> Alexandra COHEN SALMON-Isabelle MILON-BANNEROT-Jerome TROMBOFSKY-Olivier PASCAL-Elisabeth LAUNAY | E35: =VLOOKUP(A35,Equipes!A:J,2,FALSE) -> M | F35: =ROUND(VLOOKUP(A35,Equipes!$A$2:$J$41,10,0),0) -> 53 | G35: 10:17:03 | H35: 10:49:06 | I35: 11:13:20 | J35: 11:47:13 | K35: 12:13:50 | L35: 01:56:47 | M35: 00:34:59
A36: =Equipes!A33 -> 32 | B36: =Equipes!C33 -> BOULOGNE 92 1 | C36: =Equipes!D33 -> ACBB1 | D36: =CONCATENATE(Equipes!E33,Equipes!$L$3,Equipes!F33,Equipes!$L$3,Equipes!G33,Equipes!$L$3,Equipes!H33,Equipes!$L$3,Equipes!I33) -> Isabelle MAIRE-Théo BEL BERBEL- LURBE-Thã‰Odore SEDAROS-Omar OUAZZANI-Alexandra MENEZES | E36: =VLOOKUP(A36,Equipes!A:J,2,FALSE) -> H | F36: =ROUND(VLOOKUP(A36,Equipes!$A$2:$J$41,10,0),0) -> 43 | L36: 99:99:99
A37: =Equipes!A34 -> 33 | B37: =Equipes!C34 -> XX | C37: =Equipes!D34 -> XX | D37: =CONCATENATE(Equipes!E34,Equipes!$L$3,Equipes!F34,Equipes!$L$3,Equipes!G34,Equipes!$L$3,Equipes!H34,Equipes!$L$3,Equipes!I34) -> XX-XX-XX-XX-XX | E37: =VLOOKUP(A37,Equipes!A:J,2,FALSE) -> X | F37: =ROUND(VLOOKUP(A37,Equipes!$A$2:$J$41,10,0),0) -> 0 | L37: 99:99:99
A38: =Equipes!A35 -> 34 | B38: =Equipes!C35 -> XX | C38: =Equipes!D35 -> XX | D38: =CONCATENATE(Equipes!E35,Equipes!$L$3,Equipes!F35,Equipes!$L$3,Equipes!G35,Equipes!$L$3,Equipes!H35,Equipes!$L$3,Equipes!I35) -> XX-XX-XX-XX-XX | E38: =VLOOKUP(A38,Equipes!A:J,2,FALSE) -> X | F38: =ROUND(VLOOKUP(A38,Equipes!$A$2:$J$41,10,0),0) -> 0 | G38: 10:19:09 | I38: 10:54:26 | K38: 11:24:06 | L38: 01:04:57 | M38: -0.01170138889
A39: =Equipes!A36 -> 35 | B39: =Equipes!C36 -> XX | C39: =Equipes!D36 -> XX | D39: =CONCATENATE(Equipes!E36,Equipes!$L$3,Equipes!F36,Equipes!$L$3,Equipes!G36,Equipes!$L$3,Equipes!H36,Equipes!$L$3,Equipes!I36) -> XX-XX-XX-XX-XX | E39: =VLOOKUP(A39,Equipes!A:J,2,FALSE) -> X | F39: =ROUND(VLOOKUP(A39,Equipes!$A$2:$J$41,10,0),0) -> 0 | L39: 99:99:99
A40: =Equipes!A37 -> 36 | B40: =Equipes!C37 -> XX | C40: =Equipes!D37 -> XX | D40: =CONCATENATE(Equipes!E37,Equipes!$L$3,Equipes!F37,Equipes!$L$3,Equipes!G37,Equipes!$L$3,Equipes!H37,Equipes!$L$3,Equipes!I37) -> XX-XX-XX-XX-XX | E40: =VLOOKUP(A40,Equipes!A:J,2,FALSE) -> X | F40: =ROUND(VLOOKUP(A40,Equipes!$A$2:$J$41,10,0),0) -> 0 | L40: 99:99:99
A41: =Equipes!A38 -> 37 | B41: =Equipes!C38 -> XX | C41: =Equipes!D38 -> XX | D41: =CONCATENATE(Equipes!E38,Equipes!$L$3,Equipes!F38,Equipes!$L$3,Equipes!G38,Equipes!$L$3,Equipes!H38,Equipes!$L$3,Equipes!I38) -> XX-XX-XX-XX-XX | E41: =VLOOKUP(A41,Equipes!A:J,2,FALSE) -> X | F41: =ROUND(VLOOKUP(A41,Equipes!$A$2:$J$41,10,0),0) -> 0 | L41: 99:99:99
A42: =Equipes!A39 -> 38 | B42: =Equipes!C39 -> XX | C42: =Equipes!D39 -> XX | D42: =CONCATENATE(Equipes!E39,Equipes!$L$3,Equipes!F39,Equipes!$L$3,Equipes!G39,Equipes!$L$3,Equipes!H39,Equipes!$L$3,Equipes!I39) -> XX-XX-XX-XX-XX | E42: =VLOOKUP(A42,Equipes!A:J,2,FALSE) -> X | F42: =ROUND(VLOOKUP(A42,Equipes!$A$2:$J$41,10,0),0) -> 0 | L42: 99:99:99
A43: =Equipes!A40 -> 39 | B43: =Equipes!C40 -> XX | C43: =Equipes!D40 -> XX | D43: =CONCATENATE(Equipes!E40,Equipes!$L$3,Equipes!F40,Equipes!$L$3,Equipes!G40,Equipes!$L$3,Equipes!H40,Equipes!$L$3,Equipes!I40) -> XX-XX-XX-XX-XX | E43: =VLOOKUP(A43,Equipes!A:J,2,FALSE) -> X | F43: =ROUND(VLOOKUP(A43,Equipes!$A$2:$J$41,10,0),0) -> 0 | L43: 99:99:99
A44: =Equipes!A41 -> 40 | B44: =Equipes!C41 -> XX | C44: =Equipes!D41 -> XX | D44: =CONCATENATE(Equipes!E41,Equipes!$L$3,Equipes!F41,Equipes!$L$3,Equipes!G41,Equipes!$L$3,Equipes!H41,Equipes!$L$3,Equipes!I41) -> XX-XX-XX-XX-XX | E44: =VLOOKUP(A44,Equipes!A:J,2,FALSE) -> X | F44: =ROUND(VLOOKUP(A44,Equipes!$A$2:$J$41,10,0),0) -> 0 | L44: 99:99:99 | M44: =+L44-$L$4 -> 
E46: coupe vainqueur toute catégorie | G46: -Masculin
E47: coupe feminine | G47: - Feminin
E48: coupe mixte (mini 2 filles) | G48: - Mixte

Sheet TEMPS-poissy
A1: GRAND HUIT | D1: ='Note explicative fichier'!E3 -> 2024-06-02 | G1: PONT de POISSY | J1: =G1 -> PONT de POISSY
G2: SLALOM 1 | J2: SLALOM 2 | N2: Pénalité
A3: Yolette N° | B3: Club | C3: Ville | D3: Equipage | E3: Classe | F3: Moy. Age | G3: Poissy-1 Arrivée | H3: Poissy-1 Fin | I3: Pénalité 3' ou 5' | J3: Poissy-2 Arrivée | K3: Poissy-2 Fin | L3: Pénalité 3' ou 5' | N3: 00:00:00
G4: Indiquer : Heures - Minutes - Secondes | J4: Indiquer : Heures - Minutes - Secondes | N4: 00:02:00
A5: ='TEMPS-ponton'!A5 -> 1 | B5: ='TEMPS-ponton'!B5 -> ANDRESY CA CONFLUENT 1 | C5: ='TEMPS-ponton'!C5 -> Cac1 | D5: ='TEMPS-ponton'!D5 -> Stephanie LAPORTE-Marine NACERI-Marc LACCASSAGNE-Stephane ZETTWOOG-Fouzia VOIRIN | E5: =VLOOKUP(A5,Equipes!A:J,2,FALSE) -> M | F5: =ROUND(VLOOKUP(A5,Equipes!$A$2:$J$41,10,0),0) -> 49 | N5: 00:03:00
A6: ='TEMPS-ponton'!A6 -> 2 | B6: ='TEMPS-ponton'!B6 -> CAUDEBEC EN CAUX ACVS 1 | C6: ='TEMPS-ponton'!C6 -> Caudebec | D6: ='TEMPS-ponton'!D6 -> Martine NARBAIS-JAUREGUY-Caroline KERVRANN-Stephane DELAMARE-Nicolas BARRAY-Francois NARBAIS-JAUREGUY | E6: =VLOOKUP(A6,Equipes!A:J,2,FALSE) -> M | F6: =ROUND(VLOOKUP(A6,Equipes!$A$2:$J$41,10,0),0) -> 55 | N6: 00:05:00
A7: ='TEMPS-ponton'!A7 -> 3 | B7: ='TEMPS-ponton'!B7 -> ANDRESY CA CONFLUENT 2 | C7: ='TEMPS-ponton'!C7 -> CAC 2 | D7: ='TEMPS-ponton'!D7 -> Anna ALCALOIDEPOIXBLANC-Geoffrey GHIZZONI-Nathalie BOURGEOIS-Franck CHRISTIANNOT-NicOLAS delaunoy | E7: =VLOOKUP(A7,Equipes!A:J,2,FALSE) -> M | F7: =ROUND(VLOOKUP(A7,Equipes!$A$2:$J$41,10,0),0) -> 55
A8: ='TEMPS-ponton'!A8 -> 4 | B8: ='TEMPS-ponton'!B8 -> ANDRESY CA CONFLUENT 1 | C8: ='TEMPS-ponton'!C8 -> CAC3 | D8: ='TEMPS-ponton'!D8 -> Emmanuel SALIN-Ousseni PARKOUDA-Jean-Baptiste PROVENZANO-Jerome CLAVE-Julian GALLELA | E8: =VLOOKUP(A8,Equipes!A:J,2,FALSE) -> H | F8: =ROUND(VLOOKUP(A8,Equipes!$A$2:$J$41,10,0),0) -> 46
A9: ='TEMPS-ponton'!A9 -> 5 | B9: ='TEMPS-ponton'!B9 -> PORT-MARLY RC 1 | C9: ='TEMPS-ponton'!C9 -> RCPM | D9: ='TEMPS-ponton'!D9 -> Claudie BODIN-Fanny LAMOUR-Etienne DUPUIS-Jeancharles FAUCHEUX-Gildas KETTANJIAN | E9: =VLOOKUP(A9,Equipes!A:J,2,FALSE) -> M | F9: =ROUND(VLOOKUP(A9,Equipes!$A$2:$J$41,10,0),0) -> 50
A10: ='TEMPS-ponton'!A10 -> 6 | B10: ='TEMPS-ponton'!B10 -> BOULOGNE 92 2 | C10: ='TEMPS-ponton'!C10 -> ACBB | D10: ='TEMPS-ponton'!D10 -> CéLia ROUSSELLE-Marie Pierre MARSALLON GAMBY-Françis ROBIN-Nicolas LECOEUR-Theodora XENOGIANI | E10: =VLOOKUP(A10,Equipes!A:J,2,FALSE) -> M | F10: =ROUND(VLOOKUP(A10,Equipes!$A$2:$J$41,10,0),0) -> 46
A11: ='TEMPS-ponton'!A11 -> 7 | B11: ='TEMPS-ponton'!B11 -> VILLENNES - POISSY AC 3 | C11: ='TEMPS-ponton'!C11 -> ACVP | D11: ='TEMPS-ponton'!D11 -> Virginie ALEXANDRE-Jihad LEMARQRI-Cyrille BRUZON-BASCOU-Sebastien CARPENTIER-Marie Estelle D'ARBAUMONT | E11: =VLOOKUP(A11,Equipes!A:J,2,FALSE) -> M | F11: =ROUND(VLOOKUP(A11,Equipes!$A$2:$J$41,10,0),0) -> 49
A12: ='TEMPS-ponton'!A12 -> 8 | B12: ='TEMPS-ponton'!B12 -> JOINVILLE AMJ 1 | C12: ='TEMPS-ponton'!C12 -> Joinville | D12: ='TEMPS-ponton'!D12 -> Laurent BAUDOIN-Raphaelle BOUVIER FLORY-Sophie BUSTOS-Kastriot JAKA-Thomas AUGER | E12: =VLOOKUP(A12,Equipes!A:J,2,FALSE) -> M | F12: =ROUND(VLOOKUP(A12,Equipes!$A$2:$J$41,10,0),0) -> 46
A13: ='TEMPS-ponton'!A13 -> 9 | B13: ='TEMPS-ponton'!B13 -> NOGENT SUR MARNE CN 1 | C13: ='TEMPS-ponton'!C13 -> CN 1 | D13: ='TEMPS-ponton'!D13 -> Chrystelle SUPIOT-Caroline PIEDNOIRE-Olivier MUCIGNAT-Andre SIMONNET-Fabienne LORTIE | E13: =VLOOKUP(A13,Equipes!A:J,2,FALSE) -> M | F13: =ROUND(VLOOKUP(A13,Equipes!$A$2:$J$41,10,0),0) -> 53
A14: ='TEMPS-ponton'!A14 -> 10 | B14: ='TEMPS-ponton'!B14 -> NOGENT SUR MARNE CN 2 | C14: ='TEMPS-ponton'!C14 -> CN2 | D14: ='TEMPS-ponton'!D14 -> Christophe RUCKEBUSCH-Nicolas BURCKHART-Alice GHEERBRANT-Aurelie DONVAL-Gerard LECA | E14: =VLOOKUP(A14,Equipes!A:J,2,FALSE) -> M | F14: =ROUND(VLOOKUP(A14,Equipes!$A$2:$J$41,10,0),0) -> 53
A15: ='TEMPS-ponton'!A15 -> 11 | B15: ='TEMPS-ponton'!B15 -> BOULOGNE 92 1 | C15: ='TEMPS-ponton'!C15 -> ACBB | D15: ='TEMPS-ponton'!D15 -> Viviane BALLOY-Timothé BAZIRIES-Alexandre LE FUR-Sigrid PABST-Michel VEDRINE | E15: =VLOOKUP(A15,Equipes!A:J,2,FALSE) -> H | F15: =ROUND(VLOOKUP(A15,Equipes!$A$2:$J$41,10,0),0) -> 51
A16: ='TEMPS-ponton'!A16 -> 12 | B16: ='TEMPS-ponton'!B16 -> EVRY SCA 2 | C16: ='TEMPS-ponton'!C16 -> SCA2 | D16: ='TEMPS-ponton'!D16 -> Laurent YEBOAH-Isabelle MOISSET FLEURISSON-Frederic DUCAUQUY-Sandrine GARCIA-Christelle MARTIN | E16: =VLOOKUP(A16,Equipes!A:J,2,FALSE) -> M | F16: =ROUND(VLOOKUP(A16,Equipes!$A$2:$J$41,10,0),0) -> 48
A17: ='TEMPS-ponton'!A17 -> 13 | B17: ='TEMPS-ponton'!B17 -> PORT-MARLY RC 2 | C17: ='TEMPS-ponton'!C17 -> RCPM2 | D17: ='TEMPS-ponton'!D17 -> Elsa CROZATIER-Cyrielle BERTHIER-Hervé Valette-Eric MOINARD-Anais FEUGA | E17: =VLOOKUP(A17,Equipes!A:J,2,FALSE) -> M | F17: =ROUND(VLOOKUP(A17,Equipes!$A$2:$J$41,10,0),0) -> 47
A18: ='TEMPS-ponton'!A18 -> 14 | B18: ='TEMPS-ponton'!B18 -> MAISONS MESNIL CERAMM 1 | C18: ='TEMPS-ponton'!C18 -> CERAMM1 | D18: ='TEMPS-ponton'!D18 -> Nicolas SCHMITT-Gloria VENDRELL-Christine MARIE LAVAUD-Amaury DE LA LAURENCIE-Amina ELABBADI | E18: =VLOOKUP(A18,Equipes!A:J,2,FALSE) -> M | F18: =ROUND(VLOOKUP(A18,Equipes!$A$2:$J$41,10,0),0) -> 50
A19: ='TEMPS-ponton'!A19 -> 15 | B19: ='TEMPS-ponton'!B19 -> SOISY SUR SEINE CN 1 | C19: ='TEMPS-ponton'!C19 -> CN1 | D19: ='TEMPS-ponton'!D19 -> Bertrand PIOGER-Bruno PERIQUOI-Servane BERTRAND-Alain BERNARD-Robert TRAUET | E19: =VLOOKUP(A19,Equipes!A:J,2,FALSE) -> H | F19: =ROUND(VLOOKUP(A19,Equipes!$A$2:$J$41,10,0),0) -> 54
A20: ='TEMPS-ponton'!A20 -> 16 | B20: ='TEMPS-ponton'!B20 -> PORT-MARLY RC 1 | C20: ='TEMPS-ponton'!C20 -> RCPM1 | D20: ='TEMPS-ponton'!D20 -> Jean-Claude LAFOREST-David CHARTIER-Christophe MARCAIS-Vincent BONTOUX-Alain ROUSSEAU | E20: =VLOOKUP(A20,Equipes!A:J,2,FALSE) -> H | F20: =ROUND(VLOOKUP(A20,Equipes!$A$2:$J$41,10,0),0) -> 55
A21: ='TEMPS-ponton'!A21 -> 17 | B21: ='TEMPS-ponton'!B21 -> ANDRESY CA CONFLUENT 1 | C21: ='TEMPS-ponton'!C21 -> CAC1 | D21: ='TEMPS-ponton'!D21 -> Daphne PARIZOT-Agnes BURGHGRAEVE SELLEN-Sylvie FRANSSEN-Severine LEGAILLARD-Martine LE ROUX | E21: =VLOOKUP(A21,Equipes!A:J,2,FALSE) -> F | F21: =ROUND(VLOOKUP(A21,Equipes!$A$2:$J$41,10,0),0) -> 55
A22: ='TEMPS-ponton'!A22 -> 18 | B22: ='TEMPS-ponton'!B22 -> MAISONS MESNIL CERAMM 2 | C22: ='TEMPS-ponton'!C22 -> CERAMM2 | D22: ='TEMPS-ponton'!D22 -> Claude LEMENAGER-Didier GIRARDEAU-Laurent LIBOTTE-Alain GIRARD-Cecile JEAMMES | E22: =VLOOKUP(A22,Equipes!A:J,2,FALSE) -> H | F22: =ROUND(VLOOKUP(A22,Equipes!$A$2:$J$41,10,0),0) -> 58
A23: ='TEMPS-ponton'!A23 -> 19 | B23: ='TEMPS-ponton'!B23 -> VILLENNES - POISSY AC 1 | C23: ='TEMPS-ponton'!C23 -> ACVP1 | D23: ='TEMPS-ponton'!D23 -> Olivier POLGE-Odile POLGE-Laurent BONHOMMET-Antoine VOLPI-Philippe STROHM | E23: =VLOOKUP(A23,Equipes!A:J,2,FALSE) -> H | F23: =ROUND(VLOOKUP(A23,Equipes!$A$2:$J$41,10,0),0) -> 55
A24: ='TEMPS-ponton'!A24 -> 20 | B24: ='TEMPS-ponton'!B24 -> ROUEN CNAR 1 | C24: ='TEMPS-ponton'!C24 -> CNAR1 | D24: ='TEMPS-ponton'!D24 -> Nathalie MOUSSET-Francois LAIR-Betty GESLAIN-Thierry DUCHESNE-Stephane MOUSSET | E24: =VLOOKUP(A24,Equipes!A:J,2,FALSE) -> M | F24: =ROUND(VLOOKUP(A24,Equipes!$A$2:$J$41,10,0),0) -> 55
A25: ='TEMPS-ponton'!A25 -> 21 | B25: ='TEMPS-ponton'!B25 -> PORT-MARLY RC 2 | C25: ='TEMPS-ponton'!C25 -> RCPM2 | D25: ='TEMPS-ponton'!D25 -> Guillaume CHARRON-Philippe VERHE-Stephan REYNIER-Dominique LEROUX-Luciano AUTUNNALE | E25: =VLOOKUP(A25,Equipes!A:J,2,FALSE) -> H | F25: =ROUND(VLOOKUP(A25,Equipes!$A$2:$J$41,10,0),0) -> 51
A26: ='TEMPS-ponton'!A26 -> 22 | B26: ='TEMPS-ponton'!B26 -> COUDRAY MONTCEAUX A 1 | C26: ='TEMPS-ponton'!C26 -> coudray1 | D26: ='TEMPS-ponton'!D26 -> Joseph RAYNAUD-Frederic MORAT-Benjamin HOUILLON-Pascal BEAUSSART-Anne HOUAL | E26: =VLOOKUP(A26,Equipes!A:J,2,FALSE) -> H | F26: =ROUND(VLOOKUP(A26,Equipes!$A$2:$J$41,10,0),0) -> 52
A27: ='TEMPS-ponton'!A27 -> 23 | B27: ='TEMPS-ponton'!B27 -> SN OISE 1 | C27: ='TEMPS-ponton'!C27 -> SN Oise 1 | D27: ='TEMPS-ponton'!D27 -> Agnes AUDEBERT-Nicolas RAUCH-Jerome ROUGE-Nathalie BAUDIER-Isabelle JOUBERT | E27: =VLOOKUP(A27,Equipes!A:J,2,FALSE) -> M | F27: =ROUND(VLOOKUP(A27,Equipes!$A$2:$J$41,10,0),0) -> 50
A28: ='TEMPS-ponton'!A28 -> 24 | B28: ='TEMPS-ponton'!B28 -> MEULAN LES MUREAUX AMMH 1 | C28: ='TEMPS-ponton'!C28 -> AMMH1 | D28: ='TEMPS-ponton'!D28 -> Xavier MARSAIS-Eric PRENEY-Yannick DAGMEY-David COINE-Arthur VAN SLOOTEN | E28: =VLOOKUP(A28,Equipes!A:J,2,FALSE) -> H | F28: =ROUND(VLOOKUP(A28,Equipes!$A$2:$J$41,10,0),0) -> 53
A29: ='TEMPS-ponton'!A29 -> 25 | B29: ='TEMPS-ponton'!B29 -> VILLENNES - POISSY AC 2 | C29: ='TEMPS-ponton'!C29 -> ACVP2 | D29: ='TEMPS-ponton'!D29 -> Franck CARIOU-Michael LE BANNER-Valerie DECAESTECKER-Karine GUILBON-Christophe ELINE | E29: =VLOOKUP(A29,Equipes!A:J,2,FALSE) -> M | F29: =ROUND(VLOOKUP(A29,Equipes!$A$2:$J$41,10,0),0) -> 54
A30: ='TEMPS-ponton'!A30 -> 26 | B30: ='TEMPS-ponton'!B30 -> EVRY SCA 1 | C30: ='TEMPS-ponton'!C30 -> SCA 1 | D30: ='TEMPS-ponton'!D30 -> Anne CARDUNER-Olivia PEZZOLI-Bruno CASIMIR-Lionel BOISSONNAT-Kristell MAUCHET | E30: =VLOOKUP(A30,Equipes!A:J,2,FALSE) -> M | F30: =ROUND(VLOOKUP(A30,Equipes!$A$2:$J$41,10,0),0) -> 56
A31: ='TEMPS-ponton'!A31 -> 27 | B31: ='TEMPS-ponton'!B31 -> MEULAN LES MUREAUX AMMH 1 | C31: ='TEMPS-ponton'!C31 -> AMMH1 | D31: ='TEMPS-ponton'!D31 -> Gwenaelle MARSAIS-Sophie SEFFAR-Catherine MARTINIER-Christelle GOANVIC-Marie LAMORE | E31: =VLOOKUP(A31,Equipes!A:J,2,FALSE) -> F | F31: =ROUND(VLOOKUP(A31,Equipes!$A$2:$J$41,10,0),0) -> 47
A32: ='TEMPS-ponton'!A32 -> 28 | B32: ='TEMPS-ponton'!B32 -> VILLENNES - POISSY AC 1 | C32: ='TEMPS-ponton'!C32 -> ACVP1 | D32: ='TEMPS-ponton'!D32 -> Frederic LE ROUX-Corinne HUARD-ROLLAND-Elodie DEREMIENCE-Marie-Claude LAUNAY-Olivier COSNEAU | E32: =VLOOKUP(A32,Equipes!A:J,2,FALSE) -> M | F32: =ROUND(VLOOKUP(A32,Equipes!$A$2:$J$41,10,0),0) -> 53
A33: ='TEMPS-ponton'!A33 -> 29 | B33: ='TEMPS-ponton'!B33 -> FONTAINEBLEAU APF 1 | C33: ='TEMPS-ponton'!C33 -> APF1 | D33: ='TEMPS-ponton'!D33 -> Kathleen SANCHEZ-Laurent FOUQUE-Christian MESSALES-Denis FLORY-David WEBER | E33: =VLOOKUP(A33,Equipes!A:J,2,FALSE) -> H | F33: =ROUND(VLOOKUP(A33,Equipes!$A$2:$J$41,10,0),0) -> 57
A34: ='TEMPS-ponton'!A34 -> 30 | B34: ='TEMPS-ponton'!B34 -> JOINVILLE AMJ 1 | C34: ='TEMPS-ponton'!C34 -> AMJ1 | D34: ='TEMPS-ponton'!D34 -> Vincent FABIEN-Arnaud PUPPO-Jonathan ROOKE-Xavier SUCHET-Nicolas JAMAULT | E34: =VLOOKUP(A34,Equipes!A:J,2,FALSE) -> H | F34: =ROUND(VLOOKUP(A34,Equipes!$A$2:$J$41,10,0),0) -> 51
A35: ='TEMPS-ponton'!A35 -> 31 | B35: ='TEMPS-ponton'!B35 -> NOGENT SUR MARNE CN 3 | C35: ='TEMPS-ponton'!C35 -> CN3 | D35: ='TEMPS-ponton'!D35 -> Alexandra COHEN SALMON-Isabelle MILON-BANNEROT-Jerome TROMBOFSKY-Olivier PASCAL-Elisabeth LAUNAY | E35: =VLOOKUP(A35,Equipes!A:J,2,FALSE) -> M | F35: =ROUND(VLOOKUP(A35,Equipes!$A$2:$J$41,10,0),0) -> 53
A36: ='TEMPS-ponton'!A36 -> 32 | B36: ='TEMPS-ponton'!B36 -> BOULOGNE 92 1 | C36: ='TEMPS-ponton'!C36 -> ACBB1 | D36: ='TEMPS-ponton'!D36 -> Isabelle MAIRE-Théo BEL BERBEL- LURBE-Thã‰Odore SEDAROS-Omar OUAZZANI-Alexandra MENEZES | E36: =VLOOKUP(A36,Equipes!A:J,2,FALSE) -> H | F36: =ROUND(VLOOKUP(A36,Equipes!$A$2:$J$41,10,0),0) -> 43
A37: ='TEMPS-ponton'!A37 -> 33 | B37: ='TEMPS-ponton'!B37 -> XX | C37: ='TEMPS-ponton'!C37 -> XX | D37: ='TEMPS-ponton'!D37 -> XX-XX-XX-XX-XX | E37: =VLOOKUP(A37,Equipes!A:J,2,FALSE) -> X | F37: =ROUND(VLOOKUP(A37,Equipes!$A$2:$J$41,10,0),0) -> 0
A38: ='TEMPS-ponton'!A38 -> 34 | B38: ='TEMPS-ponton'!B38 -> XX | C38: ='TEMPS-ponton'!C38 -> XX | D38: ='TEMPS-ponton'!D38 -> XX-XX-XX-XX-XX | E38: =VLOOKUP(A38,Equipes!A:J,2,FALSE) -> X | F38: =ROUND(VLOOKUP(A38,Equipes!$A$2:$J$41,10,0),0) -> 0
A39: ='TEMPS-ponton'!A39 -> 35 | B39: ='TEMPS-ponton'!B39 -> XX | C39: ='TEMPS-ponton'!C39 -> XX | D39: ='TEMPS-ponton'!D39 -> XX-XX-XX-XX-XX | E39: =VLOOKUP(A39,Equipes!A:J,2,FALSE) -> X | F39: =ROUND(VLOOKUP(A39,Equipes!$A$2:$J$41,10,0),0) -> 0
A40: ='TEMPS-ponton'!A40 -> 36 | B40: ='TEMPS-ponton'!B40 -> XX | C40: ='TEMPS-ponton'!C40 -> XX | D40: ='TEMPS-ponton'!D40 -> XX-XX-XX-XX-XX | E40: =VLOOKUP(A40,Equipes!A:J,2,FALSE) -> X | F40: =ROUND(VLOOKUP(A40,Equipes!$A$2:$J$41,10,0),0) -> 0
A41: ='TEMPS-ponton'!A41 -> 37 | B41: ='TEMPS-ponton'!B41 -> XX | C41: ='TEMPS-ponton'!C41 -> XX | D41: ='TEMPS-ponton'!D41 -> XX-XX-XX-XX-XX | E41: =VLOOKUP(A41,Equipes!A:J,2,FALSE) -> X | F41: =ROUND(VLOOKUP(A41,Equipes!$A$2:$J$41,10,0),0) -> 0
A42: ='TEMPS-ponton'!A42 -> 38 | B42: ='TEMPS-ponton'!B42 -> XX | C42: ='TEMPS-ponton'!C42 -> XX | D42: ='TEMPS-ponton'!D42 -> XX-XX-XX-XX-XX | E42: =VLOOKUP(A42,Equipes!A:J,2,FALSE) -> X | F42: =ROUND(VLOOKUP(A42,Equipes!$A$2:$J$41,10,0),0) -> 0
A43: ='TEMPS-ponton'!A43 -> 39 | B43: ='TEMPS-ponton'!B43 -> XX | C43: ='TEMPS-ponton'!C43 -> XX | D43: ='TEMPS-ponton'!D43 -> XX-XX-XX-XX-XX | E43: =VLOOKUP(A43,Equipes!A:J,2,FALSE) -> X | F43: =ROUND(VLOOKUP(A43,Equipes!$A$2:$J$41,10,0),0) -> 0
A44: ='TEMPS-ponton'!A44 -> 40 | B44: ='TEMPS-ponton'!B44 -> XX | C44: ='TEMPS-ponton'!C44 -> XX | D44: ='TEMPS-ponton'!D44 -> XX-XX-XX-XX-XX | E44: =VLOOKUP(A44,Equipes!A:J,2,FALSE) -> X | F44: =ROUND(VLOOKUP(A44,Equipes!$A$2:$J$41,10,0),0) -> 0

Sheet penalités
A1: GRAND 8 | D1: ='Note explicative fichier'!E3 -> 2024-06-02 | G1: SLALOM 1 | J1: SLALOM 2 | M1: 00:03:00 | N1: = Refus de se laisser dépasser en zone non étroite = Dépassement ou arrêt en zône dangereuse et étroite
M2: 00:02:00 | N2: = Slalom incorrect, non respect du parcours imposé = Refus de priorité au bateau avalant, au bief Villennes/migneaux = changement de barreur hors zone
A3: Yolette N° | B3: Club | C3: Ville | D3: Equipage | E3: Cat. | F3: Age Moy. | G3: Temps Slalom-1 | H3: Pénalité | I3: Temps Final Slalom 1 | J3: Temps Slalom-2 | K3: Pénalité | L3: Temps Final Slalom 2 | M3: 00:05:00 | N3: = Changement de barreur non réalisé à mi-course, face au ponton = Slalom « raccourci »sans remontée du courant vers Paris = Couper les courbes sur la Seine
A4: ='TEMPS-ponton'!A4 -> Record | B4: ='TEMPS-ponton'!B4 -> POLYTECHNIQUE ( Référence 2012 ) | C4: ='TEMPS-ponton'!C4 -> Palaiseau | D4: ='TEMPS-ponton'!D4 -> FERRERO Michel - Alexandre Rosinski - BOYAUD Mathieu - GODDE Olivier - THECKES Benoit | M4: Total pénalités | N4: ponton | O4: Sécu1 | P4: Sécu2 | Q4: Sécu3 | R4: Sécu4 | S4: Sécu5 | T4: Sécu6
A5: ='TEMPS-ponton'!A5 -> 1 | B5: ='TEMPS-ponton'!B5 -> ANDRESY CA CONFLUENT 1 | C5: ='TEMPS-ponton'!C5 -> Cac1 | D5: ='TEMPS-ponton'!D5 -> Stephanie LAPORTE-Marine NACERI-Marc LACCASSAGNE-Stephane ZETTWOOG-Fouzia VOIRIN | E5: =VLOOKUP(A5,Equipes!A:J,2,FALSE) -> M | F5: =ROUND(VLOOKUP(A5,Equipes!$A$2:$J$41,10,0),0) -> 49 | G5: =IF('TEMPS-poissy'!H5>0,'TEMPS-poissy'!H5-'TEMPS-poissy'!G5,"") ->  | H5: ='TEMPS-poissy'!I5 -> 00:00:00 | I5: =IF('TEMPS-poissy'!H5>0,G5+H5,"99:99:99") -> 99:99:99 | J5: =IF('TEMPS-poissy'!K5>0,'TEMPS-poissy'!K5-'TEMPS-poissy'!J5,"") ->  | K5: ='TEMPS-poissy'!L5 -> 00:00:00 | L5: =IF('TEMPS-poissy'!K5>0,J5+K5,"99:99:99") -> 99:99:99 | M5: =SUM(N5:T5) -> 00:05:00 | N5: 00:00:00 | O5: 00:00:00 | P5: 00:00:00 | Q5: 00:05:00 | R5: 00:00:00 | S5: 00:00:00 | T5: 00:00:00
A6: ='TEMPS-ponton'!A6 -> 2 | B6: ='TEMPS-ponton'!B6 -> CAUDEBEC EN CAUX ACVS 1 | C6: ='TEMPS-ponton'!C6 -> Caudebec | D6: ='TEMPS-ponton'!D6 -> Martine NARBAIS-JAUREGUY-Caroline KERVRANN-Stephane DELAMARE-Nicolas BARRAY-Francois NARBAIS-JAUREGUY | E6: =VLOOKUP(A6,Equipes!A:J,2,FALSE) -> M | F6: =ROUND(VLOOKUP(A6,Equipes!$A$2:$J$41,10,0),0) -> 55 | G6: =IF('TEMPS-poissy'!H6>0,'TEMPS-poissy'!H6-'TEMPS-poissy'!G6,"") ->  | H6: ='TEMPS-poissy'!I6 -> 00:00:00 | I6: =IF('TEMPS-poissy'!H6>0,G6+H6,"99:99:99") -> 99:99:99 | J6: =IF('TEMPS-poissy'!K6>0,'TEMPS-poissy'!K6-'TEMPS-poissy'!J6,"") ->  | K6: ='TEMPS-poissy'!L6 -> 00:00:00 | L6: =IF('TEMPS-poissy'!K6>0,J6+K6,"99:99:99") -> 99:99:99 | M6: 00:00:00 | N6: 00:00:00 | O6: 00:00:00 | P6: 00:00:00 | Q6: 00:00:00 | R6: 00:00:00 | S6: 00:00:00 | T6: 00:00:00
A7: ='TEMPS-ponton'!A7 -> 3 | B7: ='TEMPS-ponton'!B7 -> ANDRESY CA CONFLUENT 2 | C7: ='TEMPS-ponton'!C7 -> CAC 2 | D7: ='TEMPS-ponton'!D7 -> Anna ALCALOIDEPOIXBLANC-Geoffrey GHIZZONI-Nathalie BOURGEOIS-Franck CHRISTIANNOT-NicOLAS delaunoy | E7: =VLOOKUP(A7,Equipes!A:J,2,FALSE) -> M | F7: =ROUND(VLOOKUP(A7,Equipes!$A$2:$J$41,10,0),0) -> 55 | G7: =IF('TEMPS-poissy'!H7>0,'TEMPS-poissy'!H7-'TEMPS-poissy'!G7,"") ->  | H7: ='TEMPS-poissy'!I7 -> 00:00:00 | I7: =IF('TEMPS-poissy'!H7>0,G7+H7,"99:99:99") -> 99:99:99 | J7: =IF('TEMPS-poissy'!K7>0,'TEMPS-poissy'!K7-'TEMPS-poissy'!J7,"") ->  | K7: ='TEMPS-poissy'!L7 -> 00:00:00 | L7: =IF('TEMPS-poissy'!K7>0,J7+K7,"99:99:99") -> 99:99:99 | M7: =SUM(N7:T7) -> 00:00:00 | N7: 00:00:00 | O7: 00:00:00 | P7: 00:00:00 | Q7: 00:00:00 | R7: 00:00:00 | S7: 00:00:00 | T7: 00:00:00
A8: ='TEMPS-ponton'!A8 -> 4 | B8: ='TEMPS-ponton'!B8 -> ANDRESY CA CONFLUENT 1 | C8: ='TEMPS-ponton'!C8 -> CAC3 | D8: ='TEMPS-ponton'!D8 -> Emmanuel SALIN-Ousseni PARKOUDA-Jean-Baptiste PROVENZANO-Jerome CLAVE-Julian GALLELA | E8: =VLOOKUP(A8,Equipes!A:J,2,FALSE) -> H | F8: =ROUND(VLOOKUP(A8,Equipes!$A$2:$J$41,10,0),0) -> 46 | G8: =IF('TEMPS-poissy'!H8>0,'TEMPS-poissy'!H8-'TEMPS-poissy'!G8,"") ->  | H8: ='TEMPS-poissy'!I8 -> 00:00:00 | I8: =IF('TEMPS-poissy'!H8>0,G8+H8,"99:99:99") -> 99:99:99 | J8: =IF('TEMPS-poissy'!K8>0,'TEMPS-poissy'!K8-'TEMPS-poissy'!J8,"") ->  | K8: ='TEMPS-poissy'!L8 -> 00:00:00 | L8: =IF('TEMPS-poissy'!K8>0,J8+K8,"99:99:99") -> 99:99:99 | M8: 00:00:00 | N8: 00:00:00 | O8: 00:00:00 | P8: 00:00:00 | Q8: 00:00:00 | R8: 00:00:00 | S8: 00:00:00 | T8: 00:00:00
A9: ='TEMPS-ponton'!A9 -> 5 | B9: ='TEMPS-ponton'!B9 -> PORT-MARLY RC 1 | C9: ='TEMPS-ponton'!C9 -> RCPM | D9: ='TEMPS-ponton'!D9 -> Claudie BODIN-Fanny LAMOUR-Etienne DUPUIS-Jeancharles FAUCHEUX-Gildas KETTANJIAN | E9: =VLOOKUP(A9,Equipes!A:J,2,FALSE) -> M | F9: =ROUND(VLOOKUP(A9,Equipes!$A$2:$J$41,10,0),0) -> 50 | G9: =IF('TEMPS-poissy'!H9>0,'TEMPS-poissy'!H9-'TEMPS-poissy'!G9,"") ->  | H9: ='TEMPS-poissy'!I9 -> 00:00:00 | I9: =IF('TEMPS-poissy'!H9>0,G9+H9,"99:99:99") -> 99:99:99 | J9: =IF('TEMPS-poissy'!K9>0,'TEMPS-poissy'!K9-'TEMPS-poissy'!J9,"") ->  | K9: ='TEMPS-poissy'!L9 -> 00:00:00 | L9: =IF('TEMPS-poissy'!K9>0,J9+K9,"99:99:99") -> 99:99:99 | M9: 00:00:00 | N9: 00:00:00 | O9: 00:00:00 | P9: 00:00:00 | Q9: 00:00:00 | R9: 00:00:00 | S9: 00:00:00 | T9: 00:00:00
A10: ='TEMPS-ponton'!A10 -> 6 | B10: ='TEMPS-ponton'!B10 -> BOULOGNE 92 2 | C10: ='TEMPS-ponton'!C10 -> ACBB | D10: ='TEMPS-ponton'!D10 -> CéLia ROUSSELLE-Marie Pierre MARSALLON GAMBY-Françis ROBIN-Nicolas LECOEUR-Theodora XENOGIANI | E10: =VLOOKUP(A10,Equipes!A:J,2,FALSE) -> M | F10: =ROUND(VLOOKUP(A10,Equipes!$A$2:$J$41,10,0),0) -> 46 | G10: =IF('TEMPS-poissy'!H10>0,'TEMPS-poissy'!H10-'TEMPS-poissy'!G10,"") ->  | H10: ='TEMPS-poissy'!I10 -> 00:00:00 | I10: =IF('TEMPS-poissy'!H10>0,G10+H10,"99:99:99") -> 99:99:99 | J10: =IF('TEMPS-poissy'!K10>0,'TEMPS-poissy'!K10-'TEMPS-poissy'!J10,"") ->  | K10: ='TEMPS-poissy'!L10 -> 00:00:00 | L10: =IF('TEMPS-poissy'!K10>0,J10+K10,"99:99:99") -> 99:99:99 | M10: 00:00:00 | N10: 00:00:00 | O10: 00:00:00 | P10: 00:00:00 | Q10: 00:00:00 | R10: 00:00:00 | S10: 00:00:00 | T10: 00:00:00
A11: ='TEMPS-ponton'!A11 -> 7 | B11: ='TEMPS-ponton'!B11 -> VILLENNES - POISSY AC 3 | C11: ='TEMPS-ponton'!C11 -> ACVP | D11: ='TEMPS-ponton'!D11 -> Virginie ALEXANDRE-Jihad LEMARQRI-Cyrille BRUZON-BASCOU-Sebastien CARPENTIER-Marie Estelle D'ARBAUMONT | E11: =VLOOKUP(A11,Equipes!A:J,2,FALSE) -> M | F11: =ROUND(VLOOKUP(A11,Equipes!$A$2:$J$41,10,0),0) -> 49 | G11: =IF('TEMPS-poissy'!H11>0,'TEMPS-poissy'!H11-'TEMPS-poissy'!G11,"") ->  | H11: ='TEMPS-poissy'!I11 -> 00:00:00 | I11: =IF('TEMPS-poissy'!H11>0,G11+H11,"99:99:99") -> 99:99:99 | J11: =IF('TEMPS-poissy'!K11>0,'TEMPS-poissy'!K11-'TEMPS-poissy'!J11,"") ->  | K11: ='TEMPS-poissy'!L11 -> 00:00:00 | L11: =IF('TEMPS-poissy'!K11>0,J11+K11,"99:99:99") -> 99:99:99 | M11: 00:00:00 | N11: 00:00:00 | O11: 00:00:00 | P11: 00:00:00 | Q11: 00:00:00 | R11: 00:00:00 | S11: 00:00:00 | T11: 00:00:00
A12: ='TEMPS-ponton'!A12 -> 8 | B12: ='TEMPS-ponton'!B12 -> JOINVILLE AMJ 1 | C12: ='TEMPS-ponton'!C12 -> Joinville | D12: ='TEMPS-ponton'!D12 -> Laurent BAUDOIN-Raphaelle BOUVIER FLORY-Sophie BUSTOS-Kastriot JAKA-Thomas AUGER | E12: =VLOOKUP(A12,Equipes!A:J,2,FALSE) -> M | F12: =ROUND(VLOOKUP(A12,Equipes!$A$2:$J$41,10,0),0) -> 46 | G12: =IF('TEMPS-poissy'!H12>0,'TEMPS-poissy'!H12-'TEMPS-poissy'!G12,"") ->  | H12: ='TEMPS-poissy'!I12 -> 00:00:00 | I12: =IF('TEMPS-poissy'!H12>0,G12+H12,"99:99:99") -> 99:99:99 | J12: =IF('TEMPS-poissy'!K12>0,'TEMPS-poissy'!K12-'TEMPS-poissy'!J12,"") ->  | K12: ='TEMPS-poissy'!L12 -> 00:00:00 | L12: =IF('TEMPS-poissy'!K12>0,J12+K12,"99:99:99") -> 99:99:99 | M12: 00:00:00 | N12: 00:00:00 | O12: 00:00:00 | P12: 00:00:00 | Q12: 00:00:00 | R12: 00:00:00 | S12: 00:00:00 | T12: 00:00:00
A13: ='TEMPS-ponton'!A13 -> 9 | B13: ='TEMPS-ponton'!B13 -> NOGENT SUR MARNE CN 1 | C13: ='TEMPS-ponton'!C13 -> CN 1 | D13: ='TEMPS-ponton'!D13 -> Chrystelle SUPIOT-Caroline PIEDNOIRE-Olivier MUCIGNAT-Andre SIMONNET-Fabienne LORTIE | E13: =VLOOKUP(A13,Equipes!A:J,2,FALSE) -> M | F13: =ROUND(VLOOKUP(A13,Equipes!$A$2:$J$41,10,0),0) -> 53 | G13: =IF('TEMPS-poissy'!H13>0,'TEMPS-poissy'!H13-'TEMPS-poissy'!G13,"") ->  | H13: ='TEMPS-poissy'!I13 -> 00:00:00 | I13: =IF('TEMPS-poissy'!H13>0,G13+H13,"99:99:99") -> 99:99:99 | J13: =IF('TEMPS-poissy'!K13>0,'TEMPS-poissy'!K13-'TEMPS-poissy'!J13,"") ->  | K13: ='TEMPS-poissy'!L13 -> 00:00:00 | L13: =IF('TEMPS-poissy'!K13>0,J13+K13,"99:99:99") -> 99:99:99 | M13: =SUM(N13:T13) -> 00:00:00 | N13: 00:00:00 | O13: 00:00:00 | P13: 00:00:00 | Q13: 00:00:00 | R13: 00:00:00 | S13: 00:00:00 | T13: 00:00:00
A14: ='TEMPS-ponton'!A14 -> 10 | B14: ='TEMPS-ponton'!B14 -> NOGENT SUR MARNE CN 2 | C14: ='TEMPS-ponton'!C14 -> CN2 | D14: ='TEMPS-ponton'!D14 -> Christophe RUCKEBUSCH-Nicolas BURCKHART-Alice GHEERBRANT-Aurelie DONVAL-Gerard LECA | E14: =VLOOKUP(A14,Equipes!A:J,2,FALSE) -> M | F14: =ROUND(VLOOKUP(A14,Equipes!$A$2:$J$41,10,0),0) -> 53 | G14: =IF('TEMPS-poissy'!H14>0,'TEMPS-poissy'!H14-'TEMPS-poissy'!G14,"") ->  | H14: ='TEMPS-poissy'!I14 -> 00:00:00 | I14: =IF('TEMPS-poissy'!H14>0,G14+H14,"99:99:99") -> 99:99:99 | J14: =IF('TEMPS-poissy'!K14>0,'TEMPS-poissy'!K14-'TEMPS-poissy'!J14,"") ->  | K14: ='TEMPS-poissy'!L14 -> 00:00:00 | L14: =IF('TEMPS-poissy'!K14>0,J14+K14,"99:99:99") -> 99:99:99 | M14: 00:00:00 | N14: 00:00:00 | O14: 00:00:00 | P14: 00:00:00 | Q14: 00:00:00 | R14: 00:00:00 | S14: 00:00:00 | T14: 00:00:00
A15: ='TEMPS-ponton'!A15 -> 11 | B15: ='TEMPS-ponton'!B15 -> BOULOGNE 92 1 | C15: ='TEMPS-ponton'!C15 -> ACBB | D15: ='TEMPS-ponton'!D15 -> Viviane BALLOY-Timothé BAZIRIES-Alexandre LE FUR-Sigrid PABST-Michel VEDRINE | E15: =VLOOKUP(A15,Equipes!A:J,2,FALSE) -> H | F15: =ROUND(VLOOKUP(A15,Equipes!$A$2:$J$41,10,0),0) -> 51 | G15: =IF('TEMPS-poissy'!H15>0,'TEMPS-poissy'!H15-'TEMPS-poissy'!G15,"") ->  | H15: ='TEMPS-poissy'!I15 -> 00:00:00 | I15: =IF('TEMPS-poissy'!H15>0,G15+H15,"99:99:99") -> 99:99:99 | J15: =IF('TEMPS-poissy'!K15>0,'TEMPS-poissy'!K15-'TEMPS-poissy'!J15,"") ->  | K15: ='TEMPS-poissy'!L15 -> 00:00:00 | L15: =IF('TEMPS-poissy'!K15>0,J15+K15,"99:99:99") -> 99:99:99 | M15: 00:00:00 | N15: 00:00:00 | O15: 00:00:00 | P15: 00:00:00 | Q15: 00:00:00 | R15: 00:00:00 | S15: 00:00:00 | T15: 00:00:00
A16: ='TEMPS-ponton'!A16 -> 12 | B16: ='TEMPS-ponton'!B16 -> EVRY SCA 2 | C16: ='TEMPS-ponton'!C16 -> SCA2 | D16: ='TEMPS-ponton'!D16 -> Laurent YEBOAH-Isabelle MOISSET FLEURISSON-Frederic DUCAUQUY-Sandrine GARCIA-Christelle MARTIN | E16: =VLOOKUP(A16,Equipes!A:J,2,FALSE) -> M | F16: =ROUND(VLOOKUP(A16,Equipes!$A$2:$J$41,10,0),0) -> 48 | G16: =IF('TEMPS-poissy'!H16>0,'TEMPS-poissy'!H16-'TEMPS-poissy'!G16,"") ->  | H16: ='TEMPS-poissy'!I16 -> 00:00:00 | I16: =IF('TEMPS-poissy'!H16>0,G16+H16,"99:99:99") -> 99:99:99 | J16: =IF('TEMPS-poissy'!K16>0,'TEMPS-poissy'!K16-'TEMPS-poissy'!J16,"") ->  | K16: ='TEMPS-poissy'!L16 -> 00:00:00 | L16: =IF('TEMPS-poissy'!K16>0,J16+K16,"99:99:99") -> 99:99:99 | M16: 00:05:00 | N16: 00:05:00 | O16: 00:00:00 | P16: 00:00:00 | Q16: 00:00:00 | R16: 00:00:00 | S16: 00:00:00 | T16: 00:00:00
A17: ='TEMPS-ponton'!A17 -> 13 | B17: ='TEMPS-ponton'!B17 -> PORT-MARLY RC 2 | C17: ='TEMPS-ponton'!C17 -> RCPM2 | D17: ='TEMPS-ponton'!D17 -> Elsa CROZATIER-Cyrielle BERTHIER-Hervé Valette-Eric MOINARD-Anais FEUGA | E17: =VLOOKUP(A17,Equipes!A:J,2,FALSE) -> M | F17: =ROUND(VLOOKUP(A17,Equipes!$A$2:$J$41,10,0),0) -> 47 | G17: =IF('TEMPS-poissy'!H17>0,'TEMPS-poissy'!H17-'TEMPS-poissy'!G17,"") ->  | H17: ='TEMPS-poissy'!I17 -> 00:00:00 | I17: =IF('TEMPS-poissy'!H17>0,G17+H17,"99:99:99") -> 99:99:99 | J17: =IF('TEMPS-poissy'!K17>0,'TEMPS-poissy'!K17-'TEMPS-poissy'!J17,"") ->  | K17: ='TEMPS-poissy'!L17 -> 00:00:00 | L17: =IF('TEMPS-poissy'!K17>0,J17+K17,"99:99:99") -> 99:99:99 | M17: 00:05:00 | N17: 00:05:00 | O17: 00:00:00 | P17: 00:00:00 | Q17: 00:00:00 | R17: 00:00:00 | S17: 00:00:00 | T17: 00:00:00
A18: ='TEMPS-ponton'!A18 -> 14 | B18: ='TEMPS-ponton'!B18 -> MAISONS MESNIL CERAMM 1 | C18: ='TEMPS-ponton'!C18 -> CERAMM1 | D18: ='TEMPS-ponton'!D18 -> Nicolas SCHMITT-Gloria VENDRELL-Christine MARIE LAVAUD-Amaury DE LA LAURENCIE-Amina ELABBADI | E18: =VLOOKUP(A18,Equipes!A:J,2,FALSE) -> M | F18: =ROUND(VLOOKUP(A18,Equipes!$A$2:$J$41,10,0),0) -> 50 | G18: =IF('TEMPS-poissy'!H18>0,'TEMPS-poissy'!H18-'TEMPS-poissy'!G18,"") ->  | H18: ='TEMPS-poissy'!I18 -> 00:00:00 | I18: =IF('TEMPS-poissy'!H18>0,G18+H18,"99:99:99") -> 99:99:99 | J18: =IF('TEMPS-poissy'!K18>0,'TEMPS-poissy'!K18-'TEMPS-poissy'!J18,"") ->  | K18: ='TEMPS-poissy'!L18 -> 00:00:00 | L18: =IF('TEMPS-poissy'!K18>0,J18+K18,"99:99:99") -> 99:99:99 | M18: 00:00:00 | N18: 00:00:00 | O18: 00:00:00 | P18: 00:00:00 | Q18: 00:00:00 | R18: 00:00:00 | S18: 00:00:00 | T18: 00:00:00
A19: ='TEMPS-ponton'!A19 -> 15 | B19: ='TEMPS-ponton'!B19 -> SOISY SUR SEINE CN 1 | C19: ='TEMPS-ponton'!C19 -> CN1 | D19: ='TEMPS-ponton'!D19 -> Bertrand PIOGER-Bruno PERIQUOI-Servane BERTRAND-Alain BERNARD-Robert TRAUET | E19: =VLOOKUP(A19,Equipes!A:J,2,FALSE) -> H | F19: =ROUND(VLOOKUP(A19,Equipes!$A$2:$J$41,10,0),0) -> 54 | G19: =IF('TEMPS-poissy'!H19>0,'TEMPS-poissy'!H19-'TEMPS-poissy'!G19,"") ->  | H19: ='TEMPS-poissy'!I19 -> 00:00:00 | I19: =IF('TEMPS-poissy'!H19>0,G19+H19,"99:99:99") -> 99:99:99 | J19: =IF('TEMPS-poissy'!K19>0,'TEMPS-poissy'!K19-'TEMPS-poissy'!J19,"") ->  | K19: ='TEMPS-poissy'!L19 -> 00:00:00 | L19: =IF('TEMPS-poissy'!K19>0,J19+K19,"99:99:99") -> 99:99:99 | M19: 00:05:00 | N19: 00:00:00 | O19: 00:00:00 | P19: 00:00:00 | Q19: 00:05:00 | R19: 00:00:00 | S19: 00:00:00 | T19: 00:00:00
A20: ='TEMPS-ponton'!A20 -> 16 | B20: ='TEMPS-ponton'!B20 -> PORT-MARLY RC 1 | C20: ='TEMPS-ponton'!C20 -> RCPM1 | D20: ='TEMPS-ponton'!D20 -> Jean-Claude LAFOREST-David CHARTIER-Christophe MARCAIS-Vincent BONTOUX-Alain ROUSSEAU | E20: =VLOOKUP(A20,Equipes!A:J,2,FALSE) -> H | F20: =ROUND(VLOOKUP(A20,Equipes!$A$2:$J$41,10,0),0) -> 55 | G20: =IF('TEMPS-poissy'!H20>0,'TEMPS-poissy'!H20-'TEMPS-poissy'!G20,"") ->  | H20: ='TEMPS-poissy'!I20 -> 00:00:00 | I20: =IF('TEMPS-poissy'!H20>0,G20+H20,"99:99:99") -> 99:99:99 | J20: =IF('TEMPS-poissy'!K20>0,'TEMPS-poissy'!K20-'TEMPS-poissy'!J20,"") ->  | K20: ='TEMPS-poissy'!L20 -> 00:00:00 | L20: =IF('TEMPS-poissy'!K20>0,J20+K20,"99:99:99") -> 99:99:99 | M20: 00:05:00 | N20: 00:00:00 | O20: 00:00:00 | P20: 00:00:00 | Q20: 00:05:00 | R20: 00:00:00 | S20: 00:00:00 | T20: 00:00:00
A21: ='TEMPS-ponton'!A21 -> 17 | B21: ='TEMPS-ponton'!B21 -> ANDRESY CA CONFLUENT 1 | C21: ='TEMPS-ponton'!C21 -> CAC1 | D21: ='TEMPS-ponton'!D21 -> Daphne PARIZOT-Agnes BURGHGRAEVE SELLEN-Sylvie FRANSSEN-Severine LEGAILLARD-Martine LE ROUX | E21: =VLOOKUP(A21,Equipes!A:J,2,FALSE) -> F | F21: =ROUND(VLOOKUP(A21,Equipes!$A$2:$J$41,10,0),0) -> 55 | G21: =IF('TEMPS-poissy'!H21>0,'TEMPS-poissy'!H21-'TEMPS-poissy'!G21,"") ->  | H21: ='TEMPS-poissy'!I21 -> 00:00:00 | I21: =IF('TEMPS-poissy'!H21>0,G21+H21,"99:99:99") -> 99:99:99 | J21: =IF('TEMPS-poissy'!K21>0,'TEMPS-poissy'!K21-'TEMPS-poissy'!J21,"") ->  | K21: ='TEMPS-poissy'!L21 -> 00:00:00 | L21: =IF('TEMPS-poissy'!K21>0,J21+K21,"99:99:99") -> 99:99:99 | M21: =SUM(N21:T21) -> 00:00:00 | N21: 00:00:00 | O21: 00:00:00 | P21: 00:00:00 | Q21: 00:00:00 | R21: 00:00:00 | S21: 00:00:00 | T21: 00:00:00
A22: ='TEMPS-ponton'!A22 -> 18 | B22: ='TEMPS-ponton'!B22 -> MAISONS MESNIL CERAMM 2 | C22: ='TEMPS-ponton'!C22 -> CERAMM2 | D22: ='TEMPS-ponton'!D22 -> Claude LEMENAGER-Didier GIRARDEAU-Laurent LIBOTTE-Alain GIRARD-Cecile JEAMMES | E22: =VLOOKUP(A22,Equipes!A:J,2,FALSE) -> H | F22: =ROUND(VLOOKUP(A22,Equipes!$A$2:$J$41,10,0),0) -> 58 | G22: =IF('TEMPS-poissy'!H22>0,'TEMPS-poissy'!H22-'TEMPS-poissy'!G22,"") ->  | H22: ='TEMPS-poissy'!I22 -> 00:00:00 | I22: =IF('TEMPS-poissy'!H22>0,G22+H22,"99:99:99") -> 99:99:99 | J22: =IF('TEMPS-poissy'!K22>0,'TEMPS-poissy'!K22-'TEMPS-poissy'!J22,"") ->  | K22: ='TEMPS-poissy'!L22 -> 00:00:00 | L22: =IF('TEMPS-poissy'!K22>0,J22+K22,"99:99:99") -> 99:99:99 | M22: 00:00:00 | N22: 00:00:00 | O22: 00:00:00 | P22: 00:00:00 | Q22: 00:00:00 | R22: 00:00:00 | S22: 00:00:00 | T22: 00:00:00
A23: ='TEMPS-ponton'!A23 -> 19 | B23: ='TEMPS-ponton'!B23 -> VILLENNES - POISSY AC 1 | C23: ='TEMPS-ponton'!C23 -> ACVP1 | D23: ='TEMPS-ponton'!D23 -> Olivier POLGE-Odile POLGE-Laurent BONHOMMET-Antoine VOLPI-Philippe STROHM | E23: =VLOOKUP(A23,Equipes!A:J,2,FALSE) -> H | F23: =ROUND(VLOOKUP(A23,Equipes!$A$2:$J$41,10,0),0) -> 55 | G23: =IF('TEMPS-poissy'!H23>0,'TEMPS-poissy'!H23-'TEMPS-poissy'!G23,"") ->  | H23: ='TEMPS-poissy'!I23 -> 00:00:00 | I23: =IF('TEMPS-poissy'!H23>0,G23+H23,"99:99:99") -> 99:99:99 | J23: =IF('TEMPS-poissy'!K23>0,'TEMPS-poissy'!K23-'TEMPS-poissy'!J23,"") ->  | K23: ='TEMPS-poissy'!L23 -> 00:00:00 | L23: =IF('TEMPS-poissy'!K23>0,J23+K23,"99:99:99") -> 99:99:99 | M23: 00:00:00 | N23: 00:00:00 | O23: 00:00:00 | P23: 00:00:00 | Q23: 00:00:00 | R23: 00:00:00 | S23: 00:00:00 | T23: 00:00:00
A24: ='TEMPS-ponton'!A24 -> 20 | B24: ='TEMPS-ponton'!B24 -> ROUEN CNAR 1 | C24: ='TEMPS-ponton'!C24 -> CNAR1 | D24: ='TEMPS-ponton'!D24 -> Nathalie MOUSSET-Francois LAIR-Betty GESLAIN-Thierry DUCHESNE-Stephane MOUSSET | E24: =VLOOKUP(A24,Equipes!A:J,2,FALSE) -> M | F24: =ROUND(VLOOKUP(A24,Equipes!$A$2:$J$41,10,0),0) -> 55 | G24: =IF('TEMPS-poissy'!H24>0,'TEMPS-poissy'!H24-'TEMPS-poissy'!G24,"") ->  | H24: ='TEMPS-poissy'!I24 -> 00:00:00 | I24: =IF('TEMPS-poissy'!H24>0,G24+H24,"99:99:99") -> 99:99:99 | J24: =IF('TEMPS-poissy'!K24>0,'TEMPS-poissy'!K24-'TEMPS-poissy'!J24,"") ->  | K24: ='TEMPS-poissy'!L24 -> 00:00:00 | L24: =IF('TEMPS-poissy'!K24>0,J24+K24,"99:99:99") -> 99:99:99 | M24: =SUM(N24:T24) -> 00:00:00 | N24: 00:00:00 | O24: 00:00:00 | P24: 00:00:00 | Q24: 00:00:00 | R24: 00:00:00 | S24: 00:00:00 | T24: 00:00:00
A25: ='TEMPS-ponton'!A25 -> 21 | B25: ='TEMPS-ponton'!B25 -> PORT-MARLY RC 2 | C25: ='TEMPS-ponton'!C25 -> RCPM2 | D25: ='TEMPS-ponton'!D25 -> Guillaume CHARRON-Philippe VERHE-Stephan REYNIER-Dominique LEROUX-Luciano AUTUNNALE | E25: =VLOOKUP(A25,Equipes!A:J,2,FALSE) -> H | F25: =ROUND(VLOOKUP(A25,Equipes!$A$2:$J$41,10,0),0) -> 51 | G25: =IF('TEMPS-poissy'!H25>0,'TEMPS-poissy'!H25-'TEMPS-poissy'!G25,"") ->  | H25: ='TEMPS-poissy'!I25 -> 00:00:00 | I25: =IF('TEMPS-poissy'!H25>0,G25+H25,"99:99:99") -> 99:99:99 | J25: =IF('TEMPS-poissy'!K25>0,'TEMPS-poissy'!K25-'TEMPS-poissy'!J25,"") ->  | K25: ='TEMPS-poissy'!L25 -> 00:00:00 | L25: =IF('TEMPS-poissy'!K25>0,J25+K25,"99:99:99") -> 99:99:99 | M25: 00:00:00 | N25: 00:00:00 | O25: 00:00:00 | P25: 00:00:00 | Q25: 00:00:00 | R25: 00:00:00 | S25: 00:00:00 | T25: 00:00:00
A26: ='TEMPS-ponton'!A26 -> 22 | B26: ='TEMPS-ponton'!B26 -> COUDRAY MONTCEAUX A 1 | C26: ='TEMPS-ponton'!C26 -> coudray1 | D26: ='TEMPS-ponton'!D26 -> Joseph RAYNAUD-Frederic MORAT-Benjamin HOUILLON-Pascal BEAUSSART-Anne HOUAL | E26: =VLOOKUP(A26,Equipes!A:J,2,FALSE) -> H | F26: =ROUND(VLOOKUP(A26,Equipes!$A$2:$J$41,10,0),0) -> 52 | G26: =IF('TEMPS-poissy'!H26>0,'TEMPS-poissy'!H26-'TEMPS-poissy'!G26,"") ->  | H26: ='TEMPS-poissy'!I26 -> 00:00:00 | I26: =IF('TEMPS-poissy'!H26>0,G26+H26,"99:99:99") -> 99:99:99 | J26: =IF('TEMPS-poissy'!K26>0,'TEMPS-poissy'!K26-'TEMPS-poissy'!J26,"") ->  | K26: ='TEMPS-poissy'!L26 -> 00:00:00 | L26: =IF('TEMPS-poissy'!K26>0,J26+K26,"99:99:99") -> 99:99:99 | M26: 00:00:00 | N26: 00:00:00 | O26: 00:00:00 | P26: 00:00:00 | Q26: 00:00:00 | R26: 00:00:00 | S26: 00:00:00 | T26: 00:00:00
A27: ='TEMPS-ponton'!A27 -> 23 | B27: ='TEMPS-ponton'!B27 -> SN OISE 1 | C27: ='TEMPS-ponton'!C27 -> SN Oise 1 | D27: ='TEMPS-ponton'!D27 -> Agnes AUDEBERT-Nicolas RAUCH-Jerome ROUGE-Nathalie BAUDIER-Isabelle JOUBERT | E27: =VLOOKUP(A27,Equipes!A:J,2,FALSE) -> M | F27: =ROUND(VLOOKUP(A27,Equipes!$A$2:$J$41,10,0),0) -> 50 | G27: =IF('TEMPS-poissy'!H27>0,'TEMPS-poissy'!H27-'TEMPS-poissy'!G27,"") ->  | H27: ='TEMPS-poissy'!I27 -> 00:00:00 | I27: =IF('TEMPS-poissy'!H27>0,G27+H27,"99:99:99") -> 99:99:99 | J27: =IF('TEMPS-poissy'!K27>0,'TEMPS-poissy'!K27-'TEMPS-poissy'!J27,"") ->  | K27: ='TEMPS-poissy'!L27 -> 00:00:00 | L27: =IF('TEMPS-poissy'!K27>0,J27+K27,"99:99:99") -> 99:99:99 | M27: 00:00:00 | N27: 00:00:00 | O27: 00:00:00 | P27: 00:00:00 | Q27: 00:00:00 | R27: 00:00:00 | S27: 00:00:00 | T27: 00:00:00
A28: ='TEMPS-ponton'!A28 -> 24 | B28: ='TEMPS-ponton'!B28 -> MEULAN LES MUREAUX AMMH 1 | C28: ='TEMPS-ponton'!C28 -> AMMH1 | D28: ='TEMPS-ponton'!D28 -> Xavier MARSAIS-Eric PRENEY-Yannick DAGMEY-David COINE-Arthur VAN SLOOTEN | E28: =VLOOKUP(A28,Equipes!A:J,2,FALSE) -> H | F28: =ROUND(VLOOKUP(A28,Equipes!$A$2:$J$41,10,0),0) -> 53 | G28: =IF('TEMPS-poissy'!H28>0,'TEMPS-poissy'!H28-'TEMPS-poissy'!G28,"") ->  | H28: ='TEMPS-poissy'!I28 -> 00:00:00 | I28: =IF('TEMPS-poissy'!H28>0,G28+H28,"99:99:99") -> 99:99:99 | J28: =IF('TEMPS-poissy'!K28>0,'TEMPS-poissy'!K28-'TEMPS-poissy'!J28,"") ->  | K28: ='TEMPS-poissy'!L28 -> 00:00:00 | L28: =IF('TEMPS-poissy'!K28>0,J28+K28,"99:99:99") -> 99:99:99 | M28: 00:00:00 | N28: 00:00:00 | O28: 00:00:00 | P28: 00:00:00 | Q28: 00:00:00 | R28: 00:00:00 | S28: 00:00:00 | T28: 00:00:00
A29: ='TEMPS-ponton'!A29 -> 25 | B29: ='TEMPS-ponton'!B29 -> VILLENNES - POISSY AC 2 | C29: ='TEMPS-ponton'!C29 -> ACVP2 | D29: ='TEMPS-ponton'!D29 -> Franck CARIOU-Michael LE BANNER-Valerie DECAESTECKER-Karine GUILBON-Christophe ELINE | E29: =VLOOKUP(A29,Equipes!A:J,2,FALSE) -> M | F29: =ROUND(VLOOKUP(A29,Equipes!$A$2:$J$41,10,0),0) -> 54 | G29: =IF('TEMPS-poissy'!H29>0,'TEMPS-poissy'!H29-'TEMPS-poissy'!G29,"") ->  | H29: ='TEMPS-poissy'!I29 -> 00:00:00 | I29: =IF('TEMPS-poissy'!H29>0,G29+H29,"99:99:99") -> 99:99:99 | J29: =IF('TEMPS-poissy'!K29>0,'TEMPS-poissy'!K29-'TEMPS-poissy'!J29,"") ->  | K29: ='TEMPS-poissy'!L29 -> 00:00:00 | L29: =IF('TEMPS-poissy'!K29>0,J29+K29,"99:99:99") -> 99:99:99 | M29: 00:00:00 | N29: 00:00:00 | O29: 00:00:00 | P29: 00:00:00 | Q29: 00:00:00 | R29: 00:00:00 | S29: 00:00:00 | T29: 00:00:00
A30: ='TEMPS-ponton'!A30 -> 26 | B30: ='TEMPS-ponton'!B30 -> EVRY SCA 1 | C30: ='TEMPS-ponton'!C30 -> SCA 1 | D30: ='TEMPS-ponton'!D30 -> Anne CARDUNER-Olivia PEZZOLI-Bruno CASIMIR-Lionel BOISSONNAT-Kristell MAUCHET | E30: =VLOOKUP(A30,Equipes!A:J,2,FALSE) -> M | F30: =ROUND(VLOOKUP(A30,Equipes!$A$2:$J$41,10,0),0) -> 56 | G30: =IF('TEMPS-poissy'!H30>0,'TEMPS-poissy'!H30-'TEMPS-poissy'!G30,"") ->  | H30: ='TEMPS-poissy'!I30 -> 00:00:00 | I30: =IF('TEMPS-poissy'!H30>0,G30+H30,"99:99:99") -> 99:99:99 | J30: =IF('TEMPS-poissy'!K30>0,'TEMPS-poissy'!K30-'TEMPS-poissy'!J30,"") ->  | K30: ='TEMPS-poissy'!L30 -> 00:00:00 | L30: =IF('TEMPS-poissy'!K30>0,J30+K30,"99:99:99") -> 99:99:99 | M30: 00:00:00 | N30: 00:00:00 | O30: 00:00:00 | P30: 00:00:00 | Q30: 00:00:00 | R30: 00:00:00 | S30: 00:00:00 | T30: 00:00:00
A31: ='TEMPS-ponton'!A31 -> 27 | B31: ='TEMPS-ponton'!B31 -> MEULAN LES MUREAUX AMMH 1 | C31: ='TEMPS-ponton'!C31 -> AMMH1 | D31: ='TEMPS-ponton'!D31 -> Gwenaelle MARSAIS-Sophie SEFFAR-Catherine MARTINIER-Christelle GOANVIC-Marie LAMORE | E31: =VLOOKUP(A31,Equipes!A:J,2,FALSE) -> F | F31: =ROUND(VLOOKUP(A31,Equipes!$A$2:$J$41,10,0),0) -> 47 | G31: =IF('TEMPS-poissy'!H31>0,'TEMPS-poissy'!H31-'TEMPS-poissy'!G31,"") ->  | H31: ='TEMPS-poissy'!I31 -> 00:00:00 | I31: =IF('TEMPS-poissy'!H31>0,G31+H31,"99:99:99") -> 99:99:99 | J31: =IF('TEMPS-poissy'!K31>0,'TEMPS-poissy'!K31-'TEMPS-poissy'!J31,"") ->  | K31: ='TEMPS-poissy'!L31 -> 00:00:00 | L31: =IF('TEMPS-poissy'!K31>0,J31+K31,"99:99:99") -> 99:99:99 | M31: 00:00:00 | N31: 00:00:00 | O31: 00:00:00 | P31: 00:00:00 | Q31: 00:00:00 | R31: 00:00:00 | S31: 00:00:00 | T31: 00:00:00
A32: ='TEMPS-ponton'!A32 -> 28 | B32: ='TEMPS-ponton'!B32 -> VILLENNES - POISSY AC 1 | C32: ='TEMPS-ponton'!C32 -> ACVP1 | D32: ='TEMPS-ponton'!D32 -> Frederic LE ROUX-Corinne HUARD-ROLLAND-Elodie DEREMIENCE-Marie-Claude LAUNAY-Olivier COSNEAU | E32: =VLOOKUP(A32,Equipes!A:J,2,FALSE) -> M | F32: =ROUND(VLOOKUP(A32,Equipes!$A$2:$J$41,10,0),0) -> 53 | G32: =IF('TEMPS-poissy'!H32>0,'TEMPS-poissy'!H32-'TEMPS-poissy'!G32,"") ->  | H32: ='TEMPS-poissy'!I32 -> 00:00:00 | I32: =IF('TEMPS-poissy'!H32>0,G32+H32,"99:99:99") -> 99:99:99 | J32: =IF('TEMPS-poissy'!K32>0,'TEMPS-poissy'!K32-'TEMPS-poissy'!J32,"") ->  | K32: ='TEMPS-poissy'!L32 -> 00:00:00 | L32: =IF('TEMPS-poissy'!K32>0,J32+K32,"99:99:99") -> 99:99:99 | M32: 00:00:00 | N32: 00:00:00 | O32: 00:00:00 | P32: 00:00:00 | Q32: 00:00:00 | R32: 00:00:00 | S32: 00:00:00 | T32: 00:00:00
A33: ='TEMPS-ponton'!A33 -> 29 | B33: ='TEMPS-ponton'!B33 -> FONTAINEBLEAU APF 1 | C33: ='TEMPS-ponton'!C33 -> APF1 | D33: ='TEMPS-ponton'!D33 -> Kathleen SANCHEZ-Laurent FOUQUE-Christian MESSALES-Denis FLORY-David WEBER | E33: =VLOOKUP(A33,Equipes!A:J,2,FALSE) -> H | F33: =ROUND(VLOOKUP(A33,Equipes!$A$2:$J$41,10,0),0) -> 57 | G33: =IF('TEMPS-poissy'!H33>0,'TEMPS-poissy'!H33-'TEMPS-poissy'!G33,"") ->  | H33: ='TEMPS-poissy'!I33 -> 00:00:00 | I33: =IF('TEMPS-poissy'!H33>0,G33+H33,"99:99:99") -> 99:99:99 | J33: =IF('TEMPS-poissy'!K33>0,'TEMPS-poissy'!K33-'TEMPS-poissy'!J33,"") ->  | K33: ='TEMPS-poissy'!L33 -> 00:00:00 | L33: =IF('TEMPS-poissy'!K33>0,J33+K33,"99:99:99") -> 99:99:99 | M33: 00:00:00 | N33: 00:00:00 | O33: 00:00:00 | P33: 00:00:00 | Q33: 00:00:00 | R33: 00:00:00 | S33: 00:00:00 | T33: 00:00:00
A34: ='TEMPS-ponton'!A34 -> 30 | B34: ='TEMPS-ponton'!B34 -> JOINVILLE AMJ 1 | C34: ='TEMPS-ponton'!C34 -> AMJ1 | D34: ='TEMPS-ponton'!D34 -> Vincent FABIEN-Arnaud PUPPO-Jonathan ROOKE-Xavier SUCHET-Nicolas JAMAULT | E34: =VLOOKUP(A34,Equipes!A:J,2,FALSE) -> H | F34: =ROUND(VLOOKUP(A34,Equipes!$A$2:$J$41,10,0),0) -> 51 | G34: =IF('TEMPS-poissy'!H34>0,'TEMPS-poissy'!H34-'TEMPS-poissy'!G34,"") ->  | H34: ='TEMPS-poissy'!I34 -> 00:00:00 | I34: =IF('TEMPS-poissy'!H34>0,G34+H34,"99:99:99") -> 99:99:99 | J34: =IF('TEMPS-poissy'!K34>0,'TEMPS-poissy'!K34-'TEMPS-poissy'!J34,"") ->  | K34: ='TEMPS-poissy'!L34 -> 00:00:00 | L34: =IF('TEMPS-poissy'!K34>0,J34+K34,"99:99:99") -> 99:99:99 | M34: 00:05:00 | N34: 00:00:00 | O34: 00:00:00 | P34: 00:00:00 | Q34: 00:05:00 | R34: 00:00:00 | S34: 00:00:00 | T34: 00:00:00
A35: ='TEMPS-ponton'!A35 -> 31 | B35: ='TEMPS-ponton'!B35 -> NOGENT SUR MARNE CN 3 | C35: ='TEMPS-ponton'!C35 -> CN3 | D35: ='TEMPS-ponton'!D35 -> Alexandra COHEN SALMON-Isabelle MILON-BANNEROT-Jerome TROMBOFSKY-Olivier PASCAL-Elisabeth LAUNAY | E35: =VLOOKUP(A35,Equipes!A:J,2,FALSE) -> M | F35: =ROUND(VLOOKUP(A35,Equipes!$A$2:$J$41,10,0),0) -> 53 | G35: =IF('TEMPS-poissy'!H35>0,'TEMPS-poissy'!H35-'TEMPS-poissy'!G35,"") ->  | H35: ='TEMPS-poissy'!I35 -> 00:00:00 | I35: =IF('TEMPS-poissy'!H35>0,G35+H35,"99:99:99") -> 99:99:99 | J35: =IF('TEMPS-poissy'!K35>0,'TEMPS-poissy'!K35-'TEMPS-poissy'!J35,"") ->  | K35: ='TEMPS-poissy'!L35 -> 00:00:00 | L35: =IF('TEMPS-poissy'!K35>0,J35+K35,"99:99:99") -> 99:99:99 | M35: 00:00:00 | N35: 00:00:00 | O35: 00:00:00 | P35: 00:00:00 | Q35: 00:00:00 | R35: 00:00:00 | S35: 00:00:00 | T35: 00:00:00
A36: ='TEMPS-ponton'!A36 -> 32 | B36: ='TEMPS-ponton'!B36 -> BOULOGNE 92 1 | C36: ='TEMPS-ponton'!C36 -> ACBB1 | D36: ='TEMPS-ponton'!D36 -> Isabelle MAIRE-Théo BEL BERBEL- LURBE-Thã‰Odore SEDAROS-Omar OUAZZANI-Alexandra MENEZES | E36: =VLOOKUP(A36,Equipes!A:J,2,FALSE) -> H | F36: =ROUND(VLOOKUP(A36,Equipes!$A$2:$J$41,10,0),0) -> 43 | G36: =IF('TEMPS-poissy'!H36>0,'TEMPS-poissy'!H36-'TEMPS-poissy'!G36,"") ->  | H36: ='TEMPS-poissy'!I36 -> 00:00:00 | I36: =IF('TEMPS-poissy'!H36>0,G36+H36,"99:99:99") -> 99:99:99 | J36: =IF('TEMPS-poissy'!K36>0,'TEMPS-poissy'!K36-'TEMPS-poissy'!J36,"") ->  | K36: ='TEMPS-poissy'!L36 -> 00:00:00 | L36: =IF('TEMPS-poissy'!K36>0,J36+K36,"99:99:99") -> 99:99:99 | M36: 00:00:00 | N36: 00:00:00 | O36: 00:00:00 | P36: 00:00:00 | Q36: 00:00:00 | R36: 00:00:00 | S36: 00:00:00 | T36: 00:00:00
A37: ='TEMPS-ponton'!A37 -> 33 | B37: ='TEMPS-ponton'!B37 -> XX | C37: ='TEMPS-ponton'!C37 -> XX | D37: ='TEMPS-ponton'!D37 -> XX-XX-XX-XX-XX | E37: =VLOOKUP(A37,Equipes!A:J,2,FALSE) -> X | F37: =ROUND(VLOOKUP(A37,Equipes!$A$2:$J$41,10,0),0) -> 0 | G37: =IF('TEMPS-poissy'!H37>0,'TEMPS-poissy'!H37-'TEMPS-poissy'!G37,"") ->  | H37: ='TEMPS-poissy'!I37 -> 00:00:00 | I37: =IF('TEMPS-poissy'!H37>0,G37+H37,"99:99:99") -> 99:99:99 | J37: =IF('TEMPS-poissy'!K37>0,'TEMPS-poissy'!K37-'TEMPS-poissy'!J37,"") ->  | K37: ='TEMPS-poissy'!L37 -> 00:00:00 | L37: =IF('TEMPS-poissy'!K37>0,J37+K37,"99:99:99") -> 99:99:99 | M37: 00:00:00 | N37: 00:00:00 | O37: 00:00:00 | P37: 00:00:00 | Q37: 00:00:00 | R37: 00:00:00 | S37: 00:00:00 | T37: 00:00:00
A38: ='TEMPS-ponton'!A38 -> 34 | B38: ='TEMPS-ponton'!B38 -> XX | C38: ='TEMPS-ponton'!C38 -> XX | D38: ='TEMPS-ponton'!D38 -> XX-XX-XX-XX-XX | E38: =VLOOKUP(A38,Equipes!A:J,2,FALSE) -> X | F38: =ROUND(VLOOKUP(A38,Equipes!$A$2:$J$41,10,0),0) -> 0 | G38: =IF('TEMPS-poissy'!H38>0,'TEMPS-poissy'!H38-'TEMPS-poissy'!G38,"") ->  | H38: ='TEMPS-poissy'!I38 -> 00:00:00 | I38: =IF('TEMPS-poissy'!H38>0,G38+H38,"99:99:99") -> 99:99:99 | J38: =IF('TEMPS-poissy'!K38>0,'TEMPS-poissy'!K38-'TEMPS-poissy'!J38,"") ->  | K38: ='TEMPS-poissy'!L38 -> 00:00:00 | L38: =IF('TEMPS-poissy'!K38>0,J38+K38,"99:99:99") -> 99:99:99 | M38: 00:00:00 | N38: 00:00:00 | O38: 00:00:00 | P38: 00:00:00 | Q38: 00:00:00 | R38: 00:00:00 | S38: 00:00:00 | T38: 00:00:00
A39: ='TEMPS-ponton'!A39 -> 35 | B39: ='TEMPS-ponton'!B39 -> XX | C39: ='TEMPS-ponton'!C39 -> XX | D39: ='TEMPS-ponton'!D39 -> XX-XX-XX-XX-XX | E39: =VLOOKUP(A39,Equipes!A:J,2,FALSE) -> X | F39: =ROUND(VLOOKUP(A39,Equipes!$A$2:$J$41,10,0),0) -> 0 | G39: =IF('TEMPS-poissy'!H39>0,'TEMPS-poissy'!H39-'TEMPS-poissy'!G39,"") ->  | H39: ='TEMPS-poissy'!I39 -> 00:00:00 | I39: =IF('TEMPS-poissy'!H39>0,G39+H39,"99:99:99") -> 99:99:99 | J39: =IF('TEMPS-poissy'!K39>0,'TEMPS-poissy'!K39-'TEMPS-poissy'!J39,"") ->  | K39: ='TEMPS-poissy'!L39 -> 00:00:00 | L39: =IF('TEMPS-poissy'!K39>0,J39+K39,"99:99:99") -> 99:99:99 | M39: 00:00:00 | N39: 00:00:00 | O39: 00:00:00 | P39: 00:00:00 | Q39: 00:00:00 | R39: 00:00:00 | S39: 00:00:00 | T39: 00:00:00
A40: ='TEMPS-ponton'!A40 -> 36 | B40: ='TEMPS-ponton'!B40 -> XX | C40: ='TEMPS-ponton'!C40 -> XX | D40: ='TEMPS-ponton'!D40 -> XX-XX-XX-XX-XX | E40: =VLOOKUP(A40,Equipes!A:J,2,FALSE) -> X | F40: =ROUND(VLOOKUP(A40,Equipes!$A$2:$J$41,10,0),0) -> 0 | G40: =IF('TEMPS-poissy'!H40>0,'TEMPS-poissy'!H40-'TEMPS-poissy'!G40,"") ->  | H40: ='TEMPS-poissy'!I40 -> 00:00:00 | I40: =IF('TEMPS-poissy'!H40>0,G40+H40,"99:99:99") -> 99:99:99 | J40: =IF('TEMPS-poissy'!K40>0,'TEMPS-poissy'!K40-'TEMPS-poissy'!J40,"") ->  | K40: ='TEMPS-poissy'!L40 -> 00:00:00 | L40: =IF('TEMPS-poissy'!K40>0,J40+K40,"99:99:99") -> 99:99:99 | M40: 00:00:00 | N40: 00:00:00 | O40: 00:00:00 | P40: 00:00:00 | Q40: 00:00:00 | R40: 00:00:00 | S40: 00:00:00 | T40: 00:00:00
A41: ='TEMPS-ponton'!A41 -> 37 | B41: ='TEMPS-ponton'!B41 -> XX | C41: ='TEMPS-ponton'!C41 -> XX | D41: ='TEMPS-ponton'!D41 -> XX-XX-XX-XX-XX | E41: =VLOOKUP(A41,Equipes!A:J,2,FALSE) -> X | F41: =ROUND(VLOOKUP(A41,Equipes!$A$2:$J$41,10,0),0) -> 0 | G41: =IF('TEMPS-poissy'!H41>0,'TEMPS-poissy'!H41-'TEMPS-poissy'!G41,"") ->  | H41: ='TEMPS-poissy'!I41 -> 00:00:00 | I41: =IF('TEMPS-poissy'!H41>0,G41+H41,"99:99:99") -> 99:99:99 | J41: =IF('TEMPS-poissy'!K41>0,'TEMPS-poissy'!K41-'TEMPS-poissy'!J41,"") ->  | K41: ='TEMPS-poissy'!L41 -> 00:00:00 | L41: =IF('TEMPS-poissy'!K41>0,J41+K41,"99:99:99") -> 99:99:99 | M41: 00:00:00 | N41: 00:00:00 | O41: 00:00:00 | P41: 00:00:00 | Q41: 00:00:00 | R41: 00:00:00 | S41: 00:00:00 | T41: 00:00:00
A42: ='TEMPS-ponton'!A42 -> 38 | B42: ='TEMPS-ponton'!B42 -> XX | C42: ='TEMPS-ponton'!C42 -> XX | D42: ='TEMPS-ponton'!D42 -> XX-XX-XX-XX-XX | E42: =VLOOKUP(A42,Equipes!A:J,2,FALSE) -> X | F42: =ROUND(VLOOKUP(A42,Equipes!$A$2:$J$41,10,0),0) -> 0 | G42: =IF('TEMPS-poissy'!H42>0,'TEMPS-poissy'!H42-'TEMPS-poissy'!G42,"") ->  | H42: ='TEMPS-poissy'!I42 -> 00:00:00 | I42: =IF('TEMPS-poissy'!H42>0,G42+H42,"99:99:99") -> 99:99:99 | J42: =IF('TEMPS-poissy'!K42>0,'TEMPS-poissy'!K42-'TEMPS-poissy'!J42,"") ->  | K42: ='TEMPS-poissy'!L42 -> 00:00:00 | L42: =IF('TEMPS-poissy'!K42>0,J42+K42,"99:99:99") -> 99:99:99 | M42: 00:00:00 | N42: 00:00:00 | O42: 00:00:00 | P42: 00:00:00 | Q42: 00:00:00 | R42: 00:00:00 | S42: 00:00:00 | T42: 00:00:00
A43: ='TEMPS-ponton'!A43 -> 39 | B43: ='TEMPS-ponton'!B43 -> XX | C43: ='TEMPS-ponton'!C43 -> XX | D43: ='TEMPS-ponton'!D43 -> XX-XX-XX-XX-XX | E43: =VLOOKUP(A43,Equipes!A:J,2,FALSE) -> X | F43: =ROUND(VLOOKUP(A43,Equipes!$A$2:$J$41,10,0),0) -> 0 | G43: =IF('TEMPS-poissy'!H43>0,'TEMPS-poissy'!H43-'TEMPS-poissy'!G43,"") ->  | H43: ='TEMPS-poissy'!I43 -> 00:00:00 | I43: =IF('TEMPS-poissy'!H43>0,G43+H43,"99:99:99") -> 99:99:99 | J43: =IF('TEMPS-poissy'!K43>0,'TEMPS-poissy'!K43-'TEMPS-poissy'!J43,"") ->  | K43: ='TEMPS-poissy'!L43 -> 00:00:00 | L43: =IF('TEMPS-poissy'!K43>0,J43+K43,"99:99:99") -> 99:99:99 | M43: 00:00:00 | N43: 00:00:00 | O43: 00:00:00 | P43: 00:00:00 | Q43: 00:00:00 | R43: 00:00:00 | S43: 00:00:00 | T43: 00:00:00
A44: ='TEMPS-ponton'!A44 -> 40 | B44: ='TEMPS-ponton'!B44 -> XX | C44: ='TEMPS-ponton'!C44 -> XX | D44: ='TEMPS-ponton'!D44 -> XX-XX-XX-XX-XX | E44: =VLOOKUP(A44,Equipes!A:J,2,FALSE) -> X | F44: =ROUND(VLOOKUP(A44,Equipes!$A$2:$J$41,10,0),0) -> 0 | G44: =IF('TEMPS-poissy'!H44>0,'TEMPS-poissy'!H44-'TEMPS-poissy'!G44,"") ->  | H44: ='TEMPS-poissy'!I44 -> 00:00:00 | I44: =IF('TEMPS-poissy'!H44>0,G44+H44,"99:99:99") -> 99:99:99 | J44: =IF('TEMPS-poissy'!K44>0,'TEMPS-poissy'!K44-'TEMPS-poissy'!J44,"") ->  | K44: ='TEMPS-poissy'!L44 -> 00:00:00 | L44: =IF('TEMPS-poissy'!K44>0,J44+K44,"99:99:99") -> 99:99:99 | M44: =SUM(N44:T44) -> 00:00:00 | N44: 00:00:00 | O44: 00:00:00 | P44: 00:00:00 | Q44: 00:00:00 | R44: 00:00:00 | S44: 00:00:00 | T44: 00:00:00

Sheet Heures Pass
A1: GRAND 8 | D1: ='Note explicative fichier'!E3 -> 2024-06-02 | G1: Tableau des Heures de passages
A3: Yolette N° | B3: Club | C3: Ville | D3: Equipage | E3: Cat. | F3: Moy. Age | G3: Départ | H3: Poissy-1 | I3: 1 / 4 G-8 | J3: 1 / 2 G-8 | K3: Poissy-2 | L3: 3 / 4 G-8 | M3: Arrivée
A4: ='TEMPS-ponton'!A4 -> Record | B4: ='TEMPS-ponton'!B4 -> POLYTECHNIQUE ( Référence 2012 ) | C4: ='TEMPS-ponton'!C4 -> Palaiseau | D4: ='TEMPS-ponton'!D4 -> FERRERO Michel - Alexandre Rosinski - BOYAUD Mathieu - GODDE Olivier - THECKES Benoit | G4: ='TEMPS-ponton'!G4 -> 08:46:30 | H4: 00:00:00 | I4: ='TEMPS-ponton'!H4 -> 09:10:05 | J4: ='TEMPS-ponton'!I4 -> 09:27:11 | K4: 00:00:00 | L4: ='TEMPS-ponton'!J4 -> 09:51:04 | M4: ='TEMPS-ponton'!K4 -> 10:08:18
A5: ='TEMPS-ponton'!A5 -> 1 | B5: ='TEMPS-ponton'!B5 -> ANDRESY CA CONFLUENT 1 | C5: ='TEMPS-ponton'!C5 -> Cac1 | D5: ='TEMPS-ponton'!D5 -> Stephanie LAPORTE-Marine NACERI-Marc LACCASSAGNE-Stephane ZETTWOOG-Fouzia VOIRIN | E5: =VLOOKUP(A5,Equipes!A:J,2,FALSE) -> M | F5: =ROUND(VLOOKUP(A5,Equipes!$A$2:$J$41,10,0),0) -> 49 | G5: ='TEMPS-ponton'!G5 -> 09:15:43 | H5: ='TEMPS-poissy'!G5 -> 00:00:00 | I5: ='TEMPS-ponton'!H5 -> 09:49:03 | J5: ='TEMPS-ponton'!I5 -> 10:13:40 | K5: ='TEMPS-poissy'!J5 -> 00:00:00 | L5: ='TEMPS-ponton'!J5 -> 10:43:29 | M5: ='TEMPS-ponton'!K5 -> 11:07:36
A6: ='TEMPS-ponton'!A6 -> 2 | B6: ='TEMPS-ponton'!B6 -> CAUDEBEC EN CAUX ACVS 1 | C6: ='TEMPS-ponton'!C6 -> Caudebec | D6: ='TEMPS-ponton'!D6 -> Martine NARBAIS-JAUREGUY-Caroline KERVRANN-Stephane DELAMARE-Nicolas BARRAY-Francois NARBAIS-JAUREGUY | E6: =VLOOKUP(A6,Equipes!A:J,2,FALSE) -> M | F6: =ROUND(VLOOKUP(A6,Equipes!$A$2:$J$41,10,0),0) -> 55 | G6: ='TEMPS-ponton'!G6 -> 09:18:40 | H6: ='TEMPS-poissy'!G6 -> 00:00:00 | I6: ='TEMPS-ponton'!H6 -> 09:48:48 | J6: ='TEMPS-ponton'!I6 -> 10:11:02 | K6: ='TEMPS-poissy'!J6 -> 00:00:00 | L6: ='TEMPS-ponton'!J6 -> 10:40:10 | M6: ='TEMPS-ponton'!K6 -> 11:02:27
A7: ='TEMPS-ponton'!A7 -> 3 | B7: ='TEMPS-ponton'!B7 -> ANDRESY CA CONFLUENT 2 | C7: ='TEMPS-ponton'!C7 -> CAC 2 | D7: ='TEMPS-ponton'!D7 -> Anna ALCALOIDEPOIXBLANC-Geoffrey GHIZZONI-Nathalie BOURGEOIS-Franck CHRISTIANNOT-NicOLAS delaunoy | E7: =VLOOKUP(A7,Equipes!A:J,2,FALSE) -> M | F7: =ROUND(VLOOKUP(A7,Equipes!$A$2:$J$41,10,0),0) -> 55 | G7: ='TEMPS-ponton'!G7 -> 09:20:40 | H7: ='TEMPS-poissy'!G7 -> 00:00:00 | I7: ='TEMPS-ponton'!H7 -> 09:54:28 | J7: ='TEMPS-ponton'!I7 -> 10:21:29 | K7: ='TEMPS-poissy'!J7 -> 00:00:00 | L7: ='TEMPS-ponton'!J7 -> 10:52:53 | M7: ='TEMPS-ponton'!K7 -> 11:18:29
A8: ='TEMPS-ponton'!A8 -> 4 | B8: ='TEMPS-ponton'!B8 -> ANDRESY CA CONFLUENT 1 | C8: ='TEMPS-ponton'!C8 -> CAC3 | D8: ='TEMPS-ponton'!D8 -> Emmanuel SALIN-Ousseni PARKOUDA-Jean-Baptiste PROVENZANO-Jerome CLAVE-Julian GALLELA | E8: =VLOOKUP(A8,Equipes!A:J,2,FALSE) -> H | F8: =ROUND(VLOOKUP(A8,Equipes!$A$2:$J$41,10,0),0) -> 46 | G8: ='TEMPS-ponton'!G8 -> 09:22:41 | H8: ='TEMPS-poissy'!G8 -> 00:00:00 | I8: ='TEMPS-ponton'!H8 -> 09:52:26 | J8: ='TEMPS-ponton'!I8 -> 10:16:29 | K8: ='TEMPS-poissy'!J8 -> 00:00:00 | L8: ='TEMPS-ponton'!J8 -> 10:45:27 | M8: ='TEMPS-ponton'!K8 -> 11:10:08
A9: ='TEMPS-ponton'!A9 -> 5 | B9: ='TEMPS-ponton'!B9 -> PORT-MARLY RC 1 | C9: ='TEMPS-ponton'!C9 -> RCPM | D9: ='TEMPS-ponton'!D9 -> Claudie BODIN-Fanny LAMOUR-Etienne DUPUIS-Jeancharles FAUCHEUX-Gildas KETTANJIAN | E9: =VLOOKUP(A9,Equipes!A:J,2,FALSE) -> M | F9: =ROUND(VLOOKUP(A9,Equipes!$A$2:$J$41,10,0),0) -> 50 | G9: ='TEMPS-ponton'!G9 -> 09:24:40 | H9: ='TEMPS-poissy'!G9 -> 00:00:00 | I9: ='TEMPS-ponton'!H9 -> 09:55:08 | J9: ='TEMPS-ponton'!I9 -> 10:19:14 | K9: ='TEMPS-poissy'!J9 -> 00:00:00 | L9: ='TEMPS-ponton'!J9 -> 10:49:38 | M9: ='TEMPS-ponton'!K9 -> 11:13:52
A10: ='TEMPS-ponton'!A10 -> 6 | B10: ='TEMPS-ponton'!B10 -> BOULOGNE 92 2 | C10: ='TEMPS-ponton'!C10 -> ACBB | D10: ='TEMPS-ponton'!D10 -> CéLia ROUSSELLE-Marie Pierre MARSALLON GAMBY-Françis ROBIN-Nicolas LECOEUR-Theodora XENOGIANI | E10: =VLOOKUP(A10,Equipes!A:J,2,FALSE) -> M | F10: =ROUND(VLOOKUP(A10,Equipes!$A$2:$J$41,10,0),0) -> 46 | G10: ='TEMPS-ponton'!G10 -> 09:26:31 | H10: ='TEMPS-poissy'!G10 -> 00:00:00 | I10: ='TEMPS-ponton'!H10 -> 09:55:00 | J10: ='TEMPS-ponton'!I10 -> 10:17:12 | K10: ='TEMPS-poissy'!J10 -> 00:00:00 | L10: ='TEMPS-ponton'!J10 -> 10:44:58 | M10: ='TEMPS-ponton'!K10 -> 11:06:14
A11: ='TEMPS-ponton'!A11 -> 7 | B11: ='TEMPS-ponton'!B11 -> VILLENNES - POISSY AC 3 | C11: ='TEMPS-ponton'!C11 -> ACVP | D11: ='TEMPS-ponton'!D11 -> Virginie ALEXANDRE-Jihad LEMARQRI-Cyrille BRUZON-BASCOU-Sebastien CARPENTIER-Marie Estelle D'ARBAUMONT | E11: =VLOOKUP(A11,Equipes!A:J,2,FALSE) -> M | F11: =ROUND(VLOOKUP(A11,Equipes!$A$2:$J$41,10,0),0) -> 49 | G11: ='TEMPS-ponton'!G11 -> 09:28:10 | H11: ='TEMPS-poissy'!G11 -> 00:00:00 | I11: ='TEMPS-ponton'!H11 -> 09:56:55 | J11: ='TEMPS-ponton'!I11 -> 10:19:37 | K11: ='TEMPS-poissy'!J11 -> 00:00:00 | L11: ='TEMPS-ponton'!J11 -> 10:47:30 | M11: ='TEMPS-ponton'!K11 -> 11:09:39
A12: ='TEMPS-ponton'!A12 -> 8 | B12: ='TEMPS-ponton'!B12 -> JOINVILLE AMJ 1 | C12: ='TEMPS-ponton'!C12 -> Joinville | D12: ='TEMPS-ponton'!D12 -> Laurent BAUDOIN-Raphaelle BOUVIER FLORY-Sophie BUSTOS-Kastriot JAKA-Thomas AUGER | E12: =VLOOKUP(A12,Equipes!A:J,2,FALSE) -> M | F12: =ROUND(VLOOKUP(A12,Equipes!$A$2:$J$41,10,0),0) -> 46 | G12: ='TEMPS-ponton'!G12 -> 09:30:20 | H12: ='TEMPS-poissy'!G12 -> 00:00:00 | I12: ='TEMPS-ponton'!H12 -> 09:57:55 | J12: ='TEMPS-ponton'!I12 -> 10:18:25 | K12: ='TEMPS-poissy'!J12 -> 00:00:00 | L12: ='TEMPS-ponton'!J12 -> 10:44:03 | M12: ='TEMPS-ponton'!K12 -> 11:03:52
A13: ='TEMPS-ponton'!A13 -> 9 | B13: ='TEMPS-ponton'!B13 -> NOGENT SUR MARNE CN 1 | C13: ='TEMPS-ponton'!C13 -> CN 1 | D13: ='TEMPS-ponton'!D13 -> Chrystelle SUPIOT-Caroline PIEDNOIRE-Olivier MUCIGNAT-Andre SIMONNET-Fabienne LORTIE | E13: =VLOOKUP(A13,Equipes!A:J,2,FALSE) -> M | F13: =ROUND(VLOOKUP(A13,Equipes!$A$2:$J$41,10,0),0) -> 53 | G13: ='TEMPS-ponton'!G13 -> 09:32:19 | H13: ='TEMPS-poissy'!G13 -> 00:00:00 | I13: ='TEMPS-ponton'!H13 -> 10:01:07 | J13: ='TEMPS-ponton'!I13 -> 10:22:41 | K13: ='TEMPS-poissy'!J13 -> 00:00:00 | L13: ='TEMPS-ponton'!J13 -> 10:51:58 | M13: ='TEMPS-ponton'!K13 -> 11:15:55
A14: ='TEMPS-ponton'!A14 -> 10 | B14: ='TEMPS-ponton'!B14 -> NOGENT SUR MARNE CN 2 | C14: ='TEMPS-ponton'!C14 -> CN2 | D14: ='TEMPS-ponton'!D14 -> Christophe RUCKEBUSCH-Nicolas BURCKHART-Alice GHEERBRANT-Aurelie DONVAL-Gerard LECA | E14: =VLOOKUP(A14,Equipes!A:J,2,FALSE) -> M | F14: =ROUND(VLOOKUP(A14,Equipes!$A$2:$J$41,10,0),0) -> 53 | G14: ='TEMPS-ponton'!G14 -> 09:34:19 | H14: ='TEMPS-poissy'!G14 -> 00:00:00 | I14: ='TEMPS-ponton'!H14 -> 10:01:33 | J14: ='TEMPS-ponton'!I14 -> 10:22:04 | K14: ='TEMPS-poissy'!J14 -> 00:00:00 | L14: ='TEMPS-ponton'!J14 -> 10:49:45 | M14: ='TEMPS-ponton'!K14 -> 11:11:13
A15: ='TEMPS-ponton'!A15 -> 11 | B15: ='TEMPS-ponton'!B15 -> BOULOGNE 92 1 | C15: ='TEMPS-ponton'!C15 -> ACBB | D15: ='TEMPS-ponton'!D15 -> Viviane BALLOY-Timothé BAZIRIES-Alexandre LE FUR-Sigrid PABST-Michel VEDRINE | E15: =VLOOKUP(A15,Equipes!A:J,2,FALSE) -> H | F15: =ROUND(VLOOKUP(A15,Equipes!$A$2:$J$41,10,0),0) -> 51 | G15: ='TEMPS-ponton'!G15 -> 09:36:20 | H15: ='TEMPS-poissy'!G15 -> 00:00:00 | I15: ='TEMPS-ponton'!H15 -> 10:06:27 | J15: ='TEMPS-ponton'!I15 -> 10:31:00 | K15: ='TEMPS-poissy'!J15 -> 00:00:00 | L15: ='TEMPS-ponton'!J15 -> 10:02:15 | M15: ='TEMPS-ponton'!K15 -> 11:27:15
A16: ='TEMPS-ponton'!A16 -> 12 | B16: ='TEMPS-ponton'!B16 -> EVRY SCA 2 | C16: ='TEMPS-ponton'!C16 -> SCA2 | D16: ='TEMPS-ponton'!D16 -> Laurent YEBOAH-Isabelle MOISSET FLEURISSON-Frederic DUCAUQUY-Sandrine GARCIA-Christelle MARTIN | E16: =VLOOKUP(A16,Equipes!A:J,2,FALSE) -> M | F16: =ROUND(VLOOKUP(A16,Equipes!$A$2:$J$41,10,0),0) -> 48 | G16: ='TEMPS-ponton'!G16 -> 09:38:19 | H16: ='TEMPS-poissy'!G16 -> 00:00:00 | I16: ='TEMPS-ponton'!H16 -> 10:04:33 | J16: ='TEMPS-ponton'!I16 -> 10:24:42 | K16: ='TEMPS-poissy'!J16 -> 00:00:00 | L16: ='TEMPS-ponton'!J16 -> 10:50:34 | M16: ='TEMPS-ponton'!K16 -> 11:10:12
A17: ='TEMPS-ponton'!A17 -> 13 | B17: ='TEMPS-ponton'!B17 -> PORT-MARLY RC 2 | C17: ='TEMPS-ponton'!C17 -> RCPM2 | D17: ='TEMPS-ponton'!D17 -> Elsa CROZATIER-Cyrielle BERTHIER-Hervé Valette-Eric MOINARD-Anais FEUGA | E17: =VLOOKUP(A17,Equipes!A:J,2,FALSE) -> M | F17: =ROUND(VLOOKUP(A17,Equipes!$A$2:$J$41,10,0),0) -> 47 | G17: ='TEMPS-ponton'!G17 -> 09:40:21 | H17: ='TEMPS-poissy'!G17 -> 00:00:00 | I17: ='TEMPS-ponton'!H17 -> 10:05:55 | J17: ='TEMPS-ponton'!I17 -> 10:26:06 | K17: ='TEMPS-poissy'!J17 -> 00:00:00 | L17: ='TEMPS-ponton'!J17 -> 10:51:36 | M17: ='TEMPS-ponton'!K17 -> 11:12:20
A18: ='TEMPS-ponton'!A18 -> 14 | B18: ='TEMPS-ponton'!B18 -> MAISONS MESNIL CERAMM 1 | C18: ='TEMPS-ponton'!C18 -> CERAMM1 | D18: ='TEMPS-ponton'!D18 -> Nicolas SCHMITT-Gloria VENDRELL-Christine MARIE LAVAUD-Amaury DE LA LAURENCIE-Amina ELABBADI | E18: =VLOOKUP(A18,Equipes!A:J,2,FALSE) -> M | F18: =ROUND(VLOOKUP(A18,Equipes!$A$2:$J$41,10,0),0) -> 50 | G18: ='TEMPS-ponton'!G18 -> 09:42:29 | H18: ='TEMPS-poissy'!G18 -> 00:00:00 | I18: ='TEMPS-ponton'!H18 -> 10:10:57 | J18: ='TEMPS-ponton'!I18 -> 10:32:21 | K18: ='TEMPS-poissy'!J18 -> 00:00:00 | L18: ='TEMPS-ponton'!J18 -> 11:01:44 | M18: ='TEMPS-ponton'!K18 -> 11:24:44
A19: ='TEMPS-ponton'!A19 -> 15 | B19: ='TEMPS-ponton'!B19 -> SOISY SUR SEINE CN 1 | C19: ='TEMPS-ponton'!C19 -> CN1 | D19: ='TEMPS-ponton'!D19 -> Bertrand PIOGER-Bruno PERIQUOI-Servane BERTRAND-Alain BERNARD-Robert TRAUET | E19: =VLOOKUP(A19,Equipes!A:J,2,FALSE) -> H | F19: =ROUND(VLOOKUP(A19,Equipes!$A$2:$J$41,10,0),0) -> 54 | G19: ='TEMPS-ponton'!G19 -> 09:44:28 | H19: ='TEMPS-poissy'!G19 -> 00:00:00 | I19: ='TEMPS-ponton'!H19 -> 10:11:53 | J19: ='TEMPS-ponton'!I19 -> 10:31:35 | K19: ='TEMPS-poissy'!J19 -> 00:00:00 | L19: ='TEMPS-ponton'!J19 -> 10:57:19 | M19: ='TEMPS-ponton'!K19 -> 11:18:36
A20: ='TEMPS-ponton'!A20 -> 16 | B20: ='TEMPS-ponton'!B20 -> PORT-MARLY RC 1 | C20: ='TEMPS-ponton'!C20 -> RCPM1 | D20: ='TEMPS-ponton'!D20 -> Jean-Claude LAFOREST-David CHARTIER-Christophe MARCAIS-Vincent BONTOUX-Alain ROUSSEAU | E20: =VLOOKUP(A20,Equipes!A:J,2,FALSE) -> H | F20: =ROUND(VLOOKUP(A20,Equipes!$A$2:$J$41,10,0),0) -> 55 | G20: ='TEMPS-ponton'!G20 -> 09:46:29 | H20: ='TEMPS-poissy'!G20 -> 00:00:00 | I20: ='TEMPS-ponton'!H20 -> 10:11:35 | J20: ='TEMPS-ponton'!I20 -> 10:30:25 | K20: ='TEMPS-poissy'!J20 -> 00:00:00 | L20: ='TEMPS-ponton'!J20 -> 10:53:33 | M20: ='TEMPS-ponton'!K20 -> 11:11:54
A21: ='TEMPS-ponton'!A21 -> 17 | B21: ='TEMPS-ponton'!B21 -> ANDRESY CA CONFLUENT 1 | C21: ='TEMPS-ponton'!C21 -> CAC1 | D21: ='TEMPS-ponton'!D21 -> Daphne PARIZOT-Agnes BURGHGRAEVE SELLEN-Sylvie FRANSSEN-Severine LEGAILLARD-Martine LE ROUX | E21: =VLOOKUP(A21,Equipes!A:J,2,FALSE) -> F | F21: =ROUND(VLOOKUP(A21,Equipes!$A$2:$J$41,10,0),0) -> 55 | G21: ='TEMPS-ponton'!G21 -> 09:48:01 | H21: ='TEMPS-poissy'!G21 -> 00:00:00 | I21: ='TEMPS-ponton'!H21 -> 10:21:59 | J21: ='TEMPS-ponton'!I21 -> 10:47:41 | K21: ='TEMPS-poissy'!J21 -> 00:00:00 | L21: ='TEMPS-ponton'!J21 -> 11:22:02 | M21: ='TEMPS-ponton'!K21 -> 11:49:11
A22: ='TEMPS-ponton'!A22 -> 18 | B22: ='TEMPS-ponton'!B22 -> MAISONS MESNIL CERAMM 2 | C22: ='TEMPS-ponton'!C22 -> CERAMM2 | D22: ='TEMPS-ponton'!D22 -> Claude LEMENAGER-Didier GIRARDEAU-Laurent LIBOTTE-Alain GIRARD-Cecile JEAMMES | E22: =VLOOKUP(A22,Equipes!A:J,2,FALSE) -> H | F22: =ROUND(VLOOKUP(A22,Equipes!$A$2:$J$41,10,0),0) -> 58 | G22: ='TEMPS-ponton'!G22 -> 09:50:59 | H22: ='TEMPS-poissy'!G22 -> 00:00:00 | I22: ='TEMPS-ponton'!H22 -> 10:19:49 | J22: ='TEMPS-ponton'!I22 -> 10:42:08 | K22: ='TEMPS-poissy'!J22 -> 00:00:00 | L22: ='TEMPS-ponton'!J22 -> 11:10:30 | M22: ='TEMPS-ponton'!K22 -> 11:32:37
A23: ='TEMPS-ponton'!A23 -> 19 | B23: ='TEMPS-ponton'!B23 -> VILLENNES - POISSY AC 1 | C23: ='TEMPS-ponton'!C23 -> ACVP1 | D23: ='TEMPS-ponton'!D23 -> Olivier POLGE-Odile POLGE-Laurent BONHOMMET-Antoine VOLPI-Philippe STROHM | E23: =VLOOKUP(A23,Equipes!A:J,2,FALSE) -> H | F23: =ROUND(VLOOKUP(A23,Equipes!$A$2:$J$41,10,0),0) -> 55 | G23: ='TEMPS-ponton'!G23 -> 09:53:00 | H23: ='TEMPS-poissy'!G23 -> 00:00:00 | I23: ='TEMPS-ponton'!H23 -> 10:22:56 | J23: ='TEMPS-ponton'!I23 -> 10:45:02 | K23: ='TEMPS-poissy'!J23 -> 00:00:00 | L23: ='TEMPS-ponton'!J23 -> 11:12:47 | M23: ='TEMPS-ponton'!K23 -> 11:33:56
A24: ='TEMPS-ponton'!A24 -> 20 | B24: ='TEMPS-ponton'!B24 -> ROUEN CNAR 1 | C24: ='TEMPS-ponton'!C24 -> CNAR1 | D24: ='TEMPS-ponton'!D24 -> Nathalie MOUSSET-Francois LAIR-Betty GESLAIN-Thierry DUCHESNE-Stephane MOUSSET | E24: =VLOOKUP(A24,Equipes!A:J,2,FALSE) -> M | F24: =ROUND(VLOOKUP(A24,Equipes!$A$2:$J$41,10,0),0) -> 55 | G24: ='TEMPS-ponton'!G24 -> 09:55:00 | H24: ='TEMPS-poissy'!G24 -> 00:00:00 | I24: ='TEMPS-ponton'!H24 -> 10:23:53 | J24: ='TEMPS-ponton'!I24 -> 10:45:41 | K24: ='TEMPS-poissy'!J24 -> 00:00:00 | L24: ='TEMPS-ponton'!J24 -> 11:12:10 | M24: ='TEMPS-ponton'!K24 -> 11:32:13
A25: ='TEMPS-ponton'!A25 -> 21 | B25: ='TEMPS-ponton'!B25 -> PORT-MARLY RC 2 | C25: ='TEMPS-ponton'!C25 -> RCPM2 | D25: ='TEMPS-ponton'!D25 -> Guillaume CHARRON-Philippe VERHE-Stephan REYNIER-Dominique LEROUX-Luciano AUTUNNALE | E25: =VLOOKUP(A25,Equipes!A:J,2,FALSE) -> H | F25: =ROUND(VLOOKUP(A25,Equipes!$A$2:$J$41,10,0),0) -> 51 | G25: ='TEMPS-ponton'!G25 -> 09:57:00 | H25: ='TEMPS-poissy'!G25 -> 00:00:00 | I25: ='TEMPS-ponton'!H25 -> 10:22:28 | J25: ='TEMPS-ponton'!I25 -> 10:43:04 | K25: ='TEMPS-poissy'!J25 -> 00:00:00 | L25: ='TEMPS-ponton'!J25 -> 11:08:43 | M25: ='TEMPS-ponton'!K25 -> 11:28:40
A26: ='TEMPS-ponton'!A26 -> 22 | B26: ='TEMPS-ponton'!B26 -> COUDRAY MONTCEAUX A 1 | C26: ='TEMPS-ponton'!C26 -> coudray1 | D26: ='TEMPS-ponton'!D26 -> Joseph RAYNAUD-Frederic MORAT-Benjamin HOUILLON-Pascal BEAUSSART-Anne HOUAL | E26: =VLOOKUP(A26,Equipes!A:J,2,FALSE) -> H | F26: =ROUND(VLOOKUP(A26,Equipes!$A$2:$J$41,10,0),0) -> 52 | G26: ='TEMPS-ponton'!G26 -> 09:59:00 | H26: ='TEMPS-poissy'!G26 -> 00:00:00 | I26: ='TEMPS-ponton'!H26 -> 10:28:10 | J26: ='TEMPS-ponton'!I26 -> 10:50:40 | K26: ='TEMPS-poissy'!J26 -> 00:00:00 | L26: ='TEMPS-ponton'!J26 -> 11:18:43 | M26: ='TEMPS-ponton'!K26 -> 11:40:46
A27: ='TEMPS-ponton'!A27 -> 23 | B27: ='TEMPS-ponton'!B27 -> SN OISE 1 | C27: ='TEMPS-ponton'!C27 -> SN Oise 1 | D27: ='TEMPS-ponton'!D27 -> Agnes AUDEBERT-Nicolas RAUCH-Jerome ROUGE-Nathalie BAUDIER-Isabelle JOUBERT | E27: =VLOOKUP(A27,Equipes!A:J,2,FALSE) -> M | F27: =ROUND(VLOOKUP(A27,Equipes!$A$2:$J$41,10,0),0) -> 50 | G27: ='TEMPS-ponton'!G27 -> 10:00:00 | H27: ='TEMPS-poissy'!G27 -> 00:00:00 | I27: ='TEMPS-ponton'!H27 -> 10:31:24 | J27: ='TEMPS-ponton'!I27 -> 10:56:32 | K27: ='TEMPS-poissy'!J27 -> 00:00:00 | L27: ='TEMPS-ponton'!J27 -> 11:28:06 | M27: ='TEMPS-ponton'!K27 -> 11:53:02
A28: ='TEMPS-ponton'!A28 -> 24 | B28: ='TEMPS-ponton'!B28 -> MEULAN LES MUREAUX AMMH 1 | C28: ='TEMPS-ponton'!C28 -> AMMH1 | D28: ='TEMPS-ponton'!D28 -> Xavier MARSAIS-Eric PRENEY-Yannick DAGMEY-David COINE-Arthur VAN SLOOTEN | E28: =VLOOKUP(A28,Equipes!A:J,2,FALSE) -> H | F28: =ROUND(VLOOKUP(A28,Equipes!$A$2:$J$41,10,0),0) -> 53 | G28: ='TEMPS-ponton'!G28 -> 10:02:59 | H28: ='TEMPS-poissy'!G28 -> 00:00:00 | I28: ='TEMPS-ponton'!H28 -> 10:29:42 | J28: ='TEMPS-ponton'!I28 -> 10:50:58 | K28: ='TEMPS-poissy'!J28 -> 00:00:00 | L28: ='TEMPS-ponton'!J28 -> 11:18:58 | M28: ='TEMPS-ponton'!K28 -> 11:39:03
A29: ='TEMPS-ponton'!A29 -> 25 | B29: ='TEMPS-ponton'!B29 -> VILLENNES - POISSY AC 2 | C29: ='TEMPS-ponton'!C29 -> ACVP2 | D29: ='TEMPS-ponton'!D29 -> Franck CARIOU-Michael LE BANNER-Valerie DECAESTECKER-Karine GUILBON-Christophe ELINE | E29: =VLOOKUP(A29,Equipes!A:J,2,FALSE) -> M | F29: =ROUND(VLOOKUP(A29,Equipes!$A$2:$J$41,10,0),0) -> 54 | G29: ='TEMPS-ponton'!G29 -> 10:05:01 | H29: ='TEMPS-poissy'!G29 -> 00:00:00 | I29: ='TEMPS-ponton'!H29 -> 10:31:39 | J29: ='TEMPS-ponton'!I29 -> 10:52:48 | K29: ='TEMPS-poissy'!J29 -> 00:00:00 | L29: ='TEMPS-ponton'!J29 -> 11:21:14 | M29: ='TEMPS-ponton'!K29 -> 11:43:28
A30: ='TEMPS-ponton'!A30 -> 26 | B30: ='TEMPS-ponton'!B30 -> EVRY SCA 1 | C30: ='TEMPS-ponton'!C30 -> SCA 1 | D30: ='TEMPS-ponton'!D30 -> Anne CARDUNER-Olivia PEZZOLI-Bruno CASIMIR-Lionel BOISSONNAT-Kristell MAUCHET | E30: =VLOOKUP(A30,Equipes!A:J,2,FALSE) -> M | F30: =ROUND(VLOOKUP(A30,Equipes!$A$2:$J$41,10,0),0) -> 56 | G30: ='TEMPS-ponton'!G30 -> 10:07:01 | H30: ='TEMPS-poissy'!G30 -> 00:00:00 | I30: ='TEMPS-ponton'!H30 -> 10:36:39 | J30: ='TEMPS-ponton'!I30 -> 10:59:33 | K30: ='TEMPS-poissy'!J30 -> 00:00:00 | L30: ='TEMPS-ponton'!J30 -> 11:29:29 | M30: ='TEMPS-ponton'!K30 -> 11:53:31
A31: ='TEMPS-ponton'!A31 -> 27 | B31: ='TEMPS-ponton'!B31 -> MEULAN LES MUREAUX AMMH 1 | C31: ='TEMPS-ponton'!C31 -> AMMH1 | D31: ='TEMPS-ponton'!D31 -> Gwenaelle MARSAIS-Sophie SEFFAR-Catherine MARTINIER-Christelle GOANVIC-Marie LAMORE | E31: =VLOOKUP(A31,Equipes!A:J,2,FALSE) -> F | F31: =ROUND(VLOOKUP(A31,Equipes!$A$2:$J$41,10,0),0) -> 47 | G31: ='TEMPS-ponton'!G31 -> 10:09:01 | H31: ='TEMPS-poissy'!G31 -> 00:00:00 | I31: ='TEMPS-ponton'!H31 -> 10:42:15 | J31: ='TEMPS-ponton'!I31 -> 11:09:37 | K31: ='TEMPS-poissy'!J31 -> 00:00:00 | L31: ='TEMPS-ponton'!J31 -> 11:42:48 | M31: ='TEMPS-ponton'!K31 -> 12:08:48
A32: ='TEMPS-ponton'!A32 -> 28 | B32: ='TEMPS-ponton'!B32 -> VILLENNES - POISSY AC 1 | C32: ='TEMPS-ponton'!C32 -> ACVP1 | D32: ='TEMPS-ponton'!D32 -> Frederic LE ROUX-Corinne HUARD-ROLLAND-Elodie DEREMIENCE-Marie-Claude LAUNAY-Olivier COSNEAU | E32: =VLOOKUP(A32,Equipes!A:J,2,FALSE) -> M | F32: =ROUND(VLOOKUP(A32,Equipes!$A$2:$J$41,10,0),0) -> 53 | G32: ='TEMPS-ponton'!G32 -> 10:11:10 | H32: ='TEMPS-poissy'!G32 -> 00:00:00 | I32: ='TEMPS-ponton'!H32 -> 10:37:24 | J32: ='TEMPS-ponton'!I32 -> 10:57:26 | K32: ='TEMPS-poissy'!J32 -> 00:00:00 | L32: ='TEMPS-ponton'!J32 -> 11:23:13 | M32: ='TEMPS-ponton'!K32 -> 11:42:17
A33: ='TEMPS-ponton'!A33 -> 29 | B33: ='TEMPS-ponton'!B33 -> FONTAINEBLEAU APF 1 | C33: ='TEMPS-ponton'!C33 -> APF1 | D33: ='TEMPS-ponton'!D33 -> Kathleen SANCHEZ-Laurent FOUQUE-Christian MESSALES-Denis FLORY-David WEBER | E33: =VLOOKUP(A33,Equipes!A:J,2,FALSE) -> H | F33: =ROUND(VLOOKUP(A33,Equipes!$A$2:$J$41,10,0),0) -> 57 | G33: ='TEMPS-ponton'!G33 -> 10:13:00 | H33: ='TEMPS-poissy'!G33 -> 00:00:00 | I33: ='TEMPS-ponton'!H33 -> 10:43:14 | J33: ='TEMPS-ponton'!I33 -> 11:07:12 | K33: ='TEMPS-poissy'!J33 -> 00:00:00 | L33: ='TEMPS-ponton'!J33 -> 11:36:29 | M33: ='TEMPS-ponton'!K33 -> 12:01:05
A34: ='TEMPS-ponton'!A34 -> 30 | B34: ='TEMPS-ponton'!B34 -> JOINVILLE AMJ 1 | C34: ='TEMPS-ponton'!C34 -> AMJ1 | D34: ='TEMPS-ponton'!D34 -> Vincent FABIEN-Arnaud PUPPO-Jonathan ROOKE-Xavier SUCHET-Nicolas JAMAULT | E34: =VLOOKUP(A34,Equipes!A:J,2,FALSE) -> H | F34: =ROUND(VLOOKUP(A34,Equipes!$A$2:$J$41,10,0),0) -> 51 | G34: ='TEMPS-ponton'!G34 -> 10:15:00 | H34: ='TEMPS-poissy'!G34 -> 00:00:00 | I34: ='TEMPS-ponton'!H34 -> 10:42:26 | J34: ='TEMPS-ponton'!I34 -> 11:03:39 | K34: ='TEMPS-poissy'!J34 -> 00:00:00 | L34: ='TEMPS-ponton'!J34 -> 11:30:15 | M34: ='TEMPS-ponton'!K34 -> 11:51:06
A35: ='TEMPS-ponton'!A35 -> 31 | B35: ='TEMPS-ponton'!B35 -> NOGENT SUR MARNE CN 3 | C35: ='TEMPS-ponton'!C35 -> CN3 | D35: ='TEMPS-ponton'!D35 -> Alexandra COHEN SALMON-Isabelle MILON-BANNEROT-Jerome TROMBOFSKY-Olivier PASCAL-Elisabeth LAUNAY | E35: =VLOOKUP(A35,Equipes!A:J,2,FALSE) -> M | F35: =ROUND(VLOOKUP(A35,Equipes!$A$2:$J$41,10,0),0) -> 53 | G35: ='TEMPS-ponton'!G35 -> 10:17:03 | H35: ='TEMPS-poissy'!G35 -> 00:00:00 | I35: ='TEMPS-ponton'!H35 -> 10:49:06 | J35: ='TEMPS-ponton'!I35 -> 11:13:20 | K35: ='TEMPS-poissy'!J35 -> 00:00:00 | L35: ='TEMPS-ponton'!J35 -> 11:47:13 | M35: ='TEMPS-ponton'!K35 -> 12:13:50
A36: ='TEMPS-ponton'!A36 -> 32 | B36: ='TEMPS-ponton'!B36 -> BOULOGNE 92 1 | C36: ='TEMPS-ponton'!C36 -> ACBB1 | D36: ='TEMPS-ponton'!D36 -> Isabelle MAIRE-Théo BEL BERBEL- LURBE-Thã‰Odore SEDAROS-Omar OUAZZANI-Alexandra MENEZES | E36: =VLOOKUP(A36,Equipes!A:J,2,FALSE) -> H | F36: =ROUND(VLOOKUP(A36,Equipes!$A$2:$J$41,10,0),0) -> 43 | G36: ='TEMPS-ponton'!G36 -> 00:00:00 | H36: ='TEMPS-poissy'!G36 -> 00:00:00 | I36: ='TEMPS-ponton'!H36 -> 00:00:00 | J36: ='TEMPS-ponton'!I36 -> 00:00:00 | K36: ='TEMPS-poissy'!J36 -> 00:00:00 | L36: ='TEMPS-ponton'!J36 -> 00:00:00 | M36: ='TEMPS-ponton'!K36 -> 00:00:00
A37: ='TEMPS-ponton'!A37 -> 33 | B37: ='TEMPS-ponton'!B37 -> XX | C37: ='TEMPS-ponton'!C37 -> XX | D37: ='TEMPS-ponton'!D37 -> XX-XX-XX-XX-XX | E37: =VLOOKUP(A37,Equipes!A:J,2,FALSE) -> X | F37: =ROUND(VLOOKUP(A37,Equipes!$A$2:$J$41,10,0),0) -> 0 | G37: ='TEMPS-ponton'!G37 -> 00:00:00 | H37: ='TEMPS-poissy'!G37 -> 00:00:00 | I37: ='TEMPS-ponton'!H37 -> 00:00:00 | J37: ='TEMPS-ponton'!I37 -> 00:00:00 | K37: ='TEMPS-poissy'!J37 -> 00:00:00 | L37: ='TEMPS-ponton'!J37 -> 00:00:00 | M37: ='TEMPS-ponton'!K37 -> 00:00:00
A38: ='TEMPS-ponton'!A38 -> 34 | B38: ='TEMPS-ponton'!B38 -> XX | C38: ='TEMPS-ponton'!C38 -> XX | D38: ='TEMPS-ponton'!D38 -> XX-XX-XX-XX-XX | E38: =VLOOKUP(A38,Equipes!A:J,2,FALSE) -> X | F38: =ROUND(VLOOKUP(A38,Equipes!$A$2:$J$41,10,0),0) -> 0 | G38: ='TEMPS-ponton'!G38 -> 10:19:09 | H38: ='TEMPS-poissy'!G38 -> 00:00:00 | I38: ='TEMPS-ponton'!H38 -> 00:00:00 | J38: ='TEMPS-ponton'!I38 -> 10:54:26 | K38: ='TEMPS-poissy'!J38 -> 00:00:00 | L38: ='TEMPS-ponton'!J38 -> 00:00:00 | M38: ='TEMPS-ponton'!K38 -> 11:24:06
A39: ='TEMPS-ponton'!A39 -> 35 | B39: ='TEMPS-ponton'!B39 -> XX | C39: ='TEMPS-ponton'!C39 -> XX | D39: ='TEMPS-ponton'!D39 -> XX-XX-XX-XX-XX | E39: =VLOOKUP(A39,Equipes!A:J,2,FALSE) -> X | F39: =ROUND(VLOOKUP(A39,Equipes!$A$2:$J$41,10,0),0) -> 0 | G39: ='TEMPS-ponton'!G39 -> 00:00:00 | H39: ='TEMPS-poissy'!G39 -> 00:00:00 | I39: ='TEMPS-ponton'!H39 -> 00:00:00 | J39: ='TEMPS-ponton'!I39 -> 00:00:00 | K39: ='TEMPS-poissy'!J39 -> 00:00:00 | L39: ='TEMPS-ponton'!J39 -> 00:00:00 | M39: ='TEMPS-ponton'!K39 -> 00:00:00
A40: ='TEMPS-ponton'!A40 -> 36 | B40: ='TEMPS-ponton'!B40 -> XX | C40: ='TEMPS-ponton'!C40 -> XX | D40: ='TEMPS-ponton'!D40 -> XX-XX-XX-XX-XX | E40: =VLOOKUP(A40,Equipes!A:J,2,FALSE) -> X | F40: =ROUND(VLOOKUP(A40,Equipes!$A$2:$J$41,10,0),0) -> 0 | G40: ='TEMPS-ponton'!G40 -> 00:00:00 | H40: ='TEMPS-poissy'!G40 -> 00:00:00 | I40: ='TEMPS-ponton'!H40 -> 00:00:00 | J40: ='TEMPS-ponton'!I40 -> 00:00:00 | K40: ='TEMPS-poissy'!J40 -> 00:00:00 | L40: ='TEMPS-ponton'!J40 -> 00:00:00 | M40: ='TEMPS-ponton'!K40 -> 00:00:00
A41: ='TEMPS-ponton'!A41 -> 37 | B41: ='TEMPS-ponton'!B41 -> XX | C41: ='TEMPS-ponton'!C41 -> XX | D41: ='TEMPS-ponton'!D41 -> XX-XX-XX-XX-XX | E41: =VLOOKUP(A41,Equipes!A:J,2,FALSE) -> X | F41: =ROUND(VLOOKUP(A41,Equipes!$A$2:$J$41,10,0),0) -> 0 | G41: ='TEMPS-ponton'!G41 -> 00:00:00 | H41: ='TEMPS-poissy'!G41 -> 00:00:00 | I41: ='TEMPS-ponton'!H41 -> 00:00:00 | J41: ='TEMPS-ponton'!I41 -> 00:00:00 | K41: ='TEMPS-poissy'!J41 -> 00:00:00 | L41: ='TEMPS-ponton'!J41 -> 00:00:00 | M41: ='TEMPS-ponton'!K41 -> 00:00:00
A42: ='TEMPS-ponton'!A42 -> 38 | B42: ='TEMPS-ponton'!B42 -> XX | C42: ='TEMPS-ponton'!C42 -> XX | D42: ='TEMPS-ponton'!D42 -> XX-XX-XX-XX-XX | E42: =VLOOKUP(A42,Equipes!A:J,2,FALSE) -> X | F42: =ROUND(VLOOKUP(A42,Equipes!$A$2:$J$41,10,0),0) -> 0 | G42: ='TEMPS-ponton'!G42 -> 00:00:00 | H42: ='TEMPS-poissy'!G42 -> 00:00:00 | I42: ='TEMPS-ponton'!H42 -> 00:00:00 | J42: ='TEMPS-ponton'!I42 -> 00:00:00 | K42: ='TEMPS-poissy'!J42 -> 00:00:00 | L42: ='TEMPS-ponton'!J42 -> 00:00:00 | M42: ='TEMPS-ponton'!K42 -> 00:00:00
A43: ='TEMPS-ponton'!A43 -> 39 | B43: ='TEMPS-ponton'!B43 -> XX | C43: ='TEMPS-ponton'!C43 -> XX | D43: ='TEMPS-ponton'!D43 -> XX-XX-XX-XX-XX | E43: =VLOOKUP(A43,Equipes!A:J,2,FALSE) -> X | F43: =ROUND(VLOOKUP(A43,Equipes!$A$2:$J$41,10,0),0) -> 0 | G43: ='TEMPS-ponton'!G43 -> 00:00:00 | H43: ='TEMPS-poissy'!G43 -> 00:00:00 | I43: ='TEMPS-ponton'!H43 -> 00:00:00 | J43: ='TEMPS-ponton'!I43 -> 00:00:00 | K43: ='TEMPS-poissy'!J43 -> 00:00:00 | L43: ='TEMPS-ponton'!J43 -> 00:00:00 | M43: ='TEMPS-ponton'!K43 -> 00:00:00
A44: ='TEMPS-ponton'!A44 -> 40 | B44: ='TEMPS-ponton'!B44 -> XX | C44: ='TEMPS-ponton'!C44 -> XX | D44: ='TEMPS-ponton'!D44 -> XX-XX-XX-XX-XX | E44: =VLOOKUP(A44,Equipes!A:J,2,FALSE) -> X | F44: =ROUND(VLOOKUP(A44,Equipes!$A$2:$J$41,10,0),0) -> 0 | G44: ='TEMPS-ponton'!G44 -> 00:00:00 | H44: ='TEMPS-poissy'!G44 -> 00:00:00 | I44: ='TEMPS-ponton'!H44 -> 00:00:00 | J44: ='TEMPS-ponton'!I44 -> 00:00:00 | K44: ='TEMPS-poissy'!J44 -> 00:00:00 | L44: ='TEMPS-ponton'!J44 -> 00:00:00 | M44: ='TEMPS-ponton'!K44 -> 00:00:00

Sheet Temps Pass
A1: GRAND 8 | D1: ='Note explicative fichier'!E3 -> 2024-06-02 | G1: Tableau des Temps de passages
A3: Yolette N° | B3: Club | C3: Ville | D3: Equipage | E3: Cat. | F3: Age Moy. | G3: Poissy-1 | H3: 1 / 4 G-8 | I3: 1 / 2 G-8 | J3: Poissy-2 | K3: 3 / 4 G-8 | L3: Arrivée
A4: ='TEMPS-ponton'!A4 -> Record | B4: ='TEMPS-ponton'!B4 -> POLYTECHNIQUE ( Référence 2012 ) | C4: ='TEMPS-ponton'!C4 -> Palaiseau | D4: ='TEMPS-ponton'!D4 -> FERRERO Michel - Alexandre Rosinski - BOYAUD Mathieu - GODDE Olivier - THECKES Benoit | G4: ='Heures Pass'!H4-'Heures Pass'!$G4 -> -0.365625 | H4: ='Heures Pass'!I4-'Heures Pass'!$G4 -> 00:23:35 | I4: ='Heures Pass'!J4-'Heures Pass'!$G4 -> 00:40:41 | J4: ='Heures Pass'!K4-'Heures Pass'!$G4 -> -0.365625 | K4: ='Heures Pass'!L4-'Heures Pass'!$G4 -> 01:04:34 | L4: ='Heures Pass'!M4-'Heures Pass'!$G4 -> 01:21:48
A5: ='TEMPS-ponton'!A5 -> 1 | B5: ='TEMPS-ponton'!B5 -> ANDRESY CA CONFLUENT 1 | C5: ='TEMPS-ponton'!C5 -> Cac1 | D5: ='TEMPS-ponton'!D5 -> Stephanie LAPORTE-Marine NACERI-Marc LACCASSAGNE-Stephane ZETTWOOG-Fouzia VOIRIN | E5: =VLOOKUP(A5,Equipes!A:J,2,FALSE) -> M | F5: =ROUND(VLOOKUP(A5,Equipes!$A$2:$J$41,10,0),0) -> 49 | G5: ='Heures Pass'!H5-'Heures Pass'!$G5 -> -0.3859143519 | H5: ='Heures Pass'!I5-'Heures Pass'!$G5 -> 00:33:20 | I5: ='Heures Pass'!J5-'Heures Pass'!$G5 -> 00:57:57 | J5: ='Heures Pass'!K5-'Heures Pass'!$G5 -> -0.3859143519 | K5: ='Heures Pass'!L5-'Heures Pass'!$G5 -> 01:27:46 | L5: ='Heures Pass'!M5-'Heures Pass'!$G5 -> 01:51:53
A6: ='TEMPS-ponton'!A6 -> 2 | B6: ='TEMPS-ponton'!B6 -> CAUDEBEC EN CAUX ACVS 1 | C6: ='TEMPS-ponton'!C6 -> Caudebec | D6: ='TEMPS-ponton'!D6 -> Martine NARBAIS-JAUREGUY-Caroline KERVRANN-Stephane DELAMARE-Nicolas BARRAY-Francois NARBAIS-JAUREGUY | E6: =VLOOKUP(A6,Equipes!A:J,2,FALSE) -> M | F6: =ROUND(VLOOKUP(A6,Equipes!$A$2:$J$41,10,0),0) -> 55 | G6: ='Heures Pass'!H6-'Heures Pass'!$G6 -> -0.387962963 | H6: ='Heures Pass'!I6-'Heures Pass'!$G6 -> 00:30:08 | I6: ='Heures Pass'!J6-'Heures Pass'!$G6 -> 00:52:22 | J6: ='Heures Pass'!K6-'Heures Pass'!$G6 -> -0.387962963 | K6: ='Heures Pass'!L6-'Heures Pass'!$G6 -> 01:21:30 | L6: ='Heures Pass'!M6-'Heures Pass'!$G6 -> 01:43:47
A7: ='TEMPS-ponton'!A7 -> 3 | B7: ='TEMPS-ponton'!B7 -> ANDRESY CA CONFLUENT 2 | C7: ='TEMPS-ponton'!C7 -> CAC 2 | D7: ='TEMPS-ponton'!D7 -> Anna ALCALOIDEPOIXBLANC-Geoffrey GHIZZONI-Nathalie BOURGEOIS-Franck CHRISTIANNOT-NicOLAS delaunoy | E7: =VLOOKUP(A7,Equipes!A:J,2,FALSE) -> M | F7: =ROUND(VLOOKUP(A7,Equipes!$A$2:$J$41,10,0),0) -> 55 | G7: ='Heures Pass'!H7-'Heures Pass'!$G7 -> -0.3893518519 | H7: ='Heures Pass'!I7-'Heures Pass'!$G7 -> 00:33:48 | I7: ='Heures Pass'!J7-'Heures Pass'!$G7 -> 01:00:49 | J7: ='Heures Pass'!K7-'Heures Pass'!$G7 -> -0.3893518519 | K7: ='Heures Pass'!L7-'Heures Pass'!$G7 -> 01:32:13 | L7: ='Heures Pass'!M7-'Heures Pass'!$G7 -> 01:57:49
A8: ='TEMPS-ponton'!A8 -> 4 | B8: ='TEMPS-ponton'!B8 -> ANDRESY CA CONFLUENT 1 | C8: ='TEMPS-ponton'!C8 -> CAC3 | D8: ='TEMPS-ponton'!D8 -> Emmanuel SALIN-Ousseni PARKOUDA-Jean-Baptiste PROVENZANO-Jerome CLAVE-Julian GALLELA | E8: =VLOOKUP(A8,Equipes!A:J,2,FALSE) -> H | F8: =ROUND(VLOOKUP(A8,Equipes!$A$2:$J$41,10,0),0) -> 46 | G8: ='Heures Pass'!H8-'Heures Pass'!$G8 -> -0.3907523148 | H8: ='Heures Pass'!I8-'Heures Pass'!$G8 -> 00:29:45 | I8: ='Heures Pass'!J8-'Heures Pass'!$G8 -> 00:53:48 | J8: ='Heures Pass'!K8-'Heures Pass'!$G8 -> -0.3907523148 | K8: ='Heures Pass'!L8-'Heures Pass'!$G8 -> 01:22:46 | L8: ='Heures Pass'!M8-'Heures Pass'!$G8 -> 01:47:27
A9: ='TEMPS-ponton'!A9 -> 5 | B9: ='TEMPS-ponton'!B9 -> PORT-MARLY RC 1 | C9: ='TEMPS-ponton'!C9 -> RCPM | D9: ='TEMPS-ponton'!D9 -> Claudie BODIN-Fanny LAMOUR-Etienne DUPUIS-Jeancharles FAUCHEUX-Gildas KETTANJIAN | E9: =VLOOKUP(A9,Equipes!A:J,2,FALSE) -> M | F9: =ROUND(VLOOKUP(A9,Equipes!$A$2:$J$41,10,0),0) -> 50 | G9: ='Heures Pass'!H9-'Heures Pass'!$G9 -> -0.3921296296 | H9: ='Heures Pass'!I9-'Heures Pass'!$G9 -> 00:30:28 | I9: ='Heures Pass'!J9-'Heures Pass'!$G9 -> 00:54:34 | J9: ='Heures Pass'!K9-'Heures Pass'!$G9 -> -0.3921296296 | K9: ='Heures Pass'!L9-'Heures Pass'!$G9 -> 01:24:58 | L9: ='Heures Pass'!M9-'Heures Pass'!$G9 -> 01:49:12
A10: ='TEMPS-ponton'!A10 -> 6 | B10: ='TEMPS-ponton'!B10 -> BOULOGNE 92 2 | C10: ='TEMPS-ponton'!C10 -> ACBB | D10: ='TEMPS-ponton'!D10 -> CéLia ROUSSELLE-Marie Pierre MARSALLON GAMBY-Françis ROBIN-Nicolas LECOEUR-Theodora XENOGIANI | E10: =VLOOKUP(A10,Equipes!A:J,2,FALSE) -> M | F10: =ROUND(VLOOKUP(A10,Equipes!$A$2:$J$41,10,0),0) -> 46 | G10: ='Heures Pass'!H10-'Heures Pass'!$G10 -> -0.3934143519 | H10: ='Heures Pass'!I10-'Heures Pass'!$G10 -> 00:28:29 | I10: ='Heures Pass'!J10-'Heures Pass'!$G10 -> 00:50:41 | J10: ='Heures Pass'!K10-'Heures Pass'!$G10 -> -0.3934143519 | K10: ='Heures Pass'!L10-'Heures Pass'!$G10 -> 01:18:27 | L10: ='Heures Pass'!M10-'Heures Pass'!$G10 -> 01:39:43
A11: ='TEMPS-ponton'!A11 -> 7 | B11: ='TEMPS-ponton'!B11 -> VILLENNES - POISSY AC 3 | C11: ='TEMPS-ponton'!C11 -> ACVP | D11: ='TEMPS-ponton'!D11 -> Virginie ALEXANDRE-Jihad LEMARQRI-Cyrille BRUZON-BASCOU-Sebastien CARPENTIER-Marie Estelle D'ARBAUMONT | E11: =VLOOKUP(A11,Equipes!A:J,2,FALSE) -> M | F11: =ROUND(VLOOKUP(A11,Equipes!$A$2:$J$41,10,0),0) -> 49 | G11: ='Heures Pass'!H11-'Heures Pass'!$G11 -> -0.3945601852 | H11: ='Heures Pass'!I11-'Heures Pass'!$G11 -> 00:28:45 | I11: ='Heures Pass'!J11-'Heures Pass'!$G11 -> 00:51:27 | J11: ='Heures Pass'!K11-'Heures Pass'!$G11 -> -0.3945601852 | K11: ='Heures Pass'!L11-'Heures Pass'!$G11 -> 01:19:20 | L11: ='Heures Pass'!M11-'Heures Pass'!$G11 -> 01:41:29
A12: ='TEMPS-ponton'!A12 -> 8 | B12: ='TEMPS-ponton'!B12 -> JOINVILLE AMJ 1 | C12: ='TEMPS-ponton'!C12 -> Joinville | D12: ='TEMPS-ponton'!D12 -> Laurent BAUDOIN-Raphaelle BOUVIER FLORY-Sophie BUSTOS-Kastriot JAKA-Thomas AUGER | E12: =VLOOKUP(A12,Equipes!A:J,2,FALSE) -> M | F12: =ROUND(VLOOKUP(A12,Equipes!$A$2:$J$41,10,0),0) -> 46 | G12: ='Heures Pass'!H12-'Heures Pass'!$G12 -> -0.3960648148 | H12: ='Heures Pass'!I12-'Heures Pass'!$G12 -> 00:27:35 | I12: ='Heures Pass'!J12-'Heures Pass'!$G12 -> 00:48:05 | J12: ='Heures Pass'!K12-'Heures Pass'!$G12 -> -0.3960648148 | K12: ='Heures Pass'!L12-'Heures Pass'!$G12 -> 01:13:43 | L12: ='Heures Pass'!M12-'Heures Pass'!$G12 -> 01:33:32
A13: ='TEMPS-ponton'!A13 -> 9 | B13: ='TEMPS-ponton'!B13 -> NOGENT SUR MARNE CN 1 | C13: ='TEMPS-ponton'!C13 -> CN 1 | D13: ='TEMPS-ponton'!D13 -> Chrystelle SUPIOT-Caroline PIEDNOIRE-Olivier MUCIGNAT-Andre SIMONNET-Fabienne LORTIE | E13: =VLOOKUP(A13,Equipes!A:J,2,FALSE) -> M | F13: =ROUND(VLOOKUP(A13,Equipes!$A$2:$J$41,10,0),0) -> 53 | G13: ='Heures Pass'!H13-'Heures Pass'!$G13 -> -0.3974421296 | H13: ='Heures Pass'!I13-'Heures Pass'!$G13 -> 00:28:48 | I13: ='Heures Pass'!J13-'Heures Pass'!$G13 -> 00:50:22 | J13: ='Heures Pass'!K13-'Heures Pass'!$G13 -> -0.3974421296 | K13: ='Heures Pass'!L13-'Heures Pass'!$G13 -> 01:19:39 | L13: ='Heures Pass'!M13-'Heures Pass'!$G13 -> 01:43:36
A14: ='TEMPS-ponton'!A14 -> 10 | B14: ='TEMPS-ponton'!B14 -> NOGENT SUR MARNE CN 2 | C14: ='TEMPS-ponton'!C14 -> CN2 | D14: ='TEMPS-ponton'!D14 -> Christophe RUCKEBUSCH-Nicolas BURCKHART-Alice GHEERBRANT-Aurelie DONVAL-Gerard LECA | E14: =VLOOKUP(A14,Equipes!A:J,2,FALSE) -> M | F14: =ROUND(VLOOKUP(A14,Equipes!$A$2:$J$41,10,0),0) -> 53 | G14: ='Heures Pass'!H14-'Heures Pass'!$G14 -> -0.3988310185 | H14: ='Heures Pass'!I14-'Heures Pass'!$G14 -> 00:27:14 | I14: ='Heures Pass'!J14-'Heures Pass'!$G14 -> 00:47:45 | J14: ='Heures Pass'!K14-'Heures Pass'!$G14 -> -0.3988310185 | K14: ='Heures Pass'!L14-'Heures Pass'!$G14 -> 01:15:26 | L14: ='Heures Pass'!M14-'Heures Pass'!$G14 -> 01:36:54
A15: ='TEMPS-ponton'!A15 -> 11 | B15: ='TEMPS-ponton'!B15 -> BOULOGNE 92 1 | C15: ='TEMPS-ponton'!C15 -> ACBB | D15: ='TEMPS-ponton'!D15 -> Viviane BALLOY-Timothé BAZIRIES-Alexandre LE FUR-Sigrid PABST-Michel VEDRINE | E15: =VLOOKUP(A15,Equipes!A:J,2,FALSE) -> H | F15: =ROUND(VLOOKUP(A15,Equipes!$A$2:$J$41,10,0),0) -> 51 | G15: ='Heures Pass'!H15-'Heures Pass'!$G15 -> -0.4002314815 | H15: ='Heures Pass'!I15-'Heures Pass'!$G15 -> 00:30:07 | I15: ='Heures Pass'!J15-'Heures Pass'!$G15 -> 00:54:40 | J15: ='Heures Pass'!K15-'Heures Pass'!$G15 -> -0.4002314815 | K15: ='Heures Pass'!L15-'Heures Pass'!$G15 -> 00:25:55 | L15: ='Heures Pass'!M15-'Heures Pass'!$G15 -> 01:50:55
A16: ='TEMPS-ponton'!A16 -> 12 | B16: ='TEMPS-ponton'!B16 -> EVRY SCA 2 | C16: ='TEMPS-ponton'!C16 -> SCA2 | D16: ='TEMPS-ponton'!D16 -> Laurent YEBOAH-Isabelle MOISSET FLEURISSON-Frederic DUCAUQUY-Sandrine GARCIA-Christelle MARTIN | E16: =VLOOKUP(A16,Equipes!A:J,2,FALSE) -> M | F16: =ROUND(VLOOKUP(A16,Equipes!$A$2:$J$41,10,0),0) -> 48 | G16: ='Heures Pass'!H16-'Heures Pass'!$G16 -> -0.4016087963 | H16: ='Heures Pass'!I16-'Heures Pass'!$G16 -> 00:26:14 | I16: ='Heures Pass'!J16-'Heures Pass'!$G16 -> 00:46:23 | J16: ='Heures Pass'!K16-'Heures Pass'!$G16 -> -0.4016087963 | K16: ='Heures Pass'!L16-'Heures Pass'!$G16 -> 01:12:15 | L16: ='Heures Pass'!M16-'Heures Pass'!$G16 -> 01:31:53
A17: ='TEMPS-ponton'!A17 -> 13 | B17: ='TEMPS-ponton'!B17 -> PORT-MARLY RC 2 | C17: ='TEMPS-ponton'!C17 -> RCPM2 | D17: ='TEMPS-ponton'!D17 -> Elsa CROZATIER-Cyrielle BERTHIER-Hervé Valette-Eric MOINARD-Anais FEUGA | E17: =VLOOKUP(A17,Equipes!A:J,2,FALSE) -> M | F17: =ROUND(VLOOKUP(A17,Equipes!$A$2:$J$41,10,0),0) -> 47 | G17: ='Heures Pass'!H17-'Heures Pass'!$G17 -> -0.4030208333 | H17: ='Heures Pass'!I17-'Heures Pass'!$G17 -> 00:25:34 | I17: ='Heures Pass'!J17-'Heures Pass'!$G17 -> 00:45:45 | J17: ='Heures Pass'!K17-'Heures Pass'!$G17 -> -0.4030208333 | K17: ='Heures Pass'!L17-'Heures Pass'!$G17 -> 01:11:15 | L17: ='Heures Pass'!M17-'Heures Pass'!$G17 -> 01:31:59
A18: ='TEMPS-ponton'!A18 -> 14 | B18: ='TEMPS-ponton'!B18 -> MAISONS MESNIL CERAMM 1 | C18: ='TEMPS-ponton'!C18 -> CERAMM1 | D18: ='TEMPS-ponton'!D18 -> Nicolas SCHMITT-Gloria VENDRELL-Christine MARIE LAVAUD-Amaury DE LA LAURENCIE-Amina ELABBADI | E18: =VLOOKUP(A18,Equipes!A:J,2,FALSE) -> M | F18: =ROUND(VLOOKUP(A18,Equipes!$A$2:$J$41,10,0),0) -> 50 | G18: ='Heures Pass'!H18-'Heures Pass'!$G18 -> -0.4045023148 | H18: ='Heures Pass'!I18-'Heures Pass'!$G18 -> 00:28:28 | I18: ='Heures Pass'!J18-'Heures Pass'!$G18 -> 00:49:52 | J18: ='Heures Pass'!K18-'Heures Pass'!$G18 -> -0.4045023148 | K18: ='Heures Pass'!L18-'Heures Pass'!$G18 -> 01:19:15 | L18: ='Heures Pass'!M18-'Heures Pass'!$G18 -> 01:42:15
A19: ='TEMPS-ponton'!A19 -> 15 | B19: ='TEMPS-ponton'!B19 -> SOISY SUR SEINE CN 1 | C19: ='TEMPS-ponton'!C19 -> CN1 | D19: ='TEMPS-ponton'!D19 -> Bertrand PIOGER-Bruno PERIQUOI-Servane BERTRAND-Alain BERNARD-Robert TRAUET | E19: =VLOOKUP(A19,Equipes!A:J,2,FALSE) -> H | F19: =ROUND(VLOOKUP(A19,Equipes!$A$2:$J$41,10,0),0) -> 54 | G19: ='Heures Pass'!H19-'Heures Pass'!$G19 -> -0.4058796296 | H19: ='Heures Pass'!I19-'Heures Pass'!$G19 -> 00:27:25 | I19: ='Heures Pass'!J19-'Heures Pass'!$G19 -> 00:47:07 | J19: ='Heures Pass'!K19-'Heures Pass'!$G19 -> -0.4058796296 | K19: ='Heures Pass'!L19-'Heures Pass'!$G19 -> 01:12:51 | L19: ='Heures Pass'!M19-'Heures Pass'!$G19 -> 01:34:08
A20: ='TEMPS-ponton'!A20 -> 16 | B20: ='TEMPS-ponton'!B20 -> PORT-MARLY RC 1 | C20: ='TEMPS-ponton'!C20 -> RCPM1 | D20: ='TEMPS-ponton'!D20 -> Jean-Claude LAFOREST-David CHARTIER-Christophe MARCAIS-Vincent BONTOUX-Alain ROUSSEAU | E20: =VLOOKUP(A20,Equipes!A:J,2,FALSE) -> H | F20: =ROUND(VLOOKUP(A20,Equipes!$A$2:$J$41,10,0),0) -> 55 | G20: ='Heures Pass'!H20-'Heures Pass'!$G20 -> -0.4072800926 | H20: ='Heures Pass'!I20-'Heures Pass'!$G20 -> 00:25:06 | I20: ='Heures Pass'!J20-'Heures Pass'!$G20 -> 00:43:56 | J20: ='Heures Pass'!K20-'Heures Pass'!$G20 -> -0.4072800926 | K20: ='Heures Pass'!L20-'Heures Pass'!$G20 -> 01:07:04 | L20: ='Heures Pass'!M20-'Heures Pass'!$G20 -> 01:25:25
A21: ='TEMPS-ponton'!A21 -> 17 | B21: ='TEMPS-ponton'!B21 -> ANDRESY CA CONFLUENT 1 | C21: ='TEMPS-ponton'!C21 -> CAC1 | D21: ='TEMPS-ponton'!D21 -> Daphne PARIZOT-Agnes BURGHGRAEVE SELLEN-Sylvie FRANSSEN-Severine LEGAILLARD-Martine LE ROUX | E21: =VLOOKUP(A21,Equipes!A:J,2,FALSE) -> F | F21: =ROUND(VLOOKUP(A21,Equipes!$A$2:$J$41,10,0),0) -> 55 | G21: ='Heures Pass'!H21-'Heures Pass'!$G21 -> -0.4083449074 | H21: ='Heures Pass'!I21-'Heures Pass'!$G21 -> 00:33:58 | I21: ='Heures Pass'!J21-'Heures Pass'!$G21 -> 00:59:40 | J21: ='Heures Pass'!K21-'Heures Pass'!$G21 -> -0.4083449074 | K21: ='Heures Pass'!L21-'Heures Pass'!$G21 -> 01:34:01 | L21: ='Heures Pass'!M21-'Heures Pass'!$G21 -> 02:01:10
A22: ='TEMPS-ponton'!A22 -> 18 | B22: ='TEMPS-ponton'!B22 -> MAISONS MESNIL CERAMM 2 | C22: ='TEMPS-ponton'!C22 -> CERAMM2 | D22: ='TEMPS-ponton'!D22 -> Claude LEMENAGER-Didier GIRARDEAU-Laurent LIBOTTE-Alain GIRARD-Cecile JEAMMES | E22: =VLOOKUP(A22,Equipes!A:J,2,FALSE) -> H | F22: =ROUND(VLOOKUP(A22,Equipes!$A$2:$J$41,10,0),0) -> 58 | G22: ='Heures Pass'!H22-'Heures Pass'!$G22 -> -0.4104050926 | H22: ='Heures Pass'!I22-'Heures Pass'!$G22 -> 00:28:50 | I22: ='Heures Pass'!J22-'Heures Pass'!$G22 -> 00:51:09 | J22: ='Heures Pass'!K22-'Heures Pass'!$G22 -> -0.4104050926 | K22: ='Heures Pass'!L22-'Heures Pass'!$G22 -> 01:19:31 | L22: ='Heures Pass'!M22-'Heures Pass'!$G22 -> 01:41:38
A23: ='TEMPS-ponton'!A23 -> 19 | B23: ='TEMPS-ponton'!B23 -> VILLENNES - POISSY AC 1 | C23: ='TEMPS-ponton'!C23 -> ACVP1 | D23: ='TEMPS-ponton'!D23 -> Olivier POLGE-Odile POLGE-Laurent BONHOMMET-Antoine VOLPI-Philippe STROHM | E23: =VLOOKUP(A23,Equipes!A:J,2,FALSE) -> H | F23: =ROUND(VLOOKUP(A23,Equipes!$A$2:$J$41,10,0),0) -> 55 | G23: ='Heures Pass'!H23-'Heures Pass'!$G23 -> -0.4118055556 | H23: ='Heures Pass'!I23-'Heures Pass'!$G23 -> 00:29:56 | I23: ='Heures Pass'!J23-'Heures Pass'!$G23 -> 00:52:02 | J23: ='Heures Pass'!K23-'Heures Pass'!$G23 -> -0.4118055556 | K23: ='Heures Pass'!L23-'Heures Pass'!$G23 -> 01:19:47 | L23: ='Heures Pass'!M23-'Heures Pass'!$G23 -> 01:40:56
A24: ='TEMPS-ponton'!A24 -> 20 | B24: ='TEMPS-ponton'!B24 -> ROUEN CNAR 1 | C24: ='TEMPS-ponton'!C24 -> CNAR1 | D24: ='TEMPS-ponton'!D24 -> Nathalie MOUSSET-Francois LAIR-Betty GESLAIN-Thierry DUCHESNE-Stephane MOUSSET | E24: =VLOOKUP(A24,Equipes!A:J,2,FALSE) -> M | F24: =ROUND(VLOOKUP(A24,Equipes!$A$2:$J$41,10,0),0) -> 55 | G24: ='Heures Pass'!H24-'Heures Pass'!$G24 -> -0.4131944444 | H24: ='Heures Pass'!I24-'Heures Pass'!$G24 -> 00:28:53 | I24: ='Heures Pass'!J24-'Heures Pass'!$G24 -> 00:50:41 | J24: ='Heures Pass'!K24-'Heures Pass'!$G24 -> -0.4131944444 | K24: ='Heures Pass'!L24-'Heures Pass'!$G24 -> 01:17:10 | L24: ='Heures Pass'!M24-'Heures Pass'!$G24 -> 01:37:13
A25: ='TEMPS-ponton'!A25 -> 21 | B25: ='TEMPS-ponton'!B25 -> PORT-MARLY RC 2 | C25: ='TEMPS-ponton'!C25 -> RCPM2 | D25: ='TEMPS-ponton'!D25 -> Guillaume CHARRON-Philippe VERHE-Stephan REYNIER-Dominique LEROUX-Luciano AUTUNNALE | E25: =VLOOKUP(A25,Equipes!A:J,2,FALSE) -> H | F25: =ROUND(VLOOKUP(A25,Equipes!$A$2:$J$41,10,0),0) -> 51 | G25: ='Heures Pass'!H25-'Heures Pass'!$G25 -> -0.4145833333 | H25: ='Heures Pass'!I25-'Heures Pass'!$G25 -> 00:25:28 | I25: ='Heures Pass'!J25-'Heures Pass'!$G25 -> 00:46:04 | J25: ='Heures Pass'!K25-'Heures Pass'!$G25 -> -0.4145833333 | K25: ='Heures Pass'!L25-'Heures Pass'!$G25 -> 01:11:43 | L25: ='Heures Pass'!M25-'Heures Pass'!$G25 -> 01:31:40
A26: ='TEMPS-ponton'!A26 -> 22 | B26: ='TEMPS-ponton'!B26 -> COUDRAY MONTCEAUX A 1 | C26: ='TEMPS-ponton'!C26 -> coudray1 | D26: ='TEMPS-ponton'!D26 -> Joseph RAYNAUD-Frederic MORAT-Benjamin HOUILLON-Pascal BEAUSSART-Anne HOUAL | E26: =VLOOKUP(A26,Equipes!A:J,2,FALSE) -> H | F26: =ROUND(VLOOKUP(A26,Equipes!$A$2:$J$41,10,0),0) -> 52 | G26: ='Heures Pass'!H26-'Heures Pass'!$G26 -> -0.4159722222 | H26: ='Heures Pass'!I26-'Heures Pass'!$G26 -> 00:29:10 | I26: ='Heures Pass'!J26-'Heures Pass'!$G26 -> 00:51:40 | J26: ='Heures Pass'!K26-'Heures Pass'!$G26 -> -0.4159722222 | K26: ='Heures Pass'!L26-'Heures Pass'!$G26 -> 01:19:43 | L26: ='Heures Pass'!M26-'Heures Pass'!$G26 -> 01:41:46
A27: ='TEMPS-ponton'!A27 -> 23 | B27: ='TEMPS-ponton'!B27 -> SN OISE 1 | C27: ='TEMPS-ponton'!C27 -> SN Oise 1 | D27: ='TEMPS-ponton'!D27 -> Agnes AUDEBERT-Nicolas RAUCH-Jerome ROUGE-Nathalie BAUDIER-Isabelle JOUBERT | E27: =VLOOKUP(A27,Equipes!A:J,2,FALSE) -> M | F27: =ROUND(VLOOKUP(A27,Equipes!$A$2:$J$41,10,0),0) -> 50 | G27: ='Heures Pass'!H27-'Heures Pass'!$G27 -> -0.4166666667 | H27: ='Heures Pass'!I27-'Heures Pass'!$G27 -> 00:31:24 | I27: ='Heures Pass'!J27-'Heures Pass'!$G27 -> 00:56:32 | J27: ='Heures Pass'!K27-'Heures Pass'!$G27 -> -0.4166666667 | K27: ='Heures Pass'!L27-'Heures Pass'!$G27 -> 01:28:06 | L27: ='Heures Pass'!M27-'Heures Pass'!$G27 -> 01:53:02
A28: ='TEMPS-ponton'!A28 -> 24 | B28: ='TEMPS-ponton'!B28 -> MEULAN LES MUREAUX AMMH 1 | C28: ='TEMPS-ponton'!C28 -> AMMH1 | D28: ='TEMPS-ponton'!D28 -> Xavier MARSAIS-Eric PRENEY-Yannick DAGMEY-David COINE-Arthur VAN SLOOTEN | E28: =VLOOKUP(A28,Equipes!A:J,2,FALSE) -> H | F28: =ROUND(VLOOKUP(A28,Equipes!$A$2:$J$41,10,0),0) -> 53 | G28: ='Heures Pass'!H28-'Heures Pass'!$G28 -> -0.4187384259 | H28: ='Heures Pass'!I28-'Heures Pass'!$G28 -> 00:26:43 | I28: ='Heures Pass'!J28-'Heures Pass'!$G28 -> 00:47:59 | J28: ='Heures Pass'!K28-'Heures Pass'!$G28 -> -0.4187384259 | K28: ='Heures Pass'!L28-'Heures Pass'!$G28 -> 01:15:59 | L28: ='Heures Pass'!M28-'Heures Pass'!$G28 -> 01:36:04
A29: ='TEMPS-ponton'!A29 -> 25 | B29: ='TEMPS-ponton'!B29 -> VILLENNES - POISSY AC 2 | C29: ='TEMPS-ponton'!C29 -> ACVP2 | D29: ='TEMPS-ponton'!D29 -> Franck CARIOU-Michael LE BANNER-Valerie DECAESTECKER-Karine GUILBON-Christophe ELINE | E29: =VLOOKUP(A29,Equipes!A:J,2,FALSE) -> M | F29: =ROUND(VLOOKUP(A29,Equipes!$A$2:$J$41,10,0),0) -> 54 | G29: ='Heures Pass'!H29-'Heures Pass'!$G29 -> -0.420150463 | H29: ='Heures Pass'!I29-'Heures Pass'!$G29 -> 00:26:38 | I29: ='Heures Pass'!J29-'Heures Pass'!$G29 -> 00:47:47 | J29: ='Heures Pass'!K29-'Heures Pass'!$G29 -> -0.420150463 | K29: ='Heures Pass'!L29-'Heures Pass'!$G29 -> 01:16:13 | L29: ='Heures Pass'!M29-'Heures Pass'!$G29 -> 01:38:27
A30: ='TEMPS-ponton'!A30 -> 26 | B30: ='TEMPS-ponton'!B30 -> EVRY SCA 1 | C30: ='TEMPS-ponton'!C30 -> SCA 1 | D30: ='TEMPS-ponton'!D30 -> Anne CARDUNER-Olivia PEZZOLI-Bruno CASIMIR-Lionel BOISSONNAT-Kristell MAUCHET | E30: =VLOOKUP(A30,Equipes!A:J,2,FALSE) -> M | F30: =ROUND(VLOOKUP(A30,Equipes!$A$2:$J$41,10,0),0) -> 56 | G30: ='Heures Pass'!H30-'Heures Pass'!$G30 -> -0.4215393519 | H30: ='Heures Pass'!I30-'Heures Pass'!$G30 -> 00:29:38 | I30: ='Heures Pass'!J30-'Heures Pass'!$G30 -> 00:52:32 | J30: ='Heures Pass'!K30-'Heures Pass'!$G30 -> -0.4215393519 | K30: ='Heures Pass'!L30-'Heures Pass'!$G30 -> 01:22:28 | L30: ='Heures Pass'!M30-'Heures Pass'!$G30 -> 01:46:30
A31: ='TEMPS-ponton'!A31 -> 27 | B31: ='TEMPS-ponton'!B31 -> MEULAN LES MUREAUX AMMH 1 | C31: ='TEMPS-ponton'!C31 -> AMMH1 | D31: ='TEMPS-ponton'!D31 -> Gwenaelle MARSAIS-Sophie SEFFAR-Catherine MARTINIER-Christelle GOANVIC-Marie LAMORE | E31: =VLOOKUP(A31,Equipes!A:J,2,FALSE) -> F | F31: =ROUND(VLOOKUP(A31,Equipes!$A$2:$J$41,10,0),0) -> 47 | G31: ='Heures Pass'!H31-'Heures Pass'!$G31 -> -0.4229282407 | H31: ='Heures Pass'!I31-'Heures Pass'!$G31 -> 00:33:14 | I31: ='Heures Pass'!J31-'Heures Pass'!$G31 -> 01:00:36 | J31: ='Heures Pass'!K31-'Heures Pass'!$G31 -> -0.4229282407 | K31: ='Heures Pass'!L31-'Heures Pass'!$G31 -> 01:33:47 | L31: ='Heures Pass'!M31-'Heures Pass'!$G31 -> 01:59:47
A32: ='TEMPS-ponton'!A32 -> 28 | B32: ='TEMPS-ponton'!B32 -> VILLENNES - POISSY AC 1 | C32: ='TEMPS-ponton'!C32 -> ACVP1 | D32: ='TEMPS-ponton'!D32 -> Frederic LE ROUX-Corinne HUARD-ROLLAND-Elodie DEREMIENCE-Marie-Claude LAUNAY-Olivier COSNEAU | E32: =VLOOKUP(A32,Equipes!A:J,2,FALSE) -> M | F32: =ROUND(VLOOKUP(A32,Equipes!$A$2:$J$41,10,0),0) -> 53 | G32: ='Heures Pass'!H32-'Heures Pass'!$G32 -> -0.4244212963 | H32: ='Heures Pass'!I32-'Heures Pass'!$G32 -> 00:26:14 | I32: ='Heures Pass'!J32-'Heures Pass'!$G32 -> 00:46:16 | J32: ='Heures Pass'!K32-'Heures Pass'!$G32 -> -0.4244212963 | K32: ='Heures Pass'!L32-'Heures Pass'!$G32 -> 01:12:03 | L32: ='Heures Pass'!M32-'Heures Pass'!$G32 -> 01:31:07
A33: ='TEMPS-ponton'!A33 -> 29 | B33: ='TEMPS-ponton'!B33 -> FONTAINEBLEAU APF 1 | C33: ='TEMPS-ponton'!C33 -> APF1 | D33: ='TEMPS-ponton'!D33 -> Kathleen SANCHEZ-Laurent FOUQUE-Christian MESSALES-Denis FLORY-David WEBER | E33: =VLOOKUP(A33,Equipes!A:J,2,FALSE) -> H | F33: =ROUND(VLOOKUP(A33,Equipes!$A$2:$J$41,10,0),0) -> 57 | G33: ='Heures Pass'!H33-'Heures Pass'!$G33 -> -0.4256944444 | H33: ='Heures Pass'!I33-'Heures Pass'!$G33 -> 00:30:14 | I33: ='Heures Pass'!J33-'Heures Pass'!$G33 -> 00:54:12 | J33: ='Heures Pass'!K33-'Heures Pass'!$G33 -> -0.4256944444 | K33: ='Heures Pass'!L33-'Heures Pass'!$G33 -> 01:23:29 | L33: ='Heures Pass'!M33-'Heures Pass'!$G33 -> 01:48:05
A34: ='TEMPS-ponton'!A34 -> 30 | B34: ='TEMPS-ponton'!B34 -> JOINVILLE AMJ 1 | C34: ='TEMPS-ponton'!C34 -> AMJ1 | D34: ='TEMPS-ponton'!D34 -> Vincent FABIEN-Arnaud PUPPO-Jonathan ROOKE-Xavier SUCHET-Nicolas JAMAULT | E34: =VLOOKUP(A34,Equipes!A:J,2,FALSE) -> H | F34: =ROUND(VLOOKUP(A34,Equipes!$A$2:$J$41,10,0),0) -> 51 | G34: ='Heures Pass'!H34-'Heures Pass'!$G34 -> -0.4270833333 | H34: ='Heures Pass'!I34-'Heures Pass'!$G34 -> 00:27:26 | I34: ='Heures Pass'!J34-'Heures Pass'!$G34 -> 00:48:39 | J34: ='Heures Pass'!K34-'Heures Pass'!$G34 -> -0.4270833333 | K34: ='Heures Pass'!L34-'Heures Pass'!$G34 -> 01:15:15 | L34: ='Heures Pass'!M34-'Heures Pass'!$G34 -> 01:36:06
A35: ='TEMPS-ponton'!A35 -> 31 | B35: ='TEMPS-ponton'!B35 -> NOGENT SUR MARNE CN 3 | C35: ='TEMPS-ponton'!C35 -> CN3 | D35: ='TEMPS-ponton'!D35 -> Alexandra COHEN SALMON-Isabelle MILON-BANNEROT-Jerome TROMBOFSKY-Olivier PASCAL-Elisabeth LAUNAY | E35: =VLOOKUP(A35,Equipes!A:J,2,FALSE) -> M | F35: =ROUND(VLOOKUP(A35,Equipes!$A$2:$J$41,10,0),0) -> 53 | G35: ='Heures Pass'!H35-'Heures Pass'!$G35 -> -0.4285069444 | H35: ='Heures Pass'!I35-'Heures Pass'!$G35 -> 00:32:03 | I35: ='Heures Pass'!J35-'Heures Pass'!$G35 -> 00:56:17 | J35: ='Heures Pass'!K35-'Heures Pass'!$G35 -> -0.4285069444 | K35: ='Heures Pass'!L35-'Heures Pass'!$G35 -> 01:30:10 | L35: ='Heures Pass'!M35-'Heures Pass'!$G35 -> 01:56:47
A36: ='TEMPS-ponton'!A36 -> 32 | B36: ='TEMPS-ponton'!B36 -> BOULOGNE 92 1 | C36: ='TEMPS-ponton'!C36 -> ACBB1 | D36: ='TEMPS-ponton'!D36 -> Isabelle MAIRE-Théo BEL BERBEL- LURBE-Thã‰Odore SEDAROS-Omar OUAZZANI-Alexandra MENEZES | E36: =VLOOKUP(A36,Equipes!A:J,2,FALSE) -> H | F36: =ROUND(VLOOKUP(A36,Equipes!$A$2:$J$41,10,0),0) -> 43 | G36: ='Heures Pass'!H36-'Heures Pass'!$G36 -> 00:00:00 | H36: ='Heures Pass'!I36-'Heures Pass'!$G36 -> 00:00:00 | I36: ='Heures Pass'!J36-'Heures Pass'!$G36 -> 00:00:00 | J36: ='Heures Pass'!K36-'Heures Pass'!$G36 -> 00:00:00 | K36: ='Heures Pass'!L36-'Heures Pass'!$G36 -> 00:00:00 | L36: ='Heures Pass'!M36-'Heures Pass'!$G36 -> 00:00:00
A37: ='TEMPS-ponton'!A37 -> 33 | B37: ='TEMPS-ponton'!B37 -> XX | C37: ='TEMPS-ponton'!C37 -> XX | D37: ='TEMPS-ponton'!D37 -> XX-XX-XX-XX-XX | E37: =VLOOKUP(A37,Equipes!A:J,2,FALSE) -> X | F37: =ROUND(VLOOKUP(A37,Equipes!$A$2:$J$41,10,0),0) -> 0 | G37: ='Heures Pass'!H37-'Heures Pass'!$G37 -> 00:00:00 | H37: ='Heures Pass'!I37-'Heures Pass'!$G37 -> 00:00:00 | I37: ='Heures Pass'!J37-'Heures Pass'!$G37 -> 00:00:00 | J37: ='Heures Pass'!K37-'Heures Pass'!$G37 -> 00:00:00 | K37: ='Heures Pass'!L37-'Heures Pass'!$G37 -> 00:00:00 | L37: ='Heures Pass'!M37-'Heures Pass'!$G37 -> 00:00:00
A38: ='TEMPS-ponton'!A38 -> 34 | B38: ='TEMPS-ponton'!B38 -> XX | C38: ='TEMPS-ponton'!C38 -> XX | D38: ='TEMPS-ponton'!D38 -> XX-XX-XX-XX-XX | E38: =VLOOKUP(A38,Equipes!A:J,2,FALSE) -> X | F38: =ROUND(VLOOKUP(A38,Equipes!$A$2:$J$41,10,0),0) -> 0 | G38: ='Heures Pass'!H38-'Heures Pass'!$G38 -> -0.4299652778 | H38: ='Heures Pass'!I38-'Heures Pass'!$G38 -> -0.4299652778 | I38: ='Heures Pass'!J38-'Heures Pass'!$G38 -> 00:35:17 | J38: ='Heures Pass'!K38-'Heures Pass'!$G38 -> -0.4299652778 | K38: ='Heures Pass'!L38-'Heures Pass'!$G38 -> -0.4299652778 | L38: ='Heures Pass'!M38-'Heures Pass'!$G38 -> 01:04:57
A39: ='TEMPS-ponton'!A39 -> 35 | B39: ='TEMPS-ponton'!B39 -> XX | C39: ='TEMPS-ponton'!C39 -> XX | D39: ='TEMPS-ponton'!D39 -> XX-XX-XX-XX-XX | E39: =VLOOKUP(A39,Equipes!A:J,2,FALSE) -> X | F39: =ROUND(VLOOKUP(A39,Equipes!$A$2:$J$41,10,0),0) -> 0 | G39: ='Heures Pass'!H39-'Heures Pass'!$G39 -> 00:00:00 | H39: ='Heures Pass'!I39-'Heures Pass'!$G39 -> 00:00:00 | I39: ='Heures Pass'!J39-'Heures Pass'!$G39 -> 00:00:00 | J39: ='Heures Pass'!K39-'Heures Pass'!$G39 -> 00:00:00 | K39: ='Heures Pass'!L39-'Heures Pass'!$G39 -> 00:00:00 | L39: ='Heures Pass'!M39-'Heures Pass'!$G39 -> 00:00:00
A40: ='TEMPS-ponton'!A40 -> 36 | B40: ='TEMPS-ponton'!B40 -> XX | C40: ='TEMPS-ponton'!C40 -> XX | D40: ='TEMPS-ponton'!D40 -> XX-XX-XX-XX-XX | E40: =VLOOKUP(A40,Equipes!A:J,2,FALSE) -> X | F40: =ROUND(VLOOKUP(A40,Equipes!$A$2:$J$41,10,0),0) -> 0 | G40: ='Heures Pass'!H40-'Heures Pass'!$G40 -> 00:00:00 | H40: ='Heures Pass'!I40-'Heures Pass'!$G40 -> 00:00:00 | I40: ='Heures Pass'!J40-'Heures Pass'!$G40 -> 00:00:00 | J40: ='Heures Pass'!K40-'Heures Pass'!$G40 -> 00:00:00 | K40: ='Heures Pass'!L40-'Heures Pass'!$G40 -> 00:00:00 | L40: ='Heures Pass'!M40-'Heures Pass'!$G40 -> 00:00:00
A41: ='TEMPS-ponton'!A41 -> 37 | B41: ='TEMPS-ponton'!B41 -> XX | C41: ='TEMPS-ponton'!C41 -> XX | D41: ='TEMPS-ponton'!D41 -> XX-XX-XX-XX-XX | E41: =VLOOKUP(A41,Equipes!A:J,2,FALSE) -> X | F41: =ROUND(VLOOKUP(A41,Equipes!$A$2:$J$41,10,0),0) -> 0 | G41: ='Heures Pass'!H41-'Heures Pass'!$G41 -> 00:00:00 | H41: ='Heures Pass'!I41-'Heures Pass'!$G41 -> 00:00:00 | I41: ='Heures Pass'!J41-'Heures Pass'!$G41 -> 00:00:00 | J41: ='Heures Pass'!K41-'Heures Pass'!$G41 -> 00:00:00 | K41: ='Heures Pass'!L41-'Heures Pass'!$G41 -> 00:00:00 | L41: ='Heures Pass'!M41-'Heures Pass'!$G41 -> 00:00:00
A42: ='TEMPS-ponton'!A42 -> 38 | B42: ='TEMPS-ponton'!B42 -> XX | C42: ='TEMPS-ponton'!C42 -> XX | D42: ='TEMPS-ponton'!D42 -> XX-XX-XX-XX-XX | E42: =VLOOKUP(A42,Equipes!A:J,2,FALSE) -> X | F42: =ROUND(VLOOKUP(A42,Equipes!$A$2:$J$41,10,0),0) -> 0 | G42: ='Heures Pass'!H42-'Heures Pass'!$G42 -> 00:00:00 | H42: ='Heures Pass'!I42-'Heures Pass'!$G42 -> 00:00:00 | I42: ='Heures Pass'!J42-'Heures Pass'!$G42 -> 00:00:00 | J42: ='Heures Pass'!K42-'Heures Pass'!$G42 -> 00:00:00 | K42: ='Heures Pass'!L42-'Heures Pass'!$G42 -> 00:00:00 | L42: ='Heures Pass'!M42-'Heures Pass'!$G42 -> 00:00:00
A43: ='TEMPS-ponton'!A43 -> 39 | B43: ='TEMPS-ponton'!B43 -> XX | C43: ='TEMPS-ponton'!C43 -> XX | D43: ='TEMPS-ponton'!D43 -> XX-XX-XX-XX-XX | E43: =VLOOKUP(A43,Equipes!A:J,2,FALSE) -> X | F43: =ROUND(VLOOKUP(A43,Equipes!$A$2:$J$41,10,0),0) -> 0 | G43: ='Heures Pass'!H43-'Heures Pass'!$G43 -> 00:00:00 | H43: ='Heures Pass'!I43-'Heures Pass'!$G43 -> 00:00:00 | I43: ='Heures Pass'!J43-'Heures Pass'!$G43 -> 00:00:00 | J43: ='Heures Pass'!K43-'Heures Pass'!$G43 -> 00:00:00 | K43: ='Heures Pass'!L43-'Heures Pass'!$G43 -> 00:00:00 | L43: ='Heures Pass'!M43-'Heures Pass'!$G43 -> 00:00:00
A44: ='TEMPS-ponton'!A44 -> 40 | B44: ='TEMPS-ponton'!B44 -> XX | C44: ='TEMPS-ponton'!C44 -> XX | D44: ='TEMPS-ponton'!D44 -> XX-XX-XX-XX-XX | E44: =VLOOKUP(A44,Equipes!A:J,2,FALSE) -> X | F44: =ROUND(VLOOKUP(A44,Equipes!$A$2:$J$41,10,0),0) -> 0 | G44: ='Heures Pass'!H44-'Heures Pass'!$G44 -> 00:00:00 | H44: ='Heures Pass'!I44-'Heures Pass'!$G44 -> 00:00:00 | I44: ='Heures Pass'!J44-'Heures Pass'!$G44 -> 00:00:00 | J44: ='Heures Pass'!K44-'Heures Pass'!$G44 -> 00:00:00 | K44: ='Heures Pass'!L44-'Heures Pass'!$G44 -> 00:00:00 | L44: ='Heures Pass'!M44-'Heures Pass'!$G44 -> 00:00:00

Sheet Temps corr
A1: GRAND 8 | D1: ='Note explicative fichier'!E3 -> 2024-06-02 | N1: SLALOM 1 | Q1: SLALOM 2 | T1: 00:01:00 | U1: = Refus de se laisser dépasser en zone non étroite = Dépassement ou arrêt en zône dangereuse et étroite
T2: 00:02:00 | U2: = Slalom incorrect, non respect du parcours imposé = Refus de priorité au bateau avalant, au bief Villennes/migneaux
A3: Yolette N° | B3: Club | C3: Ville | D3: Equipage | E3: Cat. | F3: Age Moy. | G3: Poissy-1 | H3: 1 / 4 G-8 | I3: 1 / 2 G-8 | J3: Poissy-2 | K3: 3 / 4 G-8 | L3: Arrivée | N3: Temps Slalom-1 | O3: Pénalité | P3: Temps Final Slalom 1 | Q3: Temps Slalom-2 | R3: Pénalité | S3: Temps Final Slalom 2 | T3: 00:05:00 | U3: = Changement de barreur non réalisé à mi-course, face au ponton = Slalom « raccourci »sans remontée du courant vers Paris = Couper les courbes sur la Seine
A4: ='TEMPS-ponton'!A4 -> Record | B4: ='TEMPS-ponton'!B4 -> POLYTECHNIQUE ( Référence 2012 ) | C4: ='TEMPS-ponton'!C4 -> Palaiseau | D4: ='TEMPS-ponton'!D4 -> FERRERO Michel - Alexandre Rosinski - BOYAUD Mathieu - GODDE Olivier - THECKES Benoit | G4: ='Heures Pass'!H4-'Heures Pass'!$G4 -> -0.365625 | H4: ='Heures Pass'!I4-'Heures Pass'!$G4 -> 00:23:35 | I4: ='Heures Pass'!J4-'Heures Pass'!$G4 -> 00:40:41 | J4: ='Heures Pass'!K4-'Heures Pass'!$G4 -> -0.365625 | K4: ='Heures Pass'!L4-'Heures Pass'!$G4 -> 01:04:34 | L4: ='Heures Pass'!M4-'Heures Pass'!$G4 -> 01:21:48 | T4: Total pénalités | U4: ponton | V4: Sécu1 | W4: Sécu2 | X4: Sécu3 | Y4: Sécu4 | Z4: Sécu5 | AA4: Sécu6
A5: ='TEMPS-ponton'!A5 -> 1 | B5: ='TEMPS-ponton'!B5 -> ANDRESY CA CONFLUENT 1 | C5: ='TEMPS-ponton'!C5 -> Cac1 | D5: ='TEMPS-ponton'!D5 -> Stephanie LAPORTE-Marine NACERI-Marc LACCASSAGNE-Stephane ZETTWOOG-Fouzia VOIRIN | E5: =VLOOKUP(A5,Equipes!A:J,2,FALSE) -> M | F5: =ROUND(VLOOKUP(A5,Equipes!$A$2:$J$41,10,0),0) -> 49 | G5: =IF('Temps Pass'!G5>0,'Temps Pass'!G5,"") ->  | H5: =IF('Temps Pass'!H5>0,'Temps Pass'!H5,"") -> 00:33:20 | I5: =IF('Temps Pass'!I5>0,'Temps Pass'!I5,"") -> 00:57:57 | J5: =IF('Temps Pass'!J5>0,'Temps Pass'!J5,"") ->  | K5: =IF('Temps Pass'!K5>0,'Temps Pass'!K5,"") -> 01:27:46 | L5: =IF('Temps Pass'!L5>0,'Temps Pass'!L5,"99:99:99")+T5 -> 01:56:53 | N5: =penalités!G5 ->  | O5: =penalités!H5 -> 00:00:00 | P5: =penalités!I5 -> 99:99:99 | Q5: =penalités!J5 ->  | R5: =penalités!K5 -> 00:00:00 | S5: =penalités!L5 -> 99:99:99 | T5: =penalités!M5 -> 00:05:00 | U5: =penalités!N5 -> 00:00:00 | V5: =penalités!O5 -> 00:00:00 | W5: =penalités!P5 -> 00:00:00 | X5: =penalités!Q5 -> 00:05:00 | Y5: =penalités!R5 -> 00:00:00 | Z5: =penalités!S5 -> 00:00:00 | AA5: =penalités!T5 -> 00:00:00
A6: ='TEMPS-ponton'!A6 -> 2 | B6: ='TEMPS-ponton'!B6 -> CAUDEBEC EN CAUX ACVS 1 | C6: ='TEMPS-ponton'!C6 -> Caudebec | D6: ='TEMPS-ponton'!D6 -> Martine NARBAIS-JAUREGUY-Caroline KERVRANN-Stephane DELAMARE-Nicolas BARRAY-Francois NARBAIS-JAUREGUY | E6: =VLOOKUP(A6,Equipes!A:J,2,FALSE) -> M | F6: =ROUND(VLOOKUP(A6,Equipes!$A$2:$J$41,10,0),0) -> 55 | G6: =IF('Temps Pass'!G6>0,'Temps Pass'!G6,"") ->  | H6: =IF('Temps Pass'!H6>0,'Temps Pass'!H6,"") -> 00:30:08 | I6: =IF('Temps Pass'!I6>0,'Temps Pass'!I6,"") -> 00:52:22 | J6: =IF('Temps Pass'!J6>0,'Temps Pass'!J6,"") ->  | K6: =IF('Temps Pass'!K6>0,'Temps Pass'!K6,"") -> 01:21:30 | L6: =IF('Temps Pass'!L6>0,'Temps Pass'!L6,"99:99:99")+T6 -> 01:43:47 | N6: =penalités!G6 ->  | O6: =penalités!H6 -> 00:00:00 | P6: =penalités!I6 -> 99:99:99 | Q6: =penalités!J6 ->  | R6: =penalités!K6 -> 00:00:00 | S6: =penalités!L6 -> 99:99:99 | T6: =penalités!M6 -> 00:00:00 | U6: =penalités!N6 -> 00:00:00 | V6: =penalités!O6 -> 00:00:00 | W6: =penalités!P6 -> 00:00:00 | X6: =penalités!Q6 -> 00:00:00 | Y6: =penalités!R6 -> 00:00:00 | Z6: =penalités!S6 -> 00:00:00 | AA6: =penalités!T6 -> 00:00:00
A7: ='TEMPS-ponton'!A7 -> 3 | B7: ='TEMPS-ponton'!B7 -> ANDRESY CA CONFLUENT 2 | C7: ='TEMPS-ponton'!C7 -> CAC 2 | D7: ='TEMPS-ponton'!D7 -> Anna ALCALOIDEPOIXBLANC-Geoffrey GHIZZONI-Nathalie BOURGEOIS-Franck CHRISTIANNOT-NicOLAS delaunoy | E7: =VLOOKUP(A7,Equipes!A:J,2,FALSE) -> M | F7: =ROUND(VLOOKUP(A7,Equipes!$A$2:$J$41,10,0),0) -> 55 | G7: =IF('Temps Pass'!G7>0,'Temps Pass'!G7,"") ->  | H7: =IF('Temps Pass'!H7>0,'Temps Pass'!H7,"") -> 00:33:48 | I7: =IF('Temps Pass'!I7>0,'Temps Pass'!I7,"") -> 01:00:49 | J7: =IF('Temps Pass'!J7>0,'Temps Pass'!J7,"") ->  | K7: =IF('Temps Pass'!K7>0,'Temps Pass'!K7,"") -> 01:32:13 | L7: =IF('Temps Pass'!L7>0,'Temps Pass'!L7,"99:99:99")+T7 -> 01:57:49 | N7: =penalités!G7 ->  | O7: =penalités!H7 -> 00:00:00 | P7: =penalités!I7 -> 99:99:99 | Q7: =penalités!J7 ->  | R7: =penalités!K7 -> 00:00:00 | S7: =penalités!L7 -> 99:99:99 | T7: =penalités!M7 -> 00:00:00 | U7: =penalités!N7 -> 00:00:00 | V7: =penalités!O7 -> 00:00:00 | W7: =penalités!P7 -> 00:00:00 | X7: =penalités!Q7 -> 00:00:00 | Y7: =penalités!R7 -> 00:00:00 | Z7: =penalités!S7 -> 00:00:00 | AA7: =penalités!T7 -> 00:00:00
A8: ='TEMPS-ponton'!A8 -> 4 | B8: ='TEMPS-ponton'!B8 -> ANDRESY CA CONFLUENT 1 | C8: ='TEMPS-ponton'!C8 -> CAC3 | D8: ='TEMPS-ponton'!D8 -> Emmanuel SALIN-Ousseni PARKOUDA-Jean-Baptiste PROVENZANO-Jerome CLAVE-Julian GALLELA | E8: =VLOOKUP(A8,Equipes!A:J,2,FALSE) -> H | F8: =ROUND(VLOOKUP(A8,Equipes!$A$2:$J$41,10,0),0) -> 46 | G8: =IF('Temps Pass'!G8>0,'Temps Pass'!G8,"") ->  | H8: =IF('Temps Pass'!H8>0,'Temps Pass'!H8,"") -> 00:29:45 | I8: =IF('Temps Pass'!I8>0,'Temps Pass'!I8,"") -> 00:53:48 | J8: =IF('Temps Pass'!J8>0,'Temps Pass'!J8,"") ->  | K8: =IF('Temps Pass'!K8>0,'Temps Pass'!K8,"") -> 01:22:46 | L8: =IF('Temps Pass'!L8>0,'Temps Pass'!L8,"99:99:99")+T8 -> 01:47:27 | N8: =penalités!G8 ->  | O8: =penalités!H8 -> 00:00:00 | P8: =penalités!I8 -> 99:99:99 | Q8: =penalités!J8 ->  | R8: =penalités!K8 -> 00:00:00 | S8: =penalités!L8 -> 99:99:99 | T8: =penalités!M8 -> 00:00:00 | U8: =penalités!N8 -> 00:00:00 | V8: =penalités!O8 -> 00:00:00 | W8: =penalités!P8 -> 00:00:00 | X8: =penalités!Q8 -> 00:00:00 | Y8: =penalités!R8 -> 00:00:00 | Z8: =penalités!S8 -> 00:00:00 | AA8: =penalités!T8 -> 00:00:00
A9: ='TEMPS-ponton'!A9 -> 5 | B9: ='TEMPS-ponton'!B9 -> PORT-MARLY RC 1 | C9: ='TEMPS-ponton'!C9 -> RCPM | D9: ='TEMPS-ponton'!D9 -> Claudie BODIN-Fanny LAMOUR-Etienne DUPUIS-Jeancharles FAUCHEUX-Gildas KETTANJIAN | E9: =VLOOKUP(A9,Equipes!A:J,2,FALSE) -> M | F9: =ROUND(VLOOKUP(A9,Equipes!$A$2:$J$41,10,0),0) -> 50 | G9: =IF('Temps Pass'!G9>0,'Temps Pass'!G9,"") ->  | H9: =IF('Temps Pass'!H9>0,'Temps Pass'!H9,"") -> 00:30:28 | I9: =IF('Temps Pass'!I9>0,'Temps Pass'!I9,"") -> 00:54:34 | J9: =IF('Temps Pass'!J9>0,'Temps Pass'!J9,"") ->  | K9: =IF('Temps Pass'!K9>0,'Temps Pass'!K9,"") -> 01:24:58 | L9: =IF('Temps Pass'!L9>0,'Temps Pass'!L9,"99:99:99")+T9 -> 01:49:12 | N9: =penalités!G9 ->  | O9: =penalités!H9 -> 00:00:00 | P9: =penalités!I9 -> 99:99:99 | Q9: =penalités!J9 ->  | R9: =penalités!K9 -> 00:00:00 | S9: =penalités!L9 -> 99:99:99 | T9: =penalités!M9 -> 00:00:00 | U9: =penalités!N9 -> 00:00:00 | V9: =penalités!O9 -> 00:00:00 | W9: =penalités!P9 -> 00:00:00 | X9: =penalités!Q9 -> 00:00:00 | Y9: =penalités!R9 -> 00:00:00 | Z9: =penalités!S9 -> 00:00:00 | AA9: =penalités!T9 -> 00:00:00
A10: ='TEMPS-ponton'!A10 -> 6 | B10: ='TEMPS-ponton'!B10 -> BOULOGNE 92 2 | C10: ='TEMPS-ponton'!C10 -> ACBB | D10: ='TEMPS-ponton'!D10 -> CéLia ROUSSELLE-Marie Pierre MARSALLON GAMBY-Françis ROBIN-Nicolas LECOEUR-Theodora XENOGIANI | E10: =VLOOKUP(A10,Equipes!A:J,2,FALSE) -> M | F10: =ROUND(VLOOKUP(A10,Equipes!$A$2:$J$41,10,0),0) -> 46 | G10: =IF('Temps Pass'!G10>0,'Temps Pass'!G10,"") ->  | H10: =IF('Temps Pass'!H10>0,'Temps Pass'!H10,"") -> 00:28:29 | I10: =IF('Temps Pass'!I10>0,'Temps Pass'!I10,"") -> 00:50:41 | J10: =IF('Temps Pass'!J10>0,'Temps Pass'!J10,"") ->  | K10: =IF('Temps Pass'!K10>0,'Temps Pass'!K10,"") -> 01:18:27 | L10: =IF('Temps Pass'!L10>0,'Temps Pass'!L10,"99:99:99")+T10 -> 01:39:43 | N10: =penalités!G10 ->  | O10: =penalités!H10 -> 00:00:00 | P10: =penalités!I10 -> 99:99:99 | Q10: =penalités!J10 ->  | R10: =penalités!K10 -> 00:00:00 | S10: =penalités!L10 -> 99:99:99 | T10: =penalités!M10 -> 00:00:00 | U10: =penalités!N10 -> 00:00:00 | V10: =penalités!O10 -> 00:00:00 | W10: =penalités!P10 -> 00:00:00 | X10: =penalités!Q10 -> 00:00:00 | Y10: =penalités!R10 -> 00:00:00 | Z10: =penalités!S10 -> 00:00:00 | AA10: =penalités!T10 -> 00:00:00
A11: ='TEMPS-ponton'!A11 -> 7 | B11: ='TEMPS-ponton'!B11 -> VILLENNES - POISSY AC 3 | C11: ='TEMPS-ponton'!C11 -> ACVP | D11: ='TEMPS-ponton'!D11 -> Virginie ALEXANDRE-Jihad LEMARQRI-Cyrille BRUZON-BASCOU-Sebastien CARPENTIER-Marie Estelle D'ARBAUMONT | E11: =VLOOKUP(A11,Equipes!A:J,2,FALSE) -> M | F11: =ROUND(VLOOKUP(A11,Equipes!$A$2:$J$41,10,0),0) -> 49 | G11: =IF('Temps Pass'!G11>0,'Temps Pass'!G11,"") ->  | H11: =IF('Temps Pass'!H11>0,'Temps Pass'!H11,"") -> 00:28:45 | I11: =IF('Temps Pass'!I11>0,'Temps Pass'!I11,"") -> 00:51:27 | J11: =IF('Temps Pass'!J11>0,'Temps Pass'!J11,"") ->  | K11: =IF('Temps Pass'!K11>0,'Temps Pass'!K11,"") -> 01:19:20 | L11: =IF('Temps Pass'!L11>0,'Temps Pass'!L11,"99:99:99")+T11 -> 01:41:29 | N11: =penalités!G11 ->  | O11: =penalités!H11 -> 00:00:00 | P11: =penalités!I11 -> 99:99:99 | Q11: =penalités!J11 ->  | R11: =penalités!K11 -> 00:00:00 | S11: =penalités!L11 -> 99:99:99 | T11: =penalités!M11 -> 00:00:00 | U11: =penalités!N11 -> 00:00:00 | V11: =penalités!O11 -> 00:00:00 | W11: =penalités!P11 -> 00:00:00 | X11: =penalités!Q11 -> 00:00:00 | Y11: =penalités!R11 -> 00:00:00 | Z11: =penalités!S11 -> 00:00:00 | AA11: =penalités!T11 -> 00:00:00
A12: ='TEMPS-ponton'!A12 -> 8 | B12: ='TEMPS-ponton'!B12 -> JOINVILLE AMJ 1 | C12: ='TEMPS-ponton'!C12 -> Joinville | D12: ='TEMPS-ponton'!D12 -> Laurent BAUDOIN-Raphaelle BOUVIER FLORY-Sophie BUSTOS-Kastriot JAKA-Thomas AUGER | E12: =VLOOKUP(A12,Equipes!A:J,2,FALSE) -> M | F12: =ROUND(VLOOKUP(A12,Equipes!$A$2:$J$41,10,0),0) -> 46 | G12: =IF('Temps Pass'!G12>0,'Temps Pass'!G12,"") ->  | H12: =IF('Temps Pass'!H12>0,'Temps Pass'!H12,"") -> 00:27:35 | I12: =IF('Temps Pass'!I12>0,'Temps Pass'!I12,"") -> 00:48:05 | J12: =IF('Temps Pass'!J12>0,'Temps Pass'!J12,"") ->  | K12: =IF('Temps Pass'!K12>0,'Temps Pass'!K12,"") -> 01:13:43 | L12: =IF('Temps Pass'!L12>0,'Temps Pass'!L12,"99:99:99")+T12 -> 01:33:32 | N12: =penalités!G12 ->  | O12: =penalités!H12 -> 00:00:00 | P12: =penalités!I12 -> 99:99:99 | Q12: =penalités!J12 ->  | R12: =penalités!K12 -> 00:00:00 | S12: =penalités!L12 -> 99:99:99 | T12: =penalités!M12 -> 00:00:00 | U12: =penalités!N12 -> 00:00:00 | V12: =penalités!O12 -> 00:00:00 | W12: =penalités!P12 -> 00:00:00 | X12: =penalités!Q12 -> 00:00:00 | Y12: =penalités!R12 -> 00:00:00 | Z12: =penalités!S12 -> 00:00:00 | AA12: =penalités!T12 -> 00:00:00
A13: ='TEMPS-ponton'!A13 -> 9 | B13: ='TEMPS-ponton'!B13 -> NOGENT SUR MARNE CN 1 | C13: ='TEMPS-ponton'!C13 -> CN 1 | D13: ='TEMPS-ponton'!D13 -> Chrystelle SUPIOT-Caroline PIEDNOIRE-Olivier MUCIGNAT-Andre SIMONNET-Fabienne LORTIE | E13: =VLOOKUP(A13,Equipes!A:J,2,FALSE) -> M | F13: =ROUND(VLOOKUP(A13,Equipes!$A$2:$J$41,10,0),0) -> 53 | G13: =IF('Temps Pass'!G13>0,'Temps Pass'!G13,"") ->  | H13: =IF('Temps Pass'!H13>0,'Temps Pass'!H13,"") -> 00:28:48 | I13: =IF('Temps Pass'!I13>0,'Temps Pass'!I13,"") -> 00:50:22 | J13: =IF('Temps Pass'!J13>0,'Temps Pass'!J13,"") ->  | K13: =IF('Temps Pass'!K13>0,'Temps Pass'!K13,"") -> 01:19:39 | L13: =IF('Temps Pass'!L13>0,'Temps Pass'!L13,"99:99:99")+T13 -> 01:43:36 | N13: =penalités!G13 ->  | O13: =penalités!H13 -> 00:00:00 | P13: =penalités!I13 -> 99:99:99 | Q13: =penalités!J13 ->  | R13: =penalités!K13 -> 00:00:00 | S13: =penalités!L13 -> 99:99:99 | T13: =penalités!M13 -> 00:00:00 | U13: =penalités!N13 -> 00:00:00 | V13: =penalités!O13 -> 00:00:00 | W13: =penalités!P13 -> 00:00:00 | X13: =penalités!Q13 -> 00:00:00 | Y13: =penalités!R13 -> 00:00:00 | Z13: =penalités!S13 -> 00:00:00 | AA13: =penalités!T13 -> 00:00:00
A14: ='TEMPS-ponton'!A14 -> 10 | B14: ='TEMPS-ponton'!B14 -> NOGENT SUR MARNE CN 2 | C14: ='TEMPS-ponton'!C14 -> CN2 | D14: ='TEMPS-ponton'!D14 -> Christophe RUCKEBUSCH-Nicolas BURCKHART-Alice GHEERBRANT-Aurelie DONVAL-Gerard LECA | E14: =VLOOKUP(A14,Equipes!A:J,2,FALSE) -> M | F14: =ROUND(VLOOKUP(A14,Equipes!$A$2:$J$41,10,0),0) -> 53 | G14: =IF('Temps Pass'!G14>0,'Temps Pass'!G14,"") ->  | H14: =IF('Temps Pass'!H14>0,'Temps Pass'!H14,"") -> 00:27:14 | I14: =IF('Temps Pass'!I14>0,'Temps Pass'!I14,"") -> 00:47:45 | J14: =IF('Temps Pass'!J14>0,'Temps Pass'!J14,"") ->  | K14: =IF('Temps Pass'!K14>0,'Temps Pass'!K14,"") -> 01:15:26 | L14: =IF('Temps Pass'!L14>0,'Temps Pass'!L14,"99:99:99")+T14 -> 01:36:54 | N14: =penalités!G14 ->  | O14: =penalités!H14 -> 00:00:00 | P14: =penalités!I14 -> 99:99:99 | Q14: =penalités!J14 ->  | R14: =penalités!K14 -> 00:00:00 | S14: =penalités!L14 -> 99:99:99 | T14: =penalités!M14 -> 00:00:00 | U14: =penalités!N14 -> 00:00:00 | V14: =penalités!O14 -> 00:00:00 | W14: =penalités!P14 -> 00:00:00 | X14: =penalités!Q14 -> 00:00:00 | Y14: =penalités!R14 -> 00:00:00 | Z14: =penalités!S14 -> 00:00:00 | AA14: =penalités!T14 -> 00:00:00
A15: ='TEMPS-ponton'!A15 -> 11 | B15: ='TEMPS-ponton'!B15 -> BOULOGNE 92 1 | C15: ='TEMPS-ponton'!C15 -> ACBB | D15: ='TEMPS-ponton'!D15 -> Viviane BALLOY-Timothé BAZIRIES-Alexandre LE FUR-Sigrid PABST-Michel VEDRINE | E15: =VLOOKUP(A15,Equipes!A:J,2,FALSE) -> H | F15: =ROUND(VLOOKUP(A15,Equipes!$A$2:$J$41,10,0),0) -> 51 | G15: =IF('Temps Pass'!G15>0,'Temps Pass'!G15,"") ->  | H15: =IF('Temps Pass'!H15>0,'Temps Pass'!H15,"") -> 00:30:07 | I15: =IF('Temps Pass'!I15>0,'Temps Pass'!I15,"") -> 00:54:40 | J15: =IF('Temps Pass'!J15>0,'Temps Pass'!J15,"") ->  | K15: =IF('Temps Pass'!K15>0,'Temps Pass'!K15,"") -> 00:25:55 | L15: =IF('Temps Pass'!L15>0,'Temps Pass'!L15,"99:99:99")+T15 -> 01:50:55 | N15: =penalités!G15 ->  | O15: =penalités!H15 -> 00:00:00 | P15: =penalités!I15 -> 99:99:99 | Q15: =penalités!J15 ->  | R15: =penalités!K15 -> 00:00:00 | S15: =penalités!L15 -> 99:99:99 | T15: =penalités!M15 -> 00:00:00 | U15: =penalités!N15 -> 00:00:00 | V15: =penalités!O15 -> 00:00:00 | W15: =penalités!P15 -> 00:00:00 | X15: =penalités!Q15 -> 00:00:00 | Y15: =penalités!R15 -> 00:00:00 | Z15: =penalités!S15 -> 00:00:00 | AA15: =penalités!T15 -> 00:00:00
A16: ='TEMPS-ponton'!A16 -> 12 | B16: ='TEMPS-ponton'!B16 -> EVRY SCA 2 | C16: ='TEMPS-ponton'!C16 -> SCA2 | D16: ='TEMPS-ponton'!D16 -> Laurent YEBOAH-Isabelle MOISSET FLEURISSON-Frederic DUCAUQUY-Sandrine GARCIA-Christelle MARTIN | E16: =VLOOKUP(A16,Equipes!A:J,2,FALSE) -> M | F16: =ROUND(VLOOKUP(A16,Equipes!$A$2:$J$41,10,0),0) -> 48 | G16: =IF('Temps Pass'!G16>0,'Temps Pass'!G16,"") ->  | H16: =IF('Temps Pass'!H16>0,'Temps Pass'!H16,"") -> 00:26:14 | I16: =IF('Temps Pass'!I16>0,'Temps Pass'!I16,"") -> 00:46:23 | J16: =IF('Temps Pass'!J16>0,'Temps Pass'!J16,"") ->  | K16: =IF('Temps Pass'!K16>0,'Temps Pass'!K16,"") -> 01:12:15 | L16: =IF('Temps Pass'!L16>0,'Temps Pass'!L16,"99:99:99")+T16 -> 01:36:53 | N16: =penalités!G16 ->  | O16: =penalités!H16 -> 00:00:00 | P16: =penalités!I16 -> 99:99:99 | Q16: =penalités!J16 ->  | R16: =penalités!K16 -> 00:00:00 | S16: =penalités!L16 -> 99:99:99 | T16: =penalités!M16 -> 00:05:00 | U16: =penalités!N16 -> 00:05:00 | V16: =penalités!O16 -> 00:00:00 | W16: =penalités!P16 -> 00:00:00 | X16: =penalités!Q16 -> 00:00:00 | Y16: =penalités!R16 -> 00:00:00 | Z16: =penalités!S16 -> 00:00:00 | AA16: =penalités!T16 -> 00:00:00
A17: ='TEMPS-ponton'!A17 -> 13 | B17: ='TEMPS-ponton'!B17 -> PORT-MARLY RC 2 | C17: ='TEMPS-ponton'!C17 -> RCPM2 | D17: ='TEMPS-ponton'!D17 -> Elsa CROZATIER-Cyrielle BERTHIER-Hervé Valette-Eric MOINARD-Anais FEUGA | E17: =VLOOKUP(A17,Equipes!A:J,2,FALSE) -> M | F17: =ROUND(VLOOKUP(A17,Equipes!$A$2:$J$41,10,0),0) -> 47 | G17: =IF('Temps Pass'!G17>0,'Temps Pass'!G17,"") ->  | H17: =IF('Temps Pass'!H17>0,'Temps Pass'!H17,"") -> 00:25:34 | I17: =IF('Temps Pass'!I17>0,'Temps Pass'!I17,"") -> 00:45:45 | J17: =IF('Temps Pass'!J17>0,'Temps Pass'!J17,"") ->  | K17: =IF('Temps Pass'!K17>0,'Temps Pass'!K17,"") -> 01:11:15 | L17: =IF('Temps Pass'!L17>0,'Temps Pass'!L17,"99:99:99")+T17 -> 01:36:59 | N17: =penalités!G17 ->  | O17: =penalités!H17 -> 00:00:00 | P17: =penalités!I17 -> 99:99:99 | Q17: =penalités!J17 ->  | R17: =penalités!K17 -> 00:00:00 | S17: =penalités!L17 -> 99:99:99 | T17: =penalités!M17 -> 00:05:00 | U17: =penalités!N17 -> 00:05:00 | V17: =penalités!O17 -> 00:00:00 | W17: =penalités!P17 -> 00:00:00 | X17: =penalités!Q17 -> 00:00:00 | Y17: =penalités!R17 -> 00:00:00 | Z17: =penalités!S17 -> 00:00:00 | AA17: =penalités!T17 -> 00:00:00
A18: ='TEMPS-ponton'!A18 -> 14 | B18: ='TEMPS-ponton'!B18 -> MAISONS MESNIL CERAMM 1 | C18: ='TEMPS-ponton'!C18 -> CERAMM1 | D18: ='TEMPS-ponton'!D18 -> Nicolas SCHMITT-Gloria VENDRELL-Christine MARIE LAVAUD-Amaury DE LA LAURENCIE-Amina ELABBADI | E18: =VLOOKUP(A18,Equipes!A:J,2,FALSE) -> M | F18: =ROUND(VLOOKUP(A18,Equipes!$A$2:$J$41,10,0),0) -> 50 | G18: =IF('Temps Pass'!G18>0,'Temps Pass'!G18,"") ->  | H18: =IF('Temps Pass'!H18>0,'Temps Pass'!H18,"") -> 00:28:28 | I18: =IF('Temps Pass'!I18>0,'Temps Pass'!I18,"") -> 00:49:52 | J18: =IF('Temps Pass'!J18>0,'Temps Pass'!J18,"") ->  | K18: =IF('Temps Pass'!K18>0,'Temps Pass'!K18,"") -> 01:19:15 | L18: =IF('Temps Pass'!L18>0,'Temps Pass'!L18,"99:99:99")+T18 -> 01:42:15 | N18: =penalités!G18 ->  | O18: =penalités!H18 -> 00:00:00 | P18: =penalités!I18 -> 99:99:99 | Q18: =penalités!J18 ->  | R18: =penalités!K18 -> 00:00:00 | S18: =penalités!L18 -> 99:99:99 | T18: =penalités!M18 -> 00:00:00 | U18: =penalités!N18 -> 00:00:00 | V18: =penalités!O18 -> 00:00:00 | W18: =penalités!P18 -> 00:00:00 | X18: =penalités!Q18 -> 00:00:00 | Y18: =penalités!R18 -> 00:00:00 | Z18: =penalités!S18 -> 00:00:00 | AA18: =penalités!T18 -> 00:00:00
A19: ='TEMPS-ponton'!A19 -> 15 | B19: ='TEMPS-ponton'!B19 -> SOISY SUR SEINE CN 1 | C19: ='TEMPS-ponton'!C19 -> CN1 | D19: ='TEMPS-ponton'!D19 -> Bertrand PIOGER-Bruno PERIQUOI-Servane BERTRAND-Alain BERNARD-Robert TRAUET | E19: =VLOOKUP(A19,Equipes!A:J,2,FALSE) -> H | F19: =ROUND(VLOOKUP(A19,Equipes!$A$2:$J$41,10,0),0) -> 54 | G19: =IF('Temps Pass'!G19>0,'Temps Pass'!G19,"") ->  | H19: =IF('Temps Pass'!H19>0,'Temps Pass'!H19,"") -> 00:27:25 | I19: =IF('Temps Pass'!I19>0,'Temps Pass'!I19,"") -> 00:47:07 | J19: =IF('Temps Pass'!J19>0,'Temps Pass'!J19,"") ->  | K19: =IF('Temps Pass'!K19>0,'Temps Pass'!K19,"") -> 01:12:51 | L19: =IF('Temps Pass'!L19>0,'Temps Pass'!L19,"99:99:99")+T19 -> 01:39:08 | N19: =penalités!G19 ->  | O19: =penalités!H19 -> 00:00:00 | P19: =penalités!I19 -> 99:99:99 | Q19: =penalités!J19 ->  | R19: =penalités!K19 -> 00:00:00 | S19: =penalités!L19 -> 99:99:99 | T19: =penalités!M19 -> 00:05:00 | U19: =penalités!N19 -> 00:00:00 | V19: =penalités!O19 -> 00:00:00 | W19: =penalités!P19 -> 00:00:00 | X19: =penalités!Q19 -> 00:05:00 | Y19: =penalités!R19 -> 00:00:00 | Z19: =penalités!S19 -> 00:00:00 | AA19: =penalités!T19 -> 00:00:00
A20: ='TEMPS-ponton'!A20 -> 16 | B20: ='TEMPS-ponton'!B20 -> PORT-MARLY RC 1 | C20: ='TEMPS-ponton'!C20 -> RCPM1 | D20: ='TEMPS-ponton'!D20 -> Jean-Claude LAFOREST-David CHARTIER-Christophe MARCAIS-Vincent BONTOUX-Alain ROUSSEAU | E20: =VLOOKUP(A20,Equipes!A:J,2,FALSE) -> H | F20: =ROUND(VLOOKUP(A20,Equipes!$A$2:$J$41,10,0),0) -> 55 | G20: =IF('Temps Pass'!G20>0,'Temps Pass'!G20,"") ->  | H20: =IF('Temps Pass'!H20>0,'Temps Pass'!H20,"") -> 00:25:06 | I20: =IF('Temps Pass'!I20>0,'Temps Pass'!I20,"") -> 00:43:56 | J20: =IF('Temps Pass'!J20>0,'Temps Pass'!J20,"") ->  | K20: =IF('Temps Pass'!K20>0,'Temps Pass'!K20,"") -> 01:07:04 | L20: =IF('Temps Pass'!L20>0,'Temps Pass'!L20,"99:99:99")+T20 -> 01:30:25 | N20: =penalités!G20 ->  | O20: =penalités!H20 -> 00:00:00 | P20: =penalités!I20 -> 99:99:99 | Q20: =penalités!J20 ->  | R20: =penalités!K20 -> 00:00:00 | S20: =penalités!L20 -> 99:99:99 | T20: =penalités!M20 -> 00:05:00 | U20: =penalités!N20 -> 00:00:00 | V20: =penalités!O20 -> 00:00:00 | W20: =penalités!P20 -> 00:00:00 | X20: =penalités!Q20 -> 00:05:00 | Y20: =penalités!R20 -> 00:00:00 | Z20: =penalités!S20 -> 00:00:00 | AA20: =penalités!T20 -> 00:00:00
A21: ='TEMPS-ponton'!A21 -> 17 | B21: ='TEMPS-ponton'!B21 -> ANDRESY CA CONFLUENT 1 | C21: ='TEMPS-ponton'!C21 -> CAC1 | D21: ='TEMPS-ponton'!D21 -> Daphne PARIZOT-Agnes BURGHGRAEVE SELLEN-Sylvie FRANSSEN-Severine LEGAILLARD-Martine LE ROUX | E21: =VLOOKUP(A21,Equipes!A:J,2,FALSE) -> F | F21: =ROUND(VLOOKUP(A21,Equipes!$A$2:$J$41,10,0),0) -> 55 | G21: =IF('Temps Pass'!G21>0,'Temps Pass'!G21,"") ->  | H21: =IF('Temps Pass'!H21>0,'Temps Pass'!H21,"") -> 00:33:58 | I21: =IF('Temps Pass'!I21>0,'Temps Pass'!I21,"") -> 00:59:40 | J21: =IF('Temps Pass'!J21>0,'Temps Pass'!J21,"") ->  | K21: =IF('Temps Pass'!K21>0,'Temps Pass'!K21,"") -> 01:34:01 | L21: =IF('Temps Pass'!L21>0,'Temps Pass'!L21,"99:99:99")+T21 -> 02:01:10 | N21: =penalités!G21 ->  | O21: =penalités!H21 -> 00:00:00 | P21: =penalités!I21 -> 99:99:99 | Q21: =penalités!J21 ->  | R21: =penalités!K21 -> 00:00:00 | S21: =penalités!L21 -> 99:99:99 | T21: =penalités!M21 -> 00:00:00 | U21: =penalités!N21 -> 00:00:00 | V21: =penalités!O21 -> 00:00:00 | W21: =penalités!P21 -> 00:00:00 | X21: =penalités!Q21 -> 00:00:00 | Y21: =penalités!R21 -> 00:00:00 | Z21: =penalités!S21 -> 00:00:00 | AA21: =penalités!T21 -> 00:00:00
A22: ='TEMPS-ponton'!A22 -> 18 | B22: ='TEMPS-ponton'!B22 -> MAISONS MESNIL CERAMM 2 | C22: ='TEMPS-ponton'!C22 -> CERAMM2 | D22: ='TEMPS-ponton'!D22 -> Claude LEMENAGER-Didier GIRARDEAU-Laurent LIBOTTE-Alain GIRARD-Cecile JEAMMES | E22: =VLOOKUP(A22,Equipes!A:J,2,FALSE) -> H | F22: =ROUND(VLOOKUP(A22,Equipes!$A$2:$J$41,10,0),0) -> 58 | G22: =IF('Temps Pass'!G22>0,'Temps Pass'!G22,"") ->  | H22: =IF('Temps Pass'!H22>0,'Temps Pass'!H22,"") -> 00:28:50 | I22: =IF('Temps Pass'!I22>0,'Temps Pass'!I22,"") -> 00:51:09 | J22: =IF('Temps Pass'!J22>0,'Temps Pass'!J22,"") ->  | K22: =IF('Temps Pass'!K22>0,'Temps Pass'!K22,"") -> 01:19:31 | L22: =IF('Temps Pass'!L22>0,'Temps Pass'!L22,"99:99:99")+T22 -> 01:41:38 | N22: =penalités!G22 ->  | O22: =penalités!H22 -> 00:00:00 | P22: =penalités!I22 -> 99:99:99 | Q22: =penalités!J22 ->  | R22: =penalités!K22 -> 00:00:00 | S22: =penalités!L22 -> 99:99:99 | T22: =penalités!M22 -> 00:00:00 | U22: =penalités!N22 -> 00:00:00 | V22: =penalités!O22 -> 00:00:00 | W22: =penalités!P22 -> 00:00:00 | X22: =penalités!Q22 -> 00:00:00 | Y22: =penalités!R22 -> 00:00:00 | Z22: =penalités!S22 -> 00:00:00 | AA22: =penalités!T22 -> 00:00:00
A23: ='TEMPS-ponton'!A23 -> 19 | B23: ='TEMPS-ponton'!B23 -> VILLENNES - POISSY AC 1 | C23: ='TEMPS-ponton'!C23 -> ACVP1 | D23: ='TEMPS-ponton'!D23 -> Olivier POLGE-Odile POLGE-Laurent BONHOMMET-Antoine VOLPI-Philippe STROHM | E23: =VLOOKUP(A23,Equipes!A:J,2,FALSE) -> H | F23: =ROUND(VLOOKUP(A23,Equipes!$A$2:$J$41,10,0),0) -> 55 | G23: =IF('Temps Pass'!G23>0,'Temps Pass'!G23,"") ->  | H23: =IF('Temps Pass'!H23>0,'Temps Pass'!H23,"") -> 00:29:56 | I23: =IF('Temps Pass'!I23>0,'Temps Pass'!I23,"") -> 00:52:02 | J23: =IF('Temps Pass'!J23>0,'Temps Pass'!J23,"") ->  | K23: =IF('Temps Pass'!K23>0,'Temps Pass'!K23,"") -> 01:19:47 | L23: =IF('Temps Pass'!L23>0,'Temps Pass'!L23,"99:99:99")+T23 -> 01:40:56 | N23: =penalités!G23 ->  | O23: =penalités!H23 -> 00:00:00 | P23: =penalités!I23 -> 99:99:99 | Q23: =penalités!J23 ->  | R23: =penalités!K23 -> 00:00:00 | S23: =penalités!L23 -> 99:99:99 | T23: =penalités!M23 -> 00:00:00 | U23: =penalités!N23 -> 00:00:00 | V23: =penalités!O23 -> 00:00:00 | W23: =penalités!P23 -> 00:00:00 | X23: =penalités!Q23 -> 00:00:00 | Y23: =penalités!R23 -> 00:00:00 | Z23: =penalités!S23 -> 00:00:00 | AA23: =penalités!T23 -> 00:00:00
A24: ='TEMPS-ponton'!A24 -> 20 | B24: ='TEMPS-ponton'!B24 -> ROUEN CNAR 1 | C24: ='TEMPS-ponton'!C24 -> CNAR1 | D24: ='TEMPS-ponton'!D24 -> Nathalie MOUSSET-Francois LAIR-Betty GESLAIN-Thierry DUCHESNE-Stephane MOUSSET | E24: =VLOOKUP(A24,Equipes!A:J,2,FALSE) -> M | F24: =ROUND(VLOOKUP(A24,Equipes!$A$2:$J$41,10,0),0) -> 55 | G24: =IF('Temps Pass'!G24>0,'Temps Pass'!G24,"") ->  | H24: =IF('Temps Pass'!H24>0,'Temps Pass'!H24,"") -> 00:28:53 | I24: =IF('Temps Pass'!I24>0,'Temps Pass'!I24,"") -> 00:50:41 | J24: =IF('Temps Pass'!J24>0,'Temps Pass'!J24,"") ->  | K24: =IF('Temps Pass'!K24>0,'Temps Pass'!K24,"") -> 01:17:10 | L24: =IF('Temps Pass'!L24>0,'Temps Pass'!L24,"99:99:99")+T24 -> 01:37:13 | N24: =penalités!G24 ->  | O24: =penalités!H24 -> 00:00:00 | P24: =penalités!I24 -> 99:99:99 | Q24: =penalités!J24 ->  | R24: =penalités!K24 -> 00:00:00 | S24: =penalités!L24 -> 99:99:99 | T24: =penalités!M24 -> 00:00:00 | U24: =penalités!N24 -> 00:00:00 | V24: =penalités!O24 -> 00:00:00 | W24: =penalités!P24 -> 00:00:00 | X24: =penalités!Q24 -> 00:00:00 | Y24: =penalités!R24 -> 00:00:00 | Z24: =penalités!S24 -> 00:00:00 | AA24: =penalités!T24 -> 00:00:00
A25: ='TEMPS-ponton'!A25 -> 21 | B25: ='TEMPS-ponton'!B25 -> PORT-MARLY RC 2 | C25: ='TEMPS-ponton'!C25 -> RCPM2 | D25: ='TEMPS-ponton'!D25 -> Guillaume CHARRON-Philippe VERHE-Stephan REYNIER-Dominique LEROUX-Luciano AUTUNNALE | E25: =VLOOKUP(A25,Equipes!A:J,2,FALSE) -> H | F25: =ROUND(VLOOKUP(A25,Equipes!$A$2:$J$41,10,0),0) -> 51 | G25: =IF('Temps Pass'!G25>0,'Temps Pass'!G25,"") ->  | H25: =IF('Temps Pass'!H25>0,'Temps Pass'!H25,"") -> 00:25:28 | I25: =IF('Temps Pass'!I25>0,'Temps Pass'!I25,"") -> 00:46:04 | J25: =IF('Temps Pass'!J25>0,'Temps Pass'!J25,"") ->  | K25: =IF('Temps Pass'!K25>0,'Temps Pass'!K25,"") -> 01:11:43 | L25: =IF('Temps Pass'!L25>0,'Temps Pass'!L25,"99:99:99")+T25 -> 01:31:40 | N25: =penalités!G25 ->  | O25: =penalités!H25 -> 00:00:00 | P25: =penalités!I25 -> 99:99:99 | Q25: =penalités!J25 ->  | R25: =penalités!K25 -> 00:00:00 | S25: =penalités!L25 -> 99:99:99 | T25: =penalités!M25 -> 00:00:00 | U25: =penalités!N25 -> 00:00:00 | V25: =penalités!O25 -> 00:00:00 | W25: =penalités!P25 -> 00:00:00 | X25: =penalités!Q25 -> 00:00:00 | Y25: =penalités!R25 -> 00:00:00 | Z25: =penalités!S25 -> 00:00:00 | AA25: =penalités!T25 -> 00:00:00
A26: ='TEMPS-ponton'!A26 -> 22 | B26: ='TEMPS-ponton'!B26 -> COUDRAY MONTCEAUX A 1 | C26: ='TEMPS-ponton'!C26 -> coudray1 | D26: ='TEMPS-ponton'!D26 -> Joseph RAYNAUD-Frederic MORAT-Benjamin HOUILLON-Pascal BEAUSSART-Anne HOUAL | E26: =VLOOKUP(A26,Equipes!A:J,2,FALSE) -> H | F26: =ROUND(VLOOKUP(A26,Equipes!$A$2:$J$41,10,0),0) -> 52 | G26: =IF('Temps Pass'!G26>0,'Temps Pass'!G26,"") ->  | H26: =IF('Temps Pass'!H26>0,'Temps Pass'!H26,"") -> 00:29:10 | I26: =IF('Temps Pass'!I26>0,'Temps Pass'!I26,"") -> 00:51:40 | J26: =IF('Temps Pass'!J26>0,'Temps Pass'!J26,"") ->  | K26: =IF('Temps Pass'!K26>0,'Temps Pass'!K26,"") -> 01:19:43 | L26: =IF('Temps Pass'!L26>0,'Temps Pass'!L26,"99:99:99")+T26 -> 01:41:46 | N26: =penalités!G26 ->  | O26: =penalités!H26 -> 00:00:00 | P26: =penalités!I26 -> 99:99:99 | Q26: =penalités!J26 ->  | R26: =penalités!K26 -> 00:00:00 | S26: =penalités!L26 -> 99:99:99 | T26: =penalités!M26 -> 00:00:00 | U26: =penalités!N26 -> 00:00:00 | V26: =penalités!O26 -> 00:00:00 | W26: =penalités!P26 -> 00:00:00 | X26: =penalités!Q26 -> 00:00:00 | Y26: =penalités!R26 -> 00:00:00 | Z26: =penalités!S26 -> 00:00:00 | AA26: =penalités!T26 -> 00:00:00
A27: ='TEMPS-ponton'!A27 -> 23 | B27: ='TEMPS-ponton'!B27 -> SN OISE 1 | C27: ='TEMPS-ponton'!C27 -> SN Oise 1 | D27: ='TEMPS-ponton'!D27 -> Agnes AUDEBERT-Nicolas RAUCH-Jerome ROUGE-Nathalie BAUDIER-Isabelle JOUBERT | E27: =VLOOKUP(A27,Equipes!A:J,2,FALSE) -> M | F27: =ROUND(VLOOKUP(A27,Equipes!$A$2:$J$41,10,0),0) -> 50 | G27: =IF('Temps Pass'!G27>0,'Temps Pass'!G27,"") ->  | H27: =IF('Temps Pass'!H27>0,'Temps Pass'!H27,"") -> 00:31:24 | I27: =IF('Temps Pass'!I27>0,'Temps Pass'!I27,"") -> 00:56:32 | J27: =IF('Temps Pass'!J27>0,'Temps Pass'!J27,"") ->  | K27: =IF('Temps Pass'!K27>0,'Temps Pass'!K27,"") -> 01:28:06 | L27: =IF('Temps Pass'!L27>0,'Temps Pass'!L27,"99:99:99")+T27 -> 01:53:02 | N27: =penalités!G27 ->  | O27: =penalités!H27 -> 00:00:00 | P27: =penalités!I27 -> 99:99:99 | Q27: =penalités!J27 ->  | R27: =penalités!K27 -> 00:00:00 | S27: =penalités!L27 -> 99:99:99 | T27: =penalités!M27 -> 00:00:00 | U27: =penalités!N27 -> 00:00:00 | V27: =penalités!O27 -> 00:00:00 | W27: =penalités!P27 -> 00:00:00 | X27: =penalités!Q27 -> 00:00:00 | Y27: =penalités!R27 -> 00:00:00 | Z27: =penalités!S27 -> 00:00:00 | AA27: =penalités!T27 -> 00:00:00
A28: ='TEMPS-ponton'!A28 -> 24 | B28: ='TEMPS-ponton'!B28 -> MEULAN LES MUREAUX AMMH 1 | C28: ='TEMPS-ponton'!C28 -> AMMH1 | D28: ='TEMPS-ponton'!D28 -> Xavier MARSAIS-Eric PRENEY-Yannick DAGMEY-David COINE-Arthur VAN SLOOTEN | E28: =VLOOKUP(A28,Equipes!A:J,2,FALSE) -> H | F28: =ROUND(VLOOKUP(A28,Equipes!$A$2:$J$41,10,0),0) -> 53 | G28: =IF('Temps Pass'!G28>0,'Temps Pass'!G28,"") ->  | H28: =IF('Temps Pass'!H28>0,'Temps Pass'!H28,"") -> 00:26:43 | I28: =IF('Temps Pass'!I28>0,'Temps Pass'!I28,"") -> 00:47:59 | J28: =IF('Temps Pass'!J28>0,'Temps Pass'!J28,"") ->  | K28: =IF('Temps Pass'!K28>0,'Temps Pass'!K28,"") -> 01:15:59 | L28: =IF('Temps Pass'!L28>0,'Temps Pass'!L28,"99:99:99")+T28 -> 01:36:04 | N28: =penalités!G28 ->  | O28: =penalités!H28 -> 00:00:00 | P28: =penalités!I28 -> 99:99:99 | Q28: =penalités!J28 ->  | R28: =penalités!K28 -> 00:00:00 | S28: =penalités!L28 -> 99:99:99 | T28: =penalités!M28 -> 00:00:00 | U28: =penalités!N28 -> 00:00:00 | V28: =penalités!O28 -> 00:00:00 | W28: =penalités!P28 -> 00:00:00 | X28: =penalités!Q28 -> 00:00:00 | Y28: =penalités!R28 -> 00:00:00 | Z28: =penalités!S28 -> 00:00:00 | AA28: =penalités!T28 -> 00:00:00
A29: ='TEMPS-ponton'!A29 -> 25 | B29: ='TEMPS-ponton'!B29 -> VILLENNES - POISSY AC 2 | C29: ='TEMPS-ponton'!C29 -> ACVP2 | D29: ='TEMPS-ponton'!D29 -> Franck CARIOU-Michael LE BANNER-Valerie DECAESTECKER-Karine GUILBON-Christophe ELINE | E29: =VLOOKUP(A29,Equipes!A:J,2,FALSE) -> M | F29: =ROUND(VLOOKUP(A29,Equipes!$A$2:$J$41,10,0),0) -> 54 | G29: =IF('Temps Pass'!G29>0,'Temps Pass'!G29,"") ->  | H29: =IF('Temps Pass'!H29>0,'Temps Pass'!H29,"") -> 00:26:38 | I29: =IF('Temps Pass'!I29>0,'Temps Pass'!I29,"") -> 00:47:47 | J29: =IF('Temps Pass'!J29>0,'Temps Pass'!J29,"") ->  | K29: =IF('Temps Pass'!K29>0,'Temps Pass'!K29,"") -> 01:16:13 | L29: =IF('Temps Pass'!L29>0,'Temps Pass'!L29,"99:99:99")+T29 -> 01:38:27 | N29: =penalités!G29 ->  | O29: =penalités!H29 -> 00:00:00 | P29: =penalités!I29 -> 99:99:99 | Q29: =penalités!J29 ->  | R29: =penalités!K29 -> 00:00:00 | S29: =penalités!L29 -> 99:99:99 | T29: =penalités!M29 -> 00:00:00 | U29: =penalités!N29 -> 00:00:00 | V29: =penalités!O29 -> 00:00:00 | W29: =penalités!P29 -> 00:00:00 | X29: =penalités!Q29 -> 00:00:00 | Y29: =penalités!R29 -> 00:00:00 | Z29: =penalités!S29 -> 00:00:00 | AA29: =penalités!T29 -> 00:00:00
A30: ='TEMPS-ponton'!A30 -> 26 | B30: ='TEMPS-ponton'!B30 -> EVRY SCA 1 | C30: ='TEMPS-ponton'!C30 -> SCA 1 | D30: ='TEMPS-ponton'!D30 -> Anne CARDUNER-Olivia PEZZOLI-Bruno CASIMIR-Lionel BOISSONNAT-Kristell MAUCHET | E30: =VLOOKUP(A30,Equipes!A:J,2,FALSE) -> M | F30: =ROUND(VLOOKUP(A30,Equipes!$A$2:$J$41,10,0),0) -> 56 | G30: =IF('Temps Pass'!G30>0,'Temps Pass'!G30,"") ->  | H30: =IF('Temps Pass'!H30>0,'Temps Pass'!H30,"") -> 00:29:38 | I30: =IF('Temps Pass'!I30>0,'Temps Pass'!I30,"") -> 00:52:32 | J30: =IF('Temps Pass'!J30>0,'Temps Pass'!J30,"") ->  | K30: =IF('Temps Pass'!K30>0,'Temps Pass'!K30,"") -> 01:22:28 | L30: =IF('Temps Pass'!L30>0,'Temps Pass'!L30,"99:99:99")+T30 -> 01:46:30 | N30: =penalités!G30 ->  | O30: =penalités!H30 -> 00:00:00 | P30: =penalités!I30 -> 99:99:99 | Q30: =penalités!J30 ->  | R30: =penalités!K30 -> 00:00:00 | S30: =penalités!L30 -> 99:99:99 | T30: =penalités!M30 -> 00:00:00 | U30: =penalités!N30 -> 00:00:00 | V30: =penalités!O30 -> 00:00:00 | W30: =penalités!P30 -> 00:00:00 | X30: =penalités!Q30 -> 00:00:00 | Y30: =penalités!R30 -> 00:00:00 | Z30: =penalités!S30 -> 00:00:00 | AA30: =penalités!T30 -> 00:00:00
A31: ='TEMPS-ponton'!A31 -> 27 | B31: ='TEMPS-ponton'!B31 -> MEULAN LES MUREAUX AMMH 1 | C31: ='TEMPS-ponton'!C31 -> AMMH1 | D31: ='TEMPS-ponton'!D31 -> Gwenaelle MARSAIS-Sophie SEFFAR-Catherine MARTINIER-Christelle GOANVIC-Marie LAMORE | E31: =VLOOKUP(A31,Equipes!A:J,2,FALSE) -> F | F31: =ROUND(VLOOKUP(A31,Equipes!$A$2:$J$41,10,0),0) -> 47 | G31: =IF('Temps Pass'!G31>0,'Temps Pass'!G31,"") ->  | H31: =IF('Temps Pass'!H31>0,'Temps Pass'!H31,"") -> 00:33:14 | I31: =IF('Temps Pass'!I31>0,'Temps Pass'!I31,"") -> 01:00:36 | J31: =IF('Temps Pass'!J31>0,'Temps Pass'!J31,"") ->  | K31: =IF('Temps Pass'!K31>0,'Temps Pass'!K31,"") -> 01:33:47 | L31: =IF('Temps Pass'!L31>0,'Temps Pass'!L31,"99:99:99")+T31 -> 01:59:47 | N31: =penalités!G31 ->  | O31: =penalités!H31 -> 00:00:00 | P31: =penalités!I31 -> 99:99:99 | Q31: =penalités!J31 ->  | R31: =penalités!K31 -> 00:00:00 | S31: =penalités!L31 -> 99:99:99 | T31: =penalités!M31 -> 00:00:00 | U31: =penalités!N31 -> 00:00:00 | V31: =penalités!O31 -> 00:00:00 | W31: =penalités!P31 -> 00:00:00 | X31: =penalités!Q31 -> 00:00:00 | Y31: =penalités!R31 -> 00:00:00 | Z31: =penalités!S31 -> 00:00:00 | AA31: =penalités!T31 -> 00:00:00
A32: ='TEMPS-ponton'!A32 -> 28 | B32: ='TEMPS-ponton'!B32 -> VILLENNES - POISSY AC 1 | C32: ='TEMPS-ponton'!C32 -> ACVP1 | D32: ='TEMPS-ponton'!D32 -> Frederic LE ROUX-Corinne HUARD-ROLLAND-Elodie DEREMIENCE-Marie-Claude LAUNAY-Olivier COSNEAU | E32: =VLOOKUP(A32,Equipes!A:J,2,FALSE) -> M | F32: =ROUND(VLOOKUP(A32,Equipes!$A$2:$J$41,10,0),0) -> 53 | G32: =IF('Temps Pass'!G32>0,'Temps Pass'!G32,"") ->  | H32: =IF('Temps Pass'!H32>0,'Temps Pass'!H32,"") -> 00:26:14 | I32: =IF('Temps Pass'!I32>0,'Temps Pass'!I32,"") -> 00:46:16 | J32: =IF('Temps Pass'!J32>0,'Temps Pass'!J32,"") ->  | K32: =IF('Temps Pass'!K32>0,'Temps Pass'!K32,"") -> 01:12:03 | L32: =IF('Temps Pass'!L32>0,'Temps Pass'!L32,"99:99:99")+T32 -> 01:31:07 | N32: =penalités!G32 ->  | O32: =penalités!H32 -> 00:00:00 | P32: =penalités!I32 -> 99:99:99 | Q32: =penalités!J32 ->  | R32: =penalités!K32 -> 00:00:00 | S32: =penalités!L32 -> 99:99:99 | T32: =penalités!M32 -> 00:00:00 | U32: =penalités!N32 -> 00:00:00 | V32: =penalités!O32 -> 00:00:00 | W32: =penalités!P32 -> 00:00:00 | X32: =penalités!Q32 -> 00:00:00 | Y32: =penalités!R32 -> 00:00:00 | Z32: =penalités!S32 -> 00:00:00 | AA32: =penalités!T32 -> 00:00:00
A33: ='TEMPS-ponton'!A33 -> 29 | B33: ='TEMPS-ponton'!B33 -> FONTAINEBLEAU APF 1 | C33: ='TEMPS-ponton'!C33 -> APF1 | D33: ='TEMPS-ponton'!D33 -> Kathleen SANCHEZ-Laurent FOUQUE-Christian MESSALES-Denis FLORY-David WEBER | E33: =VLOOKUP(A33,Equipes!A:J,2,FALSE) -> H | F33: =ROUND(VLOOKUP(A33,Equipes!$A$2:$J$41,10,0),0) -> 57 | G33: =IF('Temps Pass'!G33>0,'Temps Pass'!G33,"") ->  | H33: =IF('Temps Pass'!H33>0,'Temps Pass'!H33,"") -> 00:30:14 | I33: =IF('Temps Pass'!I33>0,'Temps Pass'!I33,"") -> 00:54:12 | J33: =IF('Temps Pass'!J33>0,'Temps Pass'!J33,"") ->  | K33: =IF('Temps Pass'!K33>0,'Temps Pass'!K33,"") -> 01:23:29 | L33: =IF('Temps Pass'!L33>0,'Temps Pass'!L33,"99:99:99")+T33 -> 01:48:05 | N33: =penalités!G33 ->  | O33: =penalités!H33 -> 00:00:00 | P33: =penalités!I33 -> 99:99:99 | Q33: =penalités!J33 ->  | R33: =penalités!K33 -> 00:00:00 | S33: =penalités!L33 -> 99:99:99 | T33: =penalités!M33 -> 00:00:00 | U33: =penalités!N33 -> 00:00:00 | V33: =penalités!O33 -> 00:00:00 | W33: =penalités!P33 -> 00:00:00 | X33: =penalités!Q33 -> 00:00:00 | Y33: =penalités!R33 -> 00:00:00 | Z33: =penalités!S33 -> 00:00:00 | AA33: =penalités!T33 -> 00:00:00
A34: ='TEMPS-ponton'!A34 -> 30 | B34: ='TEMPS-ponton'!B34 -> JOINVILLE AMJ 1 | C34: ='TEMPS-ponton'!C34 -> AMJ1 | D34: ='TEMPS-ponton'!D34 -> Vincent FABIEN-Arnaud PUPPO-Jonathan ROOKE-Xavier SUCHET-Nicolas JAMAULT | E34: =VLOOKUP(A34,Equipes!A:J,2,FALSE) -> H | F34: =ROUND(VLOOKUP(A34,Equipes!$A$2:$J$41,10,0),0) -> 51 | G34: =IF('Temps Pass'!G34>0,'Temps Pass'!G34,"") ->  | H34: =IF('Temps Pass'!H34>0,'Temps Pass'!H34,"") -> 00:27:26 | I34: =IF('Temps Pass'!I34>0,'Temps Pass'!I34,"") -> 00:48:39 | J34: =IF('Temps Pass'!J34>0,'Temps Pass'!J34,"") ->  | K34: =IF('Temps Pass'!K34>0,'Temps Pass'!K34,"") -> 01:15:15 | L34: =IF('Temps Pass'!L34>0,'Temps Pass'!L34,"99:99:99")+T34 -> 01:41:06 | N34: =penalités!G34 ->  | O34: =penalités!H34 -> 00:00:00 | P34: =penalités!I34 -> 99:99:99 | Q34: =penalités!J34 ->  | R34: =penalités!K34 -> 00:00:00 | S34: =penalités!L34 -> 99:99:99 | T34: =penalités!M34 -> 00:05:00 | U34: =penalités!N34 -> 00:00:00 | V34: =penalités!O34 -> 00:00:00 | W34: =penalités!P34 -> 00:00:00 | X34: =penalités!Q34 -> 00:05:00 | Y34: =penalités!R34 -> 00:00:00 | Z34: =penalités!S34 -> 00:00:00 | AA34: =penalités!T34 -> 00:00:00
A35: ='TEMPS-ponton'!A35 -> 31 | B35: ='TEMPS-ponton'!B35 -> NOGENT SUR MARNE CN 3 | C35: ='TEMPS-ponton'!C35 -> CN3 | D35: ='TEMPS-ponton'!D35 -> Alexandra COHEN SALMON-Isabelle MILON-BANNEROT-Jerome TROMBOFSKY-Olivier PASCAL-Elisabeth LAUNAY | E35: =VLOOKUP(A35,Equipes!A:J,2,FALSE) -> M | F35: =ROUND(VLOOKUP(A35,Equipes!$A$2:$J$41,10,0),0) -> 53 | G35: =IF('Temps Pass'!G35>0,'Temps Pass'!G35,"") ->  | H35: =IF('Temps Pass'!H35>0,'Temps Pass'!H35,"") -> 00:32:03 | I35: =IF('Temps Pass'!I35>0,'Temps Pass'!I35,"") -> 00:56:17 | J35: =IF('Temps Pass'!J35>0,'Temps Pass'!J35,"") ->  | K35: =IF('Temps Pass'!K35>0,'Temps Pass'!K35,"") -> 01:30:10 | L35: =IF('Temps Pass'!L35>0,'Temps Pass'!L35,"99:99:99")+T35 -> 01:56:47 | N35: =penalités!G35 ->  | O35: =penalités!H35 -> 00:00:00 | P35: =penalités!I35 -> 99:99:99 | Q35: =penalités!J35 ->  | R35: =penalités!K35 -> 00:00:00 | S35: =penalités!L35 -> 99:99:99 | T35: =penalités!M35 -> 00:00:00 | U35: =penalités!N35 -> 00:00:00 | V35: =penalités!O35 -> 00:00:00 | W35: =penalités!P35 -> 00:00:00 | X35: =penalités!Q35 -> 00:00:00 | Y35: =penalités!R35 -> 00:00:00 | Z35: =penalités!S35 -> 00:00:00 | AA35: =penalités!T35 -> 00:00:00
A36: ='TEMPS-ponton'!A36 -> 32 | B36: ='TEMPS-ponton'!B36 -> BOULOGNE 92 1 | C36: ='TEMPS-ponton'!C36 -> ACBB1 | D36: ='TEMPS-ponton'!D36 -> Isabelle MAIRE-Théo BEL BERBEL- LURBE-Thã‰Odore SEDAROS-Omar OUAZZANI-Alexandra MENEZES | E36: =VLOOKUP(A36,Equipes!A:J,2,FALSE) -> H | F36: =ROUND(VLOOKUP(A36,Equipes!$A$2:$J$41,10,0),0) -> 43 | G36: =IF('Temps Pass'!G36>0,'Temps Pass'!G36,"") ->  | H36: =IF('Temps Pass'!H36>0,'Temps Pass'!H36,"") ->  | I36: =IF('Temps Pass'!I36>0,'Temps Pass'!I36,"") ->  | J36: =IF('Temps Pass'!J36>0,'Temps Pass'!J36,"") ->  | K36: =IF('Temps Pass'!K36>0,'Temps Pass'!K36,"") ->  | L36: =IF('Temps Pass'!L36>0,'Temps Pass'!L36,"99:99:99") -> 99:99:99 | N36: =penalités!G36 ->  | O36: =penalités!H36 -> 00:00:00 | P36: =penalités!I36 -> 99:99:99 | Q36: =penalités!J36 ->  | R36: =penalités!K36 -> 00:00:00 | S36: =penalités!L36 -> 99:99:99 | T36: =penalités!M36 -> 00:00:00 | U36: =penalités!N36 -> 00:00:00 | V36: =penalités!O36 -> 00:00:00 | W36: =penalités!P36 -> 00:00:00 | X36: =penalités!Q36 -> 00:00:00 | Y36: =penalités!R36 -> 00:00:00 | Z36: =penalités!S36 -> 00:00:00 | AA36: =penalités!T36 -> 00:00:00
A37: ='TEMPS-ponton'!A37 -> 33 | B37: ='TEMPS-ponton'!B37 -> XX | C37: ='TEMPS-ponton'!C37 -> XX | D37: ='TEMPS-ponton'!D37 -> XX-XX-XX-XX-XX | E37: =VLOOKUP(A37,Equipes!A:J,2,FALSE) -> X | F37: =ROUND(VLOOKUP(A37,Equipes!$A$2:$J$41,10,0),0) -> 0 | G37: =IF('Temps Pass'!G37>0,'Temps Pass'!G37,"") ->  | H37: =IF('Temps Pass'!H37>0,'Temps Pass'!H37,"") ->  | I37: =IF('Temps Pass'!I37>0,'Temps Pass'!I37,"") ->  | J37: =IF('Temps Pass'!J37>0,'Temps Pass'!J37,"") ->  | K37: =IF('Temps Pass'!K37>0,'Temps Pass'!K37,"") ->  | L37: =IF('Temps Pass'!L37>0,'Temps Pass'!L37,"99:99:99") -> 99:99:99 | N37: =penalités!G37 ->  | O37: =penalités!H37 -> 00:00:00 | P37: =penalités!I37 -> 99:99:99 | Q37: =penalités!J37 ->  | R37: =penalités!K37 -> 00:00:00 | S37: =penalités!L37 -> 99:99:99 | T37: =penalités!M37 -> 00:00:00 | U37: =penalités!N37 -> 00:00:00 | V37: =penalités!O37 -> 00:00:00 | W37: =penalités!P37 -> 00:00:00 | X37: =penalités!Q37 -> 00:00:00 | Y37: =penalités!R37 -> 00:00:00 | Z37: =penalités!S37 -> 00:00:00 | AA37: =penalités!T37 -> 00:00:00
A38: ='TEMPS-ponton'!A38 -> 34 | B38: ='TEMPS-ponton'!B38 -> XX | C38: ='TEMPS-ponton'!C38 -> XX | D38: ='TEMPS-ponton'!D38 -> XX-XX-XX-XX-XX | E38: =VLOOKUP(A38,Equipes!A:J,2,FALSE) -> X | F38: =ROUND(VLOOKUP(A38,Equipes!$A$2:$J$41,10,0),0) -> 0 | G38: =IF('Temps Pass'!G38>0,'Temps Pass'!G38,"") ->  | H38: =IF('Temps Pass'!H38>0,'Temps Pass'!H38,"") ->  | I38: =IF('Temps Pass'!I38>0,'Temps Pass'!I38,"") -> 00:35:17 | J38: =IF('Temps Pass'!J38>0,'Temps Pass'!J38,"") ->  | K38: =IF('Temps Pass'!K38>0,'Temps Pass'!K38,"") ->  | L38: =IF('Temps Pass'!L38>0,'Temps Pass'!L38,"99:99:99") -> 01:04:57 | N38: =penalités!G38 ->  | O38: =penalités!H38 -> 00:00:00 | P38: =penalités!I38 -> 99:99:99 | Q38: =penalités!J38 ->  | R38: =penalités!K38 -> 00:00:00 | S38: =penalités!L38 -> 99:99:99 | T38: =penalités!M38 -> 00:00:00 | U38: =penalités!N38 -> 00:00:00 | V38: =penalités!O38 -> 00:00:00 | W38: =penalités!P38 -> 00:00:00 | X38: =penalités!Q38 -> 00:00:00 | Y38: =penalités!R38 -> 00:00:00 | Z38: =penalités!S38 -> 00:00:00 | AA38: =penalités!T38 -> 00:00:00
A39: ='TEMPS-ponton'!A39 -> 35 | B39: ='TEMPS-ponton'!B39 -> XX | C39: ='TEMPS-ponton'!C39 -> XX | D39: ='TEMPS-ponton'!D39 -> XX-XX-XX-XX-XX | E39: =VLOOKUP(A39,Equipes!A:J,2,FALSE) -> X | F39: =ROUND(VLOOKUP(A39,Equipes!$A$2:$J$41,10,0),0) -> 0 | G39: =IF('Temps Pass'!G39>0,'Temps Pass'!G39,"") ->  | H39: =IF('Temps Pass'!H39>0,'Temps Pass'!H39,"") ->  | I39: =IF('Temps Pass'!I39>0,'Temps Pass'!I39,"") ->  | J39: =IF('Temps Pass'!J39>0,'Temps Pass'!J39,"") ->  | K39: =IF('Temps Pass'!K39>0,'Temps Pass'!K39,"") ->  | L39: =IF('Temps Pass'!L39>0,'Temps Pass'!L39,"99:99:99") -> 99:99:99 | N39: =penalités!G39 ->  | O39: =penalités!H39 -> 00:00:00 | P39: =penalités!I39 -> 99:99:99 | Q39: =penalités!J39 ->  | R39: =penalités!K39 -> 00:00:00 | S39: =penalités!L39 -> 99:99:99 | T39: =penalités!M39 -> 00:00:00 | U39: =penalités!N39 -> 00:00:00 | V39: =penalités!O39 -> 00:00:00 | W39: =penalités!P39 -> 00:00:00 | X39: =penalités!Q39 -> 00:00:00 | Y39: =penalités!R39 -> 00:00:00 | Z39: =penalités!S39 -> 00:00:00 | AA39: =penalités!T39 -> 00:00:00
A40: ='TEMPS-ponton'!A40 -> 36 | B40: ='TEMPS-ponton'!B40 -> XX | C40: ='TEMPS-ponton'!C40 -> XX | D40: ='TEMPS-ponton'!D40 -> XX-XX-XX-XX-XX | E40: =VLOOKUP(A40,Equipes!A:J,2,FALSE) -> X | F40: =ROUND(VLOOKUP(A40,Equipes!$A$2:$J$41,10,0),0) -> 0 | G40: =IF('Temps Pass'!G40>0,'Temps Pass'!G40,"") ->  | H40: =IF('Temps Pass'!H40>0,'Temps Pass'!H40,"") ->  | I40: =IF('Temps Pass'!I40>0,'Temps Pass'!I40,"") ->  | J40: =IF('Temps Pass'!J40>0,'Temps Pass'!J40,"") ->  | K40: =IF('Temps Pass'!K40>0,'Temps Pass'!K40,"") ->  | L40: =IF('Temps Pass'!L40>0,'Temps Pass'!L40,"99:99:99") -> 99:99:99 | N40: =penalités!G40 ->  | O40: =penalités!H40 -> 00:00:00 | P40: =penalités!I40 -> 99:99:99 | Q40: =penalités!J40 ->  | R40: =penalités!K40 -> 00:00:00 | S40: =penalités!L40 -> 99:99:99 | T40: =penalités!M40 -> 00:00:00 | U40: =penalités!N40 -> 00:00:00 | V40: =penalités!O40 -> 00:00:00 | W40: =penalités!P40 -> 00:00:00 | X40: =penalités!Q40 -> 00:00:00 | Y40: =penalités!R40 -> 00:00:00 | Z40: =penalités!S40 -> 00:00:00 | AA40: =penalités!T40 -> 00:00:00
A41: ='TEMPS-ponton'!A41 -> 37 | B41: ='TEMPS-ponton'!B41 -> XX | C41: ='TEMPS-ponton'!C41 -> XX | D41: ='TEMPS-ponton'!D41 -> XX-XX-XX-XX-XX | E41: =VLOOKUP(A41,Equipes!A:J,2,FALSE) -> X | F41: =ROUND(VLOOKUP(A41,Equipes!$A$2:$J$41,10,0),0) -> 0 | G41: =IF('Temps Pass'!G41>0,'Temps Pass'!G41,"") ->  | H41: =IF('Temps Pass'!H41>0,'Temps Pass'!H41,"") ->  | I41: =IF('Temps Pass'!I41>0,'Temps Pass'!I41,"") ->  | J41: =IF('Temps Pass'!J41>0,'Temps Pass'!J41,"") ->  | K41: =IF('Temps Pass'!K41>0,'Temps Pass'!K41,"") ->  | L41: =IF('Temps Pass'!L41>0,'Temps Pass'!L41,"99:99:99") -> 99:99:99 | N41: =penalités!G41 ->  | O41: =penalités!H41 -> 00:00:00 | P41: =penalités!I41 -> 99:99:99 | Q41: =penalités!J41 ->  | R41: =penalités!K41 -> 00:00:00 | S41: =penalités!L41 -> 99:99:99 | T41: =penalités!M41 -> 00:00:00 | U41: =penalités!N41 -> 00:00:00 | V41: =penalités!O41 -> 00:00:00 | W41: =penalités!P41 -> 00:00:00 | X41: =penalités!Q41 -> 00:00:00 | Y41: =penalités!R41 -> 00:00:00 | Z41: =penalités!S41 -> 00:00:00 | AA41: =penalités!T41 -> 00:00:00
A42: ='TEMPS-ponton'!A42 -> 38 | B42: ='TEMPS-ponton'!B42 -> XX | C42: ='TEMPS-ponton'!C42 -> XX | D42: ='TEMPS-ponton'!D42 -> XX-XX-XX-XX-XX | E42: =VLOOKUP(A42,Equipes!A:J,2,FALSE) -> X | F42: =ROUND(VLOOKUP(A42,Equipes!$A$2:$J$41,10,0),0) -> 0 | G42: =IF('Temps Pass'!G42>0,'Temps Pass'!G42,"") ->  | H42: =IF('Temps Pass'!H42>0,'Temps Pass'!H42,"") ->  | I42: =IF('Temps Pass'!I42>0,'Temps Pass'!I42,"") ->  | J42: =IF('Temps Pass'!J42>0,'Temps Pass'!J42,"") ->  | K42: =IF('Temps Pass'!K42>0,'Temps Pass'!K42,"") ->  | L42: =IF('Temps Pass'!L42>0,'Temps Pass'!L42,"99:99:99") -> 99:99:99 | N42: =penalités!G42 ->  | O42: =penalités!H42 -> 00:00:00 | P42: =penalités!I42 -> 99:99:99 | Q42: =penalités!J42 ->  | R42: =penalités!K42 -> 00:00:00 | S42: =penalités!L42 -> 99:99:99 | T42: =penalités!M42 -> 00:00:00 | U42: =penalités!N42 -> 00:00:00 | V42: =penalités!O42 -> 00:00:00 | W42: =penalités!P42 -> 00:00:00 | X42: =penalités!Q42 -> 00:00:00 | Y42: =penalités!R42 -> 00:00:00 | Z42: =penalités!S42 -> 00:00:00 | AA42: =penalités!T42 -> 00:00:00
A43: ='TEMPS-ponton'!A43 -> 39 | B43: ='TEMPS-ponton'!B43 -> XX | C43: ='TEMPS-ponton'!C43 -> XX | D43: ='TEMPS-ponton'!D43 -> XX-XX-XX-XX-XX | E43: =VLOOKUP(A43,Equipes!A:J,2,FALSE) -> X | F43: =ROUND(VLOOKUP(A43,Equipes!$A$2:$J$41,10,0),0) -> 0 | G43: =IF('Temps Pass'!G43>0,'Temps Pass'!G43,"") ->  | H43: =IF('Temps Pass'!H43>0,'Temps Pass'!H43,"") ->  | I43: =IF('Temps Pass'!I43>0,'Temps Pass'!I43,"") ->  | J43: =IF('Temps Pass'!J43>0,'Temps Pass'!J43,"") ->  | K43: =IF('Temps Pass'!K43>0,'Temps Pass'!K43,"") ->  | L43: =IF('Temps Pass'!L43>0,'Temps Pass'!L43,"99:99:99") -> 99:99:99 | N43: =penalités!G43 ->  | O43: =penalités!H43 -> 00:00:00 | P43: =penalités!I43 -> 99:99:99 | Q43: =penalités!J43 ->  | R43: =penalités!K43 -> 00:00:00 | S43: =penalités!L43 -> 99:99:99 | T43: =penalités!M43 -> 00:00:00 | U43: =penalités!N43 -> 00:00:00 | V43: =penalités!O43 -> 00:00:00 | W43: =penalités!P43 -> 00:00:00 | X43: =penalités!Q43 -> 00:00:00 | Y43: =penalités!R43 -> 00:00:00 | Z43: =penalités!S43 -> 00:00:00 | AA43: =penalités!T43 -> 00:00:00
A44: ='TEMPS-ponton'!A44 -> 40 | B44: ='TEMPS-ponton'!B44 -> XX | C44: ='TEMPS-ponton'!C44 -> XX | D44: ='TEMPS-ponton'!D44 -> XX-XX-XX-XX-XX | E44: =VLOOKUP(A44,Equipes!A:J,2,FALSE) -> X | F44: =ROUND(VLOOKUP(A44,Equipes!$A$2:$J$41,10,0),0) -> 0 | G44: =IF('Temps Pass'!G44>0,'Temps Pass'!G44,"") ->  | H44: =IF('Temps Pass'!H44>0,'Temps Pass'!H44,"") ->  | I44: =IF('Temps Pass'!I44>0,'Temps Pass'!I44,"") ->  | J44: =IF('Temps Pass'!J44>0,'Temps Pass'!J44,"") ->  | K44: =IF('Temps Pass'!K44>0,'Temps Pass'!K44,"") ->  | L44: =IF('Temps Pass'!L44>0,'Temps Pass'!L44,"99:99:99") -> 99:99:99 | N44: =penalités!G44 ->  | O44: =penalités!H44 -> 00:00:00 | P44: =penalités!I44 -> 99:99:99 | Q44: =penalités!J44 ->  | R44: =penalités!K44 -> 00:00:00 | S44: =penalités!L44 -> 99:99:99 | T44: =penalités!M44 -> 00:00:00 | U44: =penalités!N44 -> 00:00:00 | V44: =penalités!O44 -> 00:00:00 | W44: =penalités!P44 -> 00:00:00 | X44: =penalités!Q44 -> 00:00:00 | Y44: =penalités!R44 -> 00:00:00 | Z44: =penalités!S44 -> 00:00:00 | AA44: =penalités!T44 -> 00:00:00

Sheet Ecart Record
A1: GRAND 8 | D1: ='Note explicative fichier'!E3 -> 2024-06-02
A3: Yolette N° | B3: Club | C3: Ville | D3: Equipage | E3: Cat. | F3: Age Moy. | G3: 1 / 4 G-8 | H3: 1 / 2 G-8 | I3: 3 / 4 G-8 | J3: Arrivée
A4: ='Temps corr'!A4 -> Record | B4: ='Temps corr'!B4 -> POLYTECHNIQUE ( Référence 2012 ) | C4: ='Temps corr'!C4 -> Palaiseau | D4: ='Temps corr'!D4 -> FERRERO Michel - Alexandre Rosinski - BOYAUD Mathieu - GODDE Olivier - THECKES Benoit | G4: ='Temps corr'!H4 -> 00:23:35 | H4: ='Temps corr'!I4 -> 00:40:41 | I4: ='Temps corr'!K4 -> 01:04:34 | J4: ='Temps corr'!L4 -> 01:21:48
A5: ='Temps corr'!A5 -> 1 | B5: ='Temps corr'!B5 -> ANDRESY CA CONFLUENT 1 | C5: ='Temps corr'!C5 -> Cac1 | D5: ='Temps corr'!D5 -> Stephanie LAPORTE-Marine NACERI-Marc LACCASSAGNE-Stephane ZETTWOOG-Fouzia VOIRIN | E5: =VLOOKUP(A5,Equipes!A:J,2,FALSE) -> M | F5: =ROUND(VLOOKUP(A5,Equipes!$A$2:$J$41,10,0),0) -> 49 | G5: ='Temps corr'!H5-'Temps corr'!H$4 -> 00:09:45 | H5: ='Temps corr'!I5-'Temps corr'!I$4 -> 00:17:16 | I5: ='Temps corr'!K5-'Temps corr'!K$4 -> 00:23:12 | J5: ='Temps corr'!L5-'Temps corr'!L$4 -> 00:35:05
A6: ='Temps corr'!A6 -> 2 | B6: ='Temps corr'!B6 -> CAUDEBEC EN CAUX ACVS 1 | C6: ='Temps corr'!C6 -> Caudebec | D6: ='Temps corr'!D6 -> Martine NARBAIS-JAUREGUY-Caroline KERVRANN-Stephane DELAMARE-Nicolas BARRAY-Francois NARBAIS-JAUREGUY | E6: =VLOOKUP(A6,Equipes!A:J,2,FALSE) -> M | F6: =ROUND(VLOOKUP(A6,Equipes!$A$2:$J$41,10,0),0) -> 55 | G6: ='Temps corr'!H6-'Temps corr'!H$4 -> 00:06:33 | H6: ='Temps corr'!I6-'Temps corr'!I$4 -> 00:11:41 | I6: ='Temps corr'!K6-'Temps corr'!K$4 -> 00:16:56 | J6: ='Temps corr'!L6-'Temps corr'!L$4 -> 00:21:59
A7: ='Temps corr'!A7 -> 3 | B7: ='Temps corr'!B7 -> ANDRESY CA CONFLUENT 2 | C7: ='Temps corr'!C7 -> CAC 2 | D7: ='Temps corr'!D7 -> Anna ALCALOIDEPOIXBLANC-Geoffrey GHIZZONI-Nathalie BOURGEOIS-Franck CHRISTIANNOT-NicOLAS delaunoy | E7: =VLOOKUP(A7,Equipes!A:J,2,FALSE) -> M | F7: =ROUND(VLOOKUP(A7,Equipes!$A$2:$J$41,10,0),0) -> 55 | G7: ='Temps corr'!H7-'Temps corr'!H$4 -> 00:10:13 | H7: ='Temps corr'!I7-'Temps corr'!I$4 -> 00:20:08 | I7: ='Temps corr'!K7-'Temps corr'!K$4 -> 00:27:39 | J7: ='Temps corr'!L7-'Temps corr'!L$4 -> 00:36:01
A8: ='Temps corr'!A8 -> 4 | B8: ='Temps corr'!B8 -> ANDRESY CA CONFLUENT 1 | C8: ='Temps corr'!C8 -> CAC3 | D8: ='Temps corr'!D8 -> Emmanuel SALIN-Ousseni PARKOUDA-Jean-Baptiste PROVENZANO-Jerome CLAVE-Julian GALLELA | E8: =VLOOKUP(A8,Equipes!A:J,2,FALSE) -> H | F8: =ROUND(VLOOKUP(A8,Equipes!$A$2:$J$41,10,0),0) -> 46 | G8: ='Temps corr'!H8-'Temps corr'!H$4 -> 00:06:10 | H8: ='Temps corr'!I8-'Temps corr'!I$4 -> 00:13:07 | I8: ='Temps corr'!K8-'Temps corr'!K$4 -> 00:18:12 | J8: ='Temps corr'!L8-'Temps corr'!L$4 -> 00:25:39
A9: ='Temps corr'!A9 -> 5 | B9: ='Temps corr'!B9 -> PORT-MARLY RC 1 | C9: ='Temps corr'!C9 -> RCPM | D9: ='Temps corr'!D9 -> Claudie BODIN-Fanny LAMOUR-Etienne DUPUIS-Jeancharles FAUCHEUX-Gildas KETTANJIAN | E9: =VLOOKUP(A9,Equipes!A:J,2,FALSE) -> M | F9: =ROUND(VLOOKUP(A9,Equipes!$A$2:$J$41,10,0),0) -> 50 | G9: ='Temps corr'!H9-'Temps corr'!H$4 -> 00:06:53 | H9: ='Temps corr'!I9-'Temps corr'!I$4 -> 00:13:53 | I9: ='Temps corr'!K9-'Temps corr'!K$4 -> 00:20:24 | J9: ='Temps corr'!L9-'Temps corr'!L$4 -> 00:27:24
A10: ='Temps corr'!A10 -> 6 | B10: ='Temps corr'!B10 -> BOULOGNE 92 2 | C10: ='Temps corr'!C10 -> ACBB | D10: ='Temps corr'!D10 -> CéLia ROUSSELLE-Marie Pierre MARSALLON GAMBY-Françis ROBIN-Nicolas LECOEUR-Theodora XENOGIANI | E10: =VLOOKUP(A10,Equipes!A:J,2,FALSE) -> M | F10: =ROUND(VLOOKUP(A10,Equipes!$A$2:$J$41,10,0),0) -> 46 | G10: ='Temps corr'!H10-'Temps corr'!H$4 -> 00:04:54 | H10: ='Temps corr'!I10-'Temps corr'!I$4 -> 00:10:00 | I10: ='Temps corr'!K10-'Temps corr'!K$4 -> 00:13:53 | J10: ='Temps corr'!L10-'Temps corr'!L$4 -> 00:17:55
A11: ='Temps corr'!A11 -> 7 | B11: ='Temps corr'!B11 -> VILLENNES - POISSY AC 3 | C11: ='Temps corr'!C11 -> ACVP | D11: ='Temps corr'!D11 -> Virginie ALEXANDRE-Jihad LEMARQRI-Cyrille BRUZON-BASCOU-Sebastien CARPENTIER-Marie Estelle D'ARBAUMONT | E11: =VLOOKUP(A11,Equipes!A:J,2,FALSE) -> M | F11: =ROUND(VLOOKUP(A11,Equipes!$A$2:$J$41,10,0),0) -> 49 | G11: ='Temps corr'!H11-'Temps corr'!H$4 -> 00:05:10 | H11: ='Temps corr'!I11-'Temps corr'!I$4 -> 00:10:46 | I11: ='Temps corr'!K11-'Temps corr'!K$4 -> 00:14:46 | J11: ='Temps corr'!L11-'Temps corr'!L$4 -> 00:19:41
A12: ='Temps corr'!A12 -> 8 | B12: ='Temps corr'!B12 -> JOINVILLE AMJ 1 | C12: ='Temps corr'!C12 -> Joinville | D12: ='Temps corr'!D12 -> Laurent BAUDOIN-Raphaelle BOUVIER FLORY-Sophie BUSTOS-Kastriot JAKA-Thomas AUGER | E12: =VLOOKUP(A12,Equipes!A:J,2,FALSE) -> M | F12: =ROUND(VLOOKUP(A12,Equipes!$A$2:$J$41,10,0),0) -> 46 | G12: ='Temps corr'!H12-'Temps corr'!H$4 -> 00:04:00 | H12: ='Temps corr'!I12-'Temps corr'!I$4 -> 00:07:24 | I12: ='Temps corr'!K12-'Temps corr'!K$4 -> 00:09:09 | J12: ='Temps corr'!L12-'Temps corr'!L$4 -> 00:11:44
A13: ='Temps corr'!A13 -> 9 | B13: ='Temps corr'!B13 -> NOGENT SUR MARNE CN 1 | C13: ='Temps corr'!C13 -> CN 1 | D13: ='Temps corr'!D13 -> Chrystelle SUPIOT-Caroline PIEDNOIRE-Olivier MUCIGNAT-Andre SIMONNET-Fabienne LORTIE | E13: =VLOOKUP(A13,Equipes!A:J,2,FALSE) -> M | F13: =ROUND(VLOOKUP(A13,Equipes!$A$2:$J$41,10,0),0) -> 53 | G13: ='Temps corr'!H13-'Temps corr'!H$4 -> 00:05:13 | H13: ='Temps corr'!I13-'Temps corr'!I$4 -> 00:09:41 | I13: ='Temps corr'!K13-'Temps corr'!K$4 -> 00:15:05 | J13: ='Temps corr'!L13-'Temps corr'!L$4 -> 00:21:48
A14: ='Temps corr'!A14 -> 10 | B14: ='Temps corr'!B14 -> NOGENT SUR MARNE CN 2 | C14: ='Temps corr'!C14 -> CN2 | D14: ='Temps corr'!D14 -> Christophe RUCKEBUSCH-Nicolas BURCKHART-Alice GHEERBRANT-Aurelie DONVAL-Gerard LECA | E14: =VLOOKUP(A14,Equipes!A:J,2,FALSE) -> M | F14: =ROUND(VLOOKUP(A14,Equipes!$A$2:$J$41,10,0),0) -> 53 | G14: ='Temps corr'!H14-'Temps corr'!H$4 -> 00:03:39 | H14: ='Temps corr'!I14-'Temps corr'!I$4 -> 00:07:04 | I14: ='Temps corr'!K14-'Temps corr'!K$4 -> 00:10:52 | J14: ='Temps corr'!L14-'Temps corr'!L$4 -> 00:15:06
A15: ='Temps corr'!A15 -> 11 | B15: ='Temps corr'!B15 -> BOULOGNE 92 1 | C15: ='Temps corr'!C15 -> ACBB | D15: ='Temps corr'!D15 -> Viviane BALLOY-Timothé BAZIRIES-Alexandre LE FUR-Sigrid PABST-Michel VEDRINE | E15: =VLOOKUP(A15,Equipes!A:J,2,FALSE) -> H | F15: =ROUND(VLOOKUP(A15,Equipes!$A$2:$J$41,10,0),0) -> 51 | G15: ='Temps corr'!H15-'Temps corr'!H$4 -> 00:06:32 | H15: ='Temps corr'!I15-'Temps corr'!I$4 -> 00:13:59 | I15: ='Temps corr'!K15-'Temps corr'!K$4 -> -0.02684027778 | J15: ='Temps corr'!L15-'Temps corr'!L$4 -> 00:29:07
A16: ='Temps corr'!A16 -> 12 | B16: ='Temps corr'!B16 -> EVRY SCA 2 | C16: ='Temps corr'!C16 -> SCA2 | D16: ='Temps corr'!D16 -> Laurent YEBOAH-Isabelle MOISSET FLEURISSON-Frederic DUCAUQUY-Sandrine GARCIA-Christelle MARTIN | E16: =VLOOKUP(A16,Equipes!A:J,2,FALSE) -> M | F16: =ROUND(VLOOKUP(A16,Equipes!$A$2:$J$41,10,0),0) -> 48 | G16: ='Temps corr'!H16-'Temps corr'!H$4 -> 00:02:39 | H16: ='Temps corr'!I16-'Temps corr'!I$4 -> 00:05:42 | I16: ='Temps corr'!K16-'Temps corr'!K$4 -> 00:07:41 | J16: ='Temps corr'!L16-'Temps corr'!L$4 -> 00:15:05
A17: ='Temps corr'!A17 -> 13 | B17: ='Temps corr'!B17 -> PORT-MARLY RC 2 | C17: ='Temps corr'!C17 -> RCPM2 | D17: ='Temps corr'!D17 -> Elsa CROZATIER-Cyrielle BERTHIER-Hervé Valette-Eric MOINARD-Anais FEUGA | E17: =VLOOKUP(A17,Equipes!A:J,2,FALSE) -> M | F17: =ROUND(VLOOKUP(A17,Equipes!$A$2:$J$41,10,0),0) -> 47 | G17: ='Temps corr'!H17-'Temps corr'!H$4 -> 00:01:59 | H17: ='Temps corr'!I17-'Temps corr'!I$4 -> 00:05:04 | I17: ='Temps corr'!K17-'Temps corr'!K$4 -> 00:06:41 | J17: ='Temps corr'!L17-'Temps corr'!L$4 -> 00:15:11
A18: ='Temps corr'!A18 -> 14 | B18: ='Temps corr'!B18 -> MAISONS MESNIL CERAMM 1 | C18: ='Temps corr'!C18 -> CERAMM1 | D18: ='Temps corr'!D18 -> Nicolas SCHMITT-Gloria VENDRELL-Christine MARIE LAVAUD-Amaury DE LA LAURENCIE-Amina ELABBADI | E18: =VLOOKUP(A18,Equipes!A:J,2,FALSE) -> M | F18: =ROUND(VLOOKUP(A18,Equipes!$A$2:$J$41,10,0),0) -> 50 | G18: ='Temps corr'!H18-'Temps corr'!H$4 -> 00:04:53 | H18: ='Temps corr'!I18-'Temps corr'!I$4 -> 00:09:11 | I18: ='Temps corr'!K18-'Temps corr'!K$4 -> 00:14:41 | J18: ='Temps corr'!L18-'Temps corr'!L$4 -> 00:20:27
A19: ='Temps corr'!A19 -> 15 | B19: ='Temps corr'!B19 -> SOISY SUR SEINE CN 1 | C19: ='Temps corr'!C19 -> CN1 | D19: ='Temps corr'!D19 -> Bertrand PIOGER-Bruno PERIQUOI-Servane BERTRAND-Alain BERNARD-Robert TRAUET | E19: =VLOOKUP(A19,Equipes!A:J,2,FALSE) -> H | F19: =ROUND(VLOOKUP(A19,Equipes!$A$2:$J$41,10,0),0) -> 54 | G19: ='Temps corr'!H19-'Temps corr'!H$4 -> 00:03:50 | H19: ='Temps corr'!I19-'Temps corr'!I$4 -> 00:06:26 | I19: ='Temps corr'!K19-'Temps corr'!K$4 -> 00:08:17 | J19: ='Temps corr'!L19-'Temps corr'!L$4 -> 00:17:20
A20: ='Temps corr'!A20 -> 16 | B20: ='Temps corr'!B20 -> PORT-MARLY RC 1 | C20: ='Temps corr'!C20 -> RCPM1 | D20: ='Temps corr'!D20 -> Jean-Claude LAFOREST-David CHARTIER-Christophe MARCAIS-Vincent BONTOUX-Alain ROUSSEAU | E20: =VLOOKUP(A20,Equipes!A:J,2,FALSE) -> H | F20: =ROUND(VLOOKUP(A20,Equipes!$A$2:$J$41,10,0),0) -> 55 | G20: ='Temps corr'!H20-'Temps corr'!H$4 -> 00:01:31 | H20: ='Temps corr'!I20-'Temps corr'!I$4 -> 00:03:15 | I20: ='Temps corr'!K20-'Temps corr'!K$4 -> 00:02:30 | J20: ='Temps corr'!L20-'Temps corr'!L$4 -> 00:08:37
A21: ='Temps corr'!A21 -> 17 | B21: ='Temps corr'!B21 -> ANDRESY CA CONFLUENT 1 | C21: ='Temps corr'!C21 -> CAC1 | D21: ='Temps corr'!D21 -> Daphne PARIZOT-Agnes BURGHGRAEVE SELLEN-Sylvie FRANSSEN-Severine LEGAILLARD-Martine LE ROUX | E21: =VLOOKUP(A21,Equipes!A:J,2,FALSE) -> F | F21: =ROUND(VLOOKUP(A21,Equipes!$A$2:$J$41,10,0),0) -> 55 | G21: ='Temps corr'!H21-'Temps corr'!H$4 -> 00:10:23 | H21: ='Temps corr'!I21-'Temps corr'!I$4 -> 00:18:59 | I21: ='Temps corr'!K21-'Temps corr'!K$4 -> 00:29:27 | J21: ='Temps corr'!L21-'Temps corr'!L$4 -> 00:39:22
A22: ='Temps corr'!A22 -> 18 | B22: ='Temps corr'!B22 -> MAISONS MESNIL CERAMM 2 | C22: ='Temps corr'!C22 -> CERAMM2 | D22: ='Temps corr'!D22 -> Claude LEMENAGER-Didier GIRARDEAU-Laurent LIBOTTE-Alain GIRARD-Cecile JEAMMES | E22: =VLOOKUP(A22,Equipes!A:J,2,FALSE) -> H | F22: =ROUND(VLOOKUP(A22,Equipes!$A$2:$J$41,10,0),0) -> 58 | G22: ='Temps corr'!H22-'Temps corr'!H$4 -> 00:05:15 | H22: ='Temps corr'!I22-'Temps corr'!I$4 -> 00:10:28 | I22: ='Temps corr'!K22-'Temps corr'!K$4 -> 00:14:57 | J22: ='Temps corr'!L22-'Temps corr'!L$4 -> 00:19:50
A23: ='Temps corr'!A23 -> 19 | B23: ='Temps corr'!B23 -> VILLENNES - POISSY AC 1 | C23: ='Temps corr'!C23 -> ACVP1 | D23: ='Temps corr'!D23 -> Olivier POLGE-Odile POLGE-Laurent BONHOMMET-Antoine VOLPI-Philippe STROHM | E23: =VLOOKUP(A23,Equipes!A:J,2,FALSE) -> H | F23: =ROUND(VLOOKUP(A23,Equipes!$A$2:$J$41,10,0),0) -> 55 | G23: ='Temps corr'!H23-'Temps corr'!H$4 -> 00:06:21 | H23: ='Temps corr'!I23-'Temps corr'!I$4 -> 00:11:21 | I23: ='Temps corr'!K23-'Temps corr'!K$4 -> 00:15:13 | J23: ='Temps corr'!L23-'Temps corr'!L$4 -> 00:19:08
A24: ='Temps corr'!A24 -> 20 | B24: ='Temps corr'!B24 -> ROUEN CNAR 1 | C24: ='Temps corr'!C24 -> CNAR1 | D24: ='Temps corr'!D24 -> Nathalie MOUSSET-Francois LAIR-Betty GESLAIN-Thierry DUCHESNE-Stephane MOUSSET | E24: =VLOOKUP(A24,Equipes!A:J,2,FALSE) -> M | F24: =ROUND(VLOOKUP(A24,Equipes!$A$2:$J$41,10,0),0) -> 55 | G24: ='Temps corr'!H24-'Temps corr'!H$4 -> 00:05:18 | H24: ='Temps corr'!I24-'Temps corr'!I$4 -> 00:10:00 | I24: ='Temps corr'!K24-'Temps corr'!K$4 -> 00:12:36 | J24: ='Temps corr'!L24-'Temps corr'!L$4 -> 00:15:25
A25: ='Temps corr'!A25 -> 21 | B25: ='Temps corr'!B25 -> PORT-MARLY RC 2 | C25: ='Temps corr'!C25 -> RCPM2 | D25: ='Temps corr'!D25 -> Guillaume CHARRON-Philippe VERHE-Stephan REYNIER-Dominique LEROUX-Luciano AUTUNNALE | E25: =VLOOKUP(A25,Equipes!A:J,2,FALSE) -> H | F25: =ROUND(VLOOKUP(A25,Equipes!$A$2:$J$41,10,0),0) -> 51 | G25: ='Temps corr'!H25-'Temps corr'!H$4 -> 00:01:53 | H25: ='Temps corr'!I25-'Temps corr'!I$4 -> 00:05:23 | I25: ='Temps corr'!K25-'Temps corr'!K$4 -> 00:07:09 | J25: ='Temps corr'!L25-'Temps corr'!L$4 -> 00:09:52
A26: ='Temps corr'!A26 -> 22 | B26: ='Temps corr'!B26 -> COUDRAY MONTCEAUX A 1 | C26: ='Temps corr'!C26 -> coudray1 | D26: ='Temps corr'!D26 -> Joseph RAYNAUD-Frederic MORAT-Benjamin HOUILLON-Pascal BEAUSSART-Anne HOUAL | E26: =VLOOKUP(A26,Equipes!A:J,2,FALSE) -> H | F26: =ROUND(VLOOKUP(A26,Equipes!$A$2:$J$41,10,0),0) -> 52 | G26: ='Temps corr'!H26-'Temps corr'!H$4 -> 00:05:35 | H26: ='Temps corr'!I26-'Temps corr'!I$4 -> 00:10:59 | I26: ='Temps corr'!K26-'Temps corr'!K$4 -> 00:15:09 | J26: ='Temps corr'!L26-'Temps corr'!L$4 -> 00:19:58
A27: ='Temps corr'!A27 -> 23 | B27: ='Temps corr'!B27 -> SN OISE 1 | C27: ='Temps corr'!C27 -> SN Oise 1 | D27: ='Temps corr'!D27 -> Agnes AUDEBERT-Nicolas RAUCH-Jerome ROUGE-Nathalie BAUDIER-Isabelle JOUBERT | E27: =VLOOKUP(A27,Equipes!A:J,2,FALSE) -> M | F27: =ROUND(VLOOKUP(A27,Equipes!$A$2:$J$41,10,0),0) -> 50 | G27: ='Temps corr'!H27-'Temps corr'!H$4 -> 00:07:49 | H27: ='Temps corr'!I27-'Temps corr'!I$4 -> 00:15:51 | I27: ='Temps corr'!K27-'Temps corr'!K$4 -> 00:23:32 | J27: ='Temps corr'!L27-'Temps corr'!L$4 -> 00:31:14
A28: ='Temps corr'!A28 -> 24 | B28: ='Temps corr'!B28 -> MEULAN LES MUREAUX AMMH 1 | C28: ='Temps corr'!C28 -> AMMH1 | D28: ='Temps corr'!D28 -> Xavier MARSAIS-Eric PRENEY-Yannick DAGMEY-David COINE-Arthur VAN SLOOTEN | E28: =VLOOKUP(A28,Equipes!A:J,2,FALSE) -> H | F28: =ROUND(VLOOKUP(A28,Equipes!$A$2:$J$41,10,0),0) -> 53 | G28: ='Temps corr'!H28-'Temps corr'!H$4 -> 00:03:08 | H28: ='Temps corr'!I28-'Temps corr'!I$4 -> 00:07:18 | I28: ='Temps corr'!K28-'Temps corr'!K$4 -> 00:11:25 | J28: ='Temps corr'!L28-'Temps corr'!L$4 -> 00:14:16
A29: ='Temps corr'!A29 -> 25 | B29: ='Temps corr'!B29 -> VILLENNES - POISSY AC 2 | C29: ='Temps corr'!C29 -> ACVP2 | D29: ='Temps corr'!D29 -> Franck CARIOU-Michael LE BANNER-Valerie DECAESTECKER-Karine GUILBON-Christophe ELINE | E29: =VLOOKUP(A29,Equipes!A:J,2,FALSE) -> M | F29: =ROUND(VLOOKUP(A29,Equipes!$A$2:$J$41,10,0),0) -> 54 | G29: ='Temps corr'!H29-'Temps corr'!H$4 -> 00:03:03 | H29: ='Temps corr'!I29-'Temps corr'!I$4 -> 00:07:06 | I29: ='Temps corr'!K29-'Temps corr'!K$4 -> 00:11:39 | J29: ='Temps corr'!L29-'Temps corr'!L$4 -> 00:16:39
A30: ='Temps corr'!A30 -> 26 | B30: ='Temps corr'!B30 -> EVRY SCA 1 | C30: ='Temps corr'!C30 -> SCA 1 | D30: ='Temps corr'!D30 -> Anne CARDUNER-Olivia PEZZOLI-Bruno CASIMIR-Lionel BOISSONNAT-Kristell MAUCHET | E30: =VLOOKUP(A30,Equipes!A:J,2,FALSE) -> M | F30: =ROUND(VLOOKUP(A30,Equipes!$A$2:$J$41,10,0),0) -> 56 | G30: ='Temps corr'!H30-'Temps corr'!H$4 -> 00:06:03 | H30: ='Temps corr'!I30-'Temps corr'!I$4 -> 00:11:51 | I30: ='Temps corr'!K30-'Temps corr'!K$4 -> 00:17:54 | J30: ='Temps corr'!L30-'Temps corr'!L$4 -> 00:24:42
A31: ='Temps corr'!A31 -> 27 | B31: ='Temps corr'!B31 -> MEULAN LES MUREAUX AMMH 1 | C31: ='Temps corr'!C31 -> AMMH1 | D31: ='Temps corr'!D31 -> Gwenaelle MARSAIS-Sophie SEFFAR-Catherine MARTINIER-Christelle GOANVIC-Marie LAMORE | E31: =VLOOKUP(A31,Equipes!A:J,2,FALSE) -> F | F31: =ROUND(VLOOKUP(A31,Equipes!$A$2:$J$41,10,0),0) -> 47 | G31: ='Temps corr'!H31-'Temps corr'!H$4 -> 00:09:39 | H31: ='Temps corr'!I31-'Temps corr'!I$4 -> 00:19:55 | I31: ='Temps corr'!K31-'Temps corr'!K$4 -> 00:29:13 | J31: ='Temps corr'!L31-'Temps corr'!L$4 -> 00:37:59
A32: ='Temps corr'!A32 -> 28 | B32: ='Temps corr'!B32 -> VILLENNES - POISSY AC 1 | C32: ='Temps corr'!C32 -> ACVP1 | D32: ='Temps corr'!D32 -> Frederic LE ROUX-Corinne HUARD-ROLLAND-Elodie DEREMIENCE-Marie-Claude LAUNAY-Olivier COSNEAU | E32: =VLOOKUP(A32,Equipes!A:J,2,FALSE) -> M | F32: =ROUND(VLOOKUP(A32,Equipes!$A$2:$J$41,10,0),0) -> 53 | G32: ='Temps corr'!H32-'Temps corr'!H$4 -> 00:02:39 | H32: ='Temps corr'!I32-'Temps corr'!I$4 -> 00:05:35 | I32: ='Temps corr'!K32-'Temps corr'!K$4 -> 00:07:29 | J32: ='Temps corr'!L32-'Temps corr'!L$4 -> 00:09:19
A33: ='Temps corr'!A33 -> 29 | B33: ='Temps corr'!B33 -> FONTAINEBLEAU APF 1 | C33: ='Temps corr'!C33 -> APF1 | D33: ='Temps corr'!D33 -> Kathleen SANCHEZ-Laurent FOUQUE-Christian MESSALES-Denis FLORY-David WEBER | E33: =VLOOKUP(A33,Equipes!A:J,2,FALSE) -> H | F33: =ROUND(VLOOKUP(A33,Equipes!$A$2:$J$41,10,0),0) -> 57 | G33: ='Temps corr'!H33-'Temps corr'!H$4 -> 00:06:39 | H33: ='Temps corr'!I33-'Temps corr'!I$4 -> 00:13:31 | I33: ='Temps corr'!K33-'Temps corr'!K$4 -> 00:18:55 | J33: ='Temps corr'!L33-'Temps corr'!L$4 -> 00:26:17
A34: ='Temps corr'!A34 -> 30 | B34: ='Temps corr'!B34 -> JOINVILLE AMJ 1 | C34: ='Temps corr'!C34 -> AMJ1 | D34: ='Temps corr'!D34 -> Vincent FABIEN-Arnaud PUPPO-Jonathan ROOKE-Xavier SUCHET-Nicolas JAMAULT | E34: =VLOOKUP(A34,Equipes!A:J,2,FALSE) -> H | F34: =ROUND(VLOOKUP(A34,Equipes!$A$2:$J$41,10,0),0) -> 51 | G34: ='Temps corr'!H34-'Temps corr'!H$4 -> 00:03:51 | H34: ='Temps corr'!I34-'Temps corr'!I$4 -> 00:07:58 | I34: ='Temps corr'!K34-'Temps corr'!K$4 -> 00:10:41 | J34: ='Temps corr'!L34-'Temps corr'!L$4 -> 00:19:18
A35: ='Temps corr'!A35 -> 31 | B35: ='Temps corr'!B35 -> NOGENT SUR MARNE CN 3 | C35: ='Temps corr'!C35 -> CN3 | D35: ='Temps corr'!D35 -> Alexandra COHEN SALMON-Isabelle MILON-BANNEROT-Jerome TROMBOFSKY-Olivier PASCAL-Elisabeth LAUNAY | E35: =VLOOKUP(A35,Equipes!A:J,2,FALSE) -> M | F35: =ROUND(VLOOKUP(A35,Equipes!$A$2:$J$41,10,0),0) -> 53 | G35: ='Temps corr'!H35-'Temps corr'!H$4 -> 00:08:28 | H35: ='Temps corr'!I35-'Temps corr'!I$4 -> 00:15:36 | I35: ='Temps corr'!K35-'Temps corr'!K$4 -> 00:25:36 | J35: ='Temps corr'!L35-'Temps corr'!L$4 -> 00:34:59
A36: ='Temps corr'!A36 -> 32 | B36: ='Temps corr'!B36 -> BOULOGNE 92 1 | C36: ='Temps corr'!C36 -> ACBB1 | D36: ='Temps corr'!D36 -> Isabelle MAIRE-Théo BEL BERBEL- LURBE-Thã‰Odore SEDAROS-Omar OUAZZANI-Alexandra MENEZES | E36: =VLOOKUP(A36,Equipes!A:J,2,FALSE) -> H | F36: =ROUND(VLOOKUP(A36,Equipes!$A$2:$J$41,10,0),0) -> 43 | G36: ='Temps corr'!H36-'Temps corr'!H$4 ->  | H36: ='Temps corr'!I36-'Temps corr'!I$4 ->  | I36: ='Temps corr'!K36-'Temps corr'!K$4 ->  | J36: ='Temps corr'!L36-'Temps corr'!L$4 -> 
A37: ='Temps corr'!A37 -> 33 | B37: ='Temps corr'!B37 -> XX | C37: ='Temps corr'!C37 -> XX | D37: ='Temps corr'!D37 -> XX-XX-XX-XX-XX | E37: =VLOOKUP(A37,Equipes!A:J,2,FALSE) -> X | F37: =ROUND(VLOOKUP(A37,Equipes!$A$2:$J$41,10,0),0) -> 0 | G37: ='Temps corr'!H37-'Temps corr'!H$4 ->  | H37: ='Temps corr'!I37-'Temps corr'!I$4 ->  | I37: ='Temps corr'!K37-'Temps corr'!K$4 ->  | J37: ='Temps corr'!L37-'Temps corr'!L$4 -> 
A38: ='Temps corr'!A38 -> 34 | B38: ='Temps corr'!B38 -> XX | C38: ='Temps corr'!C38 -> XX | D38: ='Temps corr'!D38 -> XX-XX-XX-XX-XX | E38: =VLOOKUP(A38,Equipes!A:J,2,FALSE) -> X | F38: =ROUND(VLOOKUP(A38,Equipes!$A$2:$J$41,10,0),0) -> 0 | G38: ='Temps corr'!H38-'Temps corr'!H$4 ->  | H38: ='Temps corr'!I38-'Temps corr'!I$4 -> -0.00375 | I38: ='Temps corr'!K38-'Temps corr'!K$4 ->  | J38: ='Temps corr'!L38-'Temps corr'!L$4 -> -0.01170138889
A39: ='Temps corr'!A39 -> 35 | B39: ='Temps corr'!B39 -> XX | C39: ='Temps corr'!C39 -> XX | D39: ='Temps corr'!D39 -> XX-XX-XX-XX-XX | E39: =VLOOKUP(A39,Equipes!A:J,2,FALSE) -> X | F39: =ROUND(VLOOKUP(A39,Equipes!$A$2:$J$41,10,0),0) -> 0 | G39: ='Temps corr'!H39-'Temps corr'!H$4 ->  | H39: ='Temps corr'!I39-'Temps corr'!I$4 ->  | I39: ='Temps corr'!K39-'Temps corr'!K$4 ->  | J39: ='Temps corr'!L39-'Temps corr'!L$4 -> 
A40: ='Temps corr'!A40 -> 36 | B40: ='Temps corr'!B40 -> XX | C40: ='Temps corr'!C40 -> XX | D40: ='Temps corr'!D40 -> XX-XX-XX-XX-XX | E40: =VLOOKUP(A40,Equipes!A:J,2,FALSE) -> X | F40: =ROUND(VLOOKUP(A40,Equipes!$A$2:$J$41,10,0),0) -> 0 | G40: ='Temps corr'!H40-'Temps corr'!H$4 ->  | H40: ='Temps corr'!I40-'Temps corr'!I$4 ->  | I40: ='Temps corr'!K40-'Temps corr'!K$4 ->  | J40: ='Temps corr'!L40-'Temps corr'!L$4 -> 
A41: ='Temps corr'!A41 -> 37 | B41: ='Temps corr'!B41 -> XX | C41: ='Temps corr'!C41 -> XX | D41: ='Temps corr'!D41 -> XX-XX-XX-XX-XX | E41: =VLOOKUP(A41,Equipes!A:J,2,FALSE) -> X | F41: =ROUND(VLOOKUP(A41,Equipes!$A$2:$J$41,10,0),0) -> 0 | G41: ='Temps corr'!H41-'Temps corr'!H$4 ->  | H41: ='Temps corr'!I41-'Temps corr'!I$4 ->  | I41: ='Temps corr'!K41-'Temps corr'!K$4 ->  | J41: ='Temps corr'!L41-'Temps corr'!L$4 -> 
A42: ='Temps corr'!A42 -> 38 | B42: ='Temps corr'!B42 -> XX | C42: ='Temps corr'!C42 -> XX | D42: ='Temps corr'!D42 -> XX-XX-XX-XX-XX | E42: =VLOOKUP(A42,Equipes!A:J,2,FALSE) -> X | F42: =ROUND(VLOOKUP(A42,Equipes!$A$2:$J$41,10,0),0) -> 0 | G42: ='Temps corr'!H42-'Temps corr'!H$4 ->  | H42: ='Temps corr'!I42-'Temps corr'!I$4 ->  | I42: ='Temps corr'!K42-'Temps corr'!K$4 ->  | J42: ='Temps corr'!L42-'Temps corr'!L$4 -> 
A43: ='Temps corr'!A43 -> 39 | B43: ='Temps corr'!B43 -> XX | C43: ='Temps corr'!C43 -> XX | D43: ='Temps corr'!D43 -> XX-XX-XX-XX-XX | E43: =VLOOKUP(A43,Equipes!A:J,2,FALSE) -> X | F43: =ROUND(VLOOKUP(A43,Equipes!$A$2:$J$41,10,0),0) -> 0 | G43: ='Temps corr'!H43-'Temps corr'!H$4 ->  | H43: ='Temps corr'!I43-'Temps corr'!I$4 ->  | I43: ='Temps corr'!K43-'Temps corr'!K$4 ->  | J43: ='Temps corr'!L43-'Temps corr'!L$4 -> 
A44: ='Temps corr'!A44 -> 40 | B44: ='Temps corr'!B44 -> XX | C44: ='Temps corr'!C44 -> XX | D44: ='Temps corr'!D44 -> XX-XX-XX-XX-XX | E44: =VLOOKUP(A44,Equipes!A:J,2,FALSE) -> X | F44: =ROUND(VLOOKUP(A44,Equipes!$A$2:$J$41,10,0),0) -> 0 | G44: ='Temps corr'!H44-'Temps corr'!H$4 ->  | H44: ='Temps corr'!I44-'Temps corr'!I$4 ->  | I44: ='Temps corr'!K44-'Temps corr'!K$4 ->  | J44: ='Temps corr'!L44-'Temps corr'!L$4 -> 

Sheet CL mi parcours
A1: GRAND 8 | E1: ='Note explicative fichier'!E3 -> 2024-06-02 | G1: CLASSEMENT A MI COURSE
A3: Yolette N° | B3: Club | C3: Ville | D3: Equipage | E3: Cat. | F3: Age Moyen | G3: 1 / 2 G-8 | H3: Ecart / Record | I3: Ecart / Ier N-1
A4: ='Temps corr'!A4 -> Record | B4: ='Temps corr'!B4 -> POLYTECHNIQUE ( Référence 2012 ) | C4: ='Temps corr'!C4 -> Palaiseau | D4: ='Temps corr'!D4 -> FERRERO Michel - Alexandre Rosinski - BOYAUD Mathieu - GODDE Olivier - THECKES Benoit | H4: ='Temps corr'!I4 -> 00:40:41 | I4: =G5 -> 00:43:56 | J4: Position Provisoire
A5: ='TEMPS-ponton'!A20 -> 16 | B5: ='TEMPS-ponton'!B20 -> PORT-MARLY RC 1 | C5: ='TEMPS-ponton'!C20 -> RCPM1 | D5: ='TEMPS-ponton'!D20 -> Jean-Claude LAFOREST-David CHARTIER-Christophe MARCAIS-Vincent BONTOUX-Alain ROUSSEAU | E5: =VLOOKUP(A5,Equipes!A:J,2,FALSE) -> H | F5: =ROUND(VLOOKUP(A5,Equipes!$A$2:$J$41,10,0),0) -> 55 | G5: 00:43:56 | H5: =G5-$H$4 -> 00:03:15 | I5: =G5-$I$4 -> 00:00:00 | J5: 1
A6: ='TEMPS-ponton'!A17 -> 13 | B6: ='TEMPS-ponton'!B17 -> PORT-MARLY RC 2 | C6: ='TEMPS-ponton'!C17 -> RCPM2 | D6: ='TEMPS-ponton'!D17 -> Elsa CROZATIER-Cyrielle BERTHIER-Hervé Valette-Eric MOINARD-Anais FEUGA | E6: =VLOOKUP(A6,Equipes!A:J,2,FALSE) -> M | F6: =ROUND(VLOOKUP(A6,Equipes!$A$2:$J$41,10,0),0) -> 47 | G6: 00:45:45 | H6: 00:05:04 | I6: 00:01:49 | J6: =J5+1 -> 2
A7: ='TEMPS-ponton'!A25 -> 21 | B7: ='TEMPS-ponton'!B25 -> PORT-MARLY RC 2 | C7: ='TEMPS-ponton'!C25 -> RCPM2 | D7: ='TEMPS-ponton'!D25 -> Guillaume CHARRON-Philippe VERHE-Stephan REYNIER-Dominique LEROUX-Luciano AUTUNNALE | E7: =VLOOKUP(A7,Equipes!A:J,2,FALSE) -> H | F7: =ROUND(VLOOKUP(A7,Equipes!$A$2:$J$41,10,0),0) -> 51 | G7: 00:46:04 | H7: 00:05:23 | I7: 00:02:08 | J7: =J6+1 -> 3
A8: ='TEMPS-ponton'!A32 -> 28 | B8: ='TEMPS-ponton'!B32 -> VILLENNES - POISSY AC 1 | C8: ='TEMPS-ponton'!C32 -> ACVP1 | D8: ='TEMPS-ponton'!D32 -> Frederic LE ROUX-Corinne HUARD-ROLLAND-Elodie DEREMIENCE-Marie-Claude LAUNAY-Olivier COSNEAU | E8: =VLOOKUP(A8,Equipes!A:J,2,FALSE) -> M | F8: =ROUND(VLOOKUP(A8,Equipes!$A$2:$J$41,10,0),0) -> 53 | G8: 00:46:16 | H8: 00:05:35 | I8: 00:02:20 | J8: 4
A9: ='TEMPS-ponton'!A16 -> 12 | B9: ='TEMPS-ponton'!B16 -> EVRY SCA 2 | C9: ='TEMPS-ponton'!C16 -> SCA2 | D9: ='TEMPS-ponton'!D16 -> Laurent YEBOAH-Isabelle MOISSET FLEURISSON-Frederic DUCAUQUY-Sandrine GARCIA-Christelle MARTIN | E9: =VLOOKUP(A9,Equipes!A:J,2,FALSE) -> M | F9: =ROUND(VLOOKUP(A9,Equipes!$A$2:$J$41,10,0),0) -> 48 | G9: 00:46:23 | H9: 00:05:42 | I9: 00:02:27 | J9: 5
A10: ='TEMPS-ponton'!A19 -> 15 | B10: ='TEMPS-ponton'!B19 -> SOISY SUR SEINE CN 1 | C10: ='TEMPS-ponton'!C19 -> CN1 | D10: ='TEMPS-ponton'!D19 -> Bertrand PIOGER-Bruno PERIQUOI-Servane BERTRAND-Alain BERNARD-Robert TRAUET | E10: =VLOOKUP(A10,Equipes!A:J,2,FALSE) -> H | F10: =ROUND(VLOOKUP(A10,Equipes!$A$2:$J$41,10,0),0) -> 54 | G10: 00:47:07 | H10: 00:06:26 | I10: 00:03:11 | J10: 6
A11: ='TEMPS-ponton'!A14 -> 10 | B11: ='TEMPS-ponton'!B14 -> NOGENT SUR MARNE CN 2 | C11: ='TEMPS-ponton'!C14 -> CN2 | D11: ='TEMPS-ponton'!D14 -> Christophe RUCKEBUSCH-Nicolas BURCKHART-Alice GHEERBRANT-Aurelie DONVAL-Gerard LECA | E11: =VLOOKUP(A11,Equipes!A:J,2,FALSE) -> M | F11: =ROUND(VLOOKUP(A11,Equipes!$A$2:$J$41,10,0),0) -> 53 | G11: 00:47:45 | H11: 00:07:04 | I11: 00:03:49 | J11: 7
A12: ='TEMPS-ponton'!A29 -> 25 | B12: ='TEMPS-ponton'!B29 -> VILLENNES - POISSY AC 2 | C12: ='TEMPS-ponton'!C29 -> ACVP2 | D12: ='TEMPS-ponton'!D29 -> Franck CARIOU-Michael LE BANNER-Valerie DECAESTECKER-Karine GUILBON-Christophe ELINE | E12: =VLOOKUP(A12,Equipes!A:J,2,FALSE) -> M | F12: =ROUND(VLOOKUP(A12,Equipes!$A$2:$J$41,10,0),0) -> 54 | G12: 00:47:47 | H12: 00:07:06 | I12: 00:03:51 | J12: 8
A13: ='TEMPS-ponton'!A28 -> 24 | B13: ='TEMPS-ponton'!B28 -> MEULAN LES MUREAUX AMMH 1 | C13: ='TEMPS-ponton'!C28 -> AMMH1 | D13: ='TEMPS-ponton'!D28 -> Xavier MARSAIS-Eric PRENEY-Yannick DAGMEY-David COINE-Arthur VAN SLOOTEN | E13: =VLOOKUP(A13,Equipes!A:J,2,FALSE) -> H | F13: =ROUND(VLOOKUP(A13,Equipes!$A$2:$J$41,10,0),0) -> 53 | G13: 00:47:59 | H13: 00:07:18 | I13: 00:04:03 | J13: 9
A14: ='TEMPS-ponton'!A12 -> 8 | B14: ='TEMPS-ponton'!B12 -> JOINVILLE AMJ 1 | C14: ='TEMPS-ponton'!C12 -> Joinville | D14: ='TEMPS-ponton'!D12 -> Laurent BAUDOIN-Raphaelle BOUVIER FLORY-Sophie BUSTOS-Kastriot JAKA-Thomas AUGER | E14: =VLOOKUP(A14,Equipes!A:J,2,FALSE) -> M | F14: =ROUND(VLOOKUP(A14,Equipes!$A$2:$J$41,10,0),0) -> 46 | G14: 00:48:05 | H14: 00:07:24 | I14: 00:04:09 | J14: 10
A15: ='TEMPS-ponton'!A34 -> 30 | B15: ='TEMPS-ponton'!B34 -> JOINVILLE AMJ 1 | C15: ='TEMPS-ponton'!C34 -> AMJ1 | D15: ='TEMPS-ponton'!D34 -> Vincent FABIEN-Arnaud PUPPO-Jonathan ROOKE-Xavier SUCHET-Nicolas JAMAULT | E15: =VLOOKUP(A15,Equipes!A:J,2,FALSE) -> H | F15: =ROUND(VLOOKUP(A15,Equipes!$A$2:$J$41,10,0),0) -> 51 | G15: 00:48:39 | H15: 00:07:58 | I15: 00:04:43 | J15: 11
A16: ='TEMPS-ponton'!A18 -> 14 | B16: ='TEMPS-ponton'!B18 -> MAISONS MESNIL CERAMM 1 | C16: ='TEMPS-ponton'!C18 -> CERAMM1 | D16: ='TEMPS-ponton'!D18 -> Nicolas SCHMITT-Gloria VENDRELL-Christine MARIE LAVAUD-Amaury DE LA LAURENCIE-Amina ELABBADI | E16: =VLOOKUP(A16,Equipes!A:J,2,FALSE) -> M | F16: =ROUND(VLOOKUP(A16,Equipes!$A$2:$J$41,10,0),0) -> 50 | G16: 00:49:52 | H16: 00:09:11 | I16: 00:05:56 | J16: 12
A17: ='TEMPS-ponton'!A13 -> 9 | B17: ='TEMPS-ponton'!B13 -> NOGENT SUR MARNE CN 1 | C17: ='TEMPS-ponton'!C13 -> CN 1 | D17: ='TEMPS-ponton'!D13 -> Chrystelle SUPIOT-Caroline PIEDNOIRE-Olivier MUCIGNAT-Andre SIMONNET-Fabienne LORTIE | E17: =VLOOKUP(A17,Equipes!A:J,2,FALSE) -> M | F17: =ROUND(VLOOKUP(A17,Equipes!$A$2:$J$41,10,0),0) -> 53 | G17: 00:50:22 | H17: 00:09:41 | I17: 00:06:26 | J17: 13
A18: ='TEMPS-ponton'!A10 -> 6 | B18: ='TEMPS-ponton'!B10 -> BOULOGNE 92 2 | C18: ='TEMPS-ponton'!C10 -> ACBB | D18: ='TEMPS-ponton'!D10 -> CéLia ROUSSELLE-Marie Pierre MARSALLON GAMBY-Françis ROBIN-Nicolas LECOEUR-Theodora XENOGIANI | E18: =VLOOKUP(A18,Equipes!A:J,2,FALSE) -> M | F18: =ROUND(VLOOKUP(A18,Equipes!$A$2:$J$41,10,0),0) -> 46 | G18: 00:50:41 | H18: 00:10:00 | I18: 00:06:45 | J18: 14
A19: ='TEMPS-ponton'!A24 -> 20 | B19: ='TEMPS-ponton'!B24 -> ROUEN CNAR 1 | C19: ='TEMPS-ponton'!C24 -> CNAR1 | D19: ='TEMPS-ponton'!D24 -> Nathalie MOUSSET-Francois LAIR-Betty GESLAIN-Thierry DUCHESNE-Stephane MOUSSET | E19: =VLOOKUP(A19,Equipes!A:J,2,FALSE) -> M | F19: =ROUND(VLOOKUP(A19,Equipes!$A$2:$J$41,10,0),0) -> 55 | G19: 00:50:41 | H19: 00:10:00 | I19: 00:06:45 | J19: 15
A20: ='TEMPS-ponton'!A22 -> 18 | B20: ='TEMPS-ponton'!B22 -> MAISONS MESNIL CERAMM 2 | C20: ='TEMPS-ponton'!C22 -> CERAMM2 | D20: ='TEMPS-ponton'!D22 -> Claude LEMENAGER-Didier GIRARDEAU-Laurent LIBOTTE-Alain GIRARD-Cecile JEAMMES | E20: =VLOOKUP(A20,Equipes!A:J,2,FALSE) -> H | F20: =ROUND(VLOOKUP(A20,Equipes!$A$2:$J$41,10,0),0) -> 58 | G20: 00:51:09 | H20: 00:10:28 | I20: 00:07:13 | J20: 16
A21: ='TEMPS-ponton'!A11 -> 7 | B21: ='TEMPS-ponton'!B11 -> VILLENNES - POISSY AC 3 | C21: ='TEMPS-ponton'!C11 -> ACVP | D21: ='TEMPS-ponton'!D11 -> Virginie ALEXANDRE-Jihad LEMARQRI-Cyrille BRUZON-BASCOU-Sebastien CARPENTIER-Marie Estelle D'ARBAUMONT | E21: =VLOOKUP(A21,Equipes!A:J,2,FALSE) -> M | F21: =ROUND(VLOOKUP(A21,Equipes!$A$2:$J$41,10,0),0) -> 49 | G21: 00:51:27 | H21: 00:10:46 | I21: 00:07:31 | J21: 17
A22: ='TEMPS-ponton'!A26 -> 22 | B22: ='TEMPS-ponton'!B26 -> COUDRAY MONTCEAUX A 1 | C22: ='TEMPS-ponton'!C26 -> coudray1 | D22: ='TEMPS-ponton'!D26 -> Joseph RAYNAUD-Frederic MORAT-Benjamin HOUILLON-Pascal BEAUSSART-Anne HOUAL | E22: =VLOOKUP(A22,Equipes!A:J,2,FALSE) -> H | F22: =ROUND(VLOOKUP(A22,Equipes!$A$2:$J$41,10,0),0) -> 52 | G22: 00:51:40 | H22: 00:10:59 | I22: 00:07:44 | J22: 18
A23: ='TEMPS-ponton'!A23 -> 19 | B23: ='TEMPS-ponton'!B23 -> VILLENNES - POISSY AC 1 | C23: ='TEMPS-ponton'!C23 -> ACVP1 | D23: ='TEMPS-ponton'!D23 -> Olivier POLGE-Odile POLGE-Laurent BONHOMMET-Antoine VOLPI-Philippe STROHM | E23: =VLOOKUP(A23,Equipes!A:J,2,FALSE) -> H | F23: =ROUND(VLOOKUP(A23,Equipes!$A$2:$J$41,10,0),0) -> 55 | G23: 00:52:02 | H23: 00:11:21 | I23: 00:08:06 | J23: 19
A24: ='TEMPS-ponton'!A6 -> 2 | B24: ='TEMPS-ponton'!B6 -> CAUDEBEC EN CAUX ACVS 1 | C24: ='TEMPS-ponton'!C6 -> Caudebec | D24: ='TEMPS-ponton'!D6 -> Martine NARBAIS-JAUREGUY-Caroline KERVRANN-Stephane DELAMARE-Nicolas BARRAY-Francois NARBAIS-JAUREGUY | E24: =VLOOKUP(A24,Equipes!A:J,2,FALSE) -> M | F24: =ROUND(VLOOKUP(A24,Equipes!$A$2:$J$41,10,0),0) -> 55 | G24: 00:52:22 | H24: 00:11:41 | I24: 00:08:26 | J24: 20
A25: ='TEMPS-ponton'!A30 -> 26 | B25: ='TEMPS-ponton'!B30 -> EVRY SCA 1 | C25: ='TEMPS-ponton'!C30 -> SCA 1 | D25: ='TEMPS-ponton'!D30 -> Anne CARDUNER-Olivia PEZZOLI-Bruno CASIMIR-Lionel BOISSONNAT-Kristell MAUCHET | E25: =VLOOKUP(A25,Equipes!A:J,2,FALSE) -> M | F25: =ROUND(VLOOKUP(A25,Equipes!$A$2:$J$41,10,0),0) -> 56 | G25: 00:52:32 | H25: 00:11:51 | I25: 00:08:36 | J25: 21
A26: ='TEMPS-ponton'!A8 -> 4 | B26: ='TEMPS-ponton'!B8 -> ANDRESY CA CONFLUENT 1 | C26: ='TEMPS-ponton'!C8 -> CAC3 | D26: ='TEMPS-ponton'!D8 -> Emmanuel SALIN-Ousseni PARKOUDA-Jean-Baptiste PROVENZANO-Jerome CLAVE-Julian GALLELA | E26: =VLOOKUP(A26,Equipes!A:J,2,FALSE) -> H | F26: =ROUND(VLOOKUP(A26,Equipes!$A$2:$J$41,10,0),0) -> 46 | G26: 00:53:48 | H26: 00:13:07 | I26: 00:09:52 | J26: 22
A27: ='TEMPS-ponton'!A33 -> 29 | B27: ='TEMPS-ponton'!B33 -> FONTAINEBLEAU APF 1 | C27: ='TEMPS-ponton'!C33 -> APF1 | D27: ='TEMPS-ponton'!D33 -> Kathleen SANCHEZ-Laurent FOUQUE-Christian MESSALES-Denis FLORY-David WEBER | E27: =VLOOKUP(A27,Equipes!A:J,2,FALSE) -> H | F27: =ROUND(VLOOKUP(A27,Equipes!$A$2:$J$41,10,0),0) -> 57 | G27: 00:54:12 | H27: 00:13:31 | I27: 00:10:16 | J27: 23
A28: ='TEMPS-ponton'!A9 -> 5 | B28: ='TEMPS-ponton'!B9 -> PORT-MARLY RC 1 | C28: ='TEMPS-ponton'!C9 -> RCPM | D28: ='TEMPS-ponton'!D9 -> Claudie BODIN-Fanny LAMOUR-Etienne DUPUIS-Jeancharles FAUCHEUX-Gildas KETTANJIAN | E28: =VLOOKUP(A28,Equipes!A:J,2,FALSE) -> M | F28: =ROUND(VLOOKUP(A28,Equipes!$A$2:$J$41,10,0),0) -> 50 | G28: 00:54:34 | H28: 00:13:53 | I28: 00:10:38 | J28: 24
A29: ='TEMPS-ponton'!A15 -> 11 | B29: ='TEMPS-ponton'!B15 -> BOULOGNE 92 1 | C29: ='TEMPS-ponton'!C15 -> ACBB | D29: ='TEMPS-ponton'!D15 -> Viviane BALLOY-Timothé BAZIRIES-Alexandre LE FUR-Sigrid PABST-Michel VEDRINE | E29: =VLOOKUP(A29,Equipes!A:J,2,FALSE) -> H | F29: =ROUND(VLOOKUP(A29,Equipes!$A$2:$J$41,10,0),0) -> 51 | G29: 00:54:40 | H29: 00:13:59 | I29: 00:10:44 | J29: 25
A30: ='TEMPS-ponton'!A35 -> 31 | B30: ='TEMPS-ponton'!B35 -> NOGENT SUR MARNE CN 3 | C30: ='TEMPS-ponton'!C35 -> CN3 | D30: ='TEMPS-ponton'!D35 -> Alexandra COHEN SALMON-Isabelle MILON-BANNEROT-Jerome TROMBOFSKY-Olivier PASCAL-Elisabeth LAUNAY | E30: =VLOOKUP(A30,Equipes!A:J,2,FALSE) -> M | F30: =ROUND(VLOOKUP(A30,Equipes!$A$2:$J$41,10,0),0) -> 53 | G30: 00:56:17 | H30: 00:15:36 | I30: 00:12:21 | J30: 26
A31: ='TEMPS-ponton'!A27 -> 23 | B31: ='TEMPS-ponton'!B27 -> SN OISE 1 | C31: ='TEMPS-ponton'!C27 -> SN Oise 1 | D31: ='TEMPS-ponton'!D27 -> Agnes AUDEBERT-Nicolas RAUCH-Jerome ROUGE-Nathalie BAUDIER-Isabelle JOUBERT | E31: =VLOOKUP(A31,Equipes!A:J,2,FALSE) -> M | F31: =ROUND(VLOOKUP(A31,Equipes!$A$2:$J$41,10,0),0) -> 50 | G31: 00:56:32 | H31: 00:15:51 | I31: 00:12:36 | J31: 27
A32: ='TEMPS-ponton'!A5 -> 1 | B32: ='TEMPS-ponton'!B5 -> ANDRESY CA CONFLUENT 1 | C32: ='TEMPS-ponton'!C5 -> Cac1 | D32: ='TEMPS-ponton'!D5 -> Stephanie LAPORTE-Marine NACERI-Marc LACCASSAGNE-Stephane ZETTWOOG-Fouzia VOIRIN | E32: =VLOOKUP(A32,Equipes!A:J,2,FALSE) -> M | F32: =ROUND(VLOOKUP(A32,Equipes!$A$2:$J$41,10,0),0) -> 49 | G32: 00:57:57 | H32: 00:17:16 | I32: 00:14:01 | J32: 28
A33: ='TEMPS-ponton'!A21 -> 17 | B33: ='TEMPS-ponton'!B21 -> ANDRESY CA CONFLUENT 1 | C33: ='TEMPS-ponton'!C21 -> CAC1 | D33: ='TEMPS-ponton'!D21 -> Daphne PARIZOT-Agnes BURGHGRAEVE SELLEN-Sylvie FRANSSEN-Severine LEGAILLARD-Martine LE ROUX | E33: =VLOOKUP(A33,Equipes!A:J,2,FALSE) -> F | F33: =ROUND(VLOOKUP(A33,Equipes!$A$2:$J$41,10,0),0) -> 55 | G33: 00:59:40 | H33: 00:18:59 | I33: 00:15:44 | J33: 29
A34: ='TEMPS-ponton'!A31 -> 27 | B34: ='TEMPS-ponton'!B31 -> MEULAN LES MUREAUX AMMH 1 | C34: ='TEMPS-ponton'!C31 -> AMMH1 | D34: ='TEMPS-ponton'!D31 -> Gwenaelle MARSAIS-Sophie SEFFAR-Catherine MARTINIER-Christelle GOANVIC-Marie LAMORE | E34: =VLOOKUP(A34,Equipes!A:J,2,FALSE) -> F | F34: =ROUND(VLOOKUP(A34,Equipes!$A$2:$J$41,10,0),0) -> 47 | G34: 01:00:36 | H34: 00:19:55 | I34: 00:16:40 | J34: 30
A35: ='TEMPS-ponton'!A7 -> 3 | B35: ='TEMPS-ponton'!B7 -> ANDRESY CA CONFLUENT 2 | C35: ='TEMPS-ponton'!C7 -> CAC 2 | D35: ='TEMPS-ponton'!D7 -> Anna ALCALOIDEPOIXBLANC-Geoffrey GHIZZONI-Nathalie BOURGEOIS-Franck CHRISTIANNOT-NicOLAS delaunoy | E35: =VLOOKUP(A35,Equipes!A:J,2,FALSE) -> M | F35: =ROUND(VLOOKUP(A35,Equipes!$A$2:$J$41,10,0),0) -> 55 | G35: 01:00:49 | H35: 00:20:08 | I35: 00:16:53 | J35: 31
A36: ='TEMPS-ponton'!A36 -> 32 | B36: ='TEMPS-ponton'!B36 -> BOULOGNE 92 1 | C36: ='TEMPS-ponton'!C36 -> ACBB1 | D36: ='TEMPS-ponton'!D36 -> Isabelle MAIRE-Théo BEL BERBEL- LURBE-Thã‰Odore SEDAROS-Omar OUAZZANI-Alexandra MENEZES | E36: =VLOOKUP(A36,Equipes!A:J,2,FALSE) -> H | F36: =ROUND(VLOOKUP(A36,Equipes!$A$2:$J$41,10,0),0) -> 43 | J36: 32
A37: ='TEMPS-ponton'!A37 -> 33 | B37: ='TEMPS-ponton'!B37 -> XX | C37: ='TEMPS-ponton'!C37 -> XX | D37: ='TEMPS-ponton'!D37 -> XX-XX-XX-XX-XX | E37: =VLOOKUP(A37,Equipes!A:J,2,FALSE) -> X | F37: =ROUND(VLOOKUP(A37,Equipes!$A$2:$J$41,10,0),0) -> 0 | J37: 33
A38: ='TEMPS-ponton'!A38 -> 34 | B38: ='TEMPS-ponton'!B38 -> XX | C38: ='TEMPS-ponton'!C38 -> XX | D38: ='TEMPS-ponton'!D38 -> XX-XX-XX-XX-XX | E38: =VLOOKUP(A38,Equipes!A:J,2,FALSE) -> X | F38: =ROUND(VLOOKUP(A38,Equipes!$A$2:$J$41,10,0),0) -> 0 | J38: 34
A39: ='TEMPS-ponton'!A39 -> 35 | B39: ='TEMPS-ponton'!B39 -> XX | C39: ='TEMPS-ponton'!C39 -> XX | D39: ='TEMPS-ponton'!D39 -> XX-XX-XX-XX-XX | E39: =VLOOKUP(A39,Equipes!A:J,2,FALSE) -> X | F39: =ROUND(VLOOKUP(A39,Equipes!$A$2:$J$41,10,0),0) -> 0 | J39: 35
A40: ='TEMPS-ponton'!A40 -> 36 | B40: ='TEMPS-ponton'!B40 -> XX | C40: ='TEMPS-ponton'!C40 -> XX | D40: ='TEMPS-ponton'!D40 -> XX-XX-XX-XX-XX | E40: =VLOOKUP(A40,Equipes!A:J,2,FALSE) -> X | F40: =ROUND(VLOOKUP(A40,Equipes!$A$2:$J$41,10,0),0) -> 0 | J40: 36
A41: ='TEMPS-ponton'!A41 -> 37 | B41: ='TEMPS-ponton'!B41 -> XX | C41: ='TEMPS-ponton'!C41 -> XX | D41: ='TEMPS-ponton'!D41 -> XX-XX-XX-XX-XX | E41: =VLOOKUP(A41,Equipes!A:J,2,FALSE) -> X | F41: =ROUND(VLOOKUP(A41,Equipes!$A$2:$J$41,10,0),0) -> 0 | J41: 37
A42: ='TEMPS-ponton'!A42 -> 38 | B42: ='TEMPS-ponton'!B42 -> XX | C42: ='TEMPS-ponton'!C42 -> XX | D42: ='TEMPS-ponton'!D42 -> XX-XX-XX-XX-XX | E42: =VLOOKUP(A42,Equipes!A:J,2,FALSE) -> X | F42: =ROUND(VLOOKUP(A42,Equipes!$A$2:$J$41,10,0),0) -> 0 | J42: 38
A43: ='TEMPS-ponton'!A43 -> 39 | B43: ='TEMPS-ponton'!B43 -> XX | C43: ='TEMPS-ponton'!C43 -> XX | D43: ='TEMPS-ponton'!D43 -> XX-XX-XX-XX-XX | E43: =VLOOKUP(A43,Equipes!A:J,2,FALSE) -> X | F43: =ROUND(VLOOKUP(A43,Equipes!$A$2:$J$41,10,0),0) -> 0 | J43: 39
A44: ='TEMPS-ponton'!A44 -> 40 | B44: ='TEMPS-ponton'!B44 -> XX | C44: ='TEMPS-ponton'!C44 -> XX | D44: ='TEMPS-ponton'!D44 -> XX-XX-XX-XX-XX | E44: =VLOOKUP(A44,Equipes!A:J,2,FALSE) -> X | F44: =ROUND(VLOOKUP(A44,Equipes!$A$2:$J$41,10,0),0) -> 0 | J44: =J43+1 -> 40

Sheet Cl Catégories
B1: GRAND HUIT | F1: ='Note explicative fichier'!E3 -> 2024-06-02 | H1: CLASSEMENT PAR CATEGORIE
B3: Yolette N° | C3: Club | D3: Ville | E3: Equipage | F3: Cat. | G3: Age Moyen | H3: Arrivée G-8 | I3: Ecart record | J3: Ecart / Ier | K3: Position par cat.
B4: ='Temps corr'!A4 -> Record | C4: ='Temps corr'!B4 -> POLYTECHNIQUE ( Référence 2012 ) | D4: ='Temps corr'!C4 -> Palaiseau | E4: ='Temps corr'!D4 -> FERRERO Michel - Alexandre Rosinski - BOYAUD Mathieu - GODDE Olivier - THECKES Benoit | H4: ='Temps corr'!L4 -> 01:21:48
A5: =CONCATENATE(F5,K5) -> F1 | B5: 27 | C5: MEULAN LES MUREAUX AMMH 1 | D5: AMMH1 | E5: Gwenaelle MARSAIS-Sophie SEFFAR-Catherine MARTINIER-Christelle GOANVIC-Marie LAMORE | F5: =VLOOKUP(B5,Equipes!A:J,2,FALSE) -> F | G5: =ROUND(VLOOKUP(B5,Equipes!$A$2:$J$41,10,0),0) -> 47 | H5: 01:59:47 | I5: =H5-$H$4 -> 00:37:59 | J5: =H5-MIN(H$5:H$44) -> 00:29:22 | K5: =IF(F5=F4,K4+1,1) -> 1
A6: F2 | B6: 17 | C6: ANDRESY CA CONFLUENT 1 | D6: CAC1 | E6: Daphne PARIZOT-Agnes BURGHGRAEVE SELLEN-Sylvie FRANSSEN-Severine LEGAILLARD-Martine LE ROUX | F6: =VLOOKUP(B6,Equipes!A:J,2,FALSE) -> F | G6: =ROUND(VLOOKUP(B6,Equipes!$A$2:$J$41,10,0),0) -> 55 | H6: 02:01:10 | I6: 00:39:22 | J6: 00:30:45 | K6: 2
A7: H1 | B7: 16 | C7: PORT-MARLY RC 1 | D7: RCPM1 | E7: Jean-Claude LAFOREST-David CHARTIER-Christophe MARCAIS-Vincent BONTOUX-Alain ROUSSEAU | F7: =VLOOKUP(B7,Equipes!A:J,2,FALSE) -> H | G7: =ROUND(VLOOKUP(B7,Equipes!$A$2:$J$41,10,0),0) -> 55 | H7: 01:30:25 | I7: 00:08:37 | J7: 00:00:00 | K7: 1
A8: H2 | B8: 21 | C8: PORT-MARLY RC 2 | D8: RCPM2 | E8: Guillaume CHARRON-Philippe VERHE-Stephan REYNIER-Dominique LEROUX-Luciano AUTUNNALE | F8: =VLOOKUP(B8,Equipes!A:J,2,FALSE) -> H | G8: =ROUND(VLOOKUP(B8,Equipes!$A$2:$J$41,10,0),0) -> 51 | H8: 01:31:40 | I8: 00:09:52 | J8: 00:01:15 | K8: 2
A9: H3 | B9: 24 | C9: MEULAN LES MUREAUX AMMH 1 | D9: AMMH1 | E9: Xavier MARSAIS-Eric PRENEY-Yannick DAGMEY-David COINE-Arthur VAN SLOOTEN | F9: =VLOOKUP(B9,Equipes!A:J,2,FALSE) -> H | G9: =ROUND(VLOOKUP(B9,Equipes!$A$2:$J$41,10,0),0) -> 53 | H9: 01:36:04 | I9: 00:14:16 | J9: 00:05:39 | K9: 3
A10: H4 | B10: 15 | C10: SOISY SUR SEINE CN 1 | D10: CN1 | E10: Bertrand PIOGER-Bruno PERIQUOI-Servane BERTRAND-Alain BERNARD-Robert TRAUET | F10: =VLOOKUP(B10,Equipes!A:J,2,FALSE) -> H | G10: =ROUND(VLOOKUP(B10,Equipes!$A$2:$J$41,10,0),0) -> 54 | H10: 01:39:08 | I10: 00:17:20 | J10: 00:08:43 | K10: 4
A11: H5 | B11: 19 | C11: VILLENNES - POISSY AC 1 | D11: ACVP1 | E11: Olivier POLGE-Odile POLGE-Laurent BONHOMMET-Antoine VOLPI-Philippe STROHM | F11: =VLOOKUP(B11,Equipes!A:J,2,FALSE) -> H | G11: =ROUND(VLOOKUP(B11,Equipes!$A$2:$J$41,10,0),0) -> 55 | H11: 01:40:56 | I11: 00:19:08 | J11: 00:10:31 | K11: 5
A12: H6 | B12: 30 | C12: JOINVILLE AMJ 1 | D12: AMJ1 | E12: Vincent FABIEN-Arnaud PUPPO-Jonathan ROOKE-Xavier SUCHET-Nicolas JAMAULT | F12: =VLOOKUP(B12,Equipes!A:J,2,FALSE) -> H | G12: =ROUND(VLOOKUP(B12,Equipes!$A$2:$J$41,10,0),0) -> 51 | H12: 01:41:06 | I12: 00:19:18 | J12: 00:10:41 | K12: 6
A13: H7 | B13: 18 | C13: MAISONS MESNIL CERAMM 2 | D13: CERAMM2 | E13: Claude LEMENAGER-Didier GIRARDEAU-Laurent LIBOTTE-Alain GIRARD-Cecile JEAMMES | F13: =VLOOKUP(B13,Equipes!A:J,2,FALSE) -> H | G13: =ROUND(VLOOKUP(B13,Equipes!$A$2:$J$41,10,0),0) -> 58 | H13: 01:41:38 | I13: 00:19:50 | J13: 00:11:13 | K13: 7
A14: H8 | B14: 22 | C14: COUDRAY MONTCEAUX A 1 | D14: coudray1 | E14: Joseph RAYNAUD-Frederic MORAT-Benjamin HOUILLON-Pascal BEAUSSART-Anne HOUAL | F14: =VLOOKUP(B14,Equipes!A:J,2,FALSE) -> H | G14: =ROUND(VLOOKUP(B14,Equipes!$A$2:$J$41,10,0),0) -> 52 | H14: 01:41:46 | I14: 00:19:58 | J14: 00:11:21 | K14: 8
A15: H9 | B15: 4 | C15: ANDRESY CA CONFLUENT 1 | D15: CAC3 | E15: Emmanuel SALIN-Ousseni PARKOUDA-Jean-Baptiste PROVENZANO-Jerome CLAVE-Julian GALLELA | F15: =VLOOKUP(B15,Equipes!A:J,2,FALSE) -> H | G15: =ROUND(VLOOKUP(B15,Equipes!$A$2:$J$41,10,0),0) -> 46 | H15: 01:47:27 | I15: 00:25:39 | J15: 00:17:02 | K15: 9
A16: H10 | B16: 29 | C16: FONTAINEBLEAU APF 1 | D16: APF1 | E16: Kathleen SANCHEZ-Laurent FOUQUE-Christian MESSALES-Denis FLORY-David WEBER | F16: =VLOOKUP(B16,Equipes!A:J,2,FALSE) -> H | G16: =ROUND(VLOOKUP(B16,Equipes!$A$2:$J$41,10,0),0) -> 57 | H16: 01:48:05 | I16: 00:26:17 | J16: 00:17:40 | K16: 10
A17: H11 | B17: 11 | C17: BOULOGNE 92 1 | D17: ACBB | E17: Viviane BALLOY-Timothé BAZIRIES-Alexandre LE FUR-Sigrid PABST-Michel VEDRINE | F17: =VLOOKUP(B17,Equipes!A:J,2,FALSE) -> H | G17: =ROUND(VLOOKUP(B17,Equipes!$A$2:$J$41,10,0),0) -> 51 | H17: 01:50:55 | I17: 00:29:07 | J17: 00:20:30 | K17: 11
A18: H12 | B18: 32 | C18: BOULOGNE 92 1 | D18: ACBB1 | E18: Isabelle MAIRE-Théo BEL BERBEL- LURBE-Thã‰Odore SEDAROS-Omar OUAZZANI-Alexandra MENEZES | F18: =VLOOKUP(B18,Equipes!A:J,2,FALSE) -> H | G18: =ROUND(VLOOKUP(B18,Equipes!$A$2:$J$41,10,0),0) -> 43 | H18: 99:99:99 | K18: 12
A19: M1 | B19: 28 | C19: VILLENNES - POISSY AC 1 | D19: ACVP1 | E19: Frederic LE ROUX-Corinne HUARD-ROLLAND-Elodie DEREMIENCE-Marie-Claude LAUNAY-Olivier COSNEAU | F19: =VLOOKUP(B19,Equipes!A:J,2,FALSE) -> M | G19: =ROUND(VLOOKUP(B19,Equipes!$A$2:$J$41,10,0),0) -> 53 | H19: 01:31:07 | I19: 00:09:19 | J19: 00:00:42 | K19: 1
A20: M2 | B20: 8 | C20: JOINVILLE AMJ 1 | D20: Joinville | E20: Laurent BAUDOIN-Raphaelle BOUVIER FLORY-Sophie BUSTOS-Kastriot JAKA-Thomas AUGER | F20: =VLOOKUP(B20,Equipes!A:J,2,FALSE) -> M | G20: =ROUND(VLOOKUP(B20,Equipes!$A$2:$J$41,10,0),0) -> 46 | H20: 01:33:32 | I20: 00:11:44 | J20: 00:03:07 | K20: 2
A21: M3 | B21: 12 | C21: EVRY SCA 2 | D21: SCA2 | E21: Laurent YEBOAH-Isabelle MOISSET FLEURISSON-Frederic DUCAUQUY-Sandrine GARCIA-Christelle MARTIN | F21: =VLOOKUP(B21,Equipes!A:J,2,FALSE) -> M | G21: =ROUND(VLOOKUP(B21,Equipes!$A$2:$J$41,10,0),0) -> 48 | H21: 01:36:53 | I21: 00:15:05 | J21: 00:06:28 | K21: 3
A22: M4 | B22: 10 | C22: NOGENT SUR MARNE CN 2 | D22: CN2 | E22: Christophe RUCKEBUSCH-Nicolas BURCKHART-Alice GHEERBRANT-Aurelie DONVAL-Gerard LECA | F22: =VLOOKUP(B22,Equipes!A:J,2,FALSE) -> M | G22: =ROUND(VLOOKUP(B22,Equipes!$A$2:$J$41,10,0),0) -> 53 | H22: 01:36:54 | I22: 00:15:06 | J22: 00:06:29 | K22: 4
A23: M5 | B23: 13 | C23: PORT-MARLY RC 2 | D23: RCPM2 | E23: Elsa CROZATIER-Cyrielle BERTHIER-Hervé Valette-Eric MOINARD-Anais FEUGA | F23: =VLOOKUP(B23,Equipes!A:J,2,FALSE) -> M | G23: =ROUND(VLOOKUP(B23,Equipes!$A$2:$J$41,10,0),0) -> 47 | H23: 01:36:59 | I23: 00:15:11 | J23: 00:06:34 | K23: 5
A24: M6 | B24: 20 | C24: ROUEN CNAR 1 | D24: CNAR1 | E24: Nathalie MOUSSET-Francois LAIR-Betty GESLAIN-Thierry DUCHESNE-Stephane MOUSSET | F24: =VLOOKUP(B24,Equipes!A:J,2,FALSE) -> M | G24: =ROUND(VLOOKUP(B24,Equipes!$A$2:$J$41,10,0),0) -> 55 | H24: 01:37:13 | I24: 00:15:25 | J24: 00:06:48 | K24: 6
A25: M7 | B25: 25 | C25: VILLENNES - POISSY AC 2 | D25: ACVP2 | E25: Franck CARIOU-Michael LE BANNER-Valerie DECAESTECKER-Karine GUILBON-Christophe ELINE | F25: =VLOOKUP(B25,Equipes!A:J,2,FALSE) -> M | G25: =ROUND(VLOOKUP(B25,Equipes!$A$2:$J$41,10,0),0) -> 54 | H25: 01:38:27 | I25: 00:16:39 | J25: 00:08:02 | K25: 7
A26: M8 | B26: 6 | C26: BOULOGNE 92 2 | D26: ACBB | E26: CéLia ROUSSELLE-Marie Pierre MARSALLON GAMBY-Françis ROBIN-Nicolas LECOEUR-Theodora XENOGIANI | F26: =VLOOKUP(B26,Equipes!A:J,2,FALSE) -> M | G26: =ROUND(VLOOKUP(B26,Equipes!$A$2:$J$41,10,0),0) -> 46 | H26: 01:39:43 | I26: 00:17:55 | J26: 00:09:18 | K26: 8
A27: M9 | B27: 7 | C27: VILLENNES - POISSY AC 3 | D27: ACVP | E27: Virginie ALEXANDRE-Jihad LEMARQRI-Cyrille BRUZON-BASCOU-Sebastien CARPENTIER-Marie Estelle D'ARBAUMONT | F27: =VLOOKUP(B27,Equipes!A:J,2,FALSE) -> M | G27: =ROUND(VLOOKUP(B27,Equipes!$A$2:$J$41,10,0),0) -> 49 | H27: 01:41:29 | I27: 00:19:41 | J27: 00:11:04 | K27: 9
A28: M10 | B28: 14 | C28: MAISONS MESNIL CERAMM 1 | D28: CERAMM1 | E28: Nicolas SCHMITT-Gloria VENDRELL-Christine MARIE LAVAUD-Amaury DE LA LAURENCIE-Amina ELABBADI | F28: =VLOOKUP(B28,Equipes!A:J,2,FALSE) -> M | G28: =ROUND(VLOOKUP(B28,Equipes!$A$2:$J$41,10,0),0) -> 50 | H28: 01:42:15 | I28: 00:20:27 | J28: 00:11:50 | K28: 10
A29: M11 | B29: 9 | C29: NOGENT SUR MARNE CN 1 | D29: CN 1 | E29: Chrystelle SUPIOT-Caroline PIEDNOIRE-Olivier MUCIGNAT-Andre SIMONNET-Fabienne LORTIE | F29: =VLOOKUP(B29,Equipes!A:J,2,FALSE) -> M | G29: =ROUND(VLOOKUP(B29,Equipes!$A$2:$J$41,10,0),0) -> 53 | H29: 01:43:36 | I29: 00:21:48 | J29: 00:13:11 | K29: 11
A30: M12 | B30: 2 | C30: CAUDEBEC EN CAUX ACVS 1 | D30: Caudebec | E30: Martine NARBAIS-JAUREGUY-Caroline KERVRANN-Stephane DELAMARE-Nicolas BARRAY-Francois NARBAIS-JAUREGUY | F30: =VLOOKUP(B30,Equipes!A:J,2,FALSE) -> M | G30: =ROUND(VLOOKUP(B30,Equipes!$A$2:$J$41,10,0),0) -> 55 | H30: 01:43:47 | I30: 00:21:59 | J30: 00:13:22 | K30: 12
A31: M13 | B31: 26 | C31: EVRY SCA 1 | D31: SCA 1 | E31: Anne CARDUNER-Olivia PEZZOLI-Bruno CASIMIR-Lionel BOISSONNAT-Kristell MAUCHET | F31: =VLOOKUP(B31,Equipes!A:J,2,FALSE) -> M | G31: =ROUND(VLOOKUP(B31,Equipes!$A$2:$J$41,10,0),0) -> 56 | H31: 01:46:30 | I31: 00:24:42 | J31: 00:16:05 | K31: 13
A32: M14 | B32: 5 | C32: PORT-MARLY RC 1 | D32: RCPM | E32: Claudie BODIN-Fanny LAMOUR-Etienne DUPUIS-Jeancharles FAUCHEUX-Gildas KETTANJIAN | F32: =VLOOKUP(B32,Equipes!A:J,2,FALSE) -> M | G32: =ROUND(VLOOKUP(B32,Equipes!$A$2:$J$41,10,0),0) -> 50 | H32: 01:49:12 | I32: 00:27:24 | J32: 00:18:47 | K32: 14
A33: M15 | B33: 23 | C33: SN OISE 1 | D33: SN Oise 1 | E33: Agnes AUDEBERT-Nicolas RAUCH-Jerome ROUGE-Nathalie BAUDIER-Isabelle JOUBERT | F33: =VLOOKUP(B33,Equipes!A:J,2,FALSE) -> M | G33: =ROUND(VLOOKUP(B33,Equipes!$A$2:$J$41,10,0),0) -> 50 | H33: 01:53:02 | I33: 00:31:14 | J33: 00:22:37 | K33: 15
A34: M16 | B34: 31 | C34: NOGENT SUR MARNE CN 3 | D34: CN3 | E34: Alexandra COHEN SALMON-Isabelle MILON-BANNEROT-Jerome TROMBOFSKY-Olivier PASCAL-Elisabeth LAUNAY | F34: =VLOOKUP(B34,Equipes!A:J,2,FALSE) -> M | G34: =ROUND(VLOOKUP(B34,Equipes!$A$2:$J$41,10,0),0) -> 53 | H34: 01:56:47 | I34: 00:34:59 | J34: 00:26:22 | K34: 16
A35: M17 | B35: 1 | C35: ANDRESY CA CONFLUENT 1 | D35: Cac1 | E35: Stephanie LAPORTE-Marine NACERI-Marc LACCASSAGNE-Stephane ZETTWOOG-Fouzia VOIRIN | F35: =VLOOKUP(B35,Equipes!A:J,2,FALSE) -> M | G35: =ROUND(VLOOKUP(B35,Equipes!$A$2:$J$41,10,0),0) -> 49 | H35: 01:56:53 | I35: 00:35:05 | J35: 00:26:28 | K35: 17
A36: M18 | B36: 3 | C36: ANDRESY CA CONFLUENT 2 | D36: CAC 2 | E36: Anna ALCALOIDEPOIXBLANC-Geoffrey GHIZZONI-Nathalie BOURGEOIS-Franck CHRISTIANNOT-NicOLAS delaunoy | F36: =VLOOKUP(B36,Equipes!A:J,2,FALSE) -> M | G36: =ROUND(VLOOKUP(B36,Equipes!$A$2:$J$41,10,0),0) -> 55 | H36: 01:57:49 | I36: 00:36:01 | J36: 00:27:24 | K36: 18
A37: X1 | B37: 33 | C37: XX | D37: XX | E37: XX-XX-XX-XX-XX | F37: =VLOOKUP(B37,Equipes!A:J,2,FALSE) -> X | G37: =ROUND(VLOOKUP(B37,Equipes!$A$2:$J$41,10,0),0) -> 0 | H37: 99:99:99 | K37: 1
A38: X2 | B38: 34 | C38: XX | D38: XX | E38: XX-XX-XX-XX-XX | F38: =VLOOKUP(B38,Equipes!A:J,2,FALSE) -> X | G38: =ROUND(VLOOKUP(B38,Equipes!$A$2:$J$41,10,0),0) -> 0 | H38: 99:99:99 | K38: 2
A39: X3 | B39: 35 | C39: XX | D39: XX | E39: XX-XX-XX-XX-XX | F39: =VLOOKUP(B39,Equipes!A:J,2,FALSE) -> X | G39: =ROUND(VLOOKUP(B39,Equipes!$A$2:$J$41,10,0),0) -> 0 | H39: 99:99:99 | K39: 3
A40: X4 | B40: 36 | C40: XX | D40: XX | E40: XX-XX-XX-XX-XX | F40: =VLOOKUP(B40,Equipes!A:J,2,FALSE) -> X | G40: =ROUND(VLOOKUP(B40,Equipes!$A$2:$J$41,10,0),0) -> 0 | H40: 99:99:99 | K40: 4
A41: X5 | B41: 37 | C41: XX | D41: XX | E41: XX-XX-XX-XX-XX | F41: =VLOOKUP(B41,Equipes!A:J,2,FALSE) -> X | G41: =ROUND(VLOOKUP(B41,Equipes!$A$2:$J$41,10,0),0) -> 0 | H41: 99:99:99 | K41: 5
A42: X6 | B42: 38 | C42: XX | D42: XX | E42: XX-XX-XX-XX-XX | F42: =VLOOKUP(B42,Equipes!A:J,2,FALSE) -> X | G42: =ROUND(VLOOKUP(B42,Equipes!$A$2:$J$41,10,0),0) -> 0 | H42: 99:99:99 | K42: 6
A43: 1 | B43: 39 | C43: XX | D43: XX | E43: XX-XX-XX-XX-XX | H43: 99:99:99 | K43: 1
A44: 2 | B44: 40 | C44: XX | D44: XX | E44: XX-XX-XX-XX-XX | H44: 99:99:99 | K44: 2

Sheet CL GENERAL
A1: GRAND HUIT | E1: ='Note explicative fichier'!E3 -> 2024-06-02 | G1: CLASSEMENT GENERAL
A3: Yolette N° | B3: Club | C3: Ville | D3: Equipage | E3: Cat. | F3: Age Moyen | G3: Arrivée G-8 | H3: Ecart record | I3: Ecart 1er N | J3: Position | K3: Position par cat.
A4: Record | B4: ='Temps corr'!B4 -> POLYTECHNIQUE ( Référence 2012 ) | C4: ='Temps corr'!C4 -> Palaiseau | D4: ='Temps corr'!D4 -> FERRERO Michel - Alexandre Rosinski - BOYAUD Mathieu - GODDE Olivier - THECKES Benoit | G4: ='Temps corr'!L4 -> 01:21:48 | I4: =MIN(G5:G44) -> 01:30:25
A5: 16 | B5: PORT-MARLY RC 1 | C5: RCPM1 | D5: Jean-Claude LAFOREST-David CHARTIER-Christophe MARCAIS-Vincent BONTOUX-Alain ROUSSEAU | E5: =VLOOKUP(A5,Equipes!A:J,2,FALSE) -> H | F5: =ROUND(VLOOKUP(A5,Equipes!$A$2:$J$41,10,0),0) -> 55 | G5: 01:30:25 | H5: =IF(G5<"99:99:99",G5-$G$4,"") -> 00:08:37 | I5: =IF(G5<"99:99:99",G5-$I$4,"") -> 00:00:00 | J5: 1 | K5: =VLOOKUP(A5,'Cl Catégories'!B:K,10,0) -> 1 | L5: =IF(G5=G4,"ExAequo","") -> 
A6: 28 | B6: VILLENNES - POISSY AC 1 | C6: ACVP1 | D6: Frederic LE ROUX-Corinne HUARD-ROLLAND-Elodie DEREMIENCE-Marie-Claude LAUNAY-Olivier COSNEAU | E6: =VLOOKUP(A6,Equipes!A:J,2,FALSE) -> M | F6: =ROUND(VLOOKUP(A6,Equipes!$A$2:$J$41,10,0),0) -> 53 | G6: 01:31:07 | H6: =IF(G6<"99:99:99",G6-$G$4,"") -> 00:09:19 | I6: =IF(G6<"99:99:99",G6-$I$4,"") -> 00:00:42 | J6: 2 | K6: =VLOOKUP(A6,'Cl Catégories'!B:K,10,0) -> 1
A7: 21 | B7: PORT-MARLY RC 2 | C7: RCPM2 | D7: Guillaume CHARRON-Philippe VERHE-Stephan REYNIER-Dominique LEROUX-Luciano AUTUNNALE | E7: =VLOOKUP(A7,Equipes!A:J,2,FALSE) -> H | F7: =ROUND(VLOOKUP(A7,Equipes!$A$2:$J$41,10,0),0) -> 51 | G7: 01:31:40 | H7: 00:09:52 | I7: 00:01:15 | J7: 3 | K7: =VLOOKUP(A7,'Cl Catégories'!B:K,10,0) -> 2
A8: 8 | B8: JOINVILLE AMJ 1 | C8: Joinville | D8: Laurent BAUDOIN-Raphaelle BOUVIER FLORY-Sophie BUSTOS-Kastriot JAKA-Thomas AUGER | E8: =VLOOKUP(A8,Equipes!A:J,2,FALSE) -> M | F8: =ROUND(VLOOKUP(A8,Equipes!$A$2:$J$41,10,0),0) -> 46 | G8: 01:33:32 | H8: 00:11:44 | I8: 00:03:07 | J8: 4 | K8: =VLOOKUP(A8,'Cl Catégories'!B:K,10,0) -> 2
A9: 24 | B9: MEULAN LES MUREAUX AMMH 1 | C9: AMMH1 | D9: Xavier MARSAIS-Eric PRENEY-Yannick DAGMEY-David COINE-Arthur VAN SLOOTEN | E9: =VLOOKUP(A9,Equipes!A:J,2,FALSE) -> H | F9: =ROUND(VLOOKUP(A9,Equipes!$A$2:$J$41,10,0),0) -> 53 | G9: 01:36:04 | H9: 00:14:16 | I9: 00:05:39 | J9: 5 | K9: =VLOOKUP(A9,'Cl Catégories'!B:K,10,0) -> 3
A10: 12 | B10: EVRY SCA 2 | C10: SCA2 | D10: Laurent YEBOAH-Isabelle MOISSET FLEURISSON-Frederic DUCAUQUY-Sandrine GARCIA-Christelle MARTIN | E10: =VLOOKUP(A10,Equipes!A:J,2,FALSE) -> M | F10: =ROUND(VLOOKUP(A10,Equipes!$A$2:$J$41,10,0),0) -> 48 | G10: 01:36:53 | H10: 00:15:05 | I10: 00:06:28 | J10: 6 | K10: =VLOOKUP(A10,'Cl Catégories'!B:K,10,0) -> 3
A11: 10 | B11: NOGENT SUR MARNE CN 2 | C11: CN2 | D11: Christophe RUCKEBUSCH-Nicolas BURCKHART-Alice GHEERBRANT-Aurelie DONVAL-Gerard LECA | E11: =VLOOKUP(A11,Equipes!A:J,2,FALSE) -> M | F11: =ROUND(VLOOKUP(A11,Equipes!$A$2:$J$41,10,0),0) -> 53 | G11: 01:36:54 | H11: 00:15:06 | I11: 00:06:29 | J11: 7 | K11: =VLOOKUP(A11,'Cl Catégories'!B:K,10,0) -> 4
A12: 13 | B12: PORT-MARLY RC 2 | C12: RCPM2 | D12: Elsa CROZATIER-Cyrielle BERTHIER-Hervé Valette-Eric MOINARD-Anais FEUGA | E12: =VLOOKUP(A12,Equipes!A:J,2,FALSE) -> M | F12: =ROUND(VLOOKUP(A12,Equipes!$A$2:$J$41,10,0),0) -> 47 | G12: 01:36:59 | H12: 00:15:11 | I12: 00:06:34 | J12: 8 | K12: =VLOOKUP(A12,'Cl Catégories'!B:K,10,0) -> 5
A13: 20 | B13: ROUEN CNAR 1 | C13: CNAR1 | D13: Nathalie MOUSSET-Francois LAIR-Betty GESLAIN-Thierry DUCHESNE-Stephane MOUSSET | E13: =VLOOKUP(A13,Equipes!A:J,2,FALSE) -> M | F13: =ROUND(VLOOKUP(A13,Equipes!$A$2:$J$41,10,0),0) -> 55 | G13: 01:37:13 | H13: 00:15:25 | I13: 00:06:48 | J13: 9 | K13: =VLOOKUP(A13,'Cl Catégories'!B:K,10,0) -> 6
A14: 25 | B14: VILLENNES - POISSY AC 2 | C14: ACVP2 | D14: Franck CARIOU-Michael LE BANNER-Valerie DECAESTECKER-Karine GUILBON-Christophe ELINE | E14: =VLOOKUP(A14,Equipes!A:J,2,FALSE) -> M | F14: =ROUND(VLOOKUP(A14,Equipes!$A$2:$J$41,10,0),0) -> 54 | G14: 01:38:27 | H14: 00:16:39 | I14: 00:08:02 | J14: 10 | K14: =VLOOKUP(A14,'Cl Catégories'!B:K,10,0) -> 7
A15: 15 | B15: SOISY SUR SEINE CN 1 | C15: CN1 | D15: Bertrand PIOGER-Bruno PERIQUOI-Servane BERTRAND-Alain BERNARD-Robert TRAUET | E15: =VLOOKUP(A15,Equipes!A:J,2,FALSE) -> H | F15: =ROUND(VLOOKUP(A15,Equipes!$A$2:$J$41,10,0),0) -> 54 | G15: 01:39:08 | H15: 00:17:20 | I15: 00:08:43 | J15: 11 | K15: =VLOOKUP(A15,'Cl Catégories'!B:K,10,0) -> 4
A16: 6 | B16: BOULOGNE 92 2 | C16: ACBB | D16: CéLia ROUSSELLE-Marie Pierre MARSALLON GAMBY-Françis ROBIN-Nicolas LECOEUR-Theodora XENOGIANI | E16: =VLOOKUP(A16,Equipes!A:J,2,FALSE) -> M | F16: =ROUND(VLOOKUP(A16,Equipes!$A$2:$J$41,10,0),0) -> 46 | G16: 01:39:43 | H16: 00:17:55 | I16: 00:09:18 | J16: 12 | K16: =VLOOKUP(A16,'Cl Catégories'!B:K,10,0) -> 8
A17: 19 | B17: VILLENNES - POISSY AC 1 | C17: ACVP1 | D17: Olivier POLGE-Odile POLGE-Laurent BONHOMMET-Antoine VOLPI-Philippe STROHM | E17: =VLOOKUP(A17,Equipes!A:J,2,FALSE) -> H | F17: =ROUND(VLOOKUP(A17,Equipes!$A$2:$J$41,10,0),0) -> 55 | G17: 01:40:56 | H17: 00:19:08 | I17: 00:10:31 | J17: 13 | K17: =VLOOKUP(A17,'Cl Catégories'!B:K,10,0) -> 5
A18: 30 | B18: JOINVILLE AMJ 1 | C18: AMJ1 | D18: Vincent FABIEN-Arnaud PUPPO-Jonathan ROOKE-Xavier SUCHET-Nicolas JAMAULT | E18: =VLOOKUP(A18,Equipes!A:J,2,FALSE) -> H | F18: =ROUND(VLOOKUP(A18,Equipes!$A$2:$J$41,10,0),0) -> 51 | G18: 01:41:06 | H18: 00:19:18 | I18: 00:10:41 | J18: 14 | K18: =VLOOKUP(A18,'Cl Catégories'!B:K,10,0) -> 6
A19: 7 | B19: VILLENNES - POISSY AC 3 | C19: ACVP | D19: Virginie ALEXANDRE-Jihad LEMARQRI-Cyrille BRUZON-BASCOU-Sebastien CARPENTIER-Marie Estelle D'ARBAUMONT | E19: =VLOOKUP(A19,Equipes!A:J,2,FALSE) -> M | F19: =ROUND(VLOOKUP(A19,Equipes!$A$2:$J$41,10,0),0) -> 49 | G19: 01:41:29 | H19: 00:19:41 | I19: 00:11:04 | J19: 15 | K19: =VLOOKUP(A19,'Cl Catégories'!B:K,10,0) -> 9
A20: 18 | B20: MAISONS MESNIL CERAMM 2 | C20: CERAMM2 | D20: Claude LEMENAGER-Didier GIRARDEAU-Laurent LIBOTTE-Alain GIRARD-Cecile JEAMMES | E20: =VLOOKUP(A20,Equipes!A:J,2,FALSE) -> H | F20: =ROUND(VLOOKUP(A20,Equipes!$A$2:$J$41,10,0),0) -> 58 | G20: 01:41:38 | H20: 00:19:50 | I20: 00:11:13 | J20: 16 | K20: =VLOOKUP(A20,'Cl Catégories'!B:K,10,0) -> 7
A21: 22 | B21: COUDRAY MONTCEAUX A 1 | C21: coudray1 | D21: Joseph RAYNAUD-Frederic MORAT-Benjamin HOUILLON-Pascal BEAUSSART-Anne HOUAL | E21: =VLOOKUP(A21,Equipes!A:J,2,FALSE) -> H | F21: =ROUND(VLOOKUP(A21,Equipes!$A$2:$J$41,10,0),0) -> 52 | G21: 01:41:46 | H21: =IF(G21<"99:99:99",G21-$G$4,"") -> 00:19:58 | I21: 00:11:21 | J21: 17 | K21: =VLOOKUP(A21,'Cl Catégories'!B:K,10,0) -> 8
A22: 14 | B22: MAISONS MESNIL CERAMM 1 | C22: CERAMM1 | D22: Nicolas SCHMITT-Gloria VENDRELL-Christine MARIE LAVAUD-Amaury DE LA LAURENCIE-Amina ELABBADI | E22: =VLOOKUP(A22,Equipes!A:J,2,FALSE) -> M | F22: =ROUND(VLOOKUP(A22,Equipes!$A$2:$J$41,10,0),0) -> 50 | G22: 01:42:15 | H22: =IF(G22<"99:99:99",G22-$G$4,"") -> 00:20:27 | I22: 00:11:50 | J22: 18 | K22: =VLOOKUP(A22,'Cl Catégories'!B:K,10,0) -> 10
A23: 9 | B23: NOGENT SUR MARNE CN 1 | C23: CN 1 | D23: Chrystelle SUPIOT-Caroline PIEDNOIRE-Olivier MUCIGNAT-Andre SIMONNET-Fabienne LORTIE | E23: =VLOOKUP(A23,Equipes!A:J,2,FALSE) -> M | F23: =ROUND(VLOOKUP(A23,Equipes!$A$2:$J$41,10,0),0) -> 53 | G23: 01:43:36 | H23: =IF(G23<"99:99:99",G23-$G$4,"") -> 00:21:48 | I23: 00:13:11 | J23: 19 | K23: =VLOOKUP(A23,'Cl Catégories'!B:K,10,0) -> 11
A24: 2 | B24: CAUDEBEC EN CAUX ACVS 1 | C24: Caudebec | D24: Martine NARBAIS-JAUREGUY-Caroline KERVRANN-Stephane DELAMARE-Nicolas BARRAY-Francois NARBAIS-JAUREGUY | E24: =VLOOKUP(A24,Equipes!A:J,2,FALSE) -> M | F24: =ROUND(VLOOKUP(A24,Equipes!$A$2:$J$41,10,0),0) -> 55 | G24: 01:43:47 | H24: =IF(G24<"99:99:99",G24-$G$4,"") -> 00:21:59 | I24: 00:13:22 | J24: 20 | K24: =VLOOKUP(A24,'Cl Catégories'!B:K,10,0) -> 12 | L24: =IF(G24=G23,"ExAequo","") -> 
A25: 26 | B25: EVRY SCA 1 | C25: SCA 1 | D25: Anne CARDUNER-Olivia PEZZOLI-Bruno CASIMIR-Lionel BOISSONNAT-Kristell MAUCHET | E25: =VLOOKUP(A25,Equipes!A:J,2,FALSE) -> M | F25: =ROUND(VLOOKUP(A25,Equipes!$A$2:$J$41,10,0),0) -> 56 | G25: 01:46:30 | H25: 00:24:42 | I25: 00:16:05 | J25: 21 | K25: =VLOOKUP(A25,'Cl Catégories'!B:K,10,0) -> 13 | L25: =IF(G25=G24,"ExAequo","") -> 
A26: 4 | B26: ANDRESY CA CONFLUENT 1 | C26: CAC3 | D26: Emmanuel SALIN-Ousseni PARKOUDA-Jean-Baptiste PROVENZANO-Jerome CLAVE-Julian GALLELA | E26: =VLOOKUP(A26,Equipes!A:J,2,FALSE) -> H | F26: =ROUND(VLOOKUP(A26,Equipes!$A$2:$J$41,10,0),0) -> 46 | G26: 01:47:27 | H26: 00:25:39 | I26: 00:17:02 | J26: 22 | K26: =VLOOKUP(A26,'Cl Catégories'!B:K,10,0) -> 9
A27: 29 | B27: FONTAINEBLEAU APF 1 | C27: APF1 | D27: Kathleen SANCHEZ-Laurent FOUQUE-Christian MESSALES-Denis FLORY-David WEBER | E27: =VLOOKUP(A27,Equipes!A:J,2,FALSE) -> H | F27: =ROUND(VLOOKUP(A27,Equipes!$A$2:$J$41,10,0),0) -> 57 | G27: 01:48:05 | H27: 00:26:17 | I27: 00:17:40 | J27: 23 | K27: =VLOOKUP(A27,'Cl Catégories'!B:K,10,0) -> 10
A28: 5 | B28: PORT-MARLY RC 1 | C28: RCPM | D28: Claudie BODIN-Fanny LAMOUR-Etienne DUPUIS-Jeancharles FAUCHEUX-Gildas KETTANJIAN | E28: =VLOOKUP(A28,Equipes!A:J,2,FALSE) -> M | F28: =ROUND(VLOOKUP(A28,Equipes!$A$2:$J$41,10,0),0) -> 50 | G28: 01:49:12 | H28: 00:27:24 | I28: 00:18:47 | J28: 24 | K28: =VLOOKUP(A28,'Cl Catégories'!B:K,10,0) -> 14
A29: 11 | B29: BOULOGNE 92 1 | C29: ACBB | D29: Viviane BALLOY-Timothé BAZIRIES-Alexandre LE FUR-Sigrid PABST-Michel VEDRINE | E29: =VLOOKUP(A29,Equipes!A:J,2,FALSE) -> H | F29: =ROUND(VLOOKUP(A29,Equipes!$A$2:$J$41,10,0),0) -> 51 | G29: 01:50:55 | H29: 00:29:07 | I29: 00:20:30 | J29: 25 | K29: =VLOOKUP(A29,'Cl Catégories'!B:K,10,0) -> 11
A30: 23 | B30: SN OISE 1 | C30: SN Oise 1 | D30: Agnes AUDEBERT-Nicolas RAUCH-Jerome ROUGE-Nathalie BAUDIER-Isabelle JOUBERT | E30: =VLOOKUP(A30,Equipes!A:J,2,FALSE) -> M | F30: =ROUND(VLOOKUP(A30,Equipes!$A$2:$J$41,10,0),0) -> 50 | G30: 01:53:02 | H30: 00:31:14 | I30: 00:22:37 | J30: 26 | K30: =VLOOKUP(A30,'Cl Catégories'!B:K,10,0) -> 15
A31: 31 | B31: NOGENT SUR MARNE CN 3 | C31: CN3 | D31: Alexandra COHEN SALMON-Isabelle MILON-BANNEROT-Jerome TROMBOFSKY-Olivier PASCAL-Elisabeth LAUNAY | E31: =VLOOKUP(A31,Equipes!A:J,2,FALSE) -> M | F31: =ROUND(VLOOKUP(A31,Equipes!$A$2:$J$41,10,0),0) -> 53 | G31: 01:56:47 | H31: 00:34:59 | I31: 00:26:22 | J31: 27 | K31: =VLOOKUP(A31,'Cl Catégories'!B:K,10,0) -> 16
A32: 1 | B32: ANDRESY CA CONFLUENT 1 | C32: Cac1 | D32: Stephanie LAPORTE-Marine NACERI-Marc LACCASSAGNE-Stephane ZETTWOOG-Fouzia VOIRIN | E32: =VLOOKUP(A32,Equipes!A:J,2,FALSE) -> M | F32: =ROUND(VLOOKUP(A32,Equipes!$A$2:$J$41,10,0),0) -> 49 | G32: 01:56:53 | H32: 00:35:05 | I32: 00:26:28 | J32: 28 | K32: =VLOOKUP(A32,'Cl Catégories'!B:K,10,0) -> 17
A33: 3 | B33: ANDRESY CA CONFLUENT 2 | C33: CAC 2 | D33: Anna ALCALOIDEPOIXBLANC-Geoffrey GHIZZONI-Nathalie BOURGEOIS-Franck CHRISTIANNOT-NicOLAS delaunoy | E33: =VLOOKUP(A33,Equipes!A:J,2,FALSE) -> M | F33: =ROUND(VLOOKUP(A33,Equipes!$A$2:$J$41,10,0),0) -> 55 | G33: 01:57:49 | H33: 00:36:01 | I33: 00:27:24 | J33: 29 | K33: =VLOOKUP(A33,'Cl Catégories'!B:K,10,0) -> 18
A34: 27 | B34: MEULAN LES MUREAUX AMMH 1 | C34: AMMH1 | D34: Gwenaelle MARSAIS-Sophie SEFFAR-Catherine MARTINIER-Christelle GOANVIC-Marie LAMORE | E34: =VLOOKUP(A34,Equipes!A:J,2,FALSE) -> F | F34: =ROUND(VLOOKUP(A34,Equipes!$A$2:$J$41,10,0),0) -> 47 | G34: 01:59:47 | H34: 00:37:59 | I34: 00:29:22 | J34: 30 | K34: =VLOOKUP(A34,'Cl Catégories'!B:K,10,0) -> 1
A35: 17 | B35: ANDRESY CA CONFLUENT 1 | C35: CAC1 | D35: Daphne PARIZOT-Agnes BURGHGRAEVE SELLEN-Sylvie FRANSSEN-Severine LEGAILLARD-Martine LE ROUX | E35: =VLOOKUP(A35,Equipes!A:J,2,FALSE) -> F | F35: =ROUND(VLOOKUP(A35,Equipes!$A$2:$J$41,10,0),0) -> 55 | G35: 02:01:10 | H35: 00:39:22 | I35: 00:30:45 | J35: 31 | K35: =VLOOKUP(A35,'Cl Catégories'!B:K,10,0) -> 2
A36: 32 | B36: BOULOGNE 92 1 | C36: ACBB1 | D36: Isabelle MAIRE-Théo BEL BERBEL- LURBE-Thã‰Odore SEDAROS-Omar OUAZZANI-Alexandra MENEZES | E36: =VLOOKUP(A36,Equipes!A:J,2,FALSE) -> H | F36: =ROUND(VLOOKUP(A36,Equipes!$A$2:$J$41,10,0),0) -> 43 | G36: 99:99:99 | J36: 32 | K36: =VLOOKUP(A36,'Cl Catégories'!B:K,10,0) -> 12
A37: 33 | B37: XX | C37: XX | D37: XX-XX-XX-XX-XX | E37: =VLOOKUP(A37,Equipes!A:J,2,FALSE) -> X | F37: =ROUND(VLOOKUP(A37,Equipes!$A$2:$J$41,10,0),0) -> 0 | G37: 99:99:99 | J37: 33 | K37: =VLOOKUP(A37,'Cl Catégories'!B:K,10,0) -> 1 | L37: ExAequo
A38: 34 | B38: XX | C38: XX | D38: XX-XX-XX-XX-XX | E38: =VLOOKUP(A38,Equipes!A:J,2,FALSE) -> X | F38: =ROUND(VLOOKUP(A38,Equipes!$A$2:$J$41,10,0),0) -> 0 | G38: 99:99:99 | J38: 34 | K38: =VLOOKUP(A38,'Cl Catégories'!B:K,10,0) -> 2 | L38: ExAequo
A39: 35 | B39: XX | C39: XX | D39: XX-XX-XX-XX-XX | E39: =VLOOKUP(A39,Equipes!A:J,2,FALSE) -> X | F39: =ROUND(VLOOKUP(A39,Equipes!$A$2:$J$41,10,0),0) -> 0 | G39: 99:99:99 | J39: 35 | K39: =VLOOKUP(A39,'Cl Catégories'!B:K,10,0) -> 3 | L39: ExAequo
A40: 36 | B40: XX | C40: XX | D40: XX-XX-XX-XX-XX | E40: =VLOOKUP(A40,Equipes!A:J,2,FALSE) -> X | F40: =ROUND(VLOOKUP(A40,Equipes!$A$2:$J$41,10,0),0) -> 0 | G40: 99:99:99 | J40: 36 | K40: =VLOOKUP(A40,'Cl Catégories'!B:K,10,0) -> 4 | L40: ExAequo
A41: 37 | B41: XX | C41: XX | D41: XX-XX-XX-XX-XX | E41: =VLOOKUP(A41,Equipes!A:J,2,FALSE) -> X | F41: =ROUND(VLOOKUP(A41,Equipes!$A$2:$J$41,10,0),0) -> 0 | G41: 99:99:99 | J41: 37 | K41: =VLOOKUP(A41,'Cl Catégories'!B:K,10,0) -> 5 | L41: ExAequo
A42: 38 | B42: XX | C42: XX | D42: XX-XX-XX-XX-XX | E42: =VLOOKUP(A42,Equipes!A:J,2,FALSE) -> X | F42: =ROUND(VLOOKUP(A42,Equipes!$A$2:$J$41,10,0),0) -> 0 | G42: 99:99:99 | J42: 38 | K42: =VLOOKUP(A42,'Cl Catégories'!B:K,10,0) -> 6 | L42: ExAequo
A43: 39 | B43: XX | C43: XX | D43: XX-XX-XX-XX-XX | E43: =VLOOKUP(A43,Equipes!A:J,2,FALSE) -> X | F43: =ROUND(VLOOKUP(A43,Equipes!$A$2:$J$41,10,0),0) -> 0 | G43: 99:99:99 | J43: 39 | K43: =VLOOKUP(A43,'Cl Catégories'!B:K,10,0) -> 1 | L43: ExAequo
A44: 40 | B44: XX | C44: XX | D44: XX-XX-XX-XX-XX | E44: =VLOOKUP(A44,Equipes!A:J,2,FALSE) -> X | F44: =ROUND(VLOOKUP(A44,Equipes!$A$2:$J$41,10,0),0) -> 0 | G44: 99:99:99 | J44: 40 | K44: =VLOOKUP(A44,'Cl Catégories'!B:K,10,0) -> 2 | L44: ExAequo

Sheet Cl Slalom
A1: GRAND HUIT | E1: ='Note explicative fichier'!E3 -> 2024-06-02 | G1: CLASSEMENT AU SLALOM
A3: Yolette N° | B3: Club | C3: Ville | D3: Equipage | G3: SLALOM1 | H3: SLALOM2 | I3: TEMPS MOYEN | J3: CLASSEMENT
A4: ='Temps corr'!A4 -> Record | B4: ='Temps corr'!B4 -> POLYTECHNIQUE ( Référence 2012 ) | C4: ='Temps corr'!C4 -> Palaiseau | D4: ='Temps corr'!D4 -> FERRERO Michel - Alexandre Rosinski - BOYAUD Mathieu - GODDE Olivier - THECKES Benoit
A5: 1 | B5: ANDRESY CA CONFLUENT 1 | C5: Cac1 | D5: Stephanie LAPORTE-Marine NACERI-Marc LACCASSAGNE-Stephane ZETTWOOG-Fouzia VOIRIN | E5: =VLOOKUP(A5,Equipes!A:J,2,FALSE) -> M | F5: =ROUND(VLOOKUP(A5,Equipes!$A$2:$J$41,10,0),0) -> 49 | G5: 99:99:99 | H5: 99:99:99 | I5: =AVERAGE(G5:H5) ->  | J5: =IF(B5="ACVP","HC",N5) -> 1 | K5: 16 | L5: 16 | M5: =IF(B5="ACVP",0,1) -> 1 | N5: =M5 -> 1 | O5: =CONCATENATE("S",N5) -> S1 | P5: =A5 -> 1
A6: 2 | B6: CAUDEBEC EN CAUX ACVS 1 | C6: Caudebec | D6: Martine NARBAIS-JAUREGUY-Caroline KERVRANN-Stephane DELAMARE-Nicolas BARRAY-Francois NARBAIS-JAUREGUY | E6: =VLOOKUP(A6,Equipes!A:J,2,FALSE) -> M | F6: =ROUND(VLOOKUP(A6,Equipes!$A$2:$J$41,10,0),0) -> 55 | G6: 99:99:99 | H6: 99:99:99 | J6: =IF(B6="ACVP","HC",N6) -> 2 | K6: Ier | L6: Ières | M6: =IF(B6="ACVP",0,1) -> 1 | N6: =M6+N5 -> 2 | O6: =CONCATENATE("S",N6) -> S2 | P6: 2
A7: 3 | B7: ANDRESY CA CONFLUENT 2 | C7: CAC 2 | D7: Anna ALCALOIDEPOIXBLANC-Geoffrey GHIZZONI-Nathalie BOURGEOIS-Franck CHRISTIANNOT-NicOLAS delaunoy | E7: =VLOOKUP(A7,Equipes!A:J,2,FALSE) -> M | F7: =ROUND(VLOOKUP(A7,Equipes!$A$2:$J$41,10,0),0) -> 55 | G7: 99:99:99 | H7: 99:99:99 | J7: 3 | K7: 10 | L7: 10 | M7: 1 | N7: =M7+N6 -> 3 | O7: S3 | P7: 3
A8: 4 | B8: ANDRESY CA CONFLUENT 1 | C8: CAC3 | D8: Emmanuel SALIN-Ousseni PARKOUDA-Jean-Baptiste PROVENZANO-Jerome CLAVE-Julian GALLELA | E8: =VLOOKUP(A8,Equipes!A:J,2,FALSE) -> H | F8: =ROUND(VLOOKUP(A8,Equipes!$A$2:$J$41,10,0),0) -> 46 | G8: 99:99:99 | H8: 99:99:99 | J8: 4 | K8: 32 | L8: 32 | M8: 1 | N8: 4 | O8: S4 | P8: 4
A9: 5 | B9: PORT-MARLY RC 1 | C9: RCPM | D9: Claudie BODIN-Fanny LAMOUR-Etienne DUPUIS-Jeancharles FAUCHEUX-Gildas KETTANJIAN | E9: =VLOOKUP(A9,Equipes!A:J,2,FALSE) -> M | F9: =ROUND(VLOOKUP(A9,Equipes!$A$2:$J$41,10,0),0) -> 50 | G9: 99:99:99 | H9: 99:99:99 | J9: 5 | K9: 31 | L9: 31 | M9: 1 | N9: 5 | O9: S5 | P9: 5
A10: 6 | B10: BOULOGNE 92 2 | C10: ACBB | D10: CéLia ROUSSELLE-Marie Pierre MARSALLON GAMBY-Françis ROBIN-Nicolas LECOEUR-Theodora XENOGIANI | E10: =VLOOKUP(A10,Equipes!A:J,2,FALSE) -> M | F10: =ROUND(VLOOKUP(A10,Equipes!$A$2:$J$41,10,0),0) -> 46 | G10: 99:99:99 | H10: 99:99:99 | J10: 6 | K10: 6 | L10: 6 | M10: 1 | N10: 6 | O10: S6 | P10: 6
A11: 7 | B11: VILLENNES - POISSY AC 3 | C11: ACVP | D11: Virginie ALEXANDRE-Jihad LEMARQRI-Cyrille BRUZON-BASCOU-Sebastien CARPENTIER-Marie Estelle D'ARBAUMONT | E11: =VLOOKUP(A11,Equipes!A:J,2,FALSE) -> M | F11: =ROUND(VLOOKUP(A11,Equipes!$A$2:$J$41,10,0),0) -> 49 | G11: 99:99:99 | H11: 99:99:99 | J11: 7 | K11: 23 | L11: 23 | M11: 1 | N11: 7 | O11: S7 | P11: 7
